Workbook

Sheet Disclaimer
B2: DISCLAIMER
C9: IMPORTANT NOTICE & DISCLAIMER This OPEX Model has been prepared exclusively for and on behalf of TransGrid Pty Ltd, and is subject to and issued in accordance with the agreement between TransGrid and Evans & Peck Pty Ltd dated on or about 9 December/28 November 2011 (“Agreement”). Except as set out in the Agreement, we accept no liability or responsibility whatsoever and howsoever arising in respect of any use of or reliance upon this Model by any third party. This Model, including the information contained therein, is confidential and private. The model must not be disclosed to any person or entity except with our prior written consent or as otherwise permitted in accordance the Agreement.

Sheet Contents
A1: Contents
B2: ="Revision: "&'File Details & Instructions'!$D$16 -> Revision: v3.00
B3: ="Status: "&'File Details & Instructions'!$D$17 -> Status: Final
C5: Sections
C6: Sheet | D6: Description
C7: Disclaimer | D7: Legal disclaimer
C8: Contents | D8: Table of contents with hyperlinks to other sheets
C9: File Details and Instructions | D9: Key workbook/model details and instructions for use
C10: Styles | D10: Outline of cell styles used in the model
C11: Assumptions and Limitations | D11: General model assumptions and limitations
C12: Process Diagram | D12: Process diagram with hyperlinks for forecast OPEX
C13: Input Sheets | D13: Cover sheet for subsequent model input sheets
C14: Calculation Sheets | D14: Cover sheet for subsequent model calculation sheets
C15: AER Schedules | D15: Cover sheet for subsequent AER Submission Schedules
C16: Working Sheets | D16: Cover sheet for subsequent working sheets e.g. file info, lookup list etc

Sheet Process Diagram
A1: Process Diagram
B2: Forecast OPEX
C3: ="Revision: "&'File Details & Instructions'!$D$16 -> Revision: v3.00
C4: ="Status: "&'File Details & Instructions'!$D$17 -> Status: Final
E12: Input | K12: Input
E13: Calcs | K13: Calcs
E19: Input | G19: Calcs | O19: Input
E20: Calcs | O20: Output
E21: Output
M24: Calcs
M25: Output
E26: Input | G26: Input | O26: Input | Q26: Calcs
E27: Calcs | O27: Calcs | Q27: Output
E28: Output
M30: Calcs
M31: Output
G35: Input | I35: Calcs | K35: Input
G36: Calcs | K36: Calcs

Sheet Input Sheets
A1: Input Sheets
B3: Sheet List
C4: Input - General
C5: Input - Historic Yr1
C6: Input - Historic Yr2
C7: Input - Historic Yr3
C8: Input - Historic Yr4
C9: Input - Base Year
C10: Input - Adjustments

Sheet Input - General
A1: Input Sheet
B2: General Inputs
C3: ="Revision: "&'File Details & Instructions'!$D$16 -> Revision: v3.00
C4: ="Status: "&'File Details & Instructions'!$D$17 -> Status: Final
B6: Timing
C8: Description | G8: Base Year | I8: Regulatory Period
C9: Year Name | D9: Year 1 | E9: Year 2 | F9: Year 3 | G9: Year 4 | H9: Year 5 | I9: Year 6 | J9: Year 7 | K9: Year 8 | L9: Year 9 | M9: Year 10
C10: Financial Year Name | D10: 09/10 | E10: 10/11 | F10: 11/12 | G10: 12/13 | H10: 13/14 | I10: 14/15 | J10: 15/16 | K10: 16/17 | L10: 17/18 | M10: 18/19
B13: Cost Category Details
E15: Economies of Scale | G15: Percent of outsourced labour in | H15: Target Defect Ratios
B16: # | C16: Cost Category | D16: Calculation Type | E16: Labour | F16: Mat+Exp | G16: Mat+Exp
B17: 1 | C17: Not Used | D17: Zero Based | E17: 0.95 | F17: =E17 -> 0.95 | G17: 0 | H17: 0
B18: 2 | C18: Lines | D18: Zero Based | E18: 0.95 | F18: 0.95 | G18: 0.5741956033 | H18: 0.8187153998
B19: 3 | C19: Substations | D19: Zero Based | E19: 0.95 | F19: 0.95 | G19: 0.4437217968 | H19: 0.9843082137
B20: 4 | C20: Communications | D20: Zero Based | E20: 0.95 | F20: 0.95 | G20: 0.3199547341 | H20: 2.127505391
B21: 5 | C21: Secondary Systems | D21: Zero Based | E21: 0.95 | F21: 0.95 | G21: 0.1701912007 | H21: 0.281963664
B22: 6 | C22: Land and Easements | D22: Zero Based | E22: 0.95 | F22: 0.95 | G22: 0.5453570114 | H22: 0.3098424553
B23: 7 | C23: Maintenance Support & Asset Management | D23: Efficient Base Yr | E23: 0.25 | F23: 0.25 | G23: 0.54232175
B24: 8 | C24: Operations/Control Room | D24: Efficient Base Yr | E24: 0.25 | F24: 0.25 | G24: 0.4405140711
B25: 9 | C25: Grid Planning | D25: Efficient Base Yr | E25: 0.25 | F25: 0.25 | G25: 0.8501532673
B26: 10 | C26: Not Used | D26: Zero Based | E26: 0 | F26: 0 | G26: 0
B27: 11 | C27: Rates & Taxes | D27: Efficient Base Yr | E27: 0.1 | F27: 1 | G27: 0.02448403831
B28: 12 | C28: Property Management | D28: Efficient Base Yr | E28: 0.25 | F28: 0.25 | G28: 0.1862813146
B29: 13 | C29: Health, Safety and Environmental | D29: Efficient Base Yr | E29: 0.25 | F29: 0.25 | G29: 0.2585964541
B30: 14 | C30: Corporate Governance | D30: Efficient Base Yr | E30: 0.1 | F30: 0.1 | G30: 0.6370862628
B31: 15 | C31: Customer Relations | D31: Efficient Base Yr | E31: 0.1 | F31: 0.1 | G31: 0.9637399185
B32: 16 | C32: Regulatory | D32: Efficient Base Yr | E32: 0.1 | F32: 0.1 | G32: 0.916784794
B33: 17 | C33: Finance | D33: Efficient Base Yr | E33: 0.1 | F33: 0.1 | G33: 0.9097644586
B34: 18 | C34: Information Technology | D34: Efficient Base Yr | E34: 0.1 | F34: 0.1 | G34: 0.5284868436
B35: 19 | C35: HR & Payroll | D35: Efficient Base Yr | E35: 0.1 | F35: 0.1 | G35: 0.718644492
B36: 20 | C36: Not Used | D36: Efficient Base Yr
B37: 21 | C37: Not Used | D37: Efficient Base Yr
B38: 22 | C38: Not Used | D38: Efficient Base Yr
B39: 23 | C39: Not Used | D39: Efficient Base Yr
B40: 24 | C40: Not Used | D40: Efficient Base Yr
B41: 25 | C41: Not Used | D41: Efficient Base Yr
B42: 26 | C42: Not Used | D42: Efficient Base Yr
B43: 27 | C43: Not Used | D43: Efficient Base Yr
B44: 28 | C44: Not Used | D44: Efficient Base Yr
B45: 29 | C45: Not Used | D45: Efficient Base Yr
B46: 30 | C46: Not Used | D46: Efficient Base Yr
B49: Escalation and Asset Growth
C51: Escalation (Yearly)
D52: ='Input - General'!$D$10 -> 09/10 | E52: ='Input - General'!$E$10 -> 10/11 | F52: ='Input - General'!$F$10 -> 11/12 | G52: ='Input - General'!$G$10 -> 12/13 | H52: ='Input - General'!$H$10 -> 13/14 | I52: ='Input - General'!$I$10 -> 14/15 | J52: ='Input - General'!$J$10 -> 15/16 | K52: ='Input - General'!$K$10 -> 16/17 | L52: ='Input - General'!$L$10 -> 17/18 | M52: ='Input - General'!$M$10 -> 18/19
C53: Internal Labour Escalation | H53: -0.002467299178 | I53: 0.001175993512 | J53: 0.00918699187 | K53: 0.016 | L53: 0.02 | M53: 0.021
C54: External Labour Escalation | H54: 0.011 | I54: 0.011 | J54: 0.014 | K54: 0.016 | L54: 0.02 | M54: 0.021
C55: Material & Expense Escalation
C56: CPI | D56: 0.02676872147 | E56: 0.03110469658 | F56: 0.02455239121 | G56: 0.0204252251 | H56: 0.02715872924 | I56: 0.02839804505 | J56: 0.02624923873 | K56: 0.025 | L56: 0.025 | M56: 0.025
C58: Asset Growth (Yearly)
C59: Workstream | D59: ='Input - General'!$D$10 -> 09/10 | E59: ='Input - General'!$E$10 -> 10/11 | F59: ='Input - General'!$F$10 -> 11/12 | G59: ='Input - General'!$G$10 -> 12/13 | H59: ='Input - General'!$H$10 -> 13/14 | I59: ='Input - General'!$I$10 -> 14/15 | J59: ='Input - General'!$J$10 -> 15/16 | K59: ='Input - General'!$K$10 -> 16/17 | L59: ='Input - General'!$L$10 -> 17/18 | M59: ='Input - General'!$M$10 -> 18/19
C60: =C17 -> Not Used
C61: Lines | H61: 0.0004565163101 | I61: 0.03288300331 | J61: 0.02183809995 | K61: 0 | L61: 0.0009510499151 | M61: 0.001509711315
C62: Substations | H62: 0.001415369666 | I62: 0.03795215456 | J62: 0.02701329278 | K62: 0.005555378456 | L62: 0.001949972914 | M62: 0.01099471434
C63: Communications | H63: 0.01337974407 | I63: 0.08861440463 | J63: 0.02171480252 | K63: 0.05060179697 | L63: 0.0005717027682 | M63: 0.003235550033
C64: Secondary Systems | H64: 0.007470545307 | I64: 0.02890493332 | J64: 0.0147108005 | K64: 0.02621756677 | L64: -0.0004056442962 | M64: 0.007638205218
C65: Land and Easements | H65: 0.01655762468 | I65: 0.04314552975 | J65: 0.04634108237 | K65: 0.06238119004 | L65: 0.0258666989 | M65: 0.001212914667
C66: Overall | H66: 0.002532836045 | I66: 0.03617114105 | J66: 0.02526526681 | K66: 0.00899746913 | L66: 0.003471853581 | M66: 0.005065721358
B69: Preventative Maintenance Forecast
C71: Preventative Maintenance Forecast (Hours)
C72: Workstream | D72: ='Input - General'!$D$10 -> 09/10 | E72: ='Input - General'!$E$10 -> 10/11 | F72: ='Input - General'!$F$10 -> 11/12 | G72: ='Input - General'!$G$10 -> 12/13 | H72: ='Input - General'!$H$10 -> 13/14 | I72: ='Input - General'!$I$10 -> 14/15 | J72: ='Input - General'!$J$10 -> 15/16 | K72: ='Input - General'!$K$10 -> 16/17 | L72: ='Input - General'!$L$10 -> 17/18 | M72: ='Input - General'!$M$10 -> 18/19
C73: =C17 -> Not Used
C74: Lines | H74: 18723.045 | I74: 16142.22 | J74: 19820.34 | K74: 17506.77 | L74: 17998.33 | M74: 17247.445
C75: Substations | H75: 52074.4 | I75: 52894.24 | J75: 57450.97 | K75: 55626.21 | L75: 54856.255 | M75: 53152.285
C76: Communications | H76: 6589.21 | I76: 5836.1 | J76: 6299.24 | K76: 6188.145 | L76: 6010.38 | M76: 6288.285
C77: Secondary Systems | H77: 25481.92 | I77: 21148.645 | J77: 21877.36 | K77: 26178.19 | L77: 25091.01 | M77: 24294.805
C78: Land and Easements | H78: 20179.58 | I78: 24801.355 | J78: 19259.78 | K78: 27086.01 | L78: 18712.29 | M78: 25134.895
B81: MOPS Forecast
C83: MOPS Labour ($)
C84: Workstream | D84: Real or Nominal | E84: Year of Real $ | F84: ='Input - General'!$F$10 -> 11/12 | G84: ='Input - General'!$G$10 -> 12/13 | H84: ='Input - General'!$H$10 -> 13/14 | I84: ='Input - General'!$I$10 -> 14/15 | J84: ='Input - General'!$J$10 -> 15/16 | K84: ='Input - General'!$K$10 -> 16/17 | L84: ='Input - General'!$L$10 -> 17/18 | M84: ='Input - General'!$M$10 -> 18/19
C85: =C17 -> Not Used | D85: Real | E85: 13/14
C86: Lines | D86: Real | E86: 13/14 | H86: 291966.65 | I86: 660054.7024 | J86: 1200931.236 | K86: 1971083.53 | L86: 462421.2361 | M86: 434595.0029
C87: Substations | D87: Real | E87: 13/14 | H87: 1742763.89 | I87: 1254948.407 | J87: 1216575.587 | K87: 1234559.967 | L87: 1169260.389 | M87: 1148760.35
C88: Communications | D88: Real | E88: 13/14 | H88: 69670.16 | I88: 57479.6184 | J88: 57479.6184 | K88: 57479.6184 | L88: 57479.6184 | M88: 57479.6184
C89: Secondary Systems | D89: Real | E89: 13/14 | H89: 0 | I89: 559841.241 | J89: 851292.4923 | K89: 600000 | L89: 100000 | M89: 0
C90: Land and Easements | D90: Real | E90: 13/14 | H90: 0 | I90: 0 | J90: 0 | K90: 0 | L90: 0 | M90: 0
C92: MOPS Material & Expense ($)
C93: Workstream | D93: Real or Nominal | E93: Year of Real $ | F93: ='Input - General'!$F$10 -> 11/12 | G93: ='Input - General'!$G$10 -> 12/13 | H93: ='Input - General'!$H$10 -> 13/14 | I93: ='Input - General'!$I$10 -> 14/15 | J93: ='Input - General'!$J$10 -> 15/16 | K93: ='Input - General'!$K$10 -> 16/17 | L93: ='Input - General'!$L$10 -> 17/18 | M93: ='Input - General'!$M$10 -> 18/19
C94: =C17 -> Not Used | D94: =D85 -> Real | E94: 13/14
C95: Lines | D95: Real | E95: 13/14 | H95: 291748.46 | I95: 2508835.09 | J95: 3328092.557 | K95: 4212819.263 | L95: 368487.5566 | M95: 346313.7897
C96: Substations | D96: Real | E96: 13/14 | H96: 2223074.96 | I96: 3450218.575 | J96: 3312052.291 | K96: 3329272.756 | L96: 3153177.537 | M96: 3097894.503
C97: Communications | D97: Real | E97: 13/14 | H97: 94940 | I97: 32527.5816 | J97: 32527.5816 | K97: 32527.5816 | L97: 32527.5816 | M97: 32527.5816
C98: Secondary Systems | D98: Real | E98: 13/14 | H98: 0 | I98: 127196.759 | J98: 1223311.508 | K98: 1100000 | L98: 0 | M98: 0
C99: Land and Easements | D99: Real | E99: 13/14 | H99: 0 | I99: 0 | J99: 0 | K99: 0 | L99: 0 | M99: 0
B102: Forecast Other OPEX
C104: Base Year and Forecast Other OPEX ($)
C105: Workstream | D105: Real or Nominal | E105: Year of Real $ | F105: ='Input - General'!$F$10 -> 11/12 | G105: ='Input - General'!$G$10 -> 12/13 | H105: ='Input - General'!$H$10 -> 13/14 | I105: ='Input - General'!$I$10 -> 14/15 | J105: ='Input - General'!$J$10 -> 15/16 | K105: ='Input - General'!$K$10 -> 16/17 | L105: ='Input - General'!$L$10 -> 17/18 | M105: ='Input - General'!$M$10 -> 18/19
C106: Debt Raising | D106: Real | E106: 13/14 | H106: 0 | I106: 7154056.132 | J106: 7294141.211 | K106: 7473854.156 | L106: 7528221.083 | M106: 7612493.549
C107: Insurance | D107: Nominal | E107: Nominal | H107: 5375049.352 | I107: 6008446.528 | J107: 6714237.944 | K107: 7499403.789 | L107: 8378151.682 | M107: 9364726.932
C108: Self Insurance | D108: Real | E108: 13/14 | H108: 900000 | I108: 0 | J108: 0 | K108: 0 | L108: 0 | M108: 0
C109: Network Support | D109: Real | E109: 13/14 | H109: 0 | I109: 5251070 | J109: 6209019 | K109: 7107911 | L109: 7787062 | M109: 8342159

Sheet Input - Historic Yr1
A1: Input Sheet
B2: Historic Year 1
C3: ="Revision: "&'File Details & Instructions'!$D$16 -> Revision: v3.00
C4: ="Status: "&'File Details & Instructions'!$D$17 -> Status: Final
E9: Year 1
C10: $ million | E10: Field Maintenance | H10: Operations and Maintenance Support | I10: Corporate Support
C11: Nominal | E11: Preventative | F11: Corrective/ Condition-based | G11: MOPS | I11: Network | J11: Non-Network | L11: TOTAL | N11: Revenue Cap Allowance | P11: Key cost drivers and explanation for material differences over time
C12: Maintenance
C13: ='Input - General'!C17 -> Not Used
C14: Labour | L14: =SUM(E14:J14) -> 0
C15: Materials | L15: =SUM(E15:J15) -> 0
C16: Sub-Totals | E16: =SUM(E14:E15) -> 0 | F16: =SUM(F14:F15) -> 0 | G16: =SUM(G14:G15) -> 0 | L16: =SUM(E16:J16) -> 0
C17: ='Input - General'!C18 -> Lines
C18: Labour | E18: 2.501913 | F18: 0.99867625 | G18: 0.18916991 | L18: =SUM(E18:J18) -> 3.68975916
C19: Materials | E19: 2.68828651 | F19: 1.22984018 | G19: 0.37550853 | L19: =SUM(E19:J19) -> 4.29363522
C20: Sub-Totals | E20: =SUM(E18:E19) -> 5.19019951 | F20: =SUM(F18:F19) -> 2.22851643 | G20: =SUM(G18:G19) -> 0.56467844 | L20: =SUM(E20:J20) -> 7.98339438
C21: ='Input - General'!C19 -> Substations
C22: Labour | E22: 7.09959902 | F22: 3.07807868 | G22: 0.59097796 | L22: =SUM(E22:J22) -> 10.76865566
C23: Materials | E23: 4.77160076 | F23: 4.38355474 | G23: 3.08585865 | L23: =SUM(E23:J23) -> 12.24101415
C24: Sub-Totals | E24: =SUM(E22:E23) -> 11.87119978 | F24: =SUM(F22:F23) -> 7.46163342 | G24: =SUM(G22:G23) -> 3.67683661 | L24: =SUM(E24:J24) -> 23.00966981
C25: ='Input - General'!C20 -> Communications
C26: Labour | E26: 1.4466189 | F26: 1.1585073 | G26: 0.077105 | L26: =SUM(E26:J26) -> 2.6822312
C27: Materials | E27: 0.88245075 | F27: 0.92508263 | G27: 0.15204948 | L27: =SUM(E27:J27) -> 1.95958286
C28: Sub-Totals | E28: =SUM(E26:E27) -> 2.32906965 | F28: =SUM(F26:F27) -> 2.08358993 | G28: =SUM(G26:G27) -> 0.22915448 | L28: =SUM(E28:J28) -> 4.64181406
C29: ='Input - General'!C21 -> Secondary Systems
C30: Labour | E30: 1.71520627 | F30: 0.48567725 | L30: =SUM(E30:J30) -> 2.20088352
C31: Materials | E31: 1.44679075 | F31: 0.35321621 | L31: =SUM(E31:J31) -> 1.80000696
C32: Sub-Totals | E32: =SUM(E30:E31) -> 3.16199702 | F32: =SUM(F30:F31) -> 0.83889346 | G32: =SUM(G30:G31) -> 0 | L32: =SUM(E32:J32) -> 4.00089048
C33: ='Input - General'!C22 -> Land and Easements
C34: Labour | E34: 2.31183535 | F34: 0.53228051 | L34: =SUM(E34:J34) -> 2.84411586
C35: Materials | E35: 6.30891927 | F35: 6.17794172 | L35: =SUM(E35:J35) -> 12.48686099
C36: Sub-Totals | E36: =SUM(E34:E35) -> 8.62075462 | F36: =SUM(F34:F35) -> 6.71022223 | G36: =SUM(G34:G35) -> 0 | L36: =SUM(E36:J36) -> 15.33097685
C37: Summary
C38: Sub-Total Labour | E38: =E14+E18+E22+E26+E30+E34 -> 15.07517254 | F38: 6.25321999 | G38: 0.85725287 | L38: =SUM(E38:J38) -> 22.1856454
C39: Sub-Total Materials | E39: 16.09804804 | F39: 13.06963548 | G39: 3.61341666 | L39: 32.78110018
C40: Total Maintenance | E40: =SUM(E38:E39) -> 31.17322058 | F40: =SUM(F38:F39) -> 19.32285547 | G40: =SUM(G38:G39) -> 4.47066953 | L40: 54.96674558
C41: ='Input - General'!C23 -> Maintenance Support & Asset Management | H41: 9.85733333 | L41: 9.85733333
C42: Total Maintenance Support & Asset Management | H42: =SUM(H41) -> 9.85733333 | L42: 9.85733333
C43: ='Input - General'!C24 -> Operations/Control Room | H43: 7.70762264 | L43: 7.70762264
C44: Total Operations | H44: =SUM(H43) -> 7.70762264 | L44: 7.70762264
C45: ='Input - General'!C25 -> Grid Planning | H45: 4.21334868 | L45: 4.21334868
C46: Total Grid Planning | H46: =SUM(H45) -> 4.21334868 | L46: 4.21334868
C47: ='Input - General'!C26 -> Not Used | L47: 0
C48: ='Input - General'!C27 -> Rates & Taxes | I48: 4.50225339 | L48: 4.50225339
C49: Total Taxes and Insurance | I49: =SUM(I47:I48) -> 4.50225339 | L49: 4.50225339
C50: ='Input - General'!C28 -> Property Management | I50: 3.81654688 | L50: 3.81654688
C51: ='Input - General'!C29 -> Health, Safety and Environmental | I51: 3.56580117 | L51: 3.56580117
C52: Total Property Management | I52: =SUM(I50:I51) -> 7.38234805 | L52: 7.38234805
C53: ='Input - General'!C30 -> Corporate Governance | J53: 3.83952967 | L53: 3.83952967
C54: ='Input - General'!C31 -> Customer Relations | I54: 1.50675916 | L54: 1.50675916
C55: ='Input - General'!C32 -> Regulatory | I55: 1.63700518 | L55: 1.63700518
C56: Total Corporate and Regulatory Management | I56: =SUM(I53:I55) -> 3.14376434 | J56: =SUM(J53:J55) -> 3.83952967 | L56: 6.98329401
C57: ='Input - General'!C33 -> Finance | J57: 5.94547452 | L57: 5.94547452
C58: ='Input - General'!C34 -> Information Technology | J58: 9.9685372 | L58: 9.9685372
C59: ='Input - General'!C35 -> HR & Payroll | J59: 4.72089542 | L59: 4.72089542
C60: Total Business Management | J60: =SUM(J57:J59) -> 20.63490714 | L60: 20.63490714
C61: TOTAL CONTROLLABLE OPEX | E61: =E40+E42+E44+E46+E49+E52+E56+E60 -> 31.17322058 | F61: 19.32285547 | G61: 4.47066953 | H61: 21.77830465 | I61: 15.02836578 | J61: 24.47443681 | L61: 116.2478528
C63: Debt Raising
C64: Insurance | L64: 7.02228295
C65: Self Insurance | L65: 1.76968228
C66: Network Support | L66: 18.2
C67: TOTAL OTHER OPEX | L67: =SUM(L63:L66) -> 26.99196523
C69: TOTAL REGULATORY OPEX | E69: =E61+E67 -> 31.17322058 | F69: 19.32285547 | G69: 4.47066953 | H69: 21.77830465 | I69: 15.02836578 | J69: 24.47443681 | L69: =SUM(E69:J69)+L67 -> 143.239818
C71: Revenue Cap Allowance

Sheet Input - Historic Yr2
A1: Input Sheet
B2: Historic Year 2
C3: ="Revision: "&'File Details & Instructions'!$D$16 -> Revision: v3.00
C4: ="Status: "&'File Details & Instructions'!$D$17 -> Status: Final
E9: Year 2
C10: $ million | E10: Field Maintenance | H10: Operations and Maintenance Support | I10: Corporate Support
C11: Nominal | E11: Preventative | F11: Corrective/ Condition-based | G11: MOPS | I11: Network | J11: Non-Network | L11: TOTAL | N11: Revenue Cap Allowance | P11: Key cost drivers and explanation for material differences over time
C12: Maintenance
C13: ='Input - General'!C17 -> Not Used
C14: Labour | L14: =SUM(E14:J14) -> 0
C15: Materials | L15: =SUM(E15:J15) -> 0
C16: Sub-Totals | E16: =SUM(E14:E15) -> 0 | F16: =SUM(F14:F15) -> 0 | G16: =SUM(G14:G15) -> 0 | L16: =SUM(E16:J16) -> 0
C17: ='Input - General'!C18 -> Lines
C18: Labour | E18: 2.85423393 | F18: 1.1766346 | G18: 0.99006586 | L18: =SUM(E18:J18) -> 5.02093439
C19: Materials | E19: 1.79860228 | F19: 1.75526301 | G19: 2.93827397 | L19: =SUM(E19:J19) -> 6.49213926
C20: Sub-Totals | E20: =SUM(E18:E19) -> 4.65283621 | F20: =SUM(F18:F19) -> 2.93189761 | G20: =SUM(G18:G19) -> 3.92833983 | L20: =SUM(E20:J20) -> 11.51307365
C21: ='Input - General'!C19 -> Substations
C22: Labour | E22: 6.7238643 | F22: 4.02129532 | G22: 1.14358476 | L22: =SUM(E22:J22) -> 11.88874438
C23: Materials | E23: 4.88070063 | F23: 7.21593572 | G23: 4.15777077 | L23: =SUM(E23:J23) -> 16.25440712
C24: Sub-Totals | E24: =SUM(E22:E23) -> 11.60456493 | F24: =SUM(F22:F23) -> 11.23723104 | G24: =SUM(G22:G23) -> 5.30135553 | L24: =SUM(E24:J24) -> 28.1431515
C25: ='Input - General'!C20 -> Communications
C26: Labour | E26: 2.09375906 | F26: 1.04702115 | G26: 0.16636069 | L26: =SUM(E26:J26) -> 3.3071409
C27: Materials | E27: 1.92746473 | F27: 0.92604953 | G27: 0.17064959 | L27: =SUM(E27:J27) -> 3.02416385
C28: Sub-Totals | E28: =SUM(E26:E27) -> 4.02122379 | F28: =SUM(F26:F27) -> 1.97307068 | G28: =SUM(G26:G27) -> 0.33701028 | L28: =SUM(E28:J28) -> 6.33130475
C29: ='Input - General'!C21 -> Secondary Systems
C30: Labour | E30: 2.95813155 | F30: 0.49661788 | L30: =SUM(E30:J30) -> 3.45474943
C31: Materials | E31: 2.08031962 | F31: 0.4753972 | L31: =SUM(E31:J31) -> 2.55571682
C32: Sub-Totals | E32: =SUM(E30:E31) -> 5.03845117 | F32: =SUM(F30:F31) -> 0.97201508 | G32: =SUM(G30:G31) -> 0 | L32: =SUM(E32:J32) -> 6.01046625
C33: ='Input - General'!C22 -> Land and Easements
C34: Labour | E34: 2.43913539 | F34: 0.48918562 | L34: =SUM(E34:J34) -> 2.92832101
C35: Materials | E35: 5.72719898 | F35: 6.76612299 | L35: =SUM(E35:J35) -> 12.49332197
C36: Sub-Totals | E36: =SUM(E34:E35) -> 8.16633437 | F36: =SUM(F34:F35) -> 7.25530861 | G36: =SUM(G34:G35) -> 0 | L36: =SUM(E36:J36) -> 15.42164298
C37: Summary
C38: Sub-Total Labour | E38: =E14+E18+E22+E26+E30+E34 -> 17.06912423 | F38: 7.23075457 | G38: 2.30001131 | L38: =SUM(E38:J38) -> 26.59989011
C39: Sub-Total Materials | E39: 16.41428624 | F39: 17.13876845 | G39: 7.26669433 | L39: 40.81974902
C40: Total Maintenance | E40: =SUM(E38:E39) -> 33.48341047 | F40: =SUM(F38:F39) -> 24.36952302 | G40: =SUM(G38:G39) -> 9.56670564 | L40: 67.41963913
C41: ='Input - General'!C23 -> Maintenance Support & Asset Management | H41: 11.0951412 | L41: 11.0951412
C42: Total Maintenance Support & Asset Management | H42: =SUM(H41) -> 11.0951412 | L42: 11.0951412
C43: ='Input - General'!C24 -> Operations/Control Room | H43: 6.81527764 | L43: 6.81527764
C44: Total Operations | H44: =SUM(H43) -> 6.81527764 | L44: 6.81527764
C45: ='Input - General'!C25 -> Grid Planning | H45: 6.40671953 | L45: 6.40671953
C46: Total Grid Planning | H46: =SUM(H45) -> 6.40671953 | L46: 6.40671953
C47: ='Input - General'!C26 -> Not Used | L47: 0
C48: ='Input - General'!C27 -> Rates & Taxes | I48: 4.66746868 | L48: 4.66746868
C49: Total Taxes and Insurance | I49: =SUM(I47:I48) -> 4.66746868 | L49: 4.66746868
C50: ='Input - General'!C28 -> Property Management | I50: 3.39870474 | L50: 3.39870474
C51: ='Input - General'!C29 -> Health, Safety and Environmental | I51: 3.88652906 | L51: 3.88652906
C52: Total Property Management | I52: =SUM(I50:I51) -> 7.2852338 | L52: 7.2852338
C53: ='Input - General'!C30 -> Corporate Governance | J53: 1.33665917 | L53: 1.33665917
C54: ='Input - General'!C31 -> Customer Relations | I54: 1.36452269 | L54: 1.36452269
C55: ='Input - General'!C32 -> Regulatory | I55: 1.13512259 | L55: 1.13512259
C56: Total Corporate and Regulatory Management | I56: =SUM(I53:I55) -> 2.49964528 | J56: =SUM(J53:J55) -> 1.33665917 | L56: 3.83630445
C57: ='Input - General'!C33 -> Finance | J57: 5.24896861 | L57: 5.24896861
C58: ='Input - General'!C34 -> Information Technology | J58: 11.86582007 | L58: 11.86582007
C59: ='Input - General'!C35 -> HR & Payroll | J59: 4.80204351 | L59: 4.80204351
C60: Total Business Management | J60: =SUM(J57:J59) -> 21.91683219 | L60: 21.91683219
C61: TOTAL CONTROLLABLE OPEX | E61: =E40+E42+E44+E46+E49+E52+E56+E60 -> 33.48341047 | F61: 24.36952302 | G61: 9.56670564 | H61: 24.31713837 | I61: 14.45234776 | J61: 23.25349136 | L61: 129.4426166
C63: Debt Raising | L63: 0
C64: Insurance | L64: 6.98003253
C65: Self Insurance | L65: 1.33650726
C66: Network Support | L66: 0.01495066
C67: TOTAL OTHER OPEX | L67: =SUM(L63:L66) -> 8.33149045
C69: TOTAL REGULATORY OPEX | E69: =E61+E67 -> 33.48341047 | F69: 24.36952302 | G69: 9.56670564 | H69: 24.31713837 | I69: 14.45234776 | J69: 23.25349136 | L69: =SUM(E69:J69)+L67 -> 137.7741071
C71: Revenue Cap Allowance

Sheet Input - Historic Yr3
A1: Input Sheet
B2: Historic Year 3
C3: ="Revision: "&'File Details & Instructions'!$D$16 -> Revision: v3.00
C4: ="Status: "&'File Details & Instructions'!$D$17 -> Status: Final
E9: Year 3
C10: $ million | E10: Field Maintenance | H10: Operations and Maintenance Support | I10: Corporate Support
C11: Nominal | E11: Preventative | F11: Corrective/ Condition-based | G11: MOPS | I11: Network | J11: Non-Network | L11: TOTAL | N11: Revenue Cap Allowance | P11: Key cost drivers and explanation for material differences over time
C12: Maintenance
C13: ='Input - General'!C17 -> Not Used
C14: Labour | L14: =SUM(E14:J14) -> 0
C15: Materials | L15: =SUM(E15:J15) -> 0
C16: Sub-Totals | E16: =SUM(E14:E15) -> 0 | F16: =SUM(F14:F15) -> 0 | G16: =SUM(G14:G15) -> 0 | L16: =SUM(E16:J16) -> 0
C17: ='Input - General'!C18 -> Lines
C18: Labour | E18: 3.116103846 | F18: 2.637156734 | G18: 1.4351549 | L18: =SUM(E18:J18) -> 7.18841548
C19: Materials | E19: 1.621539161 | F19: 1.312658039 | G19: 3.61397717 | L19: =SUM(E19:J19) -> 6.54817437
C20: Sub-Totals | E20: =SUM(E18:E19) -> 4.737643007 | F20: =SUM(F18:F19) -> 3.949814773 | G20: =SUM(G18:G19) -> 5.04913207 | L20: =SUM(E20:J20) -> 13.73658985
C21: ='Input - General'!C19 -> Substations
C22: Labour | E22: 9.373256161 | F22: 9.155722959 | G22: 0.63686426 | L22: =SUM(E22:J22) -> 19.16584338
C23: Materials | E23: 1.22953694 | F23: 5.65132728 | G23: 1.43533613 | L23: =SUM(E23:J23) -> 8.31620035
C24: Sub-Totals | E24: =SUM(E22:E23) -> 10.6027931 | F24: =SUM(F22:F23) -> 14.80705024 | G24: =SUM(G22:G23) -> 2.07220039 | L24: =SUM(E24:J24) -> 27.48204373
C25: ='Input - General'!C20 -> Communications
C26: Labour | E26: 0.922951127 | F26: 2.519046593 | G26: 0.07150168 | L26: =SUM(E26:J26) -> 3.5134994
C27: Materials | E27: 0.1280693142 | F27: 0.3700121158 | G27: 0.00739487 | L27: =SUM(E27:J27) -> 0.5054763
C28: Sub-Totals | E28: =SUM(E26:E27) -> 1.051020441 | F28: =SUM(F26:F27) -> 2.889058709 | G28: =SUM(G26:G27) -> 0.07889655 | L28: =SUM(E28:J28) -> 4.0189757
C29: ='Input - General'!C21 -> Secondary Systems
C30: Labour | E30: 2.74579562 | F30: 0.6830417398 | L30: =SUM(E30:J30) -> 3.42883736
C31: Materials | E31: 0.1084552518 | F31: 0.2900542882 | L31: =SUM(E31:J31) -> 0.39850954
C32: Sub-Totals | E32: =SUM(E30:E31) -> 2.854250872 | F32: =SUM(F30:F31) -> 0.973096028 | G32: =SUM(G30:G31) -> 0 | L32: =SUM(E32:J32) -> 3.8273469
C33: ='Input - General'!C22 -> Land and Easements
C34: Labour | E34: 3.450520002 | F34: 0.6960712082 | L34: =SUM(E34:J34) -> 4.14659121
C35: Materials | E35: 8.810820274 | F35: 2.670513956 | L35: =SUM(E35:J35) -> 11.48133423
C36: Sub-Totals | E36: =SUM(E34:E35) -> 12.26134028 | F36: =SUM(F34:F35) -> 3.366585164 | G36: =SUM(G34:G35) -> 0 | L36: =SUM(E36:J36) -> 15.62792544
C37: Summary
C38: Sub-Total Labour | E38: =E14+E18+E22+E26+E30+E34 -> 19.60862676 | F38: 15.69103923 | G38: 2.14352084 | L38: =SUM(E38:J38) -> 37.44318683
C39: Sub-Total Materials | E39: 11.89842094 | F39: 10.29456568 | G39: 5.05670817 | L39: 27.24969479
C40: Total Maintenance | E40: =SUM(E38:E39) -> 31.5070477 | F40: =SUM(F38:F39) -> 25.98560491 | G40: =SUM(G38:G39) -> 7.20022901 | L40: 64.69288162
C41: ='Input - General'!C23 -> Maintenance Support & Asset Management | H41: 13.63684941 | L41: 13.63684941
C42: Total Maintenance Support & Asset Management | H42: =SUM(H41) -> 13.63684941 | L42: 13.63684941
C43: ='Input - General'!C24 -> Operations/Control Room | H43: 7.13152598 | L43: 7.13152598
C44: Total Operations | H44: =SUM(H43) -> 7.13152598 | L44: 7.13152598
C45: ='Input - General'!C25 -> Grid Planning | H45: 8.66942221 | L45: 8.66942221
C46: Total Grid Planning | H46: =SUM(H45) -> 8.66942221 | L46: 8.66942221
C47: ='Input - General'!C26 -> Not Used | L47: 0
C48: ='Input - General'!C27 -> Rates & Taxes | I48: 4.58238003 | L48: 4.58238003
C49: Total Taxes and Insurance | I49: =SUM(I47:I48) -> 4.58238003 | L49: 4.58238003
C50: ='Input - General'!C28 -> Property Management | I50: 2.25367646 | L50: 2.25367646
C51: ='Input - General'!C29 -> Health, Safety and Environmental | I51: 2.589475874 | L51: 2.589475874
C52: Total Property Management | I52: =SUM(I50:I51) -> 4.843152334 | L52: 4.843152334
C53: ='Input - General'!C30 -> Corporate Governance | J53: 10.68499465 | L53: 10.68499465
C54: ='Input - General'!C31 -> Customer Relations | I54: 2.872074709 | L54: 2.872074709
C55: ='Input - General'!C32 -> Regulatory | I55: 2.46045742 | L55: 2.46045742
C56: Total Corporate and Regulatory Management | I56: =SUM(I53:I55) -> 5.332532129 | J56: =SUM(J53:J55) -> 10.68499465 | L56: 16.01752678
C57: ='Input - General'!C33 -> Finance | J57: 5.05529832 | L57: 5.05529832
C58: ='Input - General'!C34 -> Information Technology | J58: 11.43941702 | L58: 11.43941702
C59: ='Input - General'!C35 -> HR & Payroll | J59: 5.43492291 | L59: 5.43492291
C60: Total Business Management | J60: =SUM(J57:J59) -> 21.92963825 | L60: 21.92963825
C61: TOTAL CONTROLLABLE OPEX | E61: =E40+E42+E44+E46+E49+E52+E56+E60 -> 31.5070477 | F61: 25.98560491 | G61: 7.20022901 | H61: 29.4377976 | I61: 14.75806449 | J61: 32.6146329 | L61: 141.5033766
C63: Debt Raising | L63: 0
C64: Insurance | L64: 7.64458754
C65: Self Insurance | L65: 2.87721176
C66: Network Support | L66: 0.18680406
C67: TOTAL OTHER OPEX | L67: =SUM(L63:L66) -> 10.70860336
C69: TOTAL REGULATORY OPEX | E69: =E61+E67 -> 31.5070477 | F69: 25.98560491 | G69: 7.20022901 | H69: 29.4377976 | I69: 14.75806449 | J69: 32.6146329 | L69: =SUM(E69:J69)+L67 -> 152.21198
C71: Revenue Cap Allowance

Sheet Input - Base Year
A1: Input Sheet
B2: Base Year Input Values and Adjustments
C3: ="Revision: "&'File Details & Instructions'!$D$16 -> Revision: v3.00
C4: ="Status: "&'File Details & Instructions'!$D$17 -> Status: Final
B6: Effort Inputs and Adjustments
E8: Preventative/General (Hours) | I8: Corrective/Condition-based (Hours)
E9: Value | F9: Adjustment | G9: Value + Adjustment | I9: Value | J9: Adjustment | K9: Value + Adjustment
E10: =BaseYear -> 12/13 | F10: =BaseYear -> 12/13 | G10: =BaseYear -> 12/13 | I10: =BaseYear -> 12/13 | J10: =BaseYear -> 12/13 | K10: =BaseYear -> 12/13
C12: ='Input - General'!$C$17 -> Not Used | E12: 1e-32 | G12: =SUM(E12:F12) -> 1e-32 | I12: 1e-32 | K12: =SUM(I12:J12) -> 1e-32
C13: ='Input - General'!$C$18 -> Lines | E13: 21129.2536 | G13: 21129.2536 | I13: 20733.0425 | K13: 20733.0425
C14: ='Input - General'!$C$19 -> Substations | E14: 58324.4184 | G14: 58324.4184 | I14: 50856.8055 | K14: 50856.8055
C15: ='Input - General'!$C$20 -> Communications | E15: 6851.502938 | G15: 6851.502938 | I15: 12564.27786 | K15: 12564.27786
C16: ='Input - General'!$C$21 -> Secondary Systems | E16: 19489.449 | G16: 19489.449 | I16: 3325.9235 | K16: 3325.9235
C17: ='Input - General'!$C$22 -> Land and Easements | E17: 28955.60586 | G17: 28955.60586 | I17: 6172.015143 | K17: 6172.015143
B19: Cost Inputs and Adjustments - Labour
E21: ="Preventative/General Labour (Real " & BaseYear & " $)" -> Preventative/General Labour (Real 12/13 $) | I21: ="Corrective/Condition-based Labour (Real " & BaseYear & " $)" -> Corrective/Condition-based Labour (Real 12/13 $)
E22: Value | F22: Adjustment | G22: Value + Adjustment | I22: Value | J22: Adjustment | K22: Value + Adjustment
E23: =BaseYear -> 12/13 | F23: =BaseYear -> 12/13 | G23: =BaseYear -> 12/13 | I23: =BaseYear -> 12/13 | J23: =BaseYear -> 12/13 | K23: =BaseYear -> 12/13
C25: ='Input - General'!$C$17 -> Not Used | E25: 1e-32 | G25: =SUM(E25:F25) -> 1e-32 | I25: 1e-32 | K25: =SUM(I25:J25) -> 1e-32
C26: ='Input - General'!$C$18 -> Lines | E26: 3018855.087 | G26: =SUM(E26:F26) -> 3018855.087 | I26: 2981296.183 | K26: =SUM(I26:J26) -> 2981296.183
C27: ='Input - General'!$C$19 -> Substations | E27: 10345268.43 | G27: 10345268.43 | I27: 9371215.228 | K27: 9371215.228
C28: ='Input - General'!$C$20 -> Communications | E28: 1902410.042 | G28: 1902410.042 | I28: 2478242.118 | K28: 2478242.118
C29: ='Input - General'!$C$21 -> Secondary Systems | E29: 3932011.806 | F29: -314115.3888 | G29: 3617896.418 | I29: 699523.8637 | K29: 699523.8637
C30: ='Input - General'!$C$22 -> Land and Easements | E30: 1892008.697 | G30: 1892008.697 | I30: 2558873.783 | K30: 2558873.783
C31: ='Input - General'!$C$23 -> Maintenance Support & Asset Management | E31: 7048644.554 | G31: 7048644.554
C32: ='Input - General'!$C$24 -> Operations/Control Room | E32: 7392657.919 | F32: -65945.48608 | G32: 7326712.433
C33: ='Input - General'!$C$25 -> Grid Planning | E33: 7025600.035 | G33: 7025600.035
C34: ='Input - General'!$C$26 -> Not Used | G34: 0
C35: ='Input - General'!$C$27 -> Rates & Taxes | E35: 471457.2516 | G35: 471457.2516
C36: ='Input - General'!$C$28 -> Property Management | E36: 773443.7986 | G36: 773443.7986
C37: ='Input - General'!$C$29 -> Health, Safety and Environmental | E37: 2765836.36 | G37: 2765836.36
C38: ='Input - General'!$C$30 -> Corporate Governance | E38: 718269.3384 | F38: 2525404.225 | G38: 3243673.564
C39: ='Input - General'!$C$31 -> Customer Relations | E39: 1979788.551 | F39: -194767.6904 | G39: 1785020.861
C40: ='Input - General'!$C$32 -> Regulatory | E40: 2091935.727 | G40: 2091935.727
C41: ='Input - General'!$C$33 -> Finance | E41: 4416318.736 | G41: 4416318.736
C42: ='Input - General'!$C$34 -> Information Technology | E42: 4140482.857 | G42: 4140482.857
C43: ='Input - General'!$C$35 -> HR & Payroll | E43: 4659537.097 | G43: 4659537.097
C44: ='Input - General'!$C$36 -> Not Used | G44: 0
C45: ='Input - General'!$C$37 -> Not Used | G45: 0
C46: ='Input - General'!$C$38 -> Not Used | G46: 0
C47: ='Input - General'!$C$39 -> Not Used | G47: 0
C48: ='Input - General'!$C$40 -> Not Used | G48: 0
C49: ='Input - General'!$C$41 -> Not Used | G49: 0
C50: ='Input - General'!$C$42 -> Not Used | G50: 0
C51: ='Input - General'!$C$43 -> Not Used | G51: 0
C52: ='Input - General'!$C$44 -> Not Used | G52: 0
C53: ='Input - General'!$C$45 -> Not Used | G53: 0
C54: ='Input - General'!$C$46 -> Not Used | G54: 0
B56: Cost Inputs and Adjustments - Material & Expenses
E58: ="Preventative/General Material & Expense (Real " & BaseYear & " $)" -> Preventative/General Material & Expense (Real 12/13 $) | I58: ="Corrective/Condition-based Material & Expense (Real " & BaseYear & " $)" -> Corrective/Condition-based Material & Expense (Real 12/13 $)
E59: Value | F59: Adjustment | G59: Value + Adjustment | I59: Value | J59: Adjustment | K59: Value + Adjustment
E60: =BaseYear -> 12/13 | F60: =BaseYear -> 12/13 | G60: =BaseYear -> 12/13 | I60: =BaseYear -> 12/13 | J60: =BaseYear -> 12/13 | K60: =BaseYear -> 12/13
C62: ='Input - General'!$C$17 -> Not Used | E62: 1e-32 | G62: =SUM(E62:F62) -> 1e-32 | I62: 1e-32 | K62: =SUM(I62:J62) -> 1e-32
C63: ='Input - General'!$C$18 -> Lines | E63: 1749998.121 | G63: 1749998.121 | I63: 1683532.129 | K63: =SUM(I63:J63) -> 1683532.129
C64: ='Input - General'!$C$19 -> Substations | E64: 1408055.045 | G64: 1408055.045 | I64: 4424836.415 | K64: 4424836.415
C65: ='Input - General'!$C$20 -> Communications | E65: 30402.71962 | G65: 30402.71962 | I65: 1712589.31 | K65: 1712589.31
C66: ='Input - General'!$C$21 -> Secondary Systems | E66: 267289.3241 | G66: 267289.3241 | I66: 371160.9159 | K66: 371160.9159
C67: ='Input - General'!$C$22 -> Land and Easements | E67: 1451815.57 | F67: -1362783.324 | G67: 89032.24642 | I67: 8428335.31 | J67: -7600631.327 | K67: 827703.983
C68: ='Input - General'!$C$23 -> Maintenance Support & Asset Management | E68: 2866220.206 | G68: =SUM(E68:F68) -> 2866220.206
C69: ='Input - General'!$C$24 -> Operations/Control Room | E69: 445102.2608 | G69: 445102.2608
C70: ='Input - General'!$C$25 -> Grid Planning | E70: 2294268.695 | G70: 2294268.695
C71: ='Input - General'!$C$26 -> Not Used | G71: 0
C72: ='Input - General'!$C$27 -> Rates & Taxes | E72: 4502135.858 | G72: 4502135.858
C73: ='Input - General'!$C$28 -> Property Management | E73: 2554781.061 | F73: -2554781.061 | G73: 0
C74: ='Input - General'!$C$29 -> Health, Safety and Environmental | E74: 709526.9601 | G74: 709526.9601
C75: ='Input - General'!$C$30 -> Corporate Governance | E75: -2436911.518 | F75: 22349610.46 | G75: 19912698.94
C76: ='Input - General'!$C$31 -> Customer Relations | E76: 1194707.319 | F76: -821842.0496 | G76: 372865.2694
C77: ='Input - General'!$C$32 -> Regulatory | E77: 924193.5327 | G77: 924193.5327
C78: ='Input - General'!$C$33 -> Finance | E78: 1277719.124 | G78: 1277719.124
C79: ='Input - General'!$C$34 -> Information Technology | E79: 8860922.933 | G79: 8860922.933
C80: ='Input - General'!$C$35 -> HR & Payroll | E80: 1529402.393 | G80: 1529402.393
C81: ='Input - General'!$C$36 -> Not Used | G81: =SUM(E81:F81) -> 0
C82: ='Input - General'!$C$37 -> Not Used | G82: 0
C83: ='Input - General'!$C$38 -> Not Used | G83: 0
C84: ='Input - General'!$C$39 -> Not Used | G84: 0
C85: ='Input - General'!$C$40 -> Not Used | G85: 0
C86: ='Input - General'!$C$41 -> Not Used | G86: 0
C87: ='Input - General'!$C$42 -> Not Used | G87: 0
C88: ='Input - General'!$C$43 -> Not Used | G88: 0
C89: ='Input - General'!$C$44 -> Not Used | G89: 0
C90: ='Input - General'!$C$45 -> Not Used | G90: 0
C91: ='Input - General'!$C$46 -> Not Used | G91: 0
B93: MOPS Base Year
E95: MOPS Labour ($) | I95: MOPS Material & Expense ($)
E96: Value | F96: Adjustment | G96: Value + Adjustment | I96: Value | J96: Adjustment | K96: Value + Adjustment
E97: =BaseYear -> 12/13 | F97: =BaseYear -> 12/13 | G97: =BaseYear -> 12/13 | I97: =BaseYear -> 12/13 | J97: =BaseYear -> 12/13 | K97: =BaseYear -> 12/13
C99: ='Input - General'!C85 -> Not Used | G99: =SUM(E99:F99) -> 0 | K99: =SUM(I99:J99) -> 0
C100: ='Input - General'!C86 -> Lines | E100: 524890.25 | G100: 524890.25 | I100: 531685.43 | K100: 531685.43
C101: ='Input - General'!C87 -> Substations | E101: 630376.91 | G101: 630376.91 | I101: 1046856.25 | K101: 1046856.25
C102: ='Input - General'!C88 -> Communications | E102: 5913.66 | G102: 5913.66 | I102: 79827.62 | K102: 79827.62
C103: ='Input - General'!C89 -> Secondary Systems | E103: 0 | G103: 0 | I103: 0 | K103: 0
C104: ='Input - General'!C90 -> Land and Easements | E104: 0 | G104: 0 | I104: 0 | K104: 0
B106: Base Year Other OPEX
E108: Other Opex ($)
E109: Value | F109: Adjustment | G109: Value + Adjustment
E110: =BaseYear -> 12/13 | F110: =BaseYear -> 12/13 | G110: =BaseYear -> 12/13
C112: ='Input - General'!C106 -> Debt Raising | G112: =SUM(E112:F112) -> 0
C113: ='Input - General'!C107 -> Insurance | E113: 6387619.89 | G113: =SUM(E113:F113) -> 6387619.89
C114: ='Input - General'!C108 -> Self Insurance | E114: 1000101.21 | G114: 1000101.21
C115: ='Input - General'!C109 -> Network Support | E115: 3933708.58 | G115: 3933708.58

Sheet Input - Historic Yr4
A1: Input Sheet
B2: Historic Year 4
C3: ="Revision: "&'File Details & Instructions'!$D$16 -> Revision: v3.00
C4: ="Status: "&'File Details & Instructions'!$D$17 -> Status: Final
E9: Year 4
C10: $ million | E10: Field Maintenance | H10: Operations and Maintenance Support | I10: Corporate Support
C11: Nominal | E11: Preventative | F11: Corrective/ Condition-based | G11: MOPS | I11: Network | J11: Non-Network | L11: TOTAL | N11: Revenue Cap Allowance | P11: Key cost drivers and explanation for material differences over time
C12: Maintenance
C13: ='Input - General'!C17 -> Not Used
C14: Labour | E14: ='Input - Base Year'!E25/1000000 -> 1e-38 | F14: ='Input - Base Year'!I25/1000000 -> 1e-38 | G14: ='Input - Base Year'!E99/1000000 -> 0 | L14: =SUM(E14:J14) -> 2e-38
C15: Materials | E15: ='Input - Base Year'!E62/1000000 -> 1e-38 | F15: ='Input - Base Year'!I62/1000000 -> 1e-38 | G15: ='Input - Base Year'!I99/1000000 -> 0 | L15: =SUM(E15:J15) -> 2e-38
C16: Sub-Totals | E16: =SUM(E14:E15) -> 2e-38 | F16: =SUM(F14:F15) -> 2e-38 | G16: =SUM(G14:G15) -> 0 | L16: =SUM(E16:J16) -> 4e-38
C17: ='Input - General'!C18 -> Lines
C18: Labour | E18: ='Input - Base Year'!E26/1000000 -> 3.018855087 | F18: ='Input - Base Year'!I26/1000000 -> 2.981296183 | G18: ='Input - Base Year'!E100/1000000 -> 0.52489025 | L18: =SUM(E18:J18) -> 6.52504152
C19: Materials | E19: ='Input - Base Year'!E63/1000000 -> 1.749998121 | F19: ='Input - Base Year'!I63/1000000 -> 1.683532129 | G19: ='Input - Base Year'!I100/1000000 -> 0.53168543 | L19: =SUM(E19:J19) -> 3.96521568
C20: Sub-Totals | E20: =SUM(E18:E19) -> 4.768853208 | F20: =SUM(F18:F19) -> 4.664828312 | G20: =SUM(G18:G19) -> 1.05657568 | L20: =SUM(E20:J20) -> 10.4902572
C21: ='Input - General'!C19 -> Substations
C22: Labour | E22: ='Input - Base Year'!E27/1000000 -> 10.34526843 | F22: ='Input - Base Year'!I27/1000000 -> 9.371215228 | G22: ='Input - Base Year'!E101/1000000 -> 0.63037691 | L22: =SUM(E22:J22) -> 20.34686057
C23: Materials | E23: ='Input - Base Year'!E64/1000000 -> 1.408055045 | F23: ='Input - Base Year'!I64/1000000 -> 4.424836415 | G23: ='Input - Base Year'!I101/1000000 -> 1.04685625 | L23: =SUM(E23:J23) -> 6.87974771
C24: Sub-Totals | E24: =SUM(E22:E23) -> 11.75332348 | F24: =SUM(F22:F23) -> 13.79605164 | G24: =SUM(G22:G23) -> 1.67723316 | L24: =SUM(E24:J24) -> 27.22660828
C25: ='Input - General'!C20 -> Communications
C26: Labour | E26: ='Input - Base Year'!E28/1000000 -> 1.902410042 | F26: ='Input - Base Year'!I28/1000000 -> 2.478242118 | G26: ='Input - Base Year'!E102/1000000 -> 0.00591366 | L26: =SUM(E26:J26) -> 4.38656582
C27: Materials | E27: ='Input - Base Year'!E65/1000000 -> 0.03040271962 | F27: ='Input - Base Year'!I65/1000000 -> 1.71258931 | G27: ='Input - Base Year'!I102/1000000 -> 0.07982762 | L27: =SUM(E27:J27) -> 1.82281965
C28: Sub-Totals | E28: =SUM(E26:E27) -> 1.932812762 | F28: =SUM(F26:F27) -> 4.190831428 | G28: =SUM(G26:G27) -> 0.08574128 | L28: =SUM(E28:J28) -> 6.20938547
C29: ='Input - General'!C21 -> Secondary Systems
C30: Labour | E30: ='Input - Base Year'!E29/1000000 -> 3.932011806 | F30: ='Input - Base Year'!I29/1000000 -> 0.6995238637 | G30: ='Input - Base Year'!E103/1000000 -> 0 | L30: =SUM(E30:J30) -> 4.63153567
C31: Materials | E31: ='Input - Base Year'!E66/1000000 -> 0.2672893241 | F31: ='Input - Base Year'!I66/1000000 -> 0.3711609159 | G31: ='Input - Base Year'!I103/1000000 -> 0 | L31: =SUM(E31:J31) -> 0.63845024
C32: Sub-Totals | E32: =SUM(E30:E31) -> 4.19930113 | F32: =SUM(F30:F31) -> 1.07068478 | G32: =SUM(G30:G31) -> 0 | L32: =SUM(E32:J32) -> 5.26998591
C33: ='Input - General'!C22 -> Land and Easements
C34: Labour | E34: ='Input - Base Year'!E30/1000000 -> 1.892008697 | F34: ='Input - Base Year'!I30/1000000 -> 2.558873783 | G34: ='Input - Base Year'!E104/1000000 -> 0 | L34: =SUM(E34:J34) -> 4.45088248
C35: Materials | E35: ='Input - Base Year'!E67/1000000 -> 1.45181557 | F35: ='Input - Base Year'!I67/1000000 -> 8.42833531 | G35: ='Input - Base Year'!I104/1000000 -> 0 | L35: =SUM(E35:J35) -> 9.88015088
C36: Sub-Totals | E36: =SUM(E34:E35) -> 3.343824267 | F36: =SUM(F34:F35) -> 10.98720909 | G36: =SUM(G34:G35) -> 0 | L36: =SUM(E36:J36) -> 14.33103336
C37: Summary
C38: Sub-Total Labour | E38: =E14+E18+E22+E26+E30+E34 -> 21.09055406 | F38: 18.08915118 | G38: 1.16118082 | L38: =SUM(E38:J38) -> 40.34088606
C39: Sub-Total Materials | E39: 4.90756078 | F39: 16.62045408 | G39: 1.6583693 | L39: 23.18638416
C40: Total Maintenance | E40: =SUM(E38:E39) -> 25.99811484 | F40: =SUM(F38:F39) -> 34.70960526 | G40: =SUM(G38:G39) -> 2.81955012 | L40: 63.52727022
C41: ='Input - General'!C23 -> Maintenance Support & Asset Management | H41: =('Input - Base Year'!E68+'Input - Base Year'!E31)/1000000 -> 9.91486476 | L41: 9.91486476
C42: Total Maintenance Support & Asset Management | H42: =SUM(H41) -> 9.91486476 | L42: 9.91486476
C43: ='Input - General'!C24 -> Operations/Control Room | H43: =('Input - Base Year'!E32+'Input - Base Year'!E69)/1000000 -> 7.83776018 | L43: 7.83776018
C44: Total Operations | H44: =SUM(H43) -> 7.83776018 | L44: 7.83776018
C45: ='Input - General'!C25 -> Grid Planning | H45: =('Input - Base Year'!E70+'Input - Base Year'!E33)/1000000 -> 9.31986873 | L45: 9.31986873
C46: Total Grid Planning | H46: =SUM(H45) -> 9.31986873 | L46: 9.31986873
C47: ='Input - General'!C26 -> Not Used | I47: =('Input - Base Year'!E71+'Input - Base Year'!E34)/1000000 -> 0 | L47: 0
C48: ='Input - General'!C27 -> Rates & Taxes | I48: =('Input - Base Year'!E72+'Input - Base Year'!E35)/1000000 -> 4.97359311 | L48: 4.97359311
C49: Total Taxes and Insurance | I49: =SUM(I47:I48) -> 4.97359311 | L49: 4.97359311
C50: ='Input - General'!C28 -> Property Management | I50: =('Input - Base Year'!E73+'Input - Base Year'!E36)/1000000 -> 3.32822486 | L50: 3.32822486
C51: ='Input - General'!C29 -> Health, Safety and Environmental | I51: =('Input - Base Year'!E74+'Input - Base Year'!E37)/1000000 -> 3.47536332 | L51: 3.47536332
C52: Total Property Management | I52: =SUM(I50:I51) -> 6.80358818 | L52: 6.80358818
C53: ='Input - General'!C30 -> Corporate Governance | J53: =('Input - Base Year'!E75+'Input - Base Year'!E38)/1000000 -> -1.71864218 | L53: -1.71864218
C54: ='Input - General'!C31 -> Customer Relations | I54: =('Input - Base Year'!E76+'Input - Base Year'!E39)/1000000 -> 3.17449587 | L54: 3.17449587
C55: ='Input - General'!C32 -> Regulatory | I55: =('Input - Base Year'!E77+'Input - Base Year'!E40)/1000000 -> 3.01612926 | L55: 3.01612926
C56: Total Corporate and Regulatory Management | I56: =SUM(I53:I55) -> 6.19062513 | J56: =SUM(J53:J55) -> -1.71864218 | L56: 4.47198295
C57: ='Input - General'!C33 -> Finance | J57: =('Input - Base Year'!E78+'Input - Base Year'!E41)/1000000 -> 5.69403786 | L57: 5.69403786
C58: ='Input - General'!C34 -> Information Technology | J58: =('Input - Base Year'!E79+'Input - Base Year'!E42)/1000000 -> 13.00140579 | L58: 13.00140579
C59: ='Input - General'!C35 -> HR & Payroll | J59: =('Input - Base Year'!E80+'Input - Base Year'!E43)/1000000 -> 6.18893949 | L59: 6.18893949
C60: Total Business Management | J60: =SUM(J57:J59) -> 24.88438314 | L60: 24.88438314
C61: TOTAL CONTROLLABLE OPEX | E61: =E40+E42+E44+E46+E49+E52+E56+E60 -> 25.99811484 | F61: 34.70960526 | G61: 2.81955012 | H61: 27.07249367 | I61: 17.96780642 | J61: 23.16574096 | L61: 131.7333113
C63: Debt Raising | L63: ='Input - Base Year'!E112/1000000 -> 0
C64: Insurance | L64: ='Input - Base Year'!E113/1000000 -> 6.38761989
C65: Self Insurance | L65: ='Input - Base Year'!E114/1000000 -> 1.00010121
C66: Network Support | L66: ='Input - Base Year'!E115/1000000 -> 3.93370858
C67: TOTAL OTHER OPEX | L67: =SUM(L63:L66) -> 11.32142968
C69: TOTAL REGULATORY OPEX | E69: =E61+E67 -> 25.99811484 | F69: 34.70960526 | G69: 2.81955012 | H69: 27.07249367 | I69: 17.96780642 | J69: 23.16574096 | L69: =SUM(E69:J69)+L67 -> 143.054741
C71: Revenue Cap Allowance

Sheet Input - Adjustments
A1: Input Sheet
B2: Forecast Adjustments
C3: ="Revision: "&'File Details & Instructions'!$D$16 -> Revision: v3.00
C4: ="Status: "&'File Details & Instructions'!$D$17 -> Status: Final
B6: Effort Adjustment
G9: ='Input - General'!$H$10 -> 13/14 | H9: ='Input - General'!$I$10 -> 14/15 | I9: ='Input - General'!$J$10 -> 15/16 | J9: ='Input - General'!$K$10 -> 16/17 | K9: ='Input - General'!$L$10 -> 17/18 | L9: ='Input - General'!$M$10 -> 18/19
C11: ='Input - General'!$C$17 -> Not Used
C12: ='Input - General'!$C$18 -> Lines
C13: ='Input - General'!$C$19 -> Substations
C14: ='Input - General'!$C$20 -> Communications
C15: ='Input - General'!$C$21 -> Secondary Systems
C16: ='Input - General'!$C$22 -> Land and Easements
B18: Cost Adjustments - Labour
E21: Real or Nominal | F21: Year of Real $ | G21: ='Input - General'!$H$10 -> 13/14 | H21: ='Input - General'!$I$10 -> 14/15 | I21: ='Input - General'!$J$10 -> 15/16 | J21: ='Input - General'!$K$10 -> 16/17 | K21: ='Input - General'!$L$10 -> 17/18 | L21: ='Input - General'!$M$10 -> 18/19
C23: ='Input - General'!$C$17 -> Not Used | E23: Nominal | F23: Nominal
C24: ='Input - General'!$C$18 -> Lines | E24: Nominal | F24: Nominal
C25: ='Input - General'!$C$19 -> Substations | E25: Nominal | F25: Nominal
C26: ='Input - General'!$C$20 -> Communications | E26: Nominal | F26: Nominal
C27: ='Input - General'!$C$21 -> Secondary Systems | E27: Nominal | F27: Nominal
C28: ='Input - General'!$C$22 -> Land and Easements | E28: Nominal | F28: Nominal
C29: ='Input - General'!$C$23 -> Maintenance Support & Asset Management | E29: Real | F29: 13/14 | G29: 401051 | H29: 401051 | I29: 401051 | J29: 401051 | K29: 401051 | L29: 401051
C30: ='Input - General'!$C$24 -> Operations/Control Room | E30: Real | F30: 12/13 | G30: 443546.6113 | H30: 887093.2227 | I30: 887093.2227 | J30: 887093.2227 | K30: 887093.2227 | L30: 887093.2227
C31: ='Input - General'!$C$25 -> Grid Planning | E31: Nominal | F31: Nominal
C32: ='Input - General'!$C$26 -> Not Used
C33: ='Input - General'!$C$27 -> Rates & Taxes | E33: Nominal | F33: Nominal
C34: ='Input - General'!$C$28 -> Property Management | E34: Nominal | F34: Nominal
C35: ='Input - General'!$C$29 -> Health, Safety and Environmental | E35: Nominal | F35: Nominal
C36: ='Input - General'!$C$30 -> Corporate Governance | E36: Real | F36: 12/13 | G36: 132632.2501 | H36: -53146.00834 | I36: -504736.6197 | J36: -1130924.8 | K36: 172991.5861 | L36: -431412.0613
C37: ='Input - General'!$C$31 -> Customer Relations | E37: Real | F37: 13/14 | G37: 775622.9435 | H37: 1786147.527 | I37: 1786147.527 | J37: 1786147.527 | K37: 1786147.527 | L37: 1786147.527
C38: ='Input - General'!$C$32 -> Regulatory | E38: Real | F38: 12/13 | G38: -118924.1892 | H38: -118924.1892 | I38: 49011.18775 | J38: 49011.18775 | K38: 49011.18775 | L38: 49011.18775
C39: ='Input - General'!$C$33 -> Finance | E39: Nominal | F39: Nominal
C40: ='Input - General'!$C$34 -> Information Technology | E40: Nominal | F40: Nominal
C41: ='Input - General'!$C$35 -> HR & Payroll | E41: Real | F41: 13/14 | G41: 0 | H41: -640831.2809 | I41: -640831.2809 | J41: -640831.2809 | K41: -640831.2809 | L41: -640831.2809
C42: ='Input - General'!$C$36 -> Not Used
C43: ='Input - General'!$C$37 -> Not Used
C44: ='Input - General'!$C$38 -> Not Used
C45: ='Input - General'!$C$39 -> Not Used
C46: ='Input - General'!$C$40 -> Not Used
C47: ='Input - General'!$C$41 -> Not Used
C48: ='Input - General'!$C$42 -> Not Used
C49: ='Input - General'!$C$43 -> Not Used
C50: ='Input - General'!$C$44 -> Not Used
C51: ='Input - General'!$C$45 -> Not Used
C52: ='Input - General'!$C$46 -> Not Used
B54: Cost Adjustments - Material & Expense
E57: Real or Nominal | F57: Year of Real $ | G57: ='Input - General'!$H$10 -> 13/14 | H57: ='Input - General'!$I$10 -> 14/15 | I57: ='Input - General'!$J$10 -> 15/16 | J57: ='Input - General'!$K$10 -> 16/17 | K57: ='Input - General'!$L$10 -> 17/18 | L57: ='Input - General'!$M$10 -> 18/19
C59: ='Input - General'!$C$17 -> Not Used | E59: Nominal | F59: Nominal
C60: ='Input - General'!$C$18 -> Lines | E60: Nominal | F60: Nominal
C61: ='Input - General'!$C$19 -> Substations | E61: Nominal | F61: Nominal
C62: ='Input - General'!$C$20 -> Communications | E62: Nominal | F62: Nominal
C63: ='Input - General'!$C$21 -> Secondary Systems | E63: Nominal | F63: Nominal
C64: ='Input - General'!$C$22 -> Land and Easements | E64: Real | F64: 13/14 | G64: 13196000 | H64: 13800000 | I64: 13037000 | J64: 11551000 | K64: 11618000 | L64: 11204000
C65: ='Input - General'!$C$23 -> Maintenance Support & Asset Management | E65: Real | F65: 13/14 | G65: 300000 | H65: 200000 | I65: 200000 | J65: 200000 | K65: 200000 | L65: 200000
C66: ='Input - General'!$C$24 -> Operations/Control Room | E66: Nominal | F66: Nominal
C67: ='Input - General'!$C$25 -> Grid Planning | E67: Nominal | F67: Nominal
C68: ='Input - General'!$C$26 -> Not Used
C69: ='Input - General'!$C$27 -> Rates & Taxes | E69: Nominal | F69: Nominal | G69: 97159.23552 | H69: 124873.9525 | I69: 132717.4499 | J69: 140757.0347 | K69: 176950.3449 | L69: 197508.8738
C70: ='Input - General'!$C$28 -> Property Management | E70: Real | F70: 13/14 | G70: 3024687.12 | H70: 2444270.268 | I70: 555134.08 | J70: 555134.08 | K70: 555134.08 | L70: 555134.08
C71: ='Input - General'!$C$29 -> Health, Safety and Environmental | E71: Nominal | F71: Nominal
C72: ='Input - General'!$C$30 -> Corporate Governance | E72: Real | F72: 12/13 | G72: -5022106.281 | H72: -9441600.844 | I72: -9835323.163 | J72: -10144865.31 | K72: -10446857.66 | L72: -10741484.33
C73: ='Input - General'!$C$31 -> Customer Relations | E73: Real | F73: 13/14 | G73: 1134145.847 | H73: 2634421.951 | I73: 3755906.723 | J73: 4654708.385 | K73: 5054022.822 | L73: 4065059.743
C74: ='Input - General'!$C$32 -> Regulatory | E74: Real | F74: 12/13 | G74: 829314.1813 | H74: 52089.28837 | I74: 440701.7348 | J74: 829314.1813 | K74: 52089.28837 | L74: -142216.9349
C75: ='Input - General'!$C$33 -> Finance | E75: Nominal | F75: Nominal
C76: ='Input - General'!$C$34 -> Information Technology | E76: Nominal | F76: Nominal
C77: ='Input - General'!$C$35 -> HR & Payroll | E77: Nominal | F77: Nominal
C78: ='Input - General'!$C$36 -> Not Used
C79: ='Input - General'!$C$37 -> Not Used
C80: ='Input - General'!$C$38 -> Not Used
C81: ='Input - General'!$C$39 -> Not Used
C82: ='Input - General'!$C$40 -> Not Used
C83: ='Input - General'!$C$41 -> Not Used
C84: ='Input - General'!$C$42 -> Not Used
C85: ='Input - General'!$C$43 -> Not Used
C86: ='Input - General'!$C$44 -> Not Used
C87: ='Input - General'!$C$45 -> Not Used
C88: ='Input - General'!$C$46 -> Not Used

Sheet Calculation Sheets
A1: Calculation Sheets
B3: Sheet List
C4: Calcs - Escalation
C5: Calcs - Adjustments -MOPS-Other OPEX
C6: Calcs - Forecast Costs
C7: Calcs - Forecast Cost Summary
C8: Calcs - Conversion for Outputs

Sheet Calcs - Escalation
A1: Calculations
B2: Real and Nominal Conversion Factors for AER Outputs
C3: ="Revision: "&'File Details & Instructions'!$D$16 -> Revision: v3.00
C4: ="Status: "&'File Details & Instructions'!$D$17 -> Status: Final
B6: Real and Nominal Conversion Factors for AER Outputs
C8: Escalation (Cumulative)
D9: ='Input - General'!$D$10 -> 09/10 | E9: ='Input - General'!$E$10 -> 10/11 | F9: ='Input - General'!$F$10 -> 11/12 | G9: ='Input - General'!$G$10 -> 12/13 | H9: ='Input - General'!$H$10 -> 13/14 | I9: ='Input - General'!$I$10 -> 14/15 | J9: ='Input - General'!$J$10 -> 15/16 | K9: ='Input - General'!$K$10 -> 16/17 | L9: ='Input - General'!$L$10 -> 17/18 | M9: ='Input - General'!$M$10 -> 18/19
C10: Internal Labour Escalation | D10: ='Input - General'!D53 -> 0 | E10: =(1+'Input - General'!E53)*(1+D10)-1 -> 0 | F10: =(1+'Input - General'!F53)*(1+E10)-1 -> 0 | G10: =(1+'Input - General'!G53)*(1+F10)-1 -> 0 | H10: =(1+'Input - General'!H53)*(1+G10)-1 -> -0.002467299178 | I10: =(1+'Input - General'!I53)*(1+H10)-1 -> -0.001294207194 | J10: =(1+'Input - General'!J53)*(1+I10)-1 -> 0.007880894805 | K10: =(1+'Input - General'!K53)*(1+J10)-1 -> 0.02400698912 | L10: =(1+'Input - General'!L53)*(1+K10)-1 -> 0.0444871289 | M10: =(1+'Input - General'!M53)*(1+L10)-1 -> 0.06642135861
C11: External Labour Escalation | D11: ='Input - General'!D54 -> 0 | E11: =(1+'Input - General'!E54)*(1+D11)-1 -> 0 | F11: =(1+'Input - General'!F54)*(1+E11)-1 -> 0 | G11: =(1+'Input - General'!G54)*(1+F11)-1 -> 0 | H11: =(1+'Input - General'!H54)*(1+G11)-1 -> 0.011 | I11: =(1+'Input - General'!I54)*(1+H11)-1 -> 0.022121 | J11: =(1+'Input - General'!J54)*(1+I11)-1 -> 0.036430694 | K11: =(1+'Input - General'!K54)*(1+J11)-1 -> 0.0530135851 | L11: =(1+'Input - General'!L54)*(1+K11)-1 -> 0.07407385681 | M11: =(1+'Input - General'!M54)*(1+L11)-1 -> 0.0966294078
C12: Material & Expense Escalation | D12: ='Input - General'!D55 -> 0 | E12: =(1+'Input - General'!E55)*(1+D12)-1 -> 0 | F12: =(1+'Input - General'!F55)*(1+E12)-1 -> 0 | G12: =(1+'Input - General'!G55)*(1+F12)-1 -> 0 | H12: =(1+'Input - General'!H55)*(1+G12)-1 -> 0 | I12: =(1+'Input - General'!I55)*(1+H12)-1 -> 0 | J12: =(1+'Input - General'!J55)*(1+I12)-1 -> 0 | K12: =(1+'Input - General'!K55)*(1+J12)-1 -> 0 | L12: =(1+'Input - General'!L55)*(1+K12)-1 -> 0 | M12: =(1+'Input - General'!M55)*(1+L12)-1 -> 0
C13: CPI | D13: ='Input - General'!D56 -> 0.02676872147 | E13: =(1+'Input - General'!E56)*(1+D13)-1 -> 0.05870605101 | F13: =(1+'Input - General'!F56)*(1+E13)-1 -> 0.08469981616 | G13: =(1+'Input - General'!G56)*(1+F13)-1 -> 0.1068550541 | H13: =(1+'Input - General'!H56)*(1+G13)-1 -> 0.1369158308 | I13: =(1+'Input - General'!I56)*(1+H13)-1 -> 0.1692020178 | J13: =(1+'Input - General'!J56)*(1+I13)-1 -> 0.1998926807 | K13: =(1+'Input - General'!K56)*(1+J13)-1 -> 0.2298899977 | L13: =(1+'Input - General'!L56)*(1+K13)-1 -> 0.2606372476 | M13: =(1+'Input - General'!M56)*(1+L13)-1 -> 0.2921531788
C15: CPI Conversion Table
C16: Convert from ... | D16: Convert to ...
D17: ='Input - General'!$D$10 -> 09/10 | E17: ='Input - General'!$E$10 -> 10/11 | F17: ='Input - General'!$F$10 -> 11/12 | G17: ='Input - General'!$G$10 -> 12/13 | H17: ='Input - General'!$H$10 -> 13/14 | I17: ='Input - General'!$I$10 -> 14/15 | J17: ='Input - General'!$J$10 -> 15/16 | K17: ='Input - General'!$K$10 -> 16/17 | L17: ='Input - General'!$L$10 -> 17/18 | M17: ='Input - General'!$M$10 -> 18/19
C18: ='Input - General'!$D$10 -> 09/10 | D18: =(1+D13)/(1+$D13)-1 -> 0 | E18: =(1+E13)/(1+$D13)-1 -> 0.03110469658 | F18: =(1+F13)/(1+$D13)-1 -> 0.05642078247 | G18: 0.07799841475 | H18: 0.1072754818 | I18: 0.1387199408 | J18: 0.1686104724 | K18: 0.1978257342 | L18: 0.2277713776 | M18: 0.258465662
C19: ='Input - General'!$E$10 -> 10/11 | D19: =(1+D13)/(1+$E13)-1 -> -0.03016638047 | E19: =(1+E13)/(1+$E13)-1 -> 0 | F19: 0.02455239121 | G19: 0.04547910443 | H19: 0.07387298835 | I19: 0.1043688819 | J19: 0.1333577243 | K19: 0.1616916674 | L19: 0.1907339591 | M19: 0.2205023081
C20: ='Input - General'!$F$10 -> 11/12 | D20: =(1+D13)/(1+$F13)-1 -> -0.05340749009 | E20: -0.02396401729 | F20: 0 | G20: 0.0204252251 | H20: =(1+H13)/(1+$F13)-1 -> 0.0481386775 | I20: 0.07790376688 | J20: 0.1061979202 | K20: 0.1338528682 | L20: 0.1621991899 | M20: 0.1912541696
C21: ='Input - General'!$G$10 -> 12/13 | D21: =(1+D13)/(1+$G13)-1 -> -0.07235485107 | E21: -0.04350073018 | F21: -0.02001638591 | G21: 0 | H21: 0.02715872924 | I21: 0.05632802911 | J21: 0.08405583572 | K21: 0.1111572316 | L21: 0.1389361624 | M21: 0.1674095665
C22: ='Input - General'!$H$10 -> 13/14 | D22: =(1+D13)/(1+$H13)-1 -> -0.09688237804 | E22: -0.06879117843 | F22: -0.04592777514 | G22: -0.02644063519 | H22: 0 | I22: 0.02839804505 | J22: 0.05539271085 | K22: 0.08177752862 | L22: 0.1088219668 | M22: 0.136542516
C23: ='Input - General'!$I$10 -> 14/15 | D23: =(1+D13)/(1+$I13)-1 -> -0.1218209464 | E23: -0.09450545336 | F23: -0.07227339701 | G23: -0.05332437231 | H23: -0.02761386526 | I23: 0 | J23: 0.02624923873 | K23: 0.0519054697 | L23: 0.07820310644 | M23: 0.1051581841
C24: ='Input - General'!$J$10 -> 15/16 | D24: =(1+D13)/(1+$J13)-1 -> -0.1442828696 | E24: -0.1176660479 | F24: -0.09600263954 | G24: -0.07753828996 | H24: -0.05248540214 | I24: -0.02557783991 | J24: 0 | K24: 0.025 | L24: 0.050625 | M24: 0.076890625
C25: ='Input - General'!$K$10 -> 16/17 | D25: =(1+D13)/(1+$K13)-1 -> -0.1651540191 | E25: -0.1391863882 | F25: -0.1180513556 | G25: -0.1000373561 | H25: -0.07559551429 | I25: -0.04934423406 | J25: -0.0243902439 | K25: 0 | L25: 0.025 | M25: 0.050625
C26: ='Input - General'!$L$10 -> 17/18 | D26: =(1+D13)/(1+$L13)-1 -> -0.1855161162 | E26: -0.1601818422 | F26: -0.1395622982 | G26: -0.1219876644 | H26: -0.09814196516 | I26: -0.07253096005 | J26: -0.04818560381 | K26: -0.0243902439 | L26: 0 | M26: 0.025
C27: ='Input - General'!$M$10 -> 18/19 | D27: =(1+D13)/(1+$M13)-1 -> -0.2053815768 | E27: -0.1806652119 | F27: -0.1605485836 | G27: -0.1434025995 | H27: -0.1201385026 | I27: -0.09515215615 | J27: -0.07140058908 | K27: -0.04818560381 | L27: =(1+L13)/(1+$M13)-1 -> -0.0243902439 | M27: 0
C29: Asset Growth (Cumulative)
C30: Workstream | D30: ='Input - General'!$D$10 -> 09/10 | E30: ='Input - General'!$E$10 -> 10/11 | F30: ='Input - General'!$F$10 -> 11/12 | G30: ='Input - General'!$G$10 -> 12/13 | H30: ='Input - General'!$H$10 -> 13/14 | I30: ='Input - General'!$I$10 -> 14/15 | J30: ='Input - General'!$J$10 -> 15/16 | K30: ='Input - General'!$K$10 -> 16/17 | L30: ='Input - General'!$L$10 -> 17/18 | M30: ='Input - General'!$M$10 -> 18/19
C31: ='Input - General'!C17 -> Not Used | H31: =(1+'Input - General'!H60)*(1+G31)-1 -> 0 | I31: =(1+'Input - General'!I60)*(1+H31)-1 -> 0 | J31: =(1+'Input - General'!J60)*(1+I31)-1 -> 0 | K31: =(1+'Input - General'!K60)*(1+J31)-1 -> 0 | L31: =(1+'Input - General'!L60)*(1+K31)-1 -> 0 | M31: =(1+'Input - General'!M60)*(1+L31)-1 -> 0
C32: ='Input - General'!C18 -> Lines | H32: =(1+'Input - General'!H61)*(1+G32)-1 -> 0.0004565163101 | I32: =(1+'Input - General'!I61)*(1+H32)-1 -> 0.03335453125 | J32: =(1+'Input - General'!J61)*(1+I32)-1 -> 0.05592103079 | K32: =(1+'Input - General'!K61)*(1+J32)-1 -> 0.05592103079 | L32: =(1+'Input - General'!L61)*(1+K32)-1 -> 0.05692526439 | M32: =(1+'Input - General'!M61)*(1+L32)-1 -> 0.05852091642
C33: ='Input - General'!C19 -> Substations | H33: =(1+'Input - General'!H62)*(1+G33)-1 -> 0.001415369666 | I33: =(1+'Input - General'!I62)*(1+H33)-1 -> 0.03942124055 | J33: =(1+'Input - General'!J62)*(1+I33)-1 -> 0.06749943085 | K33: =(1+'Input - General'!K62)*(1+J33)-1 -> 0.07342979419 | L33: =(1+'Input - General'!L62)*(1+K33)-1 -> 0.07552295321 | M33: =(1+'Input - General'!M62)*(1+L33)-1 -> 0.08734802085
C34: ='Input - General'!C20 -> Communications | H34: =(1+'Input - General'!H63)*(1+G34)-1 -> 0.01337974407 | I34: =(1+'Input - General'!I63)*(1+H34)-1 -> 0.1031797868 | J34: =(1+'Input - General'!J63)*(1+I34)-1 -> 0.127135118 | K34: =(1+'Input - General'!K63)*(1+J34)-1 -> 0.1841701804 | L34: =(1+'Input - General'!L63)*(1+K34)-1 -> 0.1848471737 | M34: =(1+'Input - General'!M63)*(1+L34)-1 -> 0.1886808061
C35: ='Input - General'!C21 -> Secondary Systems | H35: =(1+'Input - General'!H64)*(1+G35)-1 -> 0.007470545307 | I35: =(1+'Input - General'!I64)*(1+H35)-1 -> 0.03659141424 | J35: =(1+'Input - General'!J64)*(1+I35)-1 -> 0.05184050374 | K35: =(1+'Input - General'!K64)*(1+J35)-1 -> 0.07941720238 | L35: =(1+'Input - General'!L64)*(1+K35)-1 -> 0.07897934294 | M35: =(1+'Input - General'!M64)*(1+L35)-1 -> 0.08722080859
C36: ='Input - General'!C22 -> Land and Easements | H36: =(1+'Input - General'!H65)*(1+G36)-1 -> 0.01655762468 | I36: =(1+'Input - General'!I65)*(1+H36)-1 -> 0.06041754192 | J36: =(1+'Input - General'!J65)*(1+I36)-1 -> 0.1095584386 | K36: =(1+'Input - General'!K65)*(1+J36)-1 -> 0.1787740144 | L36: =(1+'Input - General'!L65)*(1+K36)-1 -> 0.2092650069 | M36: =(1+'Input - General'!M65)*(1+L36)-1 -> 0.2107317422
C37: Overall | H37: =(1+'Input - General'!H66)*(1+G37)-1 -> 0.002532836045 | I37: =(1+'Input - General'!I66)*(1+H37)-1 -> 0.03879559266 | J37: =(1+'Input - General'!J66)*(1+I37)-1 -> 0.06504104048 | K37: =(1+'Input - General'!K66)*(1+J37)-1 -> 0.07462371436 | L37: =(1+'Input - General'!L66)*(1+K37)-1 -> 0.07835465055 | M37: =(1+'Input - General'!M66)*(1+L37)-1 -> 0.08381729474

Sheet Calcs - Adjustments-MOPS-Other
A1: Calculations
B2: ="Conversion of OPEX Cost Adjustments and MOPS to Real " & BaseYear & " Dollars" -> Conversion of OPEX Cost Adjustments and MOPS to Real 12/13 Dollars
C3: ="Revision: "&'File Details & Instructions'!$D$16 -> Revision: v3.00
C4: ="Status: "&'File Details & Instructions'!$D$17 -> Status: Final
B6: ="Cost Adjustments - Labour - Conversion to Real " & BaseYear & " Dollars" -> Cost Adjustments - Labour - Conversion to Real 12/13 Dollars
H8: ="Nominal to Real " & BaseYear & " Conversion Factor" -> Nominal to Real 12/13 Conversion Factor
H9: ='Input - General'!$G$10 -> 12/13 | I9: ='Input - General'!$H$10 -> 13/14 | J9: ='Input - General'!$I$10 -> 14/15 | K9: ='Input - General'!$J$10 -> 15/16 | L9: ='Input - General'!$K$10 -> 16/17 | M9: ='Input - General'!$L$10 -> 17/18 | N9: ='Input - General'!$M$10 -> 18/19
H10: =1/(1+'Calcs - Escalation'!$G$13)*(1+'Calcs - Escalation'!$G$13) -> 1 | I10: =1/(1+'Calcs - Escalation'!$H$13)*(1+'Calcs - Escalation'!$G$13) -> 0.9735593648 | J10: =1/(1+'Calcs - Escalation'!$I$13)*(1+'Calcs - Escalation'!$G$13) -> 0.9466756277 | K10: =1/(1+'Calcs - Escalation'!$J$13)*(1+'Calcs - Escalation'!$G$13) -> 0.92246171 | L10: =1/(1+'Calcs - Escalation'!$K$13)*(1+'Calcs - Escalation'!$G$13) -> 0.8999626439 | M10: =1/(1+'Calcs - Escalation'!$L$13)*(1+'Calcs - Escalation'!$G$13) -> 0.8780123356 | N10: =1/(1+'Calcs - Escalation'!$M$13)*(1+'Calcs - Escalation'!$G$13) -> 0.8565974005
H12: ="Preventative/General Labour (Real " & BaseYear & " $)" -> Preventative/General Labour (Real 12/13 $)
F13: Real Conversion Factor | H13: ='Input - General'!$G$10 -> 12/13 | I13: ='Input - General'!$H$10 -> 13/14 | J13: ='Input - General'!$I$10 -> 14/15 | K13: ='Input - General'!$J$10 -> 15/16 | L13: ='Input - General'!$K$10 -> 16/17 | M13: ='Input - General'!$L$10 -> 17/18 | N13: ='Input - General'!$M$10 -> 18/19
C15: ='Input - General'!$C$17 -> Not Used | F15: =IF('Input - Adjustments'!$E23="Real",VLOOKUP('Input - Adjustments'!$F23,'Calcs - Escalation'!$C$18:$M$27,COLUMNS('Calcs - Escalation'!$C$18:G$18),FALSE)+1,"Not Applicable") -> Not Applicable | I15: =IF('Input - Adjustments'!$E23="Real", 'Input - Adjustments'!G23*$F15,'Input - Adjustments'!G23*I$10) -> 0 | J15: =IF('Input - Adjustments'!$E23="Real", 'Input - Adjustments'!H23*$F15,'Input - Adjustments'!H23*J$10) -> 0 | K15: =IF('Input - Adjustments'!$E23="Real", 'Input - Adjustments'!I23*$F15,'Input - Adjustments'!I23*K$10) -> 0 | L15: =IF('Input - Adjustments'!$E23="Real", 'Input - Adjustments'!J23*$F15,'Input - Adjustments'!J23*L$10) -> 0 | M15: =IF('Input - Adjustments'!$E23="Real", 'Input - Adjustments'!K23*$F15,'Input - Adjustments'!K23*M$10) -> 0 | N15: =IF('Input - Adjustments'!$E23="Real", 'Input - Adjustments'!L23*$F15,'Input - Adjustments'!L23*N$10) -> 0
C16: ='Input - General'!$C$18 -> Lines | F16: =IF('Input - Adjustments'!$E24="Real",VLOOKUP('Input - Adjustments'!$F24,'Calcs - Escalation'!$C$18:$M$27,COLUMNS('Calcs - Escalation'!$C$18:G$18),FALSE)+1,"Not Applicable") -> Not Applicable | I16: =IF('Input - Adjustments'!$E24="Real", 'Input - Adjustments'!G24*$F16,'Input - Adjustments'!G24*I$10) -> 0 | J16: =IF('Input - Adjustments'!$E24="Real", 'Input - Adjustments'!H24*$F16,'Input - Adjustments'!H24*J$10) -> 0 | K16: =IF('Input - Adjustments'!$E24="Real", 'Input - Adjustments'!I24*$F16,'Input - Adjustments'!I24*K$10) -> 0 | L16: =IF('Input - Adjustments'!$E24="Real", 'Input - Adjustments'!J24*$F16,'Input - Adjustments'!J24*L$10) -> 0 | M16: =IF('Input - Adjustments'!$E24="Real", 'Input - Adjustments'!K24*$F16,'Input - Adjustments'!K24*M$10) -> 0 | N16: =IF('Input - Adjustments'!$E24="Real", 'Input - Adjustments'!L24*$F16,'Input - Adjustments'!L24*N$10) -> 0
C17: ='Input - General'!$C$19 -> Substations | F17: =IF('Input - Adjustments'!$E25="Real",VLOOKUP('Input - Adjustments'!$F25,'Calcs - Escalation'!$C$18:$M$27,COLUMNS('Calcs - Escalation'!$C$18:G$18),FALSE)+1,"Not Applicable") -> Not Applicable | I17: =IF('Input - Adjustments'!$E25="Real", 'Input - Adjustments'!G25*$F17,'Input - Adjustments'!G25*I$10) -> 0 | J17: =IF('Input - Adjustments'!$E25="Real", 'Input - Adjustments'!H25*$F17,'Input - Adjustments'!H25*J$10) -> 0 | K17: =IF('Input - Adjustments'!$E25="Real", 'Input - Adjustments'!I25*$F17,'Input - Adjustments'!I25*K$10) -> 0 | L17: =IF('Input - Adjustments'!$E25="Real", 'Input - Adjustments'!J25*$F17,'Input - Adjustments'!J25*L$10) -> 0 | M17: =IF('Input - Adjustments'!$E25="Real", 'Input - Adjustments'!K25*$F17,'Input - Adjustments'!K25*M$10) -> 0 | N17: =IF('Input - Adjustments'!$E25="Real", 'Input - Adjustments'!L25*$F17,'Input - Adjustments'!L25*N$10) -> 0
C18: ='Input - General'!$C$20 -> Communications | F18: =IF('Input - Adjustments'!$E26="Real",VLOOKUP('Input - Adjustments'!$F26,'Calcs - Escalation'!$C$18:$M$27,COLUMNS('Calcs - Escalation'!$C$18:G$18),FALSE)+1,"Not Applicable") -> Not Applicable | I18: =IF('Input - Adjustments'!$E26="Real", 'Input - Adjustments'!G26*$F18,'Input - Adjustments'!G26*I$10) -> 0 | J18: =IF('Input - Adjustments'!$E26="Real", 'Input - Adjustments'!H26*$F18,'Input - Adjustments'!H26*J$10) -> 0 | K18: =IF('Input - Adjustments'!$E26="Real", 'Input - Adjustments'!I26*$F18,'Input - Adjustments'!I26*K$10) -> 0 | L18: =IF('Input - Adjustments'!$E26="Real", 'Input - Adjustments'!J26*$F18,'Input - Adjustments'!J26*L$10) -> 0 | M18: =IF('Input - Adjustments'!$E26="Real", 'Input - Adjustments'!K26*$F18,'Input - Adjustments'!K26*M$10) -> 0 | N18: =IF('Input - Adjustments'!$E26="Real", 'Input - Adjustments'!L26*$F18,'Input - Adjustments'!L26*N$10) -> 0
C19: ='Input - General'!$C$21 -> Secondary Systems | F19: =IF('Input - Adjustments'!$E27="Real",VLOOKUP('Input - Adjustments'!$F27,'Calcs - Escalation'!$C$18:$M$27,COLUMNS('Calcs - Escalation'!$C$18:G$18),FALSE)+1,"Not Applicable") -> Not Applicable | I19: =IF('Input - Adjustments'!$E27="Real", 'Input - Adjustments'!G27*$F19,'Input - Adjustments'!G27*I$10) -> 0 | J19: =IF('Input - Adjustments'!$E27="Real", 'Input - Adjustments'!H27*$F19,'Input - Adjustments'!H27*J$10) -> 0 | K19: =IF('Input - Adjustments'!$E27="Real", 'Input - Adjustments'!I27*$F19,'Input - Adjustments'!I27*K$10) -> 0 | L19: =IF('Input - Adjustments'!$E27="Real", 'Input - Adjustments'!J27*$F19,'Input - Adjustments'!J27*L$10) -> 0 | M19: =IF('Input - Adjustments'!$E27="Real", 'Input - Adjustments'!K27*$F19,'Input - Adjustments'!K27*M$10) -> 0 | N19: =IF('Input - Adjustments'!$E27="Real", 'Input - Adjustments'!L27*$F19,'Input - Adjustments'!L27*N$10) -> 0
C20: ='Input - General'!$C$22 -> Land and Easements | F20: =IF('Input - Adjustments'!$E28="Real",VLOOKUP('Input - Adjustments'!$F28,'Calcs - Escalation'!$C$18:$M$27,COLUMNS('Calcs - Escalation'!$C$18:G$18),FALSE)+1,"Not Applicable") -> Not Applicable | I20: =IF('Input - Adjustments'!$E28="Real", 'Input - Adjustments'!G28*$F20,'Input - Adjustments'!G28*I$10) -> 0 | J20: =IF('Input - Adjustments'!$E28="Real", 'Input - Adjustments'!H28*$F20,'Input - Adjustments'!H28*J$10) -> 0 | K20: =IF('Input - Adjustments'!$E28="Real", 'Input - Adjustments'!I28*$F20,'Input - Adjustments'!I28*K$10) -> 0 | L20: =IF('Input - Adjustments'!$E28="Real", 'Input - Adjustments'!J28*$F20,'Input - Adjustments'!J28*L$10) -> 0 | M20: =IF('Input - Adjustments'!$E28="Real", 'Input - Adjustments'!K28*$F20,'Input - Adjustments'!K28*M$10) -> 0 | N20: =IF('Input - Adjustments'!$E28="Real", 'Input - Adjustments'!L28*$F20,'Input - Adjustments'!L28*N$10) -> 0
C21: ='Input - General'!$C$23 -> Maintenance Support & Asset Management | F21: =IF('Input - Adjustments'!$E29="Real",VLOOKUP('Input - Adjustments'!$F29,'Calcs - Escalation'!$C$18:$M$27,COLUMNS('Calcs - Escalation'!$C$18:G$18),FALSE)+1,"Not Applicable") -> 0.9735593648 | I21: =IF('Input - Adjustments'!$E29="Real", 'Input - Adjustments'!G29*$F21,'Input - Adjustments'!G29*I$10) -> 390446.9568 | J21: =IF('Input - Adjustments'!$E29="Real", 'Input - Adjustments'!H29*$F21,'Input - Adjustments'!H29*J$10) -> 390446.9568 | K21: =IF('Input - Adjustments'!$E29="Real", 'Input - Adjustments'!I29*$F21,'Input - Adjustments'!I29*K$10) -> 390446.9568 | L21: =IF('Input - Adjustments'!$E29="Real", 'Input - Adjustments'!J29*$F21,'Input - Adjustments'!J29*L$10) -> 390446.9568 | M21: =IF('Input - Adjustments'!$E29="Real", 'Input - Adjustments'!K29*$F21,'Input - Adjustments'!K29*M$10) -> 390446.9568 | N21: =IF('Input - Adjustments'!$E29="Real", 'Input - Adjustments'!L29*$F21,'Input - Adjustments'!L29*N$10) -> 390446.9568
C22: ='Input - General'!$C$24 -> Operations/Control Room | F22: =IF('Input - Adjustments'!$E30="Real",VLOOKUP('Input - Adjustments'!$F30,'Calcs - Escalation'!$C$18:$M$27,COLUMNS('Calcs - Escalation'!$C$18:G$18),FALSE)+1,"Not Applicable") -> 1 | I22: =IF('Input - Adjustments'!$E30="Real", 'Input - Adjustments'!G30*$F22,'Input - Adjustments'!G30*I$10) -> 443546.6113 | J22: =IF('Input - Adjustments'!$E30="Real", 'Input - Adjustments'!H30*$F22,'Input - Adjustments'!H30*J$10) -> 887093.2227 | K22: =IF('Input - Adjustments'!$E30="Real", 'Input - Adjustments'!I30*$F22,'Input - Adjustments'!I30*K$10) -> 887093.2227 | L22: =IF('Input - Adjustments'!$E30="Real", 'Input - Adjustments'!J30*$F22,'Input - Adjustments'!J30*L$10) -> 887093.2227 | M22: =IF('Input - Adjustments'!$E30="Real", 'Input - Adjustments'!K30*$F22,'Input - Adjustments'!K30*M$10) -> 887093.2227 | N22: =IF('Input - Adjustments'!$E30="Real", 'Input - Adjustments'!L30*$F22,'Input - Adjustments'!L30*N$10) -> 887093.2227
C23: ='Input - General'!$C$25 -> Grid Planning | F23: =IF('Input - Adjustments'!$E31="Real",VLOOKUP('Input - Adjustments'!$F31,'Calcs - Escalation'!$C$18:$M$27,COLUMNS('Calcs - Escalation'!$C$18:G$18),FALSE)+1,"Not Applicable") -> Not Applicable | I23: =IF('Input - Adjustments'!$E31="Real", 'Input - Adjustments'!G31*$F23,'Input - Adjustments'!G31*I$10) -> 0 | J23: =IF('Input - Adjustments'!$E31="Real", 'Input - Adjustments'!H31*$F23,'Input - Adjustments'!H31*J$10) -> 0 | K23: =IF('Input - Adjustments'!$E31="Real", 'Input - Adjustments'!I31*$F23,'Input - Adjustments'!I31*K$10) -> 0 | L23: =IF('Input - Adjustments'!$E31="Real", 'Input - Adjustments'!J31*$F23,'Input - Adjustments'!J31*L$10) -> 0 | M23: =IF('Input - Adjustments'!$E31="Real", 'Input - Adjustments'!K31*$F23,'Input - Adjustments'!K31*M$10) -> 0 | N23: =IF('Input - Adjustments'!$E31="Real", 'Input - Adjustments'!L31*$F23,'Input - Adjustments'!L31*N$10) -> 0
C24: ='Input - General'!$C$26 -> Not Used | F24: =IF('Input - Adjustments'!$E32="Real",VLOOKUP('Input - Adjustments'!$F32,'Calcs - Escalation'!$C$18:$M$27,COLUMNS('Calcs - Escalation'!$C$18:G$18),FALSE)+1,"Not Applicable") -> Not Applicable | I24: =IF('Input - Adjustments'!$E32="Real", 'Input - Adjustments'!G32*$F24,'Input - Adjustments'!G32*I$10) -> 0 | J24: =IF('Input - Adjustments'!$E32="Real", 'Input - Adjustments'!H32*$F24,'Input - Adjustments'!H32*J$10) -> 0 | K24: =IF('Input - Adjustments'!$E32="Real", 'Input - Adjustments'!I32*$F24,'Input - Adjustments'!I32*K$10) -> 0 | L24: =IF('Input - Adjustments'!$E32="Real", 'Input - Adjustments'!J32*$F24,'Input - Adjustments'!J32*L$10) -> 0 | M24: =IF('Input - Adjustments'!$E32="Real", 'Input - Adjustments'!K32*$F24,'Input - Adjustments'!K32*M$10) -> 0 | N24: =IF('Input - Adjustments'!$E32="Real", 'Input - Adjustments'!L32*$F24,'Input - Adjustments'!L32*N$10) -> 0
C25: ='Input - General'!$C$27 -> Rates & Taxes | F25: =IF('Input - Adjustments'!$E33="Real",VLOOKUP('Input - Adjustments'!$F33,'Calcs - Escalation'!$C$18:$M$27,COLUMNS('Calcs - Escalation'!$C$18:G$18),FALSE)+1,"Not Applicable") -> Not Applicable | I25: =IF('Input - Adjustments'!$E33="Real", 'Input - Adjustments'!G33*$F25,'Input - Adjustments'!G33*I$10) -> 0 | J25: =IF('Input - Adjustments'!$E33="Real", 'Input - Adjustments'!H33*$F25,'Input - Adjustments'!H33*J$10) -> 0 | K25: =IF('Input - Adjustments'!$E33="Real", 'Input - Adjustments'!I33*$F25,'Input - Adjustments'!I33*K$10) -> 0 | L25: =IF('Input - Adjustments'!$E33="Real", 'Input - Adjustments'!J33*$F25,'Input - Adjustments'!J33*L$10) -> 0 | M25: =IF('Input - Adjustments'!$E33="Real", 'Input - Adjustments'!K33*$F25,'Input - Adjustments'!K33*M$10) -> 0 | N25: =IF('Input - Adjustments'!$E33="Real", 'Input - Adjustments'!L33*$F25,'Input - Adjustments'!L33*N$10) -> 0
C26: ='Input - General'!$C$28 -> Property Management | F26: =IF('Input - Adjustments'!$E34="Real",VLOOKUP('Input - Adjustments'!$F34,'Calcs - Escalation'!$C$18:$M$27,COLUMNS('Calcs - Escalation'!$C$18:G$18),FALSE)+1,"Not Applicable") -> Not Applicable | I26: =IF('Input - Adjustments'!$E34="Real", 'Input - Adjustments'!G34*$F26,'Input - Adjustments'!G34*I$10) -> 0 | J26: =IF('Input - Adjustments'!$E34="Real", 'Input - Adjustments'!H34*$F26,'Input - Adjustments'!H34*J$10) -> 0 | K26: =IF('Input - Adjustments'!$E34="Real", 'Input - Adjustments'!I34*$F26,'Input - Adjustments'!I34*K$10) -> 0 | L26: =IF('Input - Adjustments'!$E34="Real", 'Input - Adjustments'!J34*$F26,'Input - Adjustments'!J34*L$10) -> 0 | M26: =IF('Input - Adjustments'!$E34="Real", 'Input - Adjustments'!K34*$F26,'Input - Adjustments'!K34*M$10) -> 0 | N26: =IF('Input - Adjustments'!$E34="Real", 'Input - Adjustments'!L34*$F26,'Input - Adjustments'!L34*N$10) -> 0
C27: ='Input - General'!$C$29 -> Health, Safety and Environmental | F27: =IF('Input - Adjustments'!$E35="Real",VLOOKUP('Input - Adjustments'!$F35,'Calcs - Escalation'!$C$18:$M$27,COLUMNS('Calcs - Escalation'!$C$18:G$18),FALSE)+1,"Not Applicable") -> Not Applicable | I27: =IF('Input - Adjustments'!$E35="Real", 'Input - Adjustments'!G35*$F27,'Input - Adjustments'!G35*I$10) -> 0 | J27: =IF('Input - Adjustments'!$E35="Real", 'Input - Adjustments'!H35*$F27,'Input - Adjustments'!H35*J$10) -> 0 | K27: =IF('Input - Adjustments'!$E35="Real", 'Input - Adjustments'!I35*$F27,'Input - Adjustments'!I35*K$10) -> 0 | L27: =IF('Input - Adjustments'!$E35="Real", 'Input - Adjustments'!J35*$F27,'Input - Adjustments'!J35*L$10) -> 0 | M27: =IF('Input - Adjustments'!$E35="Real", 'Input - Adjustments'!K35*$F27,'Input - Adjustments'!K35*M$10) -> 0 | N27: =IF('Input - Adjustments'!$E35="Real", 'Input - Adjustments'!L35*$F27,'Input - Adjustments'!L35*N$10) -> 0
C28: ='Input - General'!$C$30 -> Corporate Governance | F28: =IF('Input - Adjustments'!$E36="Real",VLOOKUP('Input - Adjustments'!$F36,'Calcs - Escalation'!$C$18:$M$27,COLUMNS('Calcs - Escalation'!$C$18:G$18),FALSE)+1,"Not Applicable") -> 1 | I28: =IF('Input - Adjustments'!$E36="Real", 'Input - Adjustments'!G36*$F28,'Input - Adjustments'!G36*I$10) -> 132632.2501 | J28: =IF('Input - Adjustments'!$E36="Real", 'Input - Adjustments'!H36*$F28,'Input - Adjustments'!H36*J$10) -> -53146.00834 | K28: =IF('Input - Adjustments'!$E36="Real", 'Input - Adjustments'!I36*$F28,'Input - Adjustments'!I36*K$10) -> -504736.6197 | L28: =IF('Input - Adjustments'!$E36="Real", 'Input - Adjustments'!J36*$F28,'Input - Adjustments'!J36*L$10) -> -1130924.8 | M28: =IF('Input - Adjustments'!$E36="Real", 'Input - Adjustments'!K36*$F28,'Input - Adjustments'!K36*M$10) -> 172991.5861 | N28: =IF('Input - Adjustments'!$E36="Real", 'Input - Adjustments'!L36*$F28,'Input - Adjustments'!L36*N$10) -> -431412.0613
C29: ='Input - General'!$C$31 -> Customer Relations | F29: =IF('Input - Adjustments'!$E37="Real",VLOOKUP('Input - Adjustments'!$F37,'Calcs - Escalation'!$C$18:$M$27,COLUMNS('Calcs - Escalation'!$C$18:G$18),FALSE)+1,"Not Applicable") -> 0.9735593648 | I29: =IF('Input - Adjustments'!$E37="Real", 'Input - Adjustments'!G37*$F29,'Input - Adjustments'!G37*I$10) -> 755114.9802 | J29: =IF('Input - Adjustments'!$E37="Real", 'Input - Adjustments'!H37*$F29,'Input - Adjustments'!H37*J$10) -> 1738920.652 | K29: =IF('Input - Adjustments'!$E37="Real", 'Input - Adjustments'!I37*$F29,'Input - Adjustments'!I37*K$10) -> 1738920.652 | L29: =IF('Input - Adjustments'!$E37="Real", 'Input - Adjustments'!J37*$F29,'Input - Adjustments'!J37*L$10) -> 1738920.652 | M29: =IF('Input - Adjustments'!$E37="Real", 'Input - Adjustments'!K37*$F29,'Input - Adjustments'!K37*M$10) -> 1738920.652 | N29: =IF('Input - Adjustments'!$E37="Real", 'Input - Adjustments'!L37*$F29,'Input - Adjustments'!L37*N$10) -> 1738920.652
C30: ='Input - General'!$C$32 -> Regulatory | F30: =IF('Input - Adjustments'!$E38="Real",VLOOKUP('Input - Adjustments'!$F38,'Calcs - Escalation'!$C$18:$M$27,COLUMNS('Calcs - Escalation'!$C$18:G$18),FALSE)+1,"Not Applicable") -> 1 | I30: =IF('Input - Adjustments'!$E38="Real", 'Input - Adjustments'!G38*$F30,'Input - Adjustments'!G38*I$10) -> -118924.1892 | J30: =IF('Input - Adjustments'!$E38="Real", 'Input - Adjustments'!H38*$F30,'Input - Adjustments'!H38*J$10) -> -118924.1892 | K30: =IF('Input - Adjustments'!$E38="Real", 'Input - Adjustments'!I38*$F30,'Input - Adjustments'!I38*K$10) -> 49011.18775 | L30: =IF('Input - Adjustments'!$E38="Real", 'Input - Adjustments'!J38*$F30,'Input - Adjustments'!J38*L$10) -> 49011.18775 | M30: =IF('Input - Adjustments'!$E38="Real", 'Input - Adjustments'!K38*$F30,'Input - Adjustments'!K38*M$10) -> 49011.18775 | N30: =IF('Input - Adjustments'!$E38="Real", 'Input - Adjustments'!L38*$F30,'Input - Adjustments'!L38*N$10) -> 49011.18775
C31: ='Input - General'!$C$33 -> Finance | F31: =IF('Input - Adjustments'!$E39="Real",VLOOKUP('Input - Adjustments'!$F39,'Calcs - Escalation'!$C$18:$M$27,COLUMNS('Calcs - Escalation'!$C$18:G$18),FALSE)+1,"Not Applicable") -> Not Applicable | I31: =IF('Input - Adjustments'!$E39="Real", 'Input - Adjustments'!G39*$F31,'Input - Adjustments'!G39*I$10) -> 0 | J31: =IF('Input - Adjustments'!$E39="Real", 'Input - Adjustments'!H39*$F31,'Input - Adjustments'!H39*J$10) -> 0 | K31: =IF('Input - Adjustments'!$E39="Real", 'Input - Adjustments'!I39*$F31,'Input - Adjustments'!I39*K$10) -> 0 | L31: =IF('Input - Adjustments'!$E39="Real", 'Input - Adjustments'!J39*$F31,'Input - Adjustments'!J39*L$10) -> 0 | M31: =IF('Input - Adjustments'!$E39="Real", 'Input - Adjustments'!K39*$F31,'Input - Adjustments'!K39*M$10) -> 0 | N31: =IF('Input - Adjustments'!$E39="Real", 'Input - Adjustments'!L39*$F31,'Input - Adjustments'!L39*N$10) -> 0
C32: ='Input - General'!$C$34 -> Information Technology | F32: =IF('Input - Adjustments'!$E40="Real",VLOOKUP('Input - Adjustments'!$F40,'Calcs - Escalation'!$C$18:$M$27,COLUMNS('Calcs - Escalation'!$C$18:G$18),FALSE)+1,"Not Applicable") -> Not Applicable | I32: =IF('Input - Adjustments'!$E40="Real", 'Input - Adjustments'!G40*$F32,'Input - Adjustments'!G40*I$10) -> 0 | J32: =IF('Input - Adjustments'!$E40="Real", 'Input - Adjustments'!H40*$F32,'Input - Adjustments'!H40*J$10) -> 0 | K32: =IF('Input - Adjustments'!$E40="Real", 'Input - Adjustments'!I40*$F32,'Input - Adjustments'!I40*K$10) -> 0 | L32: =IF('Input - Adjustments'!$E40="Real", 'Input - Adjustments'!J40*$F32,'Input - Adjustments'!J40*L$10) -> 0 | M32: =IF('Input - Adjustments'!$E40="Real", 'Input - Adjustments'!K40*$F32,'Input - Adjustments'!K40*M$10) -> 0 | N32: =IF('Input - Adjustments'!$E40="Real", 'Input - Adjustments'!L40*$F32,'Input - Adjustments'!L40*N$10) -> 0
C33: ='Input - General'!$C$35 -> HR & Payroll | F33: =IF('Input - Adjustments'!$E41="Real",VLOOKUP('Input - Adjustments'!$F41,'Calcs - Escalation'!$C$18:$M$27,COLUMNS('Calcs - Escalation'!$C$18:G$18),FALSE)+1,"Not Applicable") -> 0.9735593648 | I33: =IF('Input - Adjustments'!$E41="Real", 'Input - Adjustments'!G41*$F33,'Input - Adjustments'!G41*I$10) -> 0 | J33: =IF('Input - Adjustments'!$E41="Real", 'Input - Adjustments'!H41*$F33,'Input - Adjustments'!H41*J$10) -> -623887.2948 | K33: =IF('Input - Adjustments'!$E41="Real", 'Input - Adjustments'!I41*$F33,'Input - Adjustments'!I41*K$10) -> -623887.2948 | L33: =IF('Input - Adjustments'!$E41="Real", 'Input - Adjustments'!J41*$F33,'Input - Adjustments'!J41*L$10) -> -623887.2948 | M33: =IF('Input - Adjustments'!$E41="Real", 'Input - Adjustments'!K41*$F33,'Input - Adjustments'!K41*M$10) -> -623887.2948 | N33: =IF('Input - Adjustments'!$E41="Real", 'Input - Adjustments'!L41*$F33,'Input - Adjustments'!L41*N$10) -> -623887.2948
C34: ='Input - General'!$C$36 -> Not Used | F34: =IF('Input - Adjustments'!$E42="Real",VLOOKUP('Input - Adjustments'!$F42,'Calcs - Escalation'!$C$18:$M$27,COLUMNS('Calcs - Escalation'!$C$18:G$18),FALSE)+1,"Not Applicable") -> Not Applicable | I34: =IF('Input - Adjustments'!$E42="Real", 'Input - Adjustments'!G42*$F34,'Input - Adjustments'!G42*I$10) -> 0 | J34: =IF('Input - Adjustments'!$E42="Real", 'Input - Adjustments'!H42*$F34,'Input - Adjustments'!H42*J$10) -> 0 | K34: =IF('Input - Adjustments'!$E42="Real", 'Input - Adjustments'!I42*$F34,'Input - Adjustments'!I42*K$10) -> 0 | L34: =IF('Input - Adjustments'!$E42="Real", 'Input - Adjustments'!J42*$F34,'Input - Adjustments'!J42*L$10) -> 0 | M34: =IF('Input - Adjustments'!$E42="Real", 'Input - Adjustments'!K42*$F34,'Input - Adjustments'!K42*M$10) -> 0 | N34: =IF('Input - Adjustments'!$E42="Real", 'Input - Adjustments'!L42*$F34,'Input - Adjustments'!L42*N$10) -> 0
C35: ='Input - General'!$C$37 -> Not Used | F35: =IF('Input - Adjustments'!$E43="Real",VLOOKUP('Input - Adjustments'!$F43,'Calcs - Escalation'!$C$18:$M$27,COLUMNS('Calcs - Escalation'!$C$18:G$18),FALSE)+1,"Not Applicable") -> Not Applicable | I35: =IF('Input - Adjustments'!$E43="Real", 'Input - Adjustments'!G43*$F35,'Input - Adjustments'!G43*I$10) -> 0 | J35: =IF('Input - Adjustments'!$E43="Real", 'Input - Adjustments'!H43*$F35,'Input - Adjustments'!H43*J$10) -> 0 | K35: =IF('Input - Adjustments'!$E43="Real", 'Input - Adjustments'!I43*$F35,'Input - Adjustments'!I43*K$10) -> 0 | L35: =IF('Input - Adjustments'!$E43="Real", 'Input - Adjustments'!J43*$F35,'Input - Adjustments'!J43*L$10) -> 0 | M35: =IF('Input - Adjustments'!$E43="Real", 'Input - Adjustments'!K43*$F35,'Input - Adjustments'!K43*M$10) -> 0 | N35: =IF('Input - Adjustments'!$E43="Real", 'Input - Adjustments'!L43*$F35,'Input - Adjustments'!L43*N$10) -> 0
C36: ='Input - General'!$C$38 -> Not Used | F36: =IF('Input - Adjustments'!$E44="Real",VLOOKUP('Input - Adjustments'!$F44,'Calcs - Escalation'!$C$18:$M$27,COLUMNS('Calcs - Escalation'!$C$18:G$18),FALSE)+1,"Not Applicable") -> Not Applicable | I36: =IF('Input - Adjustments'!$E44="Real", 'Input - Adjustments'!G44*$F36,'Input - Adjustments'!G44*I$10) -> 0 | J36: =IF('Input - Adjustments'!$E44="Real", 'Input - Adjustments'!H44*$F36,'Input - Adjustments'!H44*J$10) -> 0 | K36: =IF('Input - Adjustments'!$E44="Real", 'Input - Adjustments'!I44*$F36,'Input - Adjustments'!I44*K$10) -> 0 | L36: =IF('Input - Adjustments'!$E44="Real", 'Input - Adjustments'!J44*$F36,'Input - Adjustments'!J44*L$10) -> 0 | M36: =IF('Input - Adjustments'!$E44="Real", 'Input - Adjustments'!K44*$F36,'Input - Adjustments'!K44*M$10) -> 0 | N36: =IF('Input - Adjustments'!$E44="Real", 'Input - Adjustments'!L44*$F36,'Input - Adjustments'!L44*N$10) -> 0
C37: ='Input - General'!$C$39 -> Not Used | F37: =IF('Input - Adjustments'!$E45="Real",VLOOKUP('Input - Adjustments'!$F45,'Calcs - Escalation'!$C$18:$M$27,COLUMNS('Calcs - Escalation'!$C$18:G$18),FALSE)+1,"Not Applicable") -> Not Applicable | I37: =IF('Input - Adjustments'!$E45="Real", 'Input - Adjustments'!G45*$F37,'Input - Adjustments'!G45*I$10) -> 0 | J37: =IF('Input - Adjustments'!$E45="Real", 'Input - Adjustments'!H45*$F37,'Input - Adjustments'!H45*J$10) -> 0 | K37: =IF('Input - Adjustments'!$E45="Real", 'Input - Adjustments'!I45*$F37,'Input - Adjustments'!I45*K$10) -> 0 | L37: =IF('Input - Adjustments'!$E45="Real", 'Input - Adjustments'!J45*$F37,'Input - Adjustments'!J45*L$10) -> 0 | M37: =IF('Input - Adjustments'!$E45="Real", 'Input - Adjustments'!K45*$F37,'Input - Adjustments'!K45*M$10) -> 0 | N37: =IF('Input - Adjustments'!$E45="Real", 'Input - Adjustments'!L45*$F37,'Input - Adjustments'!L45*N$10) -> 0
C38: ='Input - General'!$C$40 -> Not Used | F38: =IF('Input - Adjustments'!$E46="Real",VLOOKUP('Input - Adjustments'!$F46,'Calcs - Escalation'!$C$18:$M$27,COLUMNS('Calcs - Escalation'!$C$18:G$18),FALSE)+1,"Not Applicable") -> Not Applicable | I38: =IF('Input - Adjustments'!$E46="Real", 'Input - Adjustments'!G46*$F38,'Input - Adjustments'!G46*I$10) -> 0 | J38: =IF('Input - Adjustments'!$E46="Real", 'Input - Adjustments'!H46*$F38,'Input - Adjustments'!H46*J$10) -> 0 | K38: =IF('Input - Adjustments'!$E46="Real", 'Input - Adjustments'!I46*$F38,'Input - Adjustments'!I46*K$10) -> 0 | L38: =IF('Input - Adjustments'!$E46="Real", 'Input - Adjustments'!J46*$F38,'Input - Adjustments'!J46*L$10) -> 0 | M38: =IF('Input - Adjustments'!$E46="Real", 'Input - Adjustments'!K46*$F38,'Input - Adjustments'!K46*M$10) -> 0 | N38: =IF('Input - Adjustments'!$E46="Real", 'Input - Adjustments'!L46*$F38,'Input - Adjustments'!L46*N$10) -> 0
C39: ='Input - General'!$C$41 -> Not Used | F39: =IF('Input - Adjustments'!$E47="Real",VLOOKUP('Input - Adjustments'!$F47,'Calcs - Escalation'!$C$18:$M$27,COLUMNS('Calcs - Escalation'!$C$18:G$18),FALSE)+1,"Not Applicable") -> Not Applicable | I39: =IF('Input - Adjustments'!$E47="Real", 'Input - Adjustments'!G47*$F39,'Input - Adjustments'!G47*I$10) -> 0 | J39: =IF('Input - Adjustments'!$E47="Real", 'Input - Adjustments'!H47*$F39,'Input - Adjustments'!H47*J$10) -> 0 | K39: =IF('Input - Adjustments'!$E47="Real", 'Input - Adjustments'!I47*$F39,'Input - Adjustments'!I47*K$10) -> 0 | L39: =IF('Input - Adjustments'!$E47="Real", 'Input - Adjustments'!J47*$F39,'Input - Adjustments'!J47*L$10) -> 0 | M39: =IF('Input - Adjustments'!$E47="Real", 'Input - Adjustments'!K47*$F39,'Input - Adjustments'!K47*M$10) -> 0 | N39: =IF('Input - Adjustments'!$E47="Real", 'Input - Adjustments'!L47*$F39,'Input - Adjustments'!L47*N$10) -> 0
C40: ='Input - General'!$C$42 -> Not Used | F40: =IF('Input - Adjustments'!$E48="Real",VLOOKUP('Input - Adjustments'!$F48,'Calcs - Escalation'!$C$18:$M$27,COLUMNS('Calcs - Escalation'!$C$18:G$18),FALSE)+1,"Not Applicable") -> Not Applicable | I40: =IF('Input - Adjustments'!$E48="Real", 'Input - Adjustments'!G48*$F40,'Input - Adjustments'!G48*I$10) -> 0 | J40: =IF('Input - Adjustments'!$E48="Real", 'Input - Adjustments'!H48*$F40,'Input - Adjustments'!H48*J$10) -> 0 | K40: =IF('Input - Adjustments'!$E48="Real", 'Input - Adjustments'!I48*$F40,'Input - Adjustments'!I48*K$10) -> 0 | L40: =IF('Input - Adjustments'!$E48="Real", 'Input - Adjustments'!J48*$F40,'Input - Adjustments'!J48*L$10) -> 0 | M40: =IF('Input - Adjustments'!$E48="Real", 'Input - Adjustments'!K48*$F40,'Input - Adjustments'!K48*M$10) -> 0 | N40: =IF('Input - Adjustments'!$E48="Real", 'Input - Adjustments'!L48*$F40,'Input - Adjustments'!L48*N$10) -> 0
C41: ='Input - General'!$C$43 -> Not Used | F41: =IF('Input - Adjustments'!$E49="Real",VLOOKUP('Input - Adjustments'!$F49,'Calcs - Escalation'!$C$18:$M$27,COLUMNS('Calcs - Escalation'!$C$18:G$18),FALSE)+1,"Not Applicable") -> Not Applicable | I41: =IF('Input - Adjustments'!$E49="Real", 'Input - Adjustments'!G49*$F41,'Input - Adjustments'!G49*I$10) -> 0 | J41: =IF('Input - Adjustments'!$E49="Real", 'Input - Adjustments'!H49*$F41,'Input - Adjustments'!H49*J$10) -> 0 | K41: =IF('Input - Adjustments'!$E49="Real", 'Input - Adjustments'!I49*$F41,'Input - Adjustments'!I49*K$10) -> 0 | L41: =IF('Input - Adjustments'!$E49="Real", 'Input - Adjustments'!J49*$F41,'Input - Adjustments'!J49*L$10) -> 0 | M41: =IF('Input - Adjustments'!$E49="Real", 'Input - Adjustments'!K49*$F41,'Input - Adjustments'!K49*M$10) -> 0 | N41: =IF('Input - Adjustments'!$E49="Real", 'Input - Adjustments'!L49*$F41,'Input - Adjustments'!L49*N$10) -> 0
C42: ='Input - General'!$C$44 -> Not Used | F42: =IF('Input - Adjustments'!$E50="Real",VLOOKUP('Input - Adjustments'!$F50,'Calcs - Escalation'!$C$18:$M$27,COLUMNS('Calcs - Escalation'!$C$18:G$18),FALSE)+1,"Not Applicable") -> Not Applicable | I42: =IF('Input - Adjustments'!$E50="Real", 'Input - Adjustments'!G50*$F42,'Input - Adjustments'!G50*I$10) -> 0 | J42: =IF('Input - Adjustments'!$E50="Real", 'Input - Adjustments'!H50*$F42,'Input - Adjustments'!H50*J$10) -> 0 | K42: =IF('Input - Adjustments'!$E50="Real", 'Input - Adjustments'!I50*$F42,'Input - Adjustments'!I50*K$10) -> 0 | L42: =IF('Input - Adjustments'!$E50="Real", 'Input - Adjustments'!J50*$F42,'Input - Adjustments'!J50*L$10) -> 0 | M42: =IF('Input - Adjustments'!$E50="Real", 'Input - Adjustments'!K50*$F42,'Input - Adjustments'!K50*M$10) -> 0 | N42: =IF('Input - Adjustments'!$E50="Real", 'Input - Adjustments'!L50*$F42,'Input - Adjustments'!L50*N$10) -> 0
C43: ='Input - General'!$C$45 -> Not Used | F43: =IF('Input - Adjustments'!$E51="Real",VLOOKUP('Input - Adjustments'!$F51,'Calcs - Escalation'!$C$18:$M$27,COLUMNS('Calcs - Escalation'!$C$18:G$18),FALSE)+1,"Not Applicable") -> Not Applicable | I43: =IF('Input - Adjustments'!$E51="Real", 'Input - Adjustments'!G51*$F43,'Input - Adjustments'!G51*I$10) -> 0 | J43: =IF('Input - Adjustments'!$E51="Real", 'Input - Adjustments'!H51*$F43,'Input - Adjustments'!H51*J$10) -> 0 | K43: =IF('Input - Adjustments'!$E51="Real", 'Input - Adjustments'!I51*$F43,'Input - Adjustments'!I51*K$10) -> 0 | L43: =IF('Input - Adjustments'!$E51="Real", 'Input - Adjustments'!J51*$F43,'Input - Adjustments'!J51*L$10) -> 0 | M43: =IF('Input - Adjustments'!$E51="Real", 'Input - Adjustments'!K51*$F43,'Input - Adjustments'!K51*M$10) -> 0 | N43: =IF('Input - Adjustments'!$E51="Real", 'Input - Adjustments'!L51*$F43,'Input - Adjustments'!L51*N$10) -> 0
C44: ='Input - General'!$C$46 -> Not Used | F44: =IF('Input - Adjustments'!$E52="Real",VLOOKUP('Input - Adjustments'!$F52,'Calcs - Escalation'!$C$18:$M$27,COLUMNS('Calcs - Escalation'!$C$18:G$18),FALSE)+1,"Not Applicable") -> Not Applicable | I44: =IF('Input - Adjustments'!$E52="Real", 'Input - Adjustments'!G52*$F44,'Input - Adjustments'!G52*I$10) -> 0 | J44: =IF('Input - Adjustments'!$E52="Real", 'Input - Adjustments'!H52*$F44,'Input - Adjustments'!H52*J$10) -> 0 | K44: =IF('Input - Adjustments'!$E52="Real", 'Input - Adjustments'!I52*$F44,'Input - Adjustments'!I52*K$10) -> 0 | L44: =IF('Input - Adjustments'!$E52="Real", 'Input - Adjustments'!J52*$F44,'Input - Adjustments'!J52*L$10) -> 0 | M44: =IF('Input - Adjustments'!$E52="Real", 'Input - Adjustments'!K52*$F44,'Input - Adjustments'!K52*M$10) -> 0 | N44: =IF('Input - Adjustments'!$E52="Real", 'Input - Adjustments'!L52*$F44,'Input - Adjustments'!L52*N$10) -> 0
B47: ="Cost Adjustments - Material & Expense - Conversion to Real " & BaseYear & " Dollars" -> Cost Adjustments - Material & Expense - Conversion to Real 12/13 Dollars
H49: ="Nominal to Real " & BaseYear & " Conversion Factor" -> Nominal to Real 12/13 Conversion Factor
H50: ='Input - General'!$G$10 -> 12/13 | I50: ='Input - General'!$H$10 -> 13/14 | J50: ='Input - General'!$I$10 -> 14/15 | K50: ='Input - General'!$J$10 -> 15/16 | L50: ='Input - General'!$K$10 -> 16/17 | M50: ='Input - General'!$L$10 -> 17/18 | N50: ='Input - General'!$M$10 -> 18/19
H51: =1/(1+'Calcs - Escalation'!$G$13)*(1+'Calcs - Escalation'!$G$13) -> 1 | I51: =1/(1+'Calcs - Escalation'!$H$13)*(1+'Calcs - Escalation'!$G$13) -> 0.9735593648 | J51: =1/(1+'Calcs - Escalation'!$I$13)*(1+'Calcs - Escalation'!$G$13) -> 0.9466756277 | K51: =1/(1+'Calcs - Escalation'!$J$13)*(1+'Calcs - Escalation'!$G$13) -> 0.92246171 | L51: =1/(1+'Calcs - Escalation'!$K$13)*(1+'Calcs - Escalation'!$G$13) -> 0.8999626439 | M51: =1/(1+'Calcs - Escalation'!$L$13)*(1+'Calcs - Escalation'!$G$13) -> 0.8780123356 | N51: =1/(1+'Calcs - Escalation'!$M$13)*(1+'Calcs - Escalation'!$G$13) -> 0.8565974005
H53: ="Preventative/General Material & Expense (Real " & BaseYear & " $)" -> Preventative/General Material & Expense (Real 12/13 $)
F54: Real Conversion Factor | H54: ='Input - General'!$G$10 -> 12/13 | I54: ='Input - General'!$H$10 -> 13/14 | J54: ='Input - General'!$I$10 -> 14/15 | K54: ='Input - General'!$J$10 -> 15/16 | L54: ='Input - General'!$K$10 -> 16/17 | M54: ='Input - General'!$L$10 -> 17/18 | N54: ='Input - General'!$M$10 -> 18/19
C56: ='Input - General'!$C$17 -> Not Used | F56: =IF('Input - Adjustments'!$E59="Real",VLOOKUP('Input - Adjustments'!$F59,'Calcs - Escalation'!$C$18:$M$27,COLUMNS('Calcs - Escalation'!$C$18:G$18),FALSE)+1,"Not Applicable") -> Not Applicable | I56: =IF('Input - Adjustments'!$E59="Real", 'Input - Adjustments'!G59*$F56,'Input - Adjustments'!G59*I$51) -> 0 | J56: =IF('Input - Adjustments'!$E59="Real", 'Input - Adjustments'!H59*$F56,'Input - Adjustments'!H59*J$51) -> 0 | K56: =IF('Input - Adjustments'!$E59="Real", 'Input - Adjustments'!I59*$F56,'Input - Adjustments'!I59*K$51) -> 0 | L56: =IF('Input - Adjustments'!$E59="Real", 'Input - Adjustments'!J59*$F56,'Input - Adjustments'!J59*L$51) -> 0 | M56: =IF('Input - Adjustments'!$E59="Real", 'Input - Adjustments'!K59*$F56,'Input - Adjustments'!K59*M$51) -> 0 | N56: =IF('Input - Adjustments'!$E59="Real", 'Input - Adjustments'!L59*$F56,'Input - Adjustments'!L59*N$51) -> 0
C57: ='Input - General'!$C$18 -> Lines | F57: =IF('Input - Adjustments'!$E60="Real",VLOOKUP('Input - Adjustments'!$F60,'Calcs - Escalation'!$C$18:$M$27,COLUMNS('Calcs - Escalation'!$C$18:G$18),FALSE)+1,"Not Applicable") -> Not Applicable | I57: =IF('Input - Adjustments'!$E60="Real", 'Input - Adjustments'!G60*$F57,'Input - Adjustments'!G60*I$51) -> 0 | J57: =IF('Input - Adjustments'!$E60="Real", 'Input - Adjustments'!H60*$F57,'Input - Adjustments'!H60*J$51) -> 0 | K57: =IF('Input - Adjustments'!$E60="Real", 'Input - Adjustments'!I60*$F57,'Input - Adjustments'!I60*K$51) -> 0 | L57: =IF('Input - Adjustments'!$E60="Real", 'Input - Adjustments'!J60*$F57,'Input - Adjustments'!J60*L$51) -> 0 | M57: =IF('Input - Adjustments'!$E60="Real", 'Input - Adjustments'!K60*$F57,'Input - Adjustments'!K60*M$51) -> 0 | N57: =IF('Input - Adjustments'!$E60="Real", 'Input - Adjustments'!L60*$F57,'Input - Adjustments'!L60*N$51) -> 0
C58: ='Input - General'!$C$19 -> Substations | F58: =IF('Input - Adjustments'!$E61="Real",VLOOKUP('Input - Adjustments'!$F61,'Calcs - Escalation'!$C$18:$M$27,COLUMNS('Calcs - Escalation'!$C$18:G$18),FALSE)+1,"Not Applicable") -> Not Applicable | I58: =IF('Input - Adjustments'!$E61="Real", 'Input - Adjustments'!G61*$F58,'Input - Adjustments'!G61*I$51) -> 0 | J58: =IF('Input - Adjustments'!$E61="Real", 'Input - Adjustments'!H61*$F58,'Input - Adjustments'!H61*J$51) -> 0 | K58: =IF('Input - Adjustments'!$E61="Real", 'Input - Adjustments'!I61*$F58,'Input - Adjustments'!I61*K$51) -> 0 | L58: =IF('Input - Adjustments'!$E61="Real", 'Input - Adjustments'!J61*$F58,'Input - Adjustments'!J61*L$51) -> 0 | M58: =IF('Input - Adjustments'!$E61="Real", 'Input - Adjustments'!K61*$F58,'Input - Adjustments'!K61*M$51) -> 0 | N58: =IF('Input - Adjustments'!$E61="Real", 'Input - Adjustments'!L61*$F58,'Input - Adjustments'!L61*N$51) -> 0
C59: ='Input - General'!$C$20 -> Communications | F59: =IF('Input - Adjustments'!$E62="Real",VLOOKUP('Input - Adjustments'!$F62,'Calcs - Escalation'!$C$18:$M$27,COLUMNS('Calcs - Escalation'!$C$18:G$18),FALSE)+1,"Not Applicable") -> Not Applicable | I59: =IF('Input - Adjustments'!$E62="Real", 'Input - Adjustments'!G62*$F59,'Input - Adjustments'!G62*I$51) -> 0 | J59: =IF('Input - Adjustments'!$E62="Real", 'Input - Adjustments'!H62*$F59,'Input - Adjustments'!H62*J$51) -> 0 | K59: =IF('Input - Adjustments'!$E62="Real", 'Input - Adjustments'!I62*$F59,'Input - Adjustments'!I62*K$51) -> 0 | L59: =IF('Input - Adjustments'!$E62="Real", 'Input - Adjustments'!J62*$F59,'Input - Adjustments'!J62*L$51) -> 0 | M59: =IF('Input - Adjustments'!$E62="Real", 'Input - Adjustments'!K62*$F59,'Input - Adjustments'!K62*M$51) -> 0 | N59: =IF('Input - Adjustments'!$E62="Real", 'Input - Adjustments'!L62*$F59,'Input - Adjustments'!L62*N$51) -> 0
C60: ='Input - General'!$C$21 -> Secondary Systems | F60: =IF('Input - Adjustments'!$E63="Real",VLOOKUP('Input - Adjustments'!$F63,'Calcs - Escalation'!$C$18:$M$27,COLUMNS('Calcs - Escalation'!$C$18:G$18),FALSE)+1,"Not Applicable") -> Not Applicable | I60: =IF('Input - Adjustments'!$E63="Real", 'Input - Adjustments'!G63*$F60,'Input - Adjustments'!G63*I$51) -> 0 | J60: =IF('Input - Adjustments'!$E63="Real", 'Input - Adjustments'!H63*$F60,'Input - Adjustments'!H63*J$51) -> 0 | K60: =IF('Input - Adjustments'!$E63="Real", 'Input - Adjustments'!I63*$F60,'Input - Adjustments'!I63*K$51) -> 0 | L60: =IF('Input - Adjustments'!$E63="Real", 'Input - Adjustments'!J63*$F60,'Input - Adjustments'!J63*L$51) -> 0 | M60: =IF('Input - Adjustments'!$E63="Real", 'Input - Adjustments'!K63*$F60,'Input - Adjustments'!K63*M$51) -> 0 | N60: =IF('Input - Adjustments'!$E63="Real", 'Input - Adjustments'!L63*$F60,'Input - Adjustments'!L63*N$51) -> 0
C61: ='Input - General'!$C$22 -> Land and Easements | F61: =IF('Input - Adjustments'!$E64="Real",VLOOKUP('Input - Adjustments'!$F64,'Calcs - Escalation'!$C$18:$M$27,COLUMNS('Calcs - Escalation'!$C$18:G$18),FALSE)+1,"Not Applicable") -> 0.9735593648 | I61: =IF('Input - Adjustments'!$E64="Real", 'Input - Adjustments'!G64*$F61,'Input - Adjustments'!G64*I$51) -> 12847089.38 | J61: =IF('Input - Adjustments'!$E64="Real", 'Input - Adjustments'!H64*$F61,'Input - Adjustments'!H64*J$51) -> 13435119.23 | K61: =IF('Input - Adjustments'!$E64="Real", 'Input - Adjustments'!I64*$F61,'Input - Adjustments'!I64*K$51) -> 12692293.44 | L61: =IF('Input - Adjustments'!$E64="Real", 'Input - Adjustments'!J64*$F61,'Input - Adjustments'!J64*L$51) -> 11245584.22 | M61: =IF('Input - Adjustments'!$E64="Real", 'Input - Adjustments'!K64*$F61,'Input - Adjustments'!K64*M$51) -> 11310812.7 | N61: =IF('Input - Adjustments'!$E64="Real", 'Input - Adjustments'!L64*$F61,'Input - Adjustments'!L64*N$51) -> 10907759.12
C62: ='Input - General'!$C$23 -> Maintenance Support & Asset Management | F62: =IF('Input - Adjustments'!$E65="Real",VLOOKUP('Input - Adjustments'!$F65,'Calcs - Escalation'!$C$18:$M$27,COLUMNS('Calcs - Escalation'!$C$18:G$18),FALSE)+1,"Not Applicable") -> 0.9735593648 | I62: =IF('Input - Adjustments'!$E65="Real", 'Input - Adjustments'!G65*$F62,'Input - Adjustments'!G65*I$51) -> 292067.8094 | J62: =IF('Input - Adjustments'!$E65="Real", 'Input - Adjustments'!H65*$F62,'Input - Adjustments'!H65*J$51) -> 194711.873 | K62: =IF('Input - Adjustments'!$E65="Real", 'Input - Adjustments'!I65*$F62,'Input - Adjustments'!I65*K$51) -> 194711.873 | L62: =IF('Input - Adjustments'!$E65="Real", 'Input - Adjustments'!J65*$F62,'Input - Adjustments'!J65*L$51) -> 194711.873 | M62: =IF('Input - Adjustments'!$E65="Real", 'Input - Adjustments'!K65*$F62,'Input - Adjustments'!K65*M$51) -> 194711.873 | N62: =IF('Input - Adjustments'!$E65="Real", 'Input - Adjustments'!L65*$F62,'Input - Adjustments'!L65*N$51) -> 194711.873
C63: ='Input - General'!$C$24 -> Operations/Control Room | F63: =IF('Input - Adjustments'!$E66="Real",VLOOKUP('Input - Adjustments'!$F66,'Calcs - Escalation'!$C$18:$M$27,COLUMNS('Calcs - Escalation'!$C$18:G$18),FALSE)+1,"Not Applicable") -> Not Applicable | I63: =IF('Input - Adjustments'!$E66="Real", 'Input - Adjustments'!G66*$F63,'Input - Adjustments'!G66*I$51) -> 0 | J63: =IF('Input - Adjustments'!$E66="Real", 'Input - Adjustments'!H66*$F63,'Input - Adjustments'!H66*J$51) -> 0 | K63: =IF('Input - Adjustments'!$E66="Real", 'Input - Adjustments'!I66*$F63,'Input - Adjustments'!I66*K$51) -> 0 | L63: =IF('Input - Adjustments'!$E66="Real", 'Input - Adjustments'!J66*$F63,'Input - Adjustments'!J66*L$51) -> 0 | M63: =IF('Input - Adjustments'!$E66="Real", 'Input - Adjustments'!K66*$F63,'Input - Adjustments'!K66*M$51) -> 0 | N63: =IF('Input - Adjustments'!$E66="Real", 'Input - Adjustments'!L66*$F63,'Input - Adjustments'!L66*N$51) -> 0
C64: ='Input - General'!$C$25 -> Grid Planning | F64: =IF('Input - Adjustments'!$E67="Real",VLOOKUP('Input - Adjustments'!$F67,'Calcs - Escalation'!$C$18:$M$27,COLUMNS('Calcs - Escalation'!$C$18:G$18),FALSE)+1,"Not Applicable") -> Not Applicable | I64: =IF('Input - Adjustments'!$E67="Real", 'Input - Adjustments'!G67*$F64,'Input - Adjustments'!G67*I$51) -> 0 | J64: =IF('Input - Adjustments'!$E67="Real", 'Input - Adjustments'!H67*$F64,'Input - Adjustments'!H67*J$51) -> 0 | K64: =IF('Input - Adjustments'!$E67="Real", 'Input - Adjustments'!I67*$F64,'Input - Adjustments'!I67*K$51) -> 0 | L64: =IF('Input - Adjustments'!$E67="Real", 'Input - Adjustments'!J67*$F64,'Input - Adjustments'!J67*L$51) -> 0 | M64: =IF('Input - Adjustments'!$E67="Real", 'Input - Adjustments'!K67*$F64,'Input - Adjustments'!K67*M$51) -> 0 | N64: =IF('Input - Adjustments'!$E67="Real", 'Input - Adjustments'!L67*$F64,'Input - Adjustments'!L67*N$51) -> 0
C65: ='Input - General'!$C$26 -> Not Used | F65: =IF('Input - Adjustments'!$E68="Real",VLOOKUP('Input - Adjustments'!$F68,'Calcs - Escalation'!$C$18:$M$27,COLUMNS('Calcs - Escalation'!$C$18:G$18),FALSE)+1,"Not Applicable") -> Not Applicable | I65: =IF('Input - Adjustments'!$E68="Real", 'Input - Adjustments'!G68*$F65,'Input - Adjustments'!G68*I$51) -> 0 | J65: =IF('Input - Adjustments'!$E68="Real", 'Input - Adjustments'!H68*$F65,'Input - Adjustments'!H68*J$51) -> 0 | K65: =IF('Input - Adjustments'!$E68="Real", 'Input - Adjustments'!I68*$F65,'Input - Adjustments'!I68*K$51) -> 0 | L65: =IF('Input - Adjustments'!$E68="Real", 'Input - Adjustments'!J68*$F65,'Input - Adjustments'!J68*L$51) -> 0 | M65: =IF('Input - Adjustments'!$E68="Real", 'Input - Adjustments'!K68*$F65,'Input - Adjustments'!K68*M$51) -> 0 | N65: =IF('Input - Adjustments'!$E68="Real", 'Input - Adjustments'!L68*$F65,'Input - Adjustments'!L68*N$51) -> 0
C66: ='Input - General'!$C$27 -> Rates & Taxes | F66: =IF('Input - Adjustments'!$E69="Real",VLOOKUP('Input - Adjustments'!$F69,'Calcs - Escalation'!$C$18:$M$27,COLUMNS('Calcs - Escalation'!$C$18:G$18),FALSE)+1,"Not Applicable") -> Not Applicable | I66: =IF('Input - Adjustments'!$E69="Real", 'Input - Adjustments'!G69*$F66,'Input - Adjustments'!G69*I$51) -> 94590.28362 | J66: =IF('Input - Adjustments'!$E69="Real", 'Input - Adjustments'!H69*$F66,'Input - Adjustments'!H69*J$51) -> 118215.1274 | K66: =IF('Input - Adjustments'!$E69="Real", 'Input - Adjustments'!I69*$F66,'Input - Adjustments'!I69*K$51) -> 122426.7658 | L66: =IF('Input - Adjustments'!$E69="Real", 'Input - Adjustments'!J69*$F66,'Input - Adjustments'!J69*L$51) -> 126676.0731 | M66: =IF('Input - Adjustments'!$E69="Real", 'Input - Adjustments'!K69*$F66,'Input - Adjustments'!K69*M$51) -> 155364.5856 | N66: =IF('Input - Adjustments'!$E69="Real", 'Input - Adjustments'!L69*$F66,'Input - Adjustments'!L69*N$51) -> 169185.5879
C67: ='Input - General'!$C$28 -> Property Management | F67: =IF('Input - Adjustments'!$E70="Real",VLOOKUP('Input - Adjustments'!$F70,'Calcs - Escalation'!$C$18:$M$27,COLUMNS('Calcs - Escalation'!$C$18:G$18),FALSE)+1,"Not Applicable") -> 0.9735593648 | I67: =IF('Input - Adjustments'!$E70="Real", 'Input - Adjustments'!G70*$F67,'Input - Adjustments'!G70*I$51) -> 2944712.471 | J67: =IF('Input - Adjustments'!$E70="Real", 'Input - Adjustments'!H70*$F67,'Input - Adjustments'!H70*J$51) -> 2379642.209 | K67: =IF('Input - Adjustments'!$E70="Real", 'Input - Adjustments'!I70*$F67,'Input - Adjustments'!I70*K$51) -> 540455.9823 | L67: =IF('Input - Adjustments'!$E70="Real", 'Input - Adjustments'!J70*$F67,'Input - Adjustments'!J70*L$51) -> 540455.9823 | M67: =IF('Input - Adjustments'!$E70="Real", 'Input - Adjustments'!K70*$F67,'Input - Adjustments'!K70*M$51) -> 540455.9823 | N67: =IF('Input - Adjustments'!$E70="Real", 'Input - Adjustments'!L70*$F67,'Input - Adjustments'!L70*N$51) -> 540455.9823
C68: ='Input - General'!$C$29 -> Health, Safety and Environmental | F68: =IF('Input - Adjustments'!$E71="Real",VLOOKUP('Input - Adjustments'!$F71,'Calcs - Escalation'!$C$18:$M$27,COLUMNS('Calcs - Escalation'!$C$18:G$18),FALSE)+1,"Not Applicable") -> Not Applicable | I68: =IF('Input - Adjustments'!$E71="Real", 'Input - Adjustments'!G71*$F68,'Input - Adjustments'!G71*I$51) -> 0 | J68: =IF('Input - Adjustments'!$E71="Real", 'Input - Adjustments'!H71*$F68,'Input - Adjustments'!H71*J$51) -> 0 | K68: =IF('Input - Adjustments'!$E71="Real", 'Input - Adjustments'!I71*$F68,'Input - Adjustments'!I71*K$51) -> 0 | L68: =IF('Input - Adjustments'!$E71="Real", 'Input - Adjustments'!J71*$F68,'Input - Adjustments'!J71*L$51) -> 0 | M68: =IF('Input - Adjustments'!$E71="Real", 'Input - Adjustments'!K71*$F68,'Input - Adjustments'!K71*M$51) -> 0 | N68: =IF('Input - Adjustments'!$E71="Real", 'Input - Adjustments'!L71*$F68,'Input - Adjustments'!L71*N$51) -> 0
C69: ='Input - General'!$C$30 -> Corporate Governance | F69: =IF('Input - Adjustments'!$E72="Real",VLOOKUP('Input - Adjustments'!$F72,'Calcs - Escalation'!$C$18:$M$27,COLUMNS('Calcs - Escalation'!$C$18:G$18),FALSE)+1,"Not Applicable") -> 1 | I69: =IF('Input - Adjustments'!$E72="Real", 'Input - Adjustments'!G72*$F69,'Input - Adjustments'!G72*I$51) -> -5022106.281 | J69: =IF('Input - Adjustments'!$E72="Real", 'Input - Adjustments'!H72*$F69,'Input - Adjustments'!H72*J$51) -> -9441600.844 | K69: =IF('Input - Adjustments'!$E72="Real", 'Input - Adjustments'!I72*$F69,'Input - Adjustments'!I72*K$51) -> -9835323.163 | L69: =IF('Input - Adjustments'!$E72="Real", 'Input - Adjustments'!J72*$F69,'Input - Adjustments'!J72*L$51) -> -10144865.31 | M69: =IF('Input - Adjustments'!$E72="Real", 'Input - Adjustments'!K72*$F69,'Input - Adjustments'!K72*M$51) -> -10446857.66 | N69: =IF('Input - Adjustments'!$E72="Real", 'Input - Adjustments'!L72*$F69,'Input - Adjustments'!L72*N$51) -> -10741484.33
C70: ='Input - General'!$C$31 -> Customer Relations | F70: =IF('Input - Adjustments'!$E73="Real",VLOOKUP('Input - Adjustments'!$F73,'Calcs - Escalation'!$C$18:$M$27,COLUMNS('Calcs - Escalation'!$C$18:G$18),FALSE)+1,"Not Applicable") -> 0.9735593648 | I70: =IF('Input - Adjustments'!$E73="Real", 'Input - Adjustments'!G73*$F70,'Input - Adjustments'!G73*I$51) -> 1104158.311 | J70: =IF('Input - Adjustments'!$E73="Real", 'Input - Adjustments'!H73*$F70,'Input - Adjustments'!H73*J$51) -> 2564766.162 | K70: =IF('Input - Adjustments'!$E73="Real", 'Input - Adjustments'!I73*$F70,'Input - Adjustments'!I73*K$51) -> 3656598.163 | L70: =IF('Input - Adjustments'!$E73="Real", 'Input - Adjustments'!J73*$F70,'Input - Adjustments'!J73*L$51) -> 4531634.938 | M70: =IF('Input - Adjustments'!$E73="Real", 'Input - Adjustments'!K73*$F70,'Input - Adjustments'!K73*M$51) -> 4920391.249 | N70: =IF('Input - Adjustments'!$E73="Real", 'Input - Adjustments'!L73*$F70,'Input - Adjustments'!L73*N$51) -> 3957576.982
C71: ='Input - General'!$C$32 -> Regulatory | F71: =IF('Input - Adjustments'!$E74="Real",VLOOKUP('Input - Adjustments'!$F74,'Calcs - Escalation'!$C$18:$M$27,COLUMNS('Calcs - Escalation'!$C$18:G$18),FALSE)+1,"Not Applicable") -> 1 | I71: =IF('Input - Adjustments'!$E74="Real", 'Input - Adjustments'!G74*$F71,'Input - Adjustments'!G74*I$51) -> 829314.1813 | J71: =IF('Input - Adjustments'!$E74="Real", 'Input - Adjustments'!H74*$F71,'Input - Adjustments'!H74*J$51) -> 52089.28837 | K71: =IF('Input - Adjustments'!$E74="Real", 'Input - Adjustments'!I74*$F71,'Input - Adjustments'!I74*K$51) -> 440701.7348 | L71: =IF('Input - Adjustments'!$E74="Real", 'Input - Adjustments'!J74*$F71,'Input - Adjustments'!J74*L$51) -> 829314.1813 | M71: =IF('Input - Adjustments'!$E74="Real", 'Input - Adjustments'!K74*$F71,'Input - Adjustments'!K74*M$51) -> 52089.28837 | N71: =IF('Input - Adjustments'!$E74="Real", 'Input - Adjustments'!L74*$F71,'Input - Adjustments'!L74*N$51) -> -142216.9349
C72: ='Input - General'!$C$33 -> Finance | F72: =IF('Input - Adjustments'!$E75="Real",VLOOKUP('Input - Adjustments'!$F75,'Calcs - Escalation'!$C$18:$M$27,COLUMNS('Calcs - Escalation'!$C$18:G$18),FALSE)+1,"Not Applicable") -> Not Applicable | I72: =IF('Input - Adjustments'!$E75="Real", 'Input - Adjustments'!G75*$F72,'Input - Adjustments'!G75*I$51) -> 0 | J72: =IF('Input - Adjustments'!$E75="Real", 'Input - Adjustments'!H75*$F72,'Input - Adjustments'!H75*J$51) -> 0 | K72: =IF('Input - Adjustments'!$E75="Real", 'Input - Adjustments'!I75*$F72,'Input - Adjustments'!I75*K$51) -> 0 | L72: =IF('Input - Adjustments'!$E75="Real", 'Input - Adjustments'!J75*$F72,'Input - Adjustments'!J75*L$51) -> 0 | M72: =IF('Input - Adjustments'!$E75="Real", 'Input - Adjustments'!K75*$F72,'Input - Adjustments'!K75*M$51) -> 0 | N72: =IF('Input - Adjustments'!$E75="Real", 'Input - Adjustments'!L75*$F72,'Input - Adjustments'!L75*N$51) -> 0
C73: ='Input - General'!$C$34 -> Information Technology | F73: =IF('Input - Adjustments'!$E76="Real",VLOOKUP('Input - Adjustments'!$F76,'Calcs - Escalation'!$C$18:$M$27,COLUMNS('Calcs - Escalation'!$C$18:G$18),FALSE)+1,"Not Applicable") -> Not Applicable | I73: =IF('Input - Adjustments'!$E76="Real", 'Input - Adjustments'!G76*$F73,'Input - Adjustments'!G76*I$51) -> 0 | J73: =IF('Input - Adjustments'!$E76="Real", 'Input - Adjustments'!H76*$F73,'Input - Adjustments'!H76*J$51) -> 0 | K73: =IF('Input - Adjustments'!$E76="Real", 'Input - Adjustments'!I76*$F73,'Input - Adjustments'!I76*K$51) -> 0 | L73: =IF('Input - Adjustments'!$E76="Real", 'Input - Adjustments'!J76*$F73,'Input - Adjustments'!J76*L$51) -> 0 | M73: =IF('Input - Adjustments'!$E76="Real", 'Input - Adjustments'!K76*$F73,'Input - Adjustments'!K76*M$51) -> 0 | N73: =IF('Input - Adjustments'!$E76="Real", 'Input - Adjustments'!L76*$F73,'Input - Adjustments'!L76*N$51) -> 0
C74: ='Input - General'!$C$35 -> HR & Payroll | F74: =IF('Input - Adjustments'!$E77="Real",VLOOKUP('Input - Adjustments'!$F77,'Calcs - Escalation'!$C$18:$M$27,COLUMNS('Calcs - Escalation'!$C$18:G$18),FALSE)+1,"Not Applicable") -> Not Applicable | I74: =IF('Input - Adjustments'!$E77="Real", 'Input - Adjustments'!G77*$F74,'Input - Adjustments'!G77*I$51) -> 0 | J74: =IF('Input - Adjustments'!$E77="Real", 'Input - Adjustments'!H77*$F74,'Input - Adjustments'!H77*J$51) -> 0 | K74: =IF('Input - Adjustments'!$E77="Real", 'Input - Adjustments'!I77*$F74,'Input - Adjustments'!I77*K$51) -> 0 | L74: =IF('Input - Adjustments'!$E77="Real", 'Input - Adjustments'!J77*$F74,'Input - Adjustments'!J77*L$51) -> 0 | M74: =IF('Input - Adjustments'!$E77="Real", 'Input - Adjustments'!K77*$F74,'Input - Adjustments'!K77*M$51) -> 0 | N74: =IF('Input - Adjustments'!$E77="Real", 'Input - Adjustments'!L77*$F74,'Input - Adjustments'!L77*N$51) -> 0
C75: ='Input - General'!$C$36 -> Not Used | F75: =IF('Input - Adjustments'!$E78="Real",VLOOKUP('Input - Adjustments'!$F78,'Calcs - Escalation'!$C$18:$M$27,COLUMNS('Calcs - Escalation'!$C$18:G$18),FALSE)+1,"Not Applicable") -> Not Applicable | I75: =IF('Input - Adjustments'!$E78="Real", 'Input - Adjustments'!G78*$F75,'Input - Adjustments'!G78*I$51) -> 0 | J75: =IF('Input - Adjustments'!$E78="Real", 'Input - Adjustments'!H78*$F75,'Input - Adjustments'!H78*J$51) -> 0 | K75: =IF('Input - Adjustments'!$E78="Real", 'Input - Adjustments'!I78*$F75,'Input - Adjustments'!I78*K$51) -> 0 | L75: =IF('Input - Adjustments'!$E78="Real", 'Input - Adjustments'!J78*$F75,'Input - Adjustments'!J78*L$51) -> 0 | M75: =IF('Input - Adjustments'!$E78="Real", 'Input - Adjustments'!K78*$F75,'Input - Adjustments'!K78*M$51) -> 0 | N75: =IF('Input - Adjustments'!$E78="Real", 'Input - Adjustments'!L78*$F75,'Input - Adjustments'!L78*N$51) -> 0
C76: ='Input - General'!$C$37 -> Not Used | F76: =IF('Input - Adjustments'!$E79="Real",VLOOKUP('Input - Adjustments'!$F79,'Calcs - Escalation'!$C$18:$M$27,COLUMNS('Calcs - Escalation'!$C$18:G$18),FALSE)+1,"Not Applicable") -> Not Applicable | I76: =IF('Input - Adjustments'!$E79="Real", 'Input - Adjustments'!G79*$F76,'Input - Adjustments'!G79*I$51) -> 0 | J76: =IF('Input - Adjustments'!$E79="Real", 'Input - Adjustments'!H79*$F76,'Input - Adjustments'!H79*J$51) -> 0 | K76: =IF('Input - Adjustments'!$E79="Real", 'Input - Adjustments'!I79*$F76,'Input - Adjustments'!I79*K$51) -> 0 | L76: =IF('Input - Adjustments'!$E79="Real", 'Input - Adjustments'!J79*$F76,'Input - Adjustments'!J79*L$51) -> 0 | M76: =IF('Input - Adjustments'!$E79="Real", 'Input - Adjustments'!K79*$F76,'Input - Adjustments'!K79*M$51) -> 0 | N76: =IF('Input - Adjustments'!$E79="Real", 'Input - Adjustments'!L79*$F76,'Input - Adjustments'!L79*N$51) -> 0
C77: ='Input - General'!$C$38 -> Not Used | F77: =IF('Input - Adjustments'!$E80="Real",VLOOKUP('Input - Adjustments'!$F80,'Calcs - Escalation'!$C$18:$M$27,COLUMNS('Calcs - Escalation'!$C$18:G$18),FALSE)+1,"Not Applicable") -> Not Applicable | I77: =IF('Input - Adjustments'!$E80="Real", 'Input - Adjustments'!G80*$F77,'Input - Adjustments'!G80*I$51) -> 0 | J77: =IF('Input - Adjustments'!$E80="Real", 'Input - Adjustments'!H80*$F77,'Input - Adjustments'!H80*J$51) -> 0 | K77: =IF('Input - Adjustments'!$E80="Real", 'Input - Adjustments'!I80*$F77,'Input - Adjustments'!I80*K$51) -> 0 | L77: =IF('Input - Adjustments'!$E80="Real", 'Input - Adjustments'!J80*$F77,'Input - Adjustments'!J80*L$51) -> 0 | M77: =IF('Input - Adjustments'!$E80="Real", 'Input - Adjustments'!K80*$F77,'Input - Adjustments'!K80*M$51) -> 0 | N77: =IF('Input - Adjustments'!$E80="Real", 'Input - Adjustments'!L80*$F77,'Input - Adjustments'!L80*N$51) -> 0
C78: ='Input - General'!$C$39 -> Not Used | F78: =IF('Input - Adjustments'!$E81="Real",VLOOKUP('Input - Adjustments'!$F81,'Calcs - Escalation'!$C$18:$M$27,COLUMNS('Calcs - Escalation'!$C$18:G$18),FALSE)+1,"Not Applicable") -> Not Applicable | I78: =IF('Input - Adjustments'!$E81="Real", 'Input - Adjustments'!G81*$F78,'Input - Adjustments'!G81*I$51) -> 0 | J78: =IF('Input - Adjustments'!$E81="Real", 'Input - Adjustments'!H81*$F78,'Input - Adjustments'!H81*J$51) -> 0 | K78: =IF('Input - Adjustments'!$E81="Real", 'Input - Adjustments'!I81*$F78,'Input - Adjustments'!I81*K$51) -> 0 | L78: =IF('Input - Adjustments'!$E81="Real", 'Input - Adjustments'!J81*$F78,'Input - Adjustments'!J81*L$51) -> 0 | M78: =IF('Input - Adjustments'!$E81="Real", 'Input - Adjustments'!K81*$F78,'Input - Adjustments'!K81*M$51) -> 0 | N78: =IF('Input - Adjustments'!$E81="Real", 'Input - Adjustments'!L81*$F78,'Input - Adjustments'!L81*N$51) -> 0
C79: ='Input - General'!$C$40 -> Not Used | F79: =IF('Input - Adjustments'!$E82="Real",VLOOKUP('Input - Adjustments'!$F82,'Calcs - Escalation'!$C$18:$M$27,COLUMNS('Calcs - Escalation'!$C$18:G$18),FALSE)+1,"Not Applicable") -> Not Applicable | I79: =IF('Input - Adjustments'!$E82="Real", 'Input - Adjustments'!G82*$F79,'Input - Adjustments'!G82*I$51) -> 0 | J79: =IF('Input - Adjustments'!$E82="Real", 'Input - Adjustments'!H82*$F79,'Input - Adjustments'!H82*J$51) -> 0 | K79: =IF('Input - Adjustments'!$E82="Real", 'Input - Adjustments'!I82*$F79,'Input - Adjustments'!I82*K$51) -> 0 | L79: =IF('Input - Adjustments'!$E82="Real", 'Input - Adjustments'!J82*$F79,'Input - Adjustments'!J82*L$51) -> 0 | M79: =IF('Input - Adjustments'!$E82="Real", 'Input - Adjustments'!K82*$F79,'Input - Adjustments'!K82*M$51) -> 0 | N79: =IF('Input - Adjustments'!$E82="Real", 'Input - Adjustments'!L82*$F79,'Input - Adjustments'!L82*N$51) -> 0
C80: ='Input - General'!$C$41 -> Not Used | F80: =IF('Input - Adjustments'!$E83="Real",VLOOKUP('Input - Adjustments'!$F83,'Calcs - Escalation'!$C$18:$M$27,COLUMNS('Calcs - Escalation'!$C$18:G$18),FALSE)+1,"Not Applicable") -> Not Applicable | I80: =IF('Input - Adjustments'!$E83="Real", 'Input - Adjustments'!G83*$F80,'Input - Adjustments'!G83*I$51) -> 0 | J80: =IF('Input - Adjustments'!$E83="Real", 'Input - Adjustments'!H83*$F80,'Input - Adjustments'!H83*J$51) -> 0 | K80: =IF('Input - Adjustments'!$E83="Real", 'Input - Adjustments'!I83*$F80,'Input - Adjustments'!I83*K$51) -> 0 | L80: =IF('Input - Adjustments'!$E83="Real", 'Input - Adjustments'!J83*$F80,'Input - Adjustments'!J83*L$51) -> 0 | M80: =IF('Input - Adjustments'!$E83="Real", 'Input - Adjustments'!K83*$F80,'Input - Adjustments'!K83*M$51) -> 0 | N80: =IF('Input - Adjustments'!$E83="Real", 'Input - Adjustments'!L83*$F80,'Input - Adjustments'!L83*N$51) -> 0
C81: ='Input - General'!$C$42 -> Not Used | F81: =IF('Input - Adjustments'!$E84="Real",VLOOKUP('Input - Adjustments'!$F84,'Calcs - Escalation'!$C$18:$M$27,COLUMNS('Calcs - Escalation'!$C$18:G$18),FALSE)+1,"Not Applicable") -> Not Applicable | I81: =IF('Input - Adjustments'!$E84="Real", 'Input - Adjustments'!G84*$F81,'Input - Adjustments'!G84*I$51) -> 0 | J81: =IF('Input - Adjustments'!$E84="Real", 'Input - Adjustments'!H84*$F81,'Input - Adjustments'!H84*J$51) -> 0 | K81: =IF('Input - Adjustments'!$E84="Real", 'Input - Adjustments'!I84*$F81,'Input - Adjustments'!I84*K$51) -> 0 | L81: =IF('Input - Adjustments'!$E84="Real", 'Input - Adjustments'!J84*$F81,'Input - Adjustments'!J84*L$51) -> 0 | M81: =IF('Input - Adjustments'!$E84="Real", 'Input - Adjustments'!K84*$F81,'Input - Adjustments'!K84*M$51) -> 0 | N81: =IF('Input - Adjustments'!$E84="Real", 'Input - Adjustments'!L84*$F81,'Input - Adjustments'!L84*N$51) -> 0
C82: ='Input - General'!$C$43 -> Not Used | F82: =IF('Input - Adjustments'!$E85="Real",VLOOKUP('Input - Adjustments'!$F85,'Calcs - Escalation'!$C$18:$M$27,COLUMNS('Calcs - Escalation'!$C$18:G$18),FALSE)+1,"Not Applicable") -> Not Applicable | I82: =IF('Input - Adjustments'!$E85="Real", 'Input - Adjustments'!G85*$F82,'Input - Adjustments'!G85*I$51) -> 0 | J82: =IF('Input - Adjustments'!$E85="Real", 'Input - Adjustments'!H85*$F82,'Input - Adjustments'!H85*J$51) -> 0 | K82: =IF('Input - Adjustments'!$E85="Real", 'Input - Adjustments'!I85*$F82,'Input - Adjustments'!I85*K$51) -> 0 | L82: =IF('Input - Adjustments'!$E85="Real", 'Input - Adjustments'!J85*$F82,'Input - Adjustments'!J85*L$51) -> 0 | M82: =IF('Input - Adjustments'!$E85="Real", 'Input - Adjustments'!K85*$F82,'Input - Adjustments'!K85*M$51) -> 0 | N82: =IF('Input - Adjustments'!$E85="Real", 'Input - Adjustments'!L85*$F82,'Input - Adjustments'!L85*N$51) -> 0
C83: ='Input - General'!$C$44 -> Not Used | F83: =IF('Input - Adjustments'!$E86="Real",VLOOKUP('Input - Adjustments'!$F86,'Calcs - Escalation'!$C$18:$M$27,COLUMNS('Calcs - Escalation'!$C$18:G$18),FALSE)+1,"Not Applicable") -> Not Applicable | I83: =IF('Input - Adjustments'!$E86="Real", 'Input - Adjustments'!G86*$F83,'Input - Adjustments'!G86*I$51) -> 0 | J83: =IF('Input - Adjustments'!$E86="Real", 'Input - Adjustments'!H86*$F83,'Input - Adjustments'!H86*J$51) -> 0 | K83: =IF('Input - Adjustments'!$E86="Real", 'Input - Adjustments'!I86*$F83,'Input - Adjustments'!I86*K$51) -> 0 | L83: =IF('Input - Adjustments'!$E86="Real", 'Input - Adjustments'!J86*$F83,'Input - Adjustments'!J86*L$51) -> 0 | M83: =IF('Input - Adjustments'!$E86="Real", 'Input - Adjustments'!K86*$F83,'Input - Adjustments'!K86*M$51) -> 0 | N83: =IF('Input - Adjustments'!$E86="Real", 'Input - Adjustments'!L86*$F83,'Input - Adjustments'!L86*N$51) -> 0
C84: ='Input - General'!$C$45 -> Not Used | F84: =IF('Input - Adjustments'!$E87="Real",VLOOKUP('Input - Adjustments'!$F87,'Calcs - Escalation'!$C$18:$M$27,COLUMNS('Calcs - Escalation'!$C$18:G$18),FALSE)+1,"Not Applicable") -> Not Applicable | I84: =IF('Input - Adjustments'!$E87="Real", 'Input - Adjustments'!G87*$F84,'Input - Adjustments'!G87*I$51) -> 0 | J84: =IF('Input - Adjustments'!$E87="Real", 'Input - Adjustments'!H87*$F84,'Input - Adjustments'!H87*J$51) -> 0 | K84: =IF('Input - Adjustments'!$E87="Real", 'Input - Adjustments'!I87*$F84,'Input - Adjustments'!I87*K$51) -> 0 | L84: =IF('Input - Adjustments'!$E87="Real", 'Input - Adjustments'!J87*$F84,'Input - Adjustments'!J87*L$51) -> 0 | M84: =IF('Input - Adjustments'!$E87="Real", 'Input - Adjustments'!K87*$F84,'Input - Adjustments'!K87*M$51) -> 0 | N84: =IF('Input - Adjustments'!$E87="Real", 'Input - Adjustments'!L87*$F84,'Input - Adjustments'!L87*N$51) -> 0
C85: ='Input - General'!$C$46 -> Not Used | F85: =IF('Input - Adjustments'!$E88="Real",VLOOKUP('Input - Adjustments'!$F88,'Calcs - Escalation'!$C$18:$M$27,COLUMNS('Calcs - Escalation'!$C$18:G$18),FALSE)+1,"Not Applicable") -> Not Applicable | I85: =IF('Input - Adjustments'!$E88="Real", 'Input - Adjustments'!G88*$F85,'Input - Adjustments'!G88*I$51) -> 0 | J85: =IF('Input - Adjustments'!$E88="Real", 'Input - Adjustments'!H88*$F85,'Input - Adjustments'!H88*J$51) -> 0 | K85: =IF('Input - Adjustments'!$E88="Real", 'Input - Adjustments'!I88*$F85,'Input - Adjustments'!I88*K$51) -> 0 | L85: =IF('Input - Adjustments'!$E88="Real", 'Input - Adjustments'!J88*$F85,'Input - Adjustments'!J88*L$51) -> 0 | M85: =IF('Input - Adjustments'!$E88="Real", 'Input - Adjustments'!K88*$F85,'Input - Adjustments'!K88*M$51) -> 0 | N85: =IF('Input - Adjustments'!$E88="Real", 'Input - Adjustments'!L88*$F85,'Input - Adjustments'!L88*N$51) -> 0
B88: ="MOPS - Conversion to Real " & BaseYear & " Dollars" -> MOPS - Conversion to Real 12/13 Dollars
G90: ="Nominal to Real " & BaseYear & " Conversion Factor" -> Nominal to Real 12/13 Conversion Factor | P90: ="Nominal to Real " & BaseYear & " Conversion Factor" -> Nominal to Real 12/13 Conversion Factor
G91: ='Input - General'!$F$10 -> 11/12 | H91: ='Input - General'!$G$10 -> 12/13 | I91: ='Input - General'!$H$10 -> 13/14 | J91: ='Input - General'!$I$10 -> 14/15 | K91: ='Input - General'!$J$10 -> 15/16 | L91: ='Input - General'!$K$10 -> 16/17 | M91: ='Input - General'!$L$10 -> 17/18 | N91: ='Input - General'!$M$10 -> 18/19 | P91: ='Input - General'!$F$10 -> 11/12 | Q91: ='Input - General'!$G$10 -> 12/13 | R91: ='Input - General'!$H$10 -> 13/14 | S91: ='Input - General'!$I$10 -> 14/15 | T91: ='Input - General'!$J$10 -> 15/16 | U91: ='Input - General'!$K$10 -> 16/17 | V91: ='Input - General'!$L$10 -> 17/18 | W91: ='Input - General'!$M$10 -> 18/19
G92: =1/(1+'Calcs - Escalation'!$F$13)*(1+'Calcs - Escalation'!$G$13) -> 1.020425225 | H92: =1/(1+'Calcs - Escalation'!$G$13)*(1+'Calcs - Escalation'!$G$13) -> 1 | I92: =1/(1+'Calcs - Escalation'!$H$13)*(1+'Calcs - Escalation'!$G$13) -> 0.9735593648 | J92: =1/(1+'Calcs - Escalation'!$I$13)*(1+'Calcs - Escalation'!$G$13) -> 0.9466756277 | K92: =1/(1+'Calcs - Escalation'!$J$13)*(1+'Calcs - Escalation'!$G$13) -> 0.92246171 | L92: =1/(1+'Calcs - Escalation'!$K$13)*(1+'Calcs - Escalation'!$G$13) -> 0.8999626439 | M92: =1/(1+'Calcs - Escalation'!$L$13)*(1+'Calcs - Escalation'!$G$13) -> 0.8780123356 | N92: =1/(1+'Calcs - Escalation'!$M$13)*(1+'Calcs - Escalation'!$G$13) -> 0.8565974005 | P92: =1/(1+'Calcs - Escalation'!$F$13)*(1+'Calcs - Escalation'!$G$13) -> 1.020425225 | Q92: =1/(1+'Calcs - Escalation'!$G$13)*(1+'Calcs - Escalation'!$G$13) -> 1 | R92: =1/(1+'Calcs - Escalation'!$H$13)*(1+'Calcs - Escalation'!$G$13) -> 0.9735593648 | S92: =1/(1+'Calcs - Escalation'!$I$13)*(1+'Calcs - Escalation'!$G$13) -> 0.9466756277 | T92: =1/(1+'Calcs - Escalation'!$J$13)*(1+'Calcs - Escalation'!$G$13) -> 0.92246171 | U92: =1/(1+'Calcs - Escalation'!$K$13)*(1+'Calcs - Escalation'!$G$13) -> 0.8999626439 | V92: =1/(1+'Calcs - Escalation'!$L$13)*(1+'Calcs - Escalation'!$G$13) -> 0.8780123356 | W92: =1/(1+'Calcs - Escalation'!$M$13)*(1+'Calcs - Escalation'!$G$13) -> 0.8565974005
G94: ="MOPS Labour (Real " & BaseYear & " $)" -> MOPS Labour (Real 12/13 $) | P94: ="MOPS Material & Expense (Real " & BaseYear & " $)" -> MOPS Material & Expense (Real 12/13 $)
F95: Real Conversion Factor | G95: ='Input - General'!$F$10 -> 11/12 | H95: ='Input - General'!$G$10 -> 12/13 | I95: ='Input - General'!$H$10 -> 13/14 | J95: ='Input - General'!$I$10 -> 14/15 | K95: ='Input - General'!$J$10 -> 15/16 | L95: ='Input - General'!$K$10 -> 16/17 | M95: ='Input - General'!$L$10 -> 17/18 | N95: ='Input - General'!$M$10 -> 18/19 | P95: ='Input - General'!$F$10 -> 11/12 | Q95: ='Input - General'!$G$10 -> 12/13 | R95: ='Input - General'!$H$10 -> 13/14 | S95: ='Input - General'!$I$10 -> 14/15 | T95: ='Input - General'!$J$10 -> 15/16 | U95: ='Input - General'!$K$10 -> 16/17 | V95: ='Input - General'!$L$10 -> 17/18 | W95: ='Input - General'!$M$10 -> 18/19
C97: ='Input - General'!$C$17 -> Not Used | F97: =IF('Input - General'!D85="Real",VLOOKUP('Input - General'!E85,'Calcs - Escalation'!$C$18:$M$27,COLUMNS('Calcs - Escalation'!$C$18:G$18),FALSE)+1,"Not Applicable") -> 0.9735593648 | I97: =IF('Input - General'!$D85="Real", 'Input - General'!H85*$F97,'Input - General'!H85*I$92) -> 0 | J97: =IF('Input - General'!$D85="Real", 'Input - General'!I85*$F97,'Input - General'!I85*J$92) -> 0 | K97: =IF('Input - General'!$D85="Real", 'Input - General'!J85*$F97,'Input - General'!J85*K$92) -> 0 | L97: =IF('Input - General'!$D85="Real", 'Input - General'!K85*$F97,'Input - General'!K85*L$92) -> 0 | M97: =IF('Input - General'!$D85="Real", 'Input - General'!L85*$F97,'Input - General'!L85*M$92) -> 0 | N97: =IF('Input - General'!$D85="Real", 'Input - General'!M85*$F97,'Input - General'!M85*N$92) -> 0 | R97: =IF('Input - General'!$D85="Real", 'Input - General'!H94*$F97,'Input - General'!H94*R$92) -> 0 | S97: =IF('Input - General'!$D85="Real", 'Input - General'!I94*$F97,'Input - General'!I94*S$92) -> 0 | T97: =IF('Input - General'!$D85="Real", 'Input - General'!J94*$F97,'Input - General'!J94*T$92) -> 0 | U97: =IF('Input - General'!$D85="Real", 'Input - General'!K94*$F97,'Input - General'!K94*U$92) -> 0 | V97: =IF('Input - General'!$D85="Real", 'Input - General'!L94*$F97,'Input - General'!L94*V$92) -> 0 | W97: =IF('Input - General'!$D85="Real", 'Input - General'!M94*$F97,'Input - General'!M94*W$92) -> 0
C98: ='Input - General'!$C$18 -> Lines | F98: =IF('Input - General'!D86="Real",VLOOKUP('Input - General'!E86,'Calcs - Escalation'!$C$18:$M$27,COLUMNS('Calcs - Escalation'!$C$18:G$18),FALSE)+1,"Not Applicable") -> 0.9735593648 | I98: =IF('Input - General'!$D86="Real", 'Input - General'!H86*$F98,'Input - General'!H86*I$92) -> 284246.8663 | J98: =IF('Input - General'!$D86="Real", 'Input - General'!I86*$F98,'Input - General'!I86*J$92) -> 642602.4368 | K98: =IF('Input - General'!$D86="Real", 'Input - General'!J86*$F98,'Input - General'!J86*K$92) -> 1169177.851 | L98: =IF('Input - General'!$D86="Real", 'Input - General'!K86*$F98,'Input - General'!K86*L$92) -> 1918966.829 | M98: =IF('Input - General'!$D86="Real", 'Input - General'!L86*$F98,'Input - General'!L86*M$92) -> 450194.5249 | N98: =IF('Input - General'!$D86="Real", 'Input - General'!M86*$F98,'Input - General'!M86*N$92) -> 423104.035 | R98: =IF('Input - General'!$D86="Real", 'Input - General'!H95*$F98,'Input - General'!H95*R$92) -> 284034.4454 | S98: =IF('Input - General'!$D86="Real", 'Input - General'!I95*$F98,'Input - General'!I95*S$92) -> 2442499.897 | T98: =IF('Input - General'!$D86="Real", 'Input - General'!J95*$F98,'Input - General'!J95*T$92) -> 3240095.675 | U98: =IF('Input - General'!$D86="Real", 'Input - General'!K95*$F98,'Input - General'!K95*U$92) -> 4101429.646 | V98: =IF('Input - General'!$D86="Real", 'Input - General'!L95*$F98,'Input - General'!L95*V$92) -> 358744.5115 | W98: =IF('Input - General'!$D86="Real", 'Input - General'!M95*$F98,'Input - General'!M95*W$92) -> 337157.0331
C99: ='Input - General'!$C$19 -> Substations | F99: =IF('Input - General'!D87="Real",VLOOKUP('Input - General'!E87,'Calcs - Escalation'!$C$18:$M$27,COLUMNS('Calcs - Escalation'!$C$18:G$18),FALSE)+1,"Not Applicable") -> 0.9735593648 | I99: =IF('Input - General'!$D87="Real", 'Input - General'!H87*$F99,'Input - General'!H87*I$92) -> 1696684.106 | J99: =IF('Input - General'!$D87="Real", 'Input - General'!I87*$F99,'Input - General'!I87*J$92) -> 1221766.774 | K99: =IF('Input - General'!$D87="Real", 'Input - General'!J87*$F99,'Input - General'!J87*K$92) -> 1184408.555 | L99: =IF('Input - General'!$D87="Real", 'Input - General'!K87*$F99,'Input - General'!K87*L$92) -> 1201917.417 | M99: =IF('Input - General'!$D87="Real", 'Input - General'!L87*$F99,'Input - General'!L87*M$92) -> 1138344.401 | N99: =IF('Input - General'!$D87="Real", 'Input - General'!M87*$F99,'Input - General'!M87*N$92) -> 1118386.397 | R99: =IF('Input - General'!$D87="Real", 'Input - General'!H96*$F99,'Input - General'!H96*R$92) -> 2164295.446 | S99: =IF('Input - General'!$D87="Real", 'Input - General'!I96*$F99,'Input - General'!I96*S$92) -> 3358992.604 | T99: =IF('Input - General'!$D87="Real", 'Input - General'!J96*$F99,'Input - General'!J96*T$92) -> 3224479.524 | U99: =IF('Input - General'!$D87="Real", 'Input - General'!K96*$F99,'Input - General'!K96*U$92) -> 3241244.67 | V99: =IF('Input - General'!$D87="Real", 'Input - General'!L96*$F99,'Input - General'!L96*V$92) -> 3069805.52 | W99: =IF('Input - General'!$D87="Real", 'Input - General'!M96*$F99,'Input - General'!M96*W$92) -> 3015984.205
C100: ='Input - General'!$C$20 -> Communications | F100: =IF('Input - General'!D88="Real",VLOOKUP('Input - General'!E88,'Calcs - Escalation'!$C$18:$M$27,COLUMNS('Calcs - Escalation'!$C$18:G$18),FALSE)+1,"Not Applicable") -> 0.9735593648 | I100: =IF('Input - General'!$D88="Real", 'Input - General'!H88*$F100,'Input - General'!H88*I$92) -> 67828.03672 | J100: =IF('Input - General'!$D88="Real", 'Input - General'!I88*$F100,'Input - General'!I88*J$92) -> 55959.82077 | K100: =IF('Input - General'!$D88="Real", 'Input - General'!J88*$F100,'Input - General'!J88*K$92) -> 55959.82077 | L100: =IF('Input - General'!$D88="Real", 'Input - General'!K88*$F100,'Input - General'!K88*L$92) -> 55959.82077 | M100: =IF('Input - General'!$D88="Real", 'Input - General'!L88*$F100,'Input - General'!L88*M$92) -> 55959.82077 | N100: =IF('Input - General'!$D88="Real", 'Input - General'!M88*$F100,'Input - General'!M88*N$92) -> 55959.82077 | R100: =IF('Input - General'!$D88="Real", 'Input - General'!H97*$F100,'Input - General'!H97*R$92) -> 92429.7261 | S100: =IF('Input - General'!$D88="Real", 'Input - General'!I97*$F100,'Input - General'!I97*S$92) -> 31667.53169 | T100: =IF('Input - General'!$D88="Real", 'Input - General'!J97*$F100,'Input - General'!J97*T$92) -> 31667.53169 | U100: =IF('Input - General'!$D88="Real", 'Input - General'!K97*$F100,'Input - General'!K97*U$92) -> 31667.53169 | V100: =IF('Input - General'!$D88="Real", 'Input - General'!L97*$F100,'Input - General'!L97*V$92) -> 31667.53169 | W100: =IF('Input - General'!$D88="Real", 'Input - General'!M97*$F100,'Input - General'!M97*W$92) -> 31667.53169
C101: ='Input - General'!$C$21 -> Secondary Systems | F101: =IF('Input - General'!D89="Real",VLOOKUP('Input - General'!E89,'Calcs - Escalation'!$C$18:$M$27,COLUMNS('Calcs - Escalation'!$C$18:G$18),FALSE)+1,"Not Applicable") -> 0.9735593648 | I101: =IF('Input - General'!$D89="Real", 'Input - General'!H89*$F101,'Input - General'!H89*I$92) -> 0 | J101: =IF('Input - General'!$D89="Real", 'Input - General'!I89*$F101,'Input - General'!I89*J$92) -> 545038.683 | K101: =IF('Input - General'!$D89="Real", 'Input - General'!J89*$F101,'Input - General'!J89*K$92) -> 828783.7781 | L101: =IF('Input - General'!$D89="Real", 'Input - General'!K89*$F101,'Input - General'!K89*L$92) -> 584135.6189 | M101: =IF('Input - General'!$D89="Real", 'Input - General'!L89*$F101,'Input - General'!L89*M$92) -> 97355.93648 | N101: =IF('Input - General'!$D89="Real", 'Input - General'!M89*$F101,'Input - General'!M89*N$92) -> 0 | R101: =IF('Input - General'!$D89="Real", 'Input - General'!H98*$F101,'Input - General'!H98*R$92) -> 0 | S101: =IF('Input - General'!$D89="Real", 'Input - General'!I98*$F101,'Input - General'!I98*S$92) -> 123833.5959 | T101: =IF('Input - General'!$D89="Real", 'Input - General'!J98*$F101,'Input - General'!J98*T$92) -> 1190966.374 | U101: =IF('Input - General'!$D89="Real", 'Input - General'!K98*$F101,'Input - General'!K98*U$92) -> 1070915.301 | V101: =IF('Input - General'!$D89="Real", 'Input - General'!L98*$F101,'Input - General'!L98*V$92) -> 0 | W101: =IF('Input - General'!$D89="Real", 'Input - General'!M98*$F101,'Input - General'!M98*W$92) -> 0
C102: ='Input - General'!$C$22 -> Land and Easements | F102: =IF('Input - General'!D90="Real",VLOOKUP('Input - General'!E90,'Calcs - Escalation'!$C$18:$M$27,COLUMNS('Calcs - Escalation'!$C$18:G$18),FALSE)+1,"Not Applicable") -> 0.9735593648 | I102: =IF('Input - General'!$D90="Real", 'Input - General'!H90*$F102,'Input - General'!H90*I$92) -> 0 | J102: =IF('Input - General'!$D90="Real", 'Input - General'!I90*$F102,'Input - General'!I90*J$92) -> 0 | K102: =IF('Input - General'!$D90="Real", 'Input - General'!J90*$F102,'Input - General'!J90*K$92) -> 0 | L102: =IF('Input - General'!$D90="Real", 'Input - General'!K90*$F102,'Input - General'!K90*L$92) -> 0 | M102: =IF('Input - General'!$D90="Real", 'Input - General'!L90*$F102,'Input - General'!L90*M$92) -> 0 | N102: =IF('Input - General'!$D90="Real", 'Input - General'!M90*$F102,'Input - General'!M90*N$92) -> 0 | R102: =IF('Input - General'!$D90="Real", 'Input - General'!H99*$F102,'Input - General'!H99*R$92) -> 0 | S102: =IF('Input - General'!$D90="Real", 'Input - General'!I99*$F102,'Input - General'!I99*S$92) -> 0 | T102: =IF('Input - General'!$D90="Real", 'Input - General'!J99*$F102,'Input - General'!J99*T$92) -> 0 | U102: =IF('Input - General'!$D90="Real", 'Input - General'!K99*$F102,'Input - General'!K99*U$92) -> 0 | V102: =IF('Input - General'!$D90="Real", 'Input - General'!L99*$F102,'Input - General'!L99*V$92) -> 0 | W102: =IF('Input - General'!$D90="Real", 'Input - General'!M99*$F102,'Input - General'!M99*W$92) -> 0
B105: ="Other OPEX - Conversion to Real " & BaseYear & " Dollars" -> Other OPEX - Conversion to Real 12/13 Dollars
G107: ="Nominal to Real " & BaseYear & " Conversion Factor" -> Nominal to Real 12/13 Conversion Factor
G108: ='Input - General'!$F$10 -> 11/12 | H108: ='Input - General'!$G$10 -> 12/13 | I108: ='Input - General'!$H$10 -> 13/14 | J108: ='Input - General'!$I$10 -> 14/15 | K108: ='Input - General'!$J$10 -> 15/16 | L108: ='Input - General'!$K$10 -> 16/17 | M108: ='Input - General'!$L$10 -> 17/18 | N108: ='Input - General'!$M$10 -> 18/19
G109: =1/(1+'Calcs - Escalation'!$F$13)*(1+'Calcs - Escalation'!$G$13) -> 1.020425225 | H109: =1/(1+'Calcs - Escalation'!$G$13)*(1+'Calcs - Escalation'!$G$13) -> 1 | I109: =1/(1+'Calcs - Escalation'!$H$13)*(1+'Calcs - Escalation'!$G$13) -> 0.9735593648 | J109: =1/(1+'Calcs - Escalation'!$I$13)*(1+'Calcs - Escalation'!$G$13) -> 0.9466756277 | K109: =1/(1+'Calcs - Escalation'!$J$13)*(1+'Calcs - Escalation'!$G$13) -> 0.92246171 | L109: =1/(1+'Calcs - Escalation'!$K$13)*(1+'Calcs - Escalation'!$G$13) -> 0.8999626439 | M109: =1/(1+'Calcs - Escalation'!$L$13)*(1+'Calcs - Escalation'!$G$13) -> 0.8780123356 | N109: =1/(1+'Calcs - Escalation'!$M$13)*(1+'Calcs - Escalation'!$G$13) -> 0.8565974005
G111: ="Other OPEX (Real " & BaseYear & " $)" -> Other OPEX (Real 12/13 $)
F112: Real Conversion Factor | G112: ='Input - General'!$F$10 -> 11/12 | H112: ='Input - General'!$G$10 -> 12/13 | I112: ='Input - General'!$H$10 -> 13/14 | J112: ='Input - General'!$I$10 -> 14/15 | K112: ='Input - General'!$J$10 -> 15/16 | L112: ='Input - General'!$K$10 -> 16/17 | M112: ='Input - General'!$L$10 -> 17/18 | N112: ='Input - General'!$M$10 -> 18/19
C114: ='Input - General'!C106 -> Debt Raising | F114: =IF('Input - General'!D106="Real",VLOOKUP('Input - General'!E106,'Calcs - Escalation'!$C$18:$M$27,COLUMNS('Calcs - Escalation'!$C$18:G$18),FALSE)+1,"Not Applicable") -> 0.9735593648 | I114: =IF('Input - General'!$D106="Real", 'Input - General'!H106*$F114,'Input - General'!H106*I$92) -> 0 | J114: =IF('Input - General'!$D106="Real", 'Input - General'!I106*$F114,'Input - General'!I106*J$92) -> 6964898.344 | K114: =IF('Input - General'!$D106="Real", 'Input - General'!J106*$F114,'Input - General'!J106*K$92) -> 7101279.484 | L114: =IF('Input - General'!$D106="Real", 'Input - General'!K106*$F114,'Input - General'!K106*L$92) -> 7276240.705 | M114: =IF('Input - General'!$D106="Real", 'Input - General'!L106*$F114,'Input - General'!L106*M$92) -> 7329170.135 | N114: =IF('Input - General'!$D106="Real", 'Input - General'!M106*$F114,'Input - General'!M106*N$92) -> 7411214.384
C115: ='Input - General'!C107 -> Insurance | F115: =IF('Input - General'!D107="Real",VLOOKUP('Input - General'!E107,'Calcs - Escalation'!$C$18:$M$27,COLUMNS('Calcs - Escalation'!$C$18:G$18),FALSE)+1,"Not Applicable") -> Not Applicable | I115: =IF('Input - General'!$D107="Real", 'Input - General'!H107*$F115,'Input - General'!H107*I$92) -> 5232929.633 | J115: =IF('Input - General'!$D107="Real", 'Input - General'!I107*$F115,'Input - General'!I107*J$92) -> 5688049.889 | K115: =IF('Input - General'!$D107="Real", 'Input - General'!J107*$F115,'Input - General'!J107*K$92) -> 6193627.415 | L115: =IF('Input - General'!$D107="Real", 'Input - General'!K107*$F115,'Input - General'!K107*L$92) -> 6749183.262 | M115: =IF('Input - General'!$D107="Real", 'Input - General'!L107*$F115,'Input - General'!L107*M$92) -> 7356120.526 | N115: =IF('Input - General'!$D107="Real", 'Input - General'!M107*$F115,'Input - General'!M107*N$92) -> 8021800.747
C116: ='Input - General'!C108 -> Self Insurance | F116: =IF('Input - General'!D108="Real",VLOOKUP('Input - General'!E108,'Calcs - Escalation'!$C$18:$M$27,COLUMNS('Calcs - Escalation'!$C$18:G$18),FALSE)+1,"Not Applicable") -> 0.9735593648 | I116: =IF('Input - General'!$D108="Real", 'Input - General'!H108*$F116,'Input - General'!H108*I$92) -> 876203.4283 | J116: =IF('Input - General'!$D108="Real", 'Input - General'!I108*$F116,'Input - General'!I108*J$92) -> 0 | K116: =IF('Input - General'!$D108="Real", 'Input - General'!J108*$F116,'Input - General'!J108*K$92) -> 0 | L116: =IF('Input - General'!$D108="Real", 'Input - General'!K108*$F116,'Input - General'!K108*L$92) -> 0 | M116: =IF('Input - General'!$D108="Real", 'Input - General'!L108*$F116,'Input - General'!L108*M$92) -> 0 | N116: =IF('Input - General'!$D108="Real", 'Input - General'!M108*$F116,'Input - General'!M108*N$92) -> 0
C117: ='Input - General'!C109 -> Network Support | F117: =IF('Input - General'!D109="Real",VLOOKUP('Input - General'!E109,'Calcs - Escalation'!$C$18:$M$27,COLUMNS('Calcs - Escalation'!$C$18:G$18),FALSE)+1,"Not Applicable") -> 0.9735593648 | I117: =IF('Input - General'!$D109="Real", 'Input - General'!H109*$F117,'Input - General'!H109*I$92) -> 0 | J117: =IF('Input - General'!$D109="Real", 'Input - General'!I109*$F117,'Input - General'!I109*J$92) -> 5112228.374 | K117: =IF('Input - General'!$D109="Real", 'Input - General'!J109*$F117,'Input - General'!J109*K$92) -> 6044848.594 | L117: =IF('Input - General'!$D109="Real", 'Input - General'!K109*$F117,'Input - General'!K109*L$92) -> 6919973.318 | M117: =IF('Input - General'!$D109="Real", 'Input - General'!L109*$F117,'Input - General'!L109*M$92) -> 7581167.134 | N117: =IF('Input - General'!$D109="Real", 'Input - General'!M109*$F117,'Input - General'!M109*N$92) -> 8121587.017

Sheet Calcs - Forecast Costs
A1: Calculations
B2: Forecast Effort, Unit Rates and Costs
C3: ="Revision: "&'File Details & Instructions'!$D$16 -> Revision: v3.00
C4: ="Status: "&'File Details & Instructions'!$D$17 -> Status: Final
H7: Base Year | I7: ='Input - General'!$H$10 -> 13/14 | J7: ='Input - General'!$I$10 -> 14/15 | K7: ='Input - General'!$J$10 -> 15/16 | L7: ='Input - General'!$K$10 -> 16/17 | M7: ='Input - General'!$L$10 -> 17/18 | N7: ='Input - General'!$M$10 -> 18/19
F8: internal labour escalation | G8: % | I8: ='Input - General'!H53 -> -0.002467299178 | J8: ='Input - General'!I53 -> 0.001175993512 | K8: ='Input - General'!J53 -> 0.00918699187 | L8: ='Input - General'!K53 -> 0.016 | M8: ='Input - General'!L53 -> 0.02 | N8: ='Input - General'!M53 -> 0.021
F9: internal labour escalation (cumulative) | G9: % | I9: =(H9+1)*(I8+1)-1 -> -0.002467299178 | J9: -0.001294207194 | K9: 0.007880894805 | L9: 0.02400698912 | M9: 0.0444871289 | N9: 0.06642135861
F10: external labour escalation | G10: % | I10: ='Input - General'!H54 -> 0.011 | J10: ='Input - General'!I54 -> 0.011 | K10: ='Input - General'!J54 -> 0.014 | L10: ='Input - General'!K54 -> 0.016 | M10: ='Input - General'!L54 -> 0.02 | N10: ='Input - General'!M54 -> 0.021
F11: external labour escalation (cumulative) | G11: % | I11: =(H11+1)*(I10+1)-1 -> 0.011 | J11: =(I11+1)*(J10+1)-1 -> 0.022121 | K11: =(J11+1)*(K10+1)-1 -> 0.036430694 | L11: =(K11+1)*(L10+1)-1 -> 0.0530135851 | M11: =(L11+1)*(M10+1)-1 -> 0.07407385681 | N11: =(M11+1)*(N10+1)-1 -> 0.0966294078
F12: non-labour escalation | G12: % | I12: ='Input - General'!H55 -> 0 | J12: ='Input - General'!I55 -> 0 | K12: ='Input - General'!J55 -> 0 | L12: ='Input - General'!K55 -> 0 | M12: ='Input - General'!L55 -> 0 | N12: ='Input - General'!M55 -> 0
F13: non-labour escalation (cumulative) | G13: % | I13: =(1+H13)*(1+I12)-1 -> 0 | J13: 0 | K13: 0 | L13: 0 | M13: 0 | N13: 0
F14: asset growth factor (cumulative) (overall) | G14: % | I14: ='Calcs - Escalation'!H37 -> 0.002532836045 | J14: ='Calcs - Escalation'!I37 -> 0.03879559266 | K14: ='Calcs - Escalation'!J37 -> 0.06504104048 | L14: ='Calcs - Escalation'!K37 -> 0.07462371436 | M14: ='Calcs - Escalation'!L37 -> 0.07835465055 | N14: ='Calcs - Escalation'!M37 -> 0.08381729474
H17: Base Year | I17: ='Input - General'!$H$10 -> 13/14 | J17: ='Input - General'!$I$10 -> 14/15 | K17: ='Input - General'!$J$10 -> 15/16 | L17: ='Input - General'!$K$10 -> 16/17 | M17: ='Input - General'!$L$10 -> 17/18 | N17: ='Input - General'!$M$10 -> 18/19
B18: ='Input - General'!C17 -> Not Used
C19: Preventative
D20: effort
F21: initial value | G21: hours | H21: =VLOOKUP($B$18,'Input - Base Year'!$C$12:$J$17,COLUMNS('Input - Base Year'!$C$12:$E$17),FALSE) -> 1e-32 | I21: =VLOOKUP($B$18,'Input - General'!$C$73:$M$78,COLUMNS('Input - General'!$C$73:H$73),FALSE) -> 0 | J21: =VLOOKUP($B$18,'Input - General'!$C$73:$M$78,COLUMNS('Input - General'!$C$73:I$73),FALSE) -> 0 | K21: =VLOOKUP($B$18,'Input - General'!$C$73:$M$78,COLUMNS('Input - General'!$C$73:J$73),FALSE) -> 0 | L21: =VLOOKUP($B$18,'Input - General'!$C$73:$M$78,COLUMNS('Input - General'!$C$73:K$73),FALSE) -> 0 | M21: =VLOOKUP($B$18,'Input - General'!$C$73:$M$78,COLUMNS('Input - General'!$C$73:L$73),FALSE) -> 0 | N21: =VLOOKUP($B$18,'Input - General'!$C$73:$M$78,COLUMNS('Input - General'!$C$73:M$73),FALSE) -> 0
F22: adjustments | G22: hours | H22: =VLOOKUP($B$18,'Input - Base Year'!$C$12:$J$17,COLUMNS('Input - Base Year'!$C$12:$F$17),FALSE) -> 0 | I22: =VLOOKUP($B$18,'Input - Adjustments'!$C$11:$AB$16, COLUMNS('Input - Adjustments'!$C$11:G$16),FALSE) -> 0 | J22: =VLOOKUP($B$18,'Input - Adjustments'!$C$11:$AB$16, COLUMNS('Input - Adjustments'!$C$11:H$16),FALSE) -> 0 | K22: =VLOOKUP($B$18,'Input - Adjustments'!$C$11:$AB$16, COLUMNS('Input - Adjustments'!$C$11:I$16),FALSE) -> 0 | L22: =VLOOKUP($B$18,'Input - Adjustments'!$C$11:$AB$16, COLUMNS('Input - Adjustments'!$C$11:J$16),FALSE) -> 0 | M22: =VLOOKUP($B$18,'Input - Adjustments'!$C$11:$AB$16, COLUMNS('Input - Adjustments'!$C$11:K$16),FALSE) -> 0 | N22: =VLOOKUP($B$18,'Input - Adjustments'!$C$11:$AB$16, COLUMNS('Input - Adjustments'!$C$11:L$16),FALSE) -> 0
F23: asset growth factor | G23: % | I23: =VLOOKUP($B$18,'Input - General'!$C$60:$M$66, COLUMNS('Input - General'!$C$60:H$66),FALSE) -> 0 | J23: =VLOOKUP($B$18,'Input - General'!$C$60:$M$66, COLUMNS('Input - General'!$C$60:I$66),FALSE) -> 0 | K23: =VLOOKUP($B$18,'Input - General'!$C$60:$M$66, COLUMNS('Input - General'!$C$60:J$66),FALSE) -> 0 | L23: =VLOOKUP($B$18,'Input - General'!$C$60:$M$66, COLUMNS('Input - General'!$C$60:K$66),FALSE) -> 0 | M23: =VLOOKUP($B$18,'Input - General'!$C$60:$M$66, COLUMNS('Input - General'!$C$60:L$66),FALSE) -> 0 | N23: =VLOOKUP($B$18,'Input - General'!$C$60:$M$66, COLUMNS('Input - General'!$C$60:M$66),FALSE) -> 0
F24: economies of scale labour % | G24: % | I24: =VLOOKUP($B$18,'Input - General'!$C$17:$F$46, COLUMNS('Input - General'!$C$17:$E$46),FALSE) -> 0.95 | J24: =VLOOKUP($B$18,'Input - General'!$C$17:$F$46, COLUMNS('Input - General'!$C$17:$E$46),FALSE) -> 0.95 | K24: =VLOOKUP($B$18,'Input - General'!$C$17:$F$46, COLUMNS('Input - General'!$C$17:$E$46),FALSE) -> 0.95 | L24: =VLOOKUP($B$18,'Input - General'!$C$17:$F$46, COLUMNS('Input - General'!$C$17:$E$46),FALSE) -> 0.95 | M24: =VLOOKUP($B$18,'Input - General'!$C$17:$F$46, COLUMNS('Input - General'!$C$17:$E$46),FALSE) -> 0.95 | N24: =VLOOKUP($B$18,'Input - General'!$C$17:$F$46, COLUMNS('Input - General'!$C$17:$E$46),FALSE) -> 0.95
F25: labour growth | G25: hours | I25: =(I21+I22)*I23*I24+H25 -> 0 | J25: 0 | K25: 0 | L25: 0 | M25: 0 | N25: 0
F26: final value | G26: hours | H26: =H21+H22+H25 -> 1e-32 | I26: =I21+I22+I25 -> 0 | J26: 0 | K26: 0 | L26: 0 | M26: 0 | N26: 0
D27: unit rate
E28: labour
F29: base effort | G29: hours | H29: =VLOOKUP($B$18,'Input - Base Year'!$C$12:$J$17,COLUMNS('Input - Base Year'!$C$12:$E$17),FALSE) -> 1e-32
F30: effort adjustments | G30: hours | H30: =VLOOKUP($B$18,'Input - Base Year'!$C$12:$J$17,COLUMNS('Input - Base Year'!$C$12:$F$17),FALSE) -> 0
F31: adjusted effort | G31: hours | H31: =H29+H30 -> 1e-32
F32: base cost | G32: $ | H32: =VLOOKUP($B$18,'Input - Base Year'!$C$25:$J$54,COLUMNS('Input - Base Year'!$C$25:$E$54),FALSE) -> 1e-32
F33: cost adjustments | G33: $ | H33: =VLOOKUP($B$18,'Input - Base Year'!$C$25:$J$54,COLUMNS('Input - Base Year'!$C$25:$F$54),FALSE) -> 0
F34: adjusted cost | G34: $ | H34: =H32+H33 -> 1e-32
F35: initial value | G35: $/hour | H35: =H34/H31 -> 1 | I35: =H37 -> 1 | J35: 0.9975327008 | K35: 0.9987057928 | L35: 1.007880895 | M35: 1.024006989 | N35: 1.044487129
F36: internal labour escalation | G36: $/hour | I36: =I35*I$8 -> -0.002467299178 | J36: 0.001173091984 | K36: 0.009175101999 | L36: 0.01612609432 | M36: 0.02048013978 | N36: 0.02193422971
F37: final value | G37: $/hour | H37: =H35+H36 -> 1 | I37: 0.9975327008 | J37: 0.9987057928 | K37: 1.007880895 | L37: 1.024006989 | M37: 1.044487129 | N37: 1.066421359
E38: material & expense
F39: base effort | G39: hours | H39: =VLOOKUP($B$18,'Input - Base Year'!$C$12:$J$17,COLUMNS('Input - Base Year'!$C$12:$E$17),FALSE) -> 1e-32
F40: effort adjustments | G40: hours | H40: =VLOOKUP($B$18,'Input - Base Year'!$C$12:$J$17,COLUMNS('Input - Base Year'!$C$12:$F$17),FALSE) -> 0
F41: adjusted effort | G41: hours | H41: =H39+H40 -> 1e-32
F42: base cost | G42: $ | H42: =VLOOKUP($B$18,'Input - Base Year'!$C$62:$J$91,COLUMNS('Input - Base Year'!$C$62:$E$91),FALSE) -> 1e-32
F43: cost adjustments | G43: $ | H43: =VLOOKUP($B$18,'Input - Base Year'!$C$62:$J$91,COLUMNS('Input - Base Year'!$C$62:$F$91),FALSE) -> 0
F44: adjusted cost | G44: $ | H44: =H42+H43 -> 1e-32
F45: initial value | G45: $/hour | H45: =H44/H41 -> 1 | I45: =H51 -> 1 | J45: 1 | K45: 1 | L45: 1 | M45: 1 | N45: 1
F46: % labour | G46: % | I46: =VLOOKUP($B$18,'Input - General'!$C$17:$G$46,COLUMNS('Input - General'!$C$17:$G$46),FALSE) -> 0 | J46: =VLOOKUP($B$18,'Input - General'!$C$17:$G$46,COLUMNS('Input - General'!$C$17:$G$46),FALSE) -> 0 | K46: =VLOOKUP($B$18,'Input - General'!$C$17:$G$46,COLUMNS('Input - General'!$C$17:$G$46),FALSE) -> 0 | L46: =VLOOKUP($B$18,'Input - General'!$C$17:$G$46,COLUMNS('Input - General'!$C$17:$G$46),FALSE) -> 0 | M46: =VLOOKUP($B$18,'Input - General'!$C$17:$G$46,COLUMNS('Input - General'!$C$17:$G$46),FALSE) -> 0 | N46: =VLOOKUP($B$18,'Input - General'!$C$17:$G$46,COLUMNS('Input - General'!$C$17:$G$46),FALSE) -> 0
F47: external labour escalation | G47: $/hour | I47: =I45*I$10*I46 -> 0 | J47: =J45*J$10*J46 -> 0 | K47: =K45*K$10*K46 -> 0 | L47: 0 | M47: 0 | N47: =N45*N$10*N46 -> 0
F48: % non-labour | G48: % | I48: =1-I46 -> 1 | J48: 1 | K48: 1 | L48: 1 | M48: 1 | N48: 1
F49: non-labour escalation | G49: $/hour | I49: =I45*I$12*I48 -> 0 | J49: 0 | K49: 0 | L49: 0 | M49: 0 | N49: 0
F50: M&E escalation factor (cumulative) | G50: % | I50: =(1+H50)*(1+(I46*I$8+I48*I$12))-1 -> 0 | J50: 0 | K50: 0 | L50: 0 | M50: 0 | N50: 0
F51: final value | G51: $/hour | H51: =H45+H47+H49 -> 1 | I51: =I45+I47+I49 -> 1 | J51: 1 | K51: 1 | L51: 1 | M51: 1 | N51: 1
D52: cost
E53: labour
F54: input value | G54: $ | H54: =VLOOKUP($B$18,'Input - Base Year'!$C$25:$G$54,COLUMNS('Input - Base Year'!C$25:$E$54),FALSE) -> 1e-32 | I54: =I26*I37 -> 0 | J54: 0 | K54: 0 | L54: 0 | M54: 0 | N54: 0
F55: adjustments | G55: $ | H55: =VLOOKUP($B$18,'Input - Base Year'!$C$25:$G$54,COLUMNS('Input - Base Year'!C$25:$F$54),FALSE) -> 0 | I55: =VLOOKUP($B$18,'Calcs - Adjustments-MOPS-Other'!$C$15:$AF$44,COLUMNS('Calcs - Adjustments-MOPS-Other'!$C$15:I$44),FALSE)*($H54/SUM($H54,$H86)) -> 0 | J55: =VLOOKUP($B$18,'Calcs - Adjustments-MOPS-Other'!$C$15:$AF$44,COLUMNS('Calcs - Adjustments-MOPS-Other'!$C$15:J$44),FALSE)*($H54/SUM($H54,$H86)) -> 0 | K55: =VLOOKUP($B$18,'Calcs - Adjustments-MOPS-Other'!$C$15:$AF$44,COLUMNS('Calcs - Adjustments-MOPS-Other'!$C$15:K$44),FALSE)*($H54/SUM($H54,$H86)) -> 0 | L55: =VLOOKUP($B$18,'Calcs - Adjustments-MOPS-Other'!$C$15:$AF$44,COLUMNS('Calcs - Adjustments-MOPS-Other'!$C$15:L$44),FALSE)*($H54/SUM($H54,$H86)) -> 0 | M55: =VLOOKUP($B$18,'Calcs - Adjustments-MOPS-Other'!$C$15:$AF$44,COLUMNS('Calcs - Adjustments-MOPS-Other'!$C$15:M$44),FALSE)*($H54/SUM($H54,$H86)) -> 0 | N55: =VLOOKUP($B$18,'Calcs - Adjustments-MOPS-Other'!$C$15:$AF$44,COLUMNS('Calcs - Adjustments-MOPS-Other'!$C$15:N$44),FALSE)*($H54/SUM($H54,$H86)) -> 0
F56: escalation on adjustments (cumulative) | G56: $ | I56: =I55*I$9 -> 0 | J56: 0 | K56: 0 | L56: 0 | M56: 0 | N56: 0
F57: final value | G57: $ | H57: =SUM(H54:H55) -> 1e-32 | I57: =SUM(I54:I56) -> 0 | J57: 0 | K57: 0 | L57: 0 | M57: 0 | N57: 0
E58: material & expense
F59: forecast value | G59: $ | H59: =VLOOKUP($B$18,'Input - Base Year'!$C$62:$G$91,COLUMNS('Input - Base Year'!C$62:$E$91),FALSE) -> 1e-32 | I59: =I26*I51 -> 0 | J59: 0 | K59: 0 | L59: 0 | M59: 0 | N59: 0
F60: adjustments | G60: $ | H60: =VLOOKUP($B$18,'Input - Base Year'!$C$62:$G$91,COLUMNS('Input - Base Year'!C$62:$F$91),FALSE) -> 0 | I60: =VLOOKUP($B$18,'Calcs - Adjustments-MOPS-Other'!$C$56:$AF$85,COLUMNS('Calcs - Adjustments-MOPS-Other'!$C$56:I$85),FALSE)*($H59/SUM($H59,$H91)) -> 0 | J60: =VLOOKUP($B$18,'Calcs - Adjustments-MOPS-Other'!$C$56:$AF$85,COLUMNS('Calcs - Adjustments-MOPS-Other'!$C$56:J$85),FALSE)*($H59/SUM($H59,$H91)) -> 0 | K60: =VLOOKUP($B$18,'Calcs - Adjustments-MOPS-Other'!$C$56:$AF$85,COLUMNS('Calcs - Adjustments-MOPS-Other'!$C$56:K$85),FALSE)*($H59/SUM($H59,$H91)) -> 0 | L60: =VLOOKUP($B$18,'Calcs - Adjustments-MOPS-Other'!$C$56:$AF$85,COLUMNS('Calcs - Adjustments-MOPS-Other'!$C$56:L$85),FALSE)*($H59/SUM($H59,$H91)) -> 0 | M60: =VLOOKUP($B$18,'Calcs - Adjustments-MOPS-Other'!$C$56:$AF$85,COLUMNS('Calcs - Adjustments-MOPS-Other'!$C$56:M$85),FALSE)*($H59/SUM($H59,$H91)) -> 0 | N60: =VLOOKUP($B$18,'Calcs - Adjustments-MOPS-Other'!$C$56:$AF$85,COLUMNS('Calcs - Adjustments-MOPS-Other'!$C$56:N$85),FALSE)*($H59/SUM($H59,$H91)) -> 0
F61: escalation on adjustments (cumulative) | G61: $ | I61: =I60*I50 -> 0 | J61: 0 | K61: 0 | L61: 0 | M61: 0 | N61: 0
F62: final value | G62: $ | H62: =SUM(H59:H61) -> 1e-32 | I62: 0 | J62: 0 | K62: 0 | L62: 0 | M62: 0 | N62: 0
C63: Corrective/Condition-based
D64: effort
F65: target defect ratio | G65: hours | I65: =VLOOKUP($B$18,'Input - General'!$C$17:$H$46,COLUMNS('Input - General'!$C$17:$H$46),FALSE) -> 0 | J65: =VLOOKUP($B$18,'Input - General'!$C$17:$H$46,COLUMNS('Input - General'!$C$17:$H$46),FALSE) -> 0 | K65: =VLOOKUP($B$18,'Input - General'!$C$17:$H$46,COLUMNS('Input - General'!$C$17:$H$46),FALSE) -> 0 | L65: =VLOOKUP($B$18,'Input - General'!$C$17:$H$46,COLUMNS('Input - General'!$C$17:$H$46),FALSE) -> 0 | M65: =VLOOKUP($B$18,'Input - General'!$C$17:$H$46,COLUMNS('Input - General'!$C$17:$H$46),FALSE) -> 0 | N65: =VLOOKUP($B$18,'Input - General'!$C$17:$H$46,COLUMNS('Input - General'!$C$17:$H$46),FALSE) -> 0
F66: initial value labour | G66: hours | H66: =VLOOKUP($B$18,'Input - Base Year'!$C$12:$K$17,COLUMNS('Input - Base Year'!$C$12:$K$17),FALSE) -> 1e-32 | I66: =I65*I26 -> 0 | J66: 0 | K66: 0 | L66: 0 | M66: 0 | N66: 0
F67: final value labour | G67: hours | H67: =H66 -> 1e-32 | I67: =I66 -> 0 | J67: 0 | K67: 0 | L67: 0 | M67: 0 | N67: 0
D68: unit rate
E69: labour
F70: base effort | G70: hours | H70: =VLOOKUP($B$18,'Input - Base Year'!$C$12:$K$17,COLUMNS('Input - Base Year'!$C$12:$K$17),FALSE) -> 1e-32
F71: base cost | G71: $ | H71: =VLOOKUP($B$18,'Input - Base Year'!$C$25:$K$54,COLUMNS('Input - Base Year'!$C$25:$K$54),FALSE) -> 1e-32
F72: initial value | G72: $/hour | H72: =H71/H70 -> 1 | I72: =H74 -> 1 | J72: 0.9975327008 | K72: 0.9987057928 | L72: 1.007880895 | M72: 1.024006989 | N72: 1.044487129
F73: internal labour escalation | G73: $/hour | I73: =I72*I$8 -> -0.002467299178 | J73: 0.001173091984 | K73: 0.009175101999 | L73: 0.01612609432 | M73: 0.02048013978 | N73: 0.02193422971
F74: final value | G74: $/hour | H74: =H72+H73 -> 1 | I74: 0.9975327008 | J74: 0.9987057928 | K74: 1.007880895 | L74: 1.024006989 | M74: 1.044487129 | N74: 1.066421359
E75: material & expense
F76: base effort | G76: hours | H76: =VLOOKUP($B$18,'Input - Base Year'!$C$12:$K$17,COLUMNS('Input - Base Year'!$C$12:$K$17),FALSE) -> 1e-32
F77: base cost | G77: $ | H77: =VLOOKUP($B$18,'Input - Base Year'!$C$62:$K$91,COLUMNS('Input - Base Year'!$C$62:$K$91),FALSE) -> 1e-32
F78: initial value | G78: $/hour | H78: =H77/H76 -> 1 | I78: =H83 -> 1 | J78: 1 | K78: 1 | L78: 1 | M78: 1 | N78: 1
F79: % labour | G79: % | I79: =VLOOKUP($B$18,'Input - General'!$C$17:$G$46,COLUMNS('Input - General'!$C$17:$G$46),FALSE) -> 0 | J79: =VLOOKUP($B$18,'Input - General'!$C$17:$G$46,COLUMNS('Input - General'!$C$17:$G$46),FALSE) -> 0 | K79: =VLOOKUP($B$18,'Input - General'!$C$17:$G$46,COLUMNS('Input - General'!$C$17:$G$46),FALSE) -> 0 | L79: =VLOOKUP($B$18,'Input - General'!$C$17:$G$46,COLUMNS('Input - General'!$C$17:$G$46),FALSE) -> 0 | M79: =VLOOKUP($B$18,'Input - General'!$C$17:$G$46,COLUMNS('Input - General'!$C$17:$G$46),FALSE) -> 0 | N79: =VLOOKUP($B$18,'Input - General'!$C$17:$G$46,COLUMNS('Input - General'!$C$17:$G$46),FALSE) -> 0
F80: external labour escalation | G80: $/hour | I80: =I78*I$10*I79 -> 0 | J80: =J78*J$10*J79 -> 0 | K80: 0 | L80: 0 | M80: 0 | N80: 0
F81: % non-labour | G81: % | I81: =1-I79 -> 1 | J81: 1 | K81: 1 | L81: 1 | M81: 1 | N81: 1
F82: non-labour escalation | G82: $/hour | I82: =I78*I$12*I81 -> 0 | J82: 0 | K82: 0 | L82: 0 | M82: 0 | N82: 0
F83: final value | G83: $/hour | H83: =H78+H80+H82 -> 1 | I83: 1 | J83: 1 | K83: 1 | L83: 1 | M83: 1 | N83: 1
D84: cost
E85: labour
F86: input value | G86: $ | H86: =VLOOKUP($B$18,'Input - Base Year'!$C$25:$I$54,COLUMNS('Input - Base Year'!C$25:$I$54),FALSE) -> 1e-32 | I86: =I67*I74 -> 0 | J86: 0 | K86: 0 | L86: 0 | M86: 0 | N86: 0
F87: adjustments | G87: $ | H87: =VLOOKUP($B$18,'Input - Base Year'!$C$25:$K$54,COLUMNS('Input - Base Year'!C$25:$J$54),FALSE) -> 0 | I87: =VLOOKUP($B$18,'Calcs - Adjustments-MOPS-Other'!$C$15:$AF$44,COLUMNS('Calcs - Adjustments-MOPS-Other'!$C$15:I$44),FALSE)*($H86/SUM($H54,$H86)) -> 0 | J87: =VLOOKUP($B$18,'Calcs - Adjustments-MOPS-Other'!$C$15:$AF$44,COLUMNS('Calcs - Adjustments-MOPS-Other'!$C$15:J$44),FALSE)*($H86/SUM($H54,$H86)) -> 0 | K87: =VLOOKUP($B$18,'Calcs - Adjustments-MOPS-Other'!$C$15:$AF$44,COLUMNS('Calcs - Adjustments-MOPS-Other'!$C$15:K$44),FALSE)*($H86/SUM($H54,$H86)) -> 0 | L87: =VLOOKUP($B$18,'Calcs - Adjustments-MOPS-Other'!$C$15:$AF$44,COLUMNS('Calcs - Adjustments-MOPS-Other'!$C$15:L$44),FALSE)*($H86/SUM($H54,$H86)) -> 0 | M87: =VLOOKUP($B$18,'Calcs - Adjustments-MOPS-Other'!$C$15:$AF$44,COLUMNS('Calcs - Adjustments-MOPS-Other'!$C$15:M$44),FALSE)*($H86/SUM($H54,$H86)) -> 0 | N87: =VLOOKUP($B$18,'Calcs - Adjustments-MOPS-Other'!$C$15:$AF$44,COLUMNS('Calcs - Adjustments-MOPS-Other'!$C$15:N$44),FALSE)*($H86/SUM($H54,$H86)) -> 0
F88: escalation on adjustments (cumulative) | G88: $ | I88: =I87*I$9 -> 0 | J88: 0 | K88: 0 | L88: 0 | M88: 0 | N88: 0
F89: final value | G89: $ | H89: =SUM(H86:H88) -> 1e-32 | I89: =SUM(I86:I88) -> 0 | J89: 0 | K89: 0 | L89: 0 | M89: 0 | N89: 0
E90: material & expense
F91: forecast value | G91: $ | H91: =VLOOKUP($B$18,'Input - Base Year'!$C$62:$I$91,COLUMNS('Input - Base Year'!C$62:$I$91),FALSE) -> 1e-32 | I91: =I67*I83 -> 0 | J91: 0 | K91: 0 | L91: 0 | M91: 0 | N91: 0
F92: adjustments | G92: $ | H92: =VLOOKUP($B$18,'Input - Base Year'!$C$62:$K$91,COLUMNS('Input - Base Year'!C$62:$J$91),FALSE) -> 0 | I92: =VLOOKUP($B$18,'Calcs - Adjustments-MOPS-Other'!$C$56:$AF$85,COLUMNS('Calcs - Adjustments-MOPS-Other'!$C$56:I$85),FALSE)*($H91/SUM($H59,$H91)) -> 0 | J92: =VLOOKUP($B$18,'Calcs - Adjustments-MOPS-Other'!$C$56:$AF$85,COLUMNS('Calcs - Adjustments-MOPS-Other'!$C$56:J$85),FALSE)*($H91/SUM($H59,$H91)) -> 0 | K92: =VLOOKUP($B$18,'Calcs - Adjustments-MOPS-Other'!$C$56:$AF$85,COLUMNS('Calcs - Adjustments-MOPS-Other'!$C$56:K$85),FALSE)*($H91/SUM($H59,$H91)) -> 0 | L92: =VLOOKUP($B$18,'Calcs - Adjustments-MOPS-Other'!$C$56:$AF$85,COLUMNS('Calcs - Adjustments-MOPS-Other'!$C$56:L$85),FALSE)*($H91/SUM($H59,$H91)) -> 0 | M92: =VLOOKUP($B$18,'Calcs - Adjustments-MOPS-Other'!$C$56:$AF$85,COLUMNS('Calcs - Adjustments-MOPS-Other'!$C$56:M$85),FALSE)*($H91/SUM($H59,$H91)) -> 0 | N92: =VLOOKUP($B$18,'Calcs - Adjustments-MOPS-Other'!$C$56:$AF$85,COLUMNS('Calcs - Adjustments-MOPS-Other'!$C$56:N$85),FALSE)*($H91/SUM($H59,$H91)) -> 0
F93: escalation on adjustments (cumulative) | G93: $ | I93: =I92*I50 -> 0 | J93: 0 | K93: 0 | L93: 0 | M93: 0 | N93: 0
F94: final value | G94: $ | H94: =SUM(H91:H93) -> 1e-32 | I94: =SUM(I91:I93) -> 0 | J94: 0 | K94: 0 | L94: 0 | M94: 0 | N94: 0
C95: MOPS
D96: cost
E97: labour
F98: input value | G98: $ | H98: =VLOOKUP($B$18,'Input - Base Year'!$C$99:$K$104,COLUMNS('Input - Base Year'!$C$99:G$104),FALSE) -> 0 | I98: =VLOOKUP($B$18,'Calcs - Adjustments-MOPS-Other'!$C$97:$N$102,COLUMNS('Calcs - Adjustments-MOPS-Other'!$C$97:I$102),FALSE) -> 0 | J98: =VLOOKUP($B$18,'Calcs - Adjustments-MOPS-Other'!$C$97:$N$102,COLUMNS('Calcs - Adjustments-MOPS-Other'!$C$97:J$102),FALSE) -> 0 | K98: =VLOOKUP($B$18,'Calcs - Adjustments-MOPS-Other'!$C$97:$N$102,COLUMNS('Calcs - Adjustments-MOPS-Other'!$C$97:K$102),FALSE) -> 0 | L98: =VLOOKUP($B$18,'Calcs - Adjustments-MOPS-Other'!$C$97:$N$102,COLUMNS('Calcs - Adjustments-MOPS-Other'!$C$97:L$102),FALSE) -> 0 | M98: =VLOOKUP($B$18,'Calcs - Adjustments-MOPS-Other'!$C$97:$N$102,COLUMNS('Calcs - Adjustments-MOPS-Other'!$C$97:M$102),FALSE) -> 0 | N98: =VLOOKUP($B$18,'Calcs - Adjustments-MOPS-Other'!$C$97:$N$102,COLUMNS('Calcs - Adjustments-MOPS-Other'!$C$97:N$102),FALSE) -> 0
F99: internal labour escalation (cumulative) | G99: $ | H99: =H98*H$9 -> 0 | I99: =I98*I$9 -> 0 | J99: 0 | K99: 0 | L99: 0 | M99: 0 | N99: 0
F100: final value | G100: $ | H100: =H98+H99 -> 0 | I100: =I98+I99 -> 0 | J100: 0 | K100: 0 | L100: 0 | M100: 0 | N100: 0
E101: material & expense
F102: input value | G102: $ | H102: =VLOOKUP($B$18,'Input - Base Year'!$C$99:$K$104,COLUMNS('Input - Base Year'!$C$99:K$104),FALSE) -> 0 | I102: =VLOOKUP($B$18,'Calcs - Adjustments-MOPS-Other'!$C$97:$W$102,COLUMNS('Calcs - Adjustments-MOPS-Other'!$C$97:R$102),FALSE) -> 0 | J102: =VLOOKUP($B$18,'Calcs - Adjustments-MOPS-Other'!$C$97:$W$102,COLUMNS('Calcs - Adjustments-MOPS-Other'!$C$97:S$102),FALSE) -> 0 | K102: =VLOOKUP($B$18,'Calcs - Adjustments-MOPS-Other'!$C$97:$W$102,COLUMNS('Calcs - Adjustments-MOPS-Other'!$C$97:T$102),FALSE) -> 0 | L102: =VLOOKUP($B$18,'Calcs - Adjustments-MOPS-Other'!$C$97:$W$102,COLUMNS('Calcs - Adjustments-MOPS-Other'!$C$97:U$102),FALSE) -> 0 | M102: =VLOOKUP($B$18,'Calcs - Adjustments-MOPS-Other'!$C$97:$W$102,COLUMNS('Calcs - Adjustments-MOPS-Other'!$C$97:V$102),FALSE) -> 0 | N102: =VLOOKUP($B$18,'Calcs - Adjustments-MOPS-Other'!$C$97:$W$102,COLUMNS('Calcs - Adjustments-MOPS-Other'!$C$97:W$102),FALSE) -> 0
F103: % labour | G103: % | H103: =VLOOKUP($B$18,'Input - General'!$C$17:$G$46,COLUMNS('Input - General'!$C$17:$G$46),FALSE) -> 0 | I103: =VLOOKUP($B$18,'Input - General'!$C$17:$G$46,COLUMNS('Input - General'!$C$17:$G$46),FALSE) -> 0 | J103: =VLOOKUP($B$18,'Input - General'!$C$17:$G$46,COLUMNS('Input - General'!$C$17:$G$46),FALSE) -> 0 | K103: =VLOOKUP($B$18,'Input - General'!$C$17:$G$46,COLUMNS('Input - General'!$C$17:$G$46),FALSE) -> 0 | L103: =VLOOKUP($B$18,'Input - General'!$C$17:$G$46,COLUMNS('Input - General'!$C$17:$G$46),FALSE) -> 0 | M103: =VLOOKUP($B$18,'Input - General'!$C$17:$G$46,COLUMNS('Input - General'!$C$17:$G$46),FALSE) -> 0 | N103: =VLOOKUP($B$18,'Input - General'!$C$17:$G$46,COLUMNS('Input - General'!$C$17:$G$46),FALSE) -> 0
F104: external labour escalation (cumulative) | G104: $ | H104: =H102*H$11*H103 -> 0 | I104: =I102*I$11*I103 -> 0 | J104: =J102*J$11*J103 -> 0 | K104: 0 | L104: 0 | M104: 0 | N104: 0
F105: % non-labour | G105: % | H105: =1-H103 -> 1 | I105: =1-I103 -> 1 | J105: 1 | K105: 1 | L105: 1 | M105: 1 | N105: 1
F106: non-labour escalation (cumulative) | G106: $ | H106: =H102*H$13*H105 -> 0 | I106: =I102*I$13*I105 -> 0 | J106: 0 | K106: 0 | L106: 0 | M106: 0 | N106: 0
F107: final value | G107: $ | H107: =H102+H104+H106 -> 0 | I107: =I102+I104+I106 -> 0 | J107: 0 | K107: 0 | L107: 0 | M107: 0 | N107: 0
C108: Total
E109: labour | G109: $ | H109: =H57+H89+H100 -> 2e-32 | I109: 0 | J109: 0 | K109: 0 | L109: 0 | M109: 0 | N109: 0
E110: materials | G110: $ | H110: =H62+H94+H107 -> 2e-32 | I110: 0 | J110: 0 | K110: 0 | L110: 0 | M110: 0 | N110: 0
B111: ='Input - General'!C18 -> Lines
C112: Preventative
D113: effort
F114: initial value | G114: hours | H114: =VLOOKUP($B$111,'Input - Base Year'!$C$12:$J$17,COLUMNS('Input - Base Year'!$C$12:$E$17),FALSE) -> 21129.2536 | I114: =VLOOKUP($B$111,'Input - General'!$C$73:$M$78,COLUMNS('Input - General'!$C$73:H$73),FALSE) -> 18723.045 | J114: =VLOOKUP($B$111,'Input - General'!$C$73:$M$78,COLUMNS('Input - General'!$C$73:I$73),FALSE) -> 16142.22 | K114: =VLOOKUP($B$111,'Input - General'!$C$73:$M$78,COLUMNS('Input - General'!$C$73:J$73),FALSE) -> 19820.34 | L114: =VLOOKUP($B$111,'Input - General'!$C$73:$M$78,COLUMNS('Input - General'!$C$73:K$73),FALSE) -> 17506.77 | M114: =VLOOKUP($B$111,'Input - General'!$C$73:$M$78,COLUMNS('Input - General'!$C$73:L$73),FALSE) -> 17998.33 | N114: =VLOOKUP($B$111,'Input - General'!$C$73:$M$78,COLUMNS('Input - General'!$C$73:M$73),FALSE) -> 17247.445
F115: adjustments | G115: hours | H115: =VLOOKUP($B$111,'Input - Base Year'!$C$12:$J$17,COLUMNS('Input - Base Year'!$C$12:$F$17),FALSE) -> 0 | I115: =VLOOKUP($B$111,'Input - Adjustments'!$C$11:$AB$16, COLUMNS('Input - Adjustments'!$C$11:G$16),FALSE) -> 0 | J115: =VLOOKUP($B$111,'Input - Adjustments'!$C$11:$AB$16, COLUMNS('Input - Adjustments'!$C$11:H$16),FALSE) -> 0 | K115: =VLOOKUP($B$111,'Input - Adjustments'!$C$11:$AB$16, COLUMNS('Input - Adjustments'!$C$11:I$16),FALSE) -> 0 | L115: =VLOOKUP($B$111,'Input - Adjustments'!$C$11:$AB$16, COLUMNS('Input - Adjustments'!$C$11:J$16),FALSE) -> 0 | M115: =VLOOKUP($B$111,'Input - Adjustments'!$C$11:$AB$16, COLUMNS('Input - Adjustments'!$C$11:K$16),FALSE) -> 0 | N115: =VLOOKUP($B$111,'Input - Adjustments'!$C$11:$AB$16, COLUMNS('Input - Adjustments'!$C$11:L$16),FALSE) -> 0
F116: asset growth factor | G116: % | I116: =VLOOKUP($B$111,'Input - General'!$C$60:$M$66, COLUMNS('Input - General'!$C$60:H$66),FALSE) -> 0.0004565163101 | J116: =VLOOKUP($B$111,'Input - General'!$C$60:$M$66, COLUMNS('Input - General'!$C$60:I$66),FALSE) -> 0.03288300331 | K116: =VLOOKUP($B$111,'Input - General'!$C$60:$M$66, COLUMNS('Input - General'!$C$60:J$66),FALSE) -> 0.02183809995 | L116: =VLOOKUP($B$111,'Input - General'!$C$60:$M$66, COLUMNS('Input - General'!$C$60:K$66),FALSE) -> 0 | M116: =VLOOKUP($B$111,'Input - General'!$C$60:$M$66, COLUMNS('Input - General'!$C$60:L$66),FALSE) -> 0.0009510499151 | N116: =VLOOKUP($B$111,'Input - General'!$C$60:$M$66, COLUMNS('Input - General'!$C$60:M$66),FALSE) -> 0.001509711315
F117: economies of scale labour % | G117: % | I117: =VLOOKUP($B$111,'Input - General'!$C$17:$F$46, COLUMNS('Input - General'!$C$17:$E$46),FALSE) -> 0.95 | J117: =VLOOKUP($B$111,'Input - General'!$C$17:$F$46, COLUMNS('Input - General'!$C$17:$E$46),FALSE) -> 0.95 | K117: =VLOOKUP($B$111,'Input - General'!$C$17:$F$46, COLUMNS('Input - General'!$C$17:$E$46),FALSE) -> 0.95 | L117: =VLOOKUP($B$111,'Input - General'!$C$17:$F$46, COLUMNS('Input - General'!$C$17:$E$46),FALSE) -> 0.95 | M117: =VLOOKUP($B$111,'Input - General'!$C$17:$F$46, COLUMNS('Input - General'!$C$17:$E$46),FALSE) -> 0.95 | N117: =VLOOKUP($B$111,'Input - General'!$C$17:$F$46, COLUMNS('Input - General'!$C$17:$E$46),FALSE) -> 0.95
F118: labour growth | G118: hours | I118: =(I114+I115)*I116*I117+H118 -> 8.120006646 | J118: 512.3844466 | K118: 923.5810844 | L118: 923.5810844 | M118: 939.8425291 | N118: 964.5792588
F119: final value | G119: hours | H119: =H114+H115+H118 -> 21129.2536 | I119: =I114+I115+I118 -> 18731.16501 | J119: 16654.60445 | K119: 20743.92108 | L119: 18430.35108 | M119: 18938.17253 | N119: 18212.02426
D120: unit rate
E121: labour
F122: base effort | G122: hours | H122: =VLOOKUP($B$111,'Input - Base Year'!$C$12:$J$17,COLUMNS('Input - Base Year'!$C$12:$E$17),FALSE) -> 21129.2536
F123: effort adjustments | G123: hours | H123: =VLOOKUP($B$111,'Input - Base Year'!$C$12:$J$17,COLUMNS('Input - Base Year'!$C$12:$F$17),FALSE) -> 0
F124: adjusted effort | G124: hours | H124: =H122+H123 -> 21129.2536
F125: base cost | G125: $ | H125: =VLOOKUP($B$111,'Input - Base Year'!$C$25:$J$54,COLUMNS('Input - Base Year'!$C$25:$E$54),FALSE) -> 3018855.087
F126: cost adjustments | G126: $ | H126: =VLOOKUP($B$111,'Input - Base Year'!$C$25:$J$54,COLUMNS('Input - Base Year'!$C$25:$F$54),FALSE) -> 0
F127: adjusted cost | G127: $ | H127: =H125+H126 -> 3018855.087
F128: initial value | G128: $/hour | H128: =H127/H124 -> 142.8756143 | I128: =H130 -> 142.8756143 | J128: 142.5230974 | K128: 142.6907036 | L128: 144.001602 | M128: 146.3056276 | N128: 149.2317401
F129: internal labour escalation | G129: $/hour | I129: =I128*I$8 -> -0.3525168856 | J129: 0.1676062378 | K129: 1.310898334 | L129: 2.304025631 | M129: 2.926112552 | N129: 3.133866543
F130: final value | G130: $/hour | H130: =H128+H129 -> 142.8756143 | I130: =I128+I129 -> 142.5230974 | J130: 142.6907036 | K130: 144.001602 | L130: 146.3056276 | M130: 149.2317401 | N130: 152.3656067
E131: material & expense
F132: base effort | G132: hours | H132: =VLOOKUP($B$111,'Input - Base Year'!$C$12:$J$17,COLUMNS('Input - Base Year'!$C$12:$E$17),FALSE) -> 21129.2536
F133: effort adjustments | G133: hours | H133: =VLOOKUP($B$111,'Input - Base Year'!$C$12:$J$17,COLUMNS('Input - Base Year'!$C$12:$F$17),FALSE) -> 0
F134: adjusted effort | G134: hours | H134: =H132+H133 -> 21129.2536
F135: base cost | G135: $ | H135: =VLOOKUP($B$111,'Input - Base Year'!$C$62:$J$91,COLUMNS('Input - Base Year'!$C$62:$E$91),FALSE) -> 1749998.121
F136: cost adjustments | G136: $ | H136: =VLOOKUP($B$111,'Input - Base Year'!$C$62:$J$91,COLUMNS('Input - Base Year'!$C$62:$F$91),FALSE) -> 0
F137: adjusted cost | G137: $ | H137: =H135+H136 -> 1749998.121
F138: initial value | G138: $/hour | H138: =H137/H134 -> 82.82347092 | I138: =H144 -> 82.82347092 | J138: 83.34659652 | K138: 83.87302626 | L138: 84.54725958 | M138: 85.32400622 | N138: 86.3038596
F139: % labour | G139: % | I139: =VLOOKUP($B$111,'Input - General'!$C$17:$G$46,COLUMNS('Input - General'!$C$17:$G$46),FALSE) -> 0.5741956033 | J139: =VLOOKUP($B$111,'Input - General'!$C$17:$G$46,COLUMNS('Input - General'!$C$17:$G$46),FALSE) -> 0.5741956033 | K139: =VLOOKUP($B$111,'Input - General'!$C$17:$G$46,COLUMNS('Input - General'!$C$17:$G$46),FALSE) -> 0.5741956033 | L139: =VLOOKUP($B$111,'Input - General'!$C$17:$G$46,COLUMNS('Input - General'!$C$17:$G$46),FALSE) -> 0.5741956033 | M139: =VLOOKUP($B$111,'Input - General'!$C$17:$G$46,COLUMNS('Input - General'!$C$17:$G$46),FALSE) -> 0.5741956033 | N139: =VLOOKUP($B$111,'Input - General'!$C$17:$G$46,COLUMNS('Input - General'!$C$17:$G$46),FALSE) -> 0.5741956033
F140: external labour escalation | G140: $/hour | I140: =I138*I$10*I139 -> 0.5231256014 | J140: =J138*J$10*J139 -> 0.526429742 | K140: 0.6742333208 | L140: 0.7767466356 | M140: 0.9798533846 | N140: 1.040661231
F141: % non-labour | G141: % | I141: =1-I139 -> 0.4258043967 | J141: 0.4258043967 | K141: 0.4258043967 | L141: 0.4258043967 | M141: 0.4258043967 | N141: 0.4258043967
F142: non-labour escalation | G142: $/hour | I142: =I138*I$12*I141 -> 0 | J142: 0 | K142: 0 | L142: 0 | M142: 0 | N142: 0
F143: M&E escalation factor (cumulative) | G143: % | I143: =(1+H143)*(1+(I139*I$8+I141*I$12))-1 -> -0.00141671234 | J143: -0.0007424186714 | K143: 0.004528795313 | L143: 0.0137575316 | M143: 0.02539943395 | N143: 0.03776381073
F144: final value | G144: $/hour | H144: =H138+H140+H142 -> 82.82347092 | I144: =I138+I140+I142 -> 83.34659652 | J144: 83.87302626 | K144: 84.54725958 | L144: 85.32400622 | M144: 86.3038596 | N144: 87.34452083
D145: cost
E146: labour
F147: input value | G147: $ | H147: =VLOOKUP($B$111,'Input - Base Year'!$C$25:$G$54,COLUMNS('Input - Base Year'!C$25:$E$54),FALSE) -> 3018855.087 | I147: =I119*I130 -> 2669623.654 | J147: 2376457.227 | K147: 2987157.867 | L147: 2696464.082 | M147: 2826176.442 | N147: 2774886.125
F148: adjustments | G148: $ | H148: =VLOOKUP($B$111,'Input - Base Year'!$C$25:$G$54,COLUMNS('Input - Base Year'!C$25:$F$54),FALSE) -> 0 | I148: =VLOOKUP($B$111,'Calcs - Adjustments-MOPS-Other'!$C$15:$AF$44,COLUMNS('Calcs - Adjustments-MOPS-Other'!$C$15:I$44),FALSE)*($H147/SUM($H147,$H179)) -> 0 | J148: =VLOOKUP($B$111,'Calcs - Adjustments-MOPS-Other'!$C$15:$AF$44,COLUMNS('Calcs - Adjustments-MOPS-Other'!$C$15:J$44),FALSE)*($H147/SUM($H147,$H179)) -> 0 | K148: =VLOOKUP($B$111,'Calcs - Adjustments-MOPS-Other'!$C$15:$AF$44,COLUMNS('Calcs - Adjustments-MOPS-Other'!$C$15:K$44),FALSE)*($H147/SUM($H147,$H179)) -> 0 | L148: =VLOOKUP($B$111,'Calcs - Adjustments-MOPS-Other'!$C$15:$AF$44,COLUMNS('Calcs - Adjustments-MOPS-Other'!$C$15:L$44),FALSE)*($H147/SUM($H147,$H179)) -> 0 | M148: =VLOOKUP($B$111,'Calcs - Adjustments-MOPS-Other'!$C$15:$AF$44,COLUMNS('Calcs - Adjustments-MOPS-Other'!$C$15:M$44),FALSE)*($H147/SUM($H147,$H179)) -> 0 | N148: =VLOOKUP($B$111,'Calcs - Adjustments-MOPS-Other'!$C$15:$AF$44,COLUMNS('Calcs - Adjustments-MOPS-Other'!$C$15:N$44),FALSE)*($H147/SUM($H147,$H179)) -> 0
F149: escalation on adjustments (cumulative) | G149: $ | I149: =I148*I$9 -> 0 | J149: 0 | K149: 0 | L149: 0 | M149: 0 | N149: 0
F150: final value | G150: $ | H150: =SUM(H147:H148) -> 3018855.087 | I150: =SUM(I147:I149) -> 2669623.654 | J150: 2376457.227 | K150: 2987157.867 | L150: 2696464.082 | M150: 2826176.442 | N150: 2774886.125
E151: material & expense
F152: forecast value | G152: $ | H152: =VLOOKUP($B$111,'Input - Base Year'!$C$62:$G$91,COLUMNS('Input - Base Year'!C$62:$E$91),FALSE) -> 1749998.121 | I152: =I119*I144 -> 1561178.852 | J152: 1396872.076 | K152: 1753841.681 | L152: 1572551.39 | M152: 1634437.383 | N152: 1590720.532
F153: adjustments | G153: $ | H153: =VLOOKUP($B$111,'Input - Base Year'!$C$62:$G$91,COLUMNS('Input - Base Year'!C$62:$F$91),FALSE) -> 0 | I153: =VLOOKUP($B$111,'Calcs - Adjustments-MOPS-Other'!$C$56:$AF$85,COLUMNS('Calcs - Adjustments-MOPS-Other'!$C$56:I$85),FALSE)*($H152/SUM($H152,$H184)) -> 0 | J153: =VLOOKUP($B$111,'Calcs - Adjustments-MOPS-Other'!$C$56:$AF$85,COLUMNS('Calcs - Adjustments-MOPS-Other'!$C$56:J$85),FALSE)*($H152/SUM($H152,$H184)) -> 0 | K153: =VLOOKUP($B$111,'Calcs - Adjustments-MOPS-Other'!$C$56:$AF$85,COLUMNS('Calcs - Adjustments-MOPS-Other'!$C$56:K$85),FALSE)*($H152/SUM($H152,$H184)) -> 0 | L153: =VLOOKUP($B$111,'Calcs - Adjustments-MOPS-Other'!$C$56:$AF$85,COLUMNS('Calcs - Adjustments-MOPS-Other'!$C$56:L$85),FALSE)*($H152/SUM($H152,$H184)) -> 0 | M153: =VLOOKUP($B$111,'Calcs - Adjustments-MOPS-Other'!$C$56:$AF$85,COLUMNS('Calcs - Adjustments-MOPS-Other'!$C$56:M$85),FALSE)*($H152/SUM($H152,$H184)) -> 0 | N153: =VLOOKUP($B$111,'Calcs - Adjustments-MOPS-Other'!$C$56:$AF$85,COLUMNS('Calcs - Adjustments-MOPS-Other'!$C$56:N$85),FALSE)*($H152/SUM($H152,$H184)) -> 0
F154: escalation on adjustments (cumulative) | G154: $ | I154: =I153*I143 -> 0 | J154: 0 | K154: 0 | L154: 0 | M154: 0 | N154: 0
F155: final value | G155: $ | H155: =SUM(H152:H154) -> 1749998.121 | I155: 1561178.852 | J155: 1396872.076 | K155: 1753841.681 | L155: 1572551.39 | M155: 1634437.383 | N155: 1590720.532
C156: Corrective/Condition-based
D157: effort
F158: target defect ratio | G158: hours | I158: =VLOOKUP($B$111,'Input - General'!$C$17:$H$46,COLUMNS('Input - General'!$C$17:$H$46),FALSE) -> 0.8187153998 | J158: =VLOOKUP($B$111,'Input - General'!$C$17:$H$46,COLUMNS('Input - General'!$C$17:$H$46),FALSE) -> 0.8187153998 | K158: =VLOOKUP($B$111,'Input - General'!$C$17:$H$46,COLUMNS('Input - General'!$C$17:$H$46),FALSE) -> 0.8187153998 | L158: =VLOOKUP($B$111,'Input - General'!$C$17:$H$46,COLUMNS('Input - General'!$C$17:$H$46),FALSE) -> 0.8187153998 | M158: =VLOOKUP($B$111,'Input - General'!$C$17:$H$46,COLUMNS('Input - General'!$C$17:$H$46),FALSE) -> 0.8187153998 | N158: =VLOOKUP($B$111,'Input - General'!$C$17:$H$46,COLUMNS('Input - General'!$C$17:$H$46),FALSE) -> 0.8187153998
F159: initial value labour | G159: hours | H159: =VLOOKUP($B$111,'Input - Base Year'!$C$12:$K$17,COLUMNS('Input - Base Year'!$C$12:$K$17),FALSE) -> 20733.0425 | I159: =I158*I119 -> 15335.49325 | J159: 13635.38114 | K159: 16983.36764 | L159: 15089.21226 | M159: 15504.97349 | N159: 14910.46472
F160: final value labour | G160: hours | H160: =H159 -> 20733.0425 | I160: =I159 -> 15335.49325 | J160: 13635.38114 | K160: 16983.36764 | L160: 15089.21226 | M160: 15504.97349 | N160: 14910.46472
D161: unit rate
E162: labour
F163: base effort | G163: hours | H163: =VLOOKUP($B$111,'Input - Base Year'!$C$12:$K$17,COLUMNS('Input - Base Year'!$C$12:$K$17),FALSE) -> 20733.0425
F164: base cost | G164: $ | H164: =VLOOKUP($B$111,'Input - Base Year'!$C$25:$K$54,COLUMNS('Input - Base Year'!$C$25:$K$54),FALSE) -> 2981296.183
F165: initial value | G165: $/hour | H165: =H164/H163 -> 143.7944374 | I165: =H167 -> 143.7944374 | J165: 143.4396535 | K165: 143.6083376 | L165: 144.9276663 | M165: 147.2465089 | N165: 150.1914391
F166: internal labour escalation | G166: $/hour | I166: =I165*I$8 -> -0.3547838973 | J166: 0.1686841019 | K166: 1.31932863 | L166: 2.31884266 | M166: 2.944930179 | N166: 3.154020222
F167: final value | G167: $/hour | H167: =H165+H166 -> 143.7944374 | I167: 143.4396535 | J167: 143.6083376 | K167: 144.9276663 | L167: 147.2465089 | M167: 150.1914391 | N167: 153.3454593
E168: material & expense
F169: base effort | G169: hours | H169: =VLOOKUP($B$111,'Input - Base Year'!$C$12:$K$17,COLUMNS('Input - Base Year'!$C$12:$K$17),FALSE) -> 20733.0425
F170: base cost | G170: $ | H170: =VLOOKUP($B$111,'Input - Base Year'!$C$62:$K$91,COLUMNS('Input - Base Year'!$C$62:$K$91),FALSE) -> 1683532.129
F171: initial value | G171: $/hour | H171: =H170/H169 -> 81.20043785 | I171: =H176 -> 81.20043785 | J171: 81.71331213 | K171: 82.2294258 | L171: 82.89044665 | M171: 83.65197193 | N171: 84.61262382
F172: % labour | G172: % | I172: =VLOOKUP($B$111,'Input - General'!$C$17:$G$46,COLUMNS('Input - General'!$C$17:$G$46),FALSE) -> 0.5741956033 | J172: =VLOOKUP($B$111,'Input - General'!$C$17:$G$46,COLUMNS('Input - General'!$C$17:$G$46),FALSE) -> 0.5741956033 | K172: =VLOOKUP($B$111,'Input - General'!$C$17:$G$46,COLUMNS('Input - General'!$C$17:$G$46),FALSE) -> 0.5741956033 | L172: =VLOOKUP($B$111,'Input - General'!$C$17:$G$46,COLUMNS('Input - General'!$C$17:$G$46),FALSE) -> 0.5741956033 | M172: =VLOOKUP($B$111,'Input - General'!$C$17:$G$46,COLUMNS('Input - General'!$C$17:$G$46),FALSE) -> 0.5741956033 | N172: =VLOOKUP($B$111,'Input - General'!$C$17:$G$46,COLUMNS('Input - General'!$C$17:$G$46),FALSE) -> 0.5741956033
F173: external labour escalation | G173: $/hour | I173: =I171*I$10*I172 -> 0.5128742784 | J173: =J171*J$10*J172 -> 0.5161136701 | K173: 0.6610208466 | L173: 0.7615252804 | M173: 0.9606518898 | N173: 1.020268128
F174: % non-labour | G174: % | I174: =1-I172 -> 0.4258043967 | J174: 0.4258043967 | K174: 0.4258043967 | L174: 0.4258043967 | M174: 0.4258043967 | N174: 0.4258043967
F175: non-labour escalation | G175: $/hour | I175: =I171*I$12*I174 -> 0 | J175: 0 | K175: 0 | L175: 0 | M175: 0 | N175: 0
F176: final value | G176: $/hour | H176: =H171+H173+H175 -> 81.20043785 | I176: =I171+I173+I175 -> 81.71331213 | J176: 82.2294258 | K176: 82.89044665 | L176: 83.65197193 | M176: 84.61262382 | N176: 85.63289194
D177: cost
E178: labour
F179: input value | G179: $ | H179: =VLOOKUP($B$111,'Input - Base Year'!$C$25:$I$54,COLUMNS('Input - Base Year'!C$25:$I$54),FALSE) -> 2981296.183 | I179: =I160*I167 -> 2199717.838 | J179: 1958154.419 | K179: 2461359.838 | L179: 2221833.828 | M179: 2328714.283 | N179: 2286452.062
F180: adjustments | G180: $ | H180: =VLOOKUP($B$111,'Input - Base Year'!$C$25:$K$54,COLUMNS('Input - Base Year'!C$25:$J$54),FALSE) -> 0 | I180: =VLOOKUP($B$111,'Calcs - Adjustments-MOPS-Other'!$C$15:$AF$44,COLUMNS('Calcs - Adjustments-MOPS-Other'!$C$15:I$44),FALSE)*($H179/SUM($H147,$H179)) -> 0 | J180: =VLOOKUP($B$111,'Calcs - Adjustments-MOPS-Other'!$C$15:$AF$44,COLUMNS('Calcs - Adjustments-MOPS-Other'!$C$15:J$44),FALSE)*($H179/SUM($H147,$H179)) -> 0 | K180: =VLOOKUP($B$111,'Calcs - Adjustments-MOPS-Other'!$C$15:$AF$44,COLUMNS('Calcs - Adjustments-MOPS-Other'!$C$15:K$44),FALSE)*($H179/SUM($H147,$H179)) -> 0 | L180: =VLOOKUP($B$111,'Calcs - Adjustments-MOPS-Other'!$C$15:$AF$44,COLUMNS('Calcs - Adjustments-MOPS-Other'!$C$15:L$44),FALSE)*($H179/SUM($H147,$H179)) -> 0 | M180: =VLOOKUP($B$111,'Calcs - Adjustments-MOPS-Other'!$C$15:$AF$44,COLUMNS('Calcs - Adjustments-MOPS-Other'!$C$15:M$44),FALSE)*($H179/SUM($H147,$H179)) -> 0 | N180: =VLOOKUP($B$111,'Calcs - Adjustments-MOPS-Other'!$C$15:$AF$44,COLUMNS('Calcs - Adjustments-MOPS-Other'!$C$15:N$44),FALSE)*($H179/SUM($H147,$H179)) -> 0
F181: escalation on adjustments (cumulative) | G181: $ | I181: =I180*I$9 -> 0 | J181: 0 | K181: 0 | L181: 0 | M181: 0 | N181: 0
F182: final value | G182: $ | H182: =SUM(H179:H181) -> 2981296.183 | I182: =SUM(I179:I181) -> 2199717.838 | J182: 1958154.419 | K182: 2461359.838 | L182: 2221833.828 | M182: 2328714.283 | N182: 2286452.062
E183: material & expense
F184: forecast value | G184: $ | H184: =VLOOKUP($B$111,'Input - Base Year'!$C$62:$I$91,COLUMNS('Input - Base Year'!C$62:$I$91),FALSE) -> 1683532.129 | I184: =I160*I176 -> 1253113.946 | J184: 1121229.562 | K184: 1407758.93 | L184: 1262242.36 | M184: 1311916.49 | N184: 1276826.214
F185: adjustments | G185: $ | H185: =VLOOKUP($B$111,'Input - Base Year'!$C$62:$K$91,COLUMNS('Input - Base Year'!C$62:$J$91),FALSE) -> 0 | I185: =VLOOKUP($B$111,'Calcs - Adjustments-MOPS-Other'!$C$56:$AF$85,COLUMNS('Calcs - Adjustments-MOPS-Other'!$C$56:I$85),FALSE)*($H184/SUM($H152,$H184)) -> 0 | J185: =VLOOKUP($B$111,'Calcs - Adjustments-MOPS-Other'!$C$56:$AF$85,COLUMNS('Calcs - Adjustments-MOPS-Other'!$C$56:J$85),FALSE)*($H184/SUM($H152,$H184)) -> 0 | K185: =VLOOKUP($B$111,'Calcs - Adjustments-MOPS-Other'!$C$56:$AF$85,COLUMNS('Calcs - Adjustments-MOPS-Other'!$C$56:K$85),FALSE)*($H184/SUM($H152,$H184)) -> 0 | L185: =VLOOKUP($B$111,'Calcs - Adjustments-MOPS-Other'!$C$56:$AF$85,COLUMNS('Calcs - Adjustments-MOPS-Other'!$C$56:L$85),FALSE)*($H184/SUM($H152,$H184)) -> 0 | M185: =VLOOKUP($B$111,'Calcs - Adjustments-MOPS-Other'!$C$56:$AF$85,COLUMNS('Calcs - Adjustments-MOPS-Other'!$C$56:M$85),FALSE)*($H184/SUM($H152,$H184)) -> 0 | N185: =VLOOKUP($B$111,'Calcs - Adjustments-MOPS-Other'!$C$56:$AF$85,COLUMNS('Calcs - Adjustments-MOPS-Other'!$C$56:N$85),FALSE)*($H184/SUM($H152,$H184)) -> 0
F186: escalation on adjustments (cumulative) | G186: $ | I186: =I185*I143 -> 0 | J186: 0 | K186: 0 | L186: 0 | M186: 0 | N186: 0
F187: final value | G187: $ | H187: =SUM(H184:H186) -> 1683532.129 | I187: =SUM(I184:I186) -> 1253113.946 | J187: 1121229.562 | K187: 1407758.93 | L187: 1262242.36 | M187: 1311916.49 | N187: 1276826.214
C188: MOPS
D189: cost
E190: labour
F191: input value | G191: $ | H191: =VLOOKUP($B$111,'Input - Base Year'!$C$99:$K$104,COLUMNS('Input - Base Year'!$C$99:G$104),FALSE) -> 524890.25 | I191: =VLOOKUP($B$111,'Calcs - Adjustments-MOPS-Other'!$C$97:$N$102,COLUMNS('Calcs - Adjustments-MOPS-Other'!$C$97:I$102),FALSE) -> 284246.8663 | J191: =VLOOKUP($B$111,'Calcs - Adjustments-MOPS-Other'!$C$97:$N$102,COLUMNS('Calcs - Adjustments-MOPS-Other'!$C$97:J$102),FALSE) -> 642602.4368 | K191: =VLOOKUP($B$111,'Calcs - Adjustments-MOPS-Other'!$C$97:$N$102,COLUMNS('Calcs - Adjustments-MOPS-Other'!$C$97:K$102),FALSE) -> 1169177.851 | L191: =VLOOKUP($B$111,'Calcs - Adjustments-MOPS-Other'!$C$97:$N$102,COLUMNS('Calcs - Adjustments-MOPS-Other'!$C$97:L$102),FALSE) -> 1918966.829 | M191: =VLOOKUP($B$111,'Calcs - Adjustments-MOPS-Other'!$C$97:$N$102,COLUMNS('Calcs - Adjustments-MOPS-Other'!$C$97:M$102),FALSE) -> 450194.5249 | N191: =VLOOKUP($B$111,'Calcs - Adjustments-MOPS-Other'!$C$97:$N$102,COLUMNS('Calcs - Adjustments-MOPS-Other'!$C$97:N$102),FALSE) -> 423104.035
F192: internal labour escalation (cumulative) | G192: $ | H192: =H191*H$9 -> 0 | I192: -701.3220595 | J192: -831.6606965 | K192: 9214.167655 | L192: 46068.61579 | M192: 20027.86186 | N192: 28103.14484
F193: final value | G193: $ | H193: =H191+H192 -> 524890.25 | I193: =I191+I192 -> 283545.5443 | J193: 641770.7761 | K193: 1178392.019 | L193: 1965035.445 | M193: 470222.3867 | N193: 451207.1798
E194: material & expense
F195: input value | G195: $ | H195: =VLOOKUP($B$111,'Input - Base Year'!$C$99:$K$104,COLUMNS('Input - Base Year'!$C$99:K$104),FALSE) -> 531685.43 | I195: =VLOOKUP($B$111,'Calcs - Adjustments-MOPS-Other'!$C$97:$W$102,COLUMNS('Calcs - Adjustments-MOPS-Other'!$C$97:R$102),FALSE) -> 284034.4454 | J195: =VLOOKUP($B$111,'Calcs - Adjustments-MOPS-Other'!$C$97:$W$102,COLUMNS('Calcs - Adjustments-MOPS-Other'!$C$97:S$102),FALSE) -> 2442499.897 | K195: =VLOOKUP($B$111,'Calcs - Adjustments-MOPS-Other'!$C$97:$W$102,COLUMNS('Calcs - Adjustments-MOPS-Other'!$C$97:T$102),FALSE) -> 3240095.675 | L195: =VLOOKUP($B$111,'Calcs - Adjustments-MOPS-Other'!$C$97:$W$102,COLUMNS('Calcs - Adjustments-MOPS-Other'!$C$97:U$102),FALSE) -> 4101429.646 | M195: =VLOOKUP($B$111,'Calcs - Adjustments-MOPS-Other'!$C$97:$W$102,COLUMNS('Calcs - Adjustments-MOPS-Other'!$C$97:V$102),FALSE) -> 358744.5115 | N195: =VLOOKUP($B$111,'Calcs - Adjustments-MOPS-Other'!$C$97:$W$102,COLUMNS('Calcs - Adjustments-MOPS-Other'!$C$97:W$102),FALSE) -> 337157.0331
F196: % labour | G196: % | H196: =VLOOKUP($B$111,'Input - General'!$C$17:$G$46,COLUMNS('Input - General'!$C$17:$G$46),FALSE) -> 0.5741956033 | I196: =VLOOKUP($B$111,'Input - General'!$C$17:$G$46,COLUMNS('Input - General'!$C$17:$G$46),FALSE) -> 0.5741956033 | J196: =VLOOKUP($B$111,'Input - General'!$C$17:$G$46,COLUMNS('Input - General'!$C$17:$G$46),FALSE) -> 0.5741956033 | K196: =VLOOKUP($B$111,'Input - General'!$C$17:$G$46,COLUMNS('Input - General'!$C$17:$G$46),FALSE) -> 0.5741956033 | L196: =VLOOKUP($B$111,'Input - General'!$C$17:$G$46,COLUMNS('Input - General'!$C$17:$G$46),FALSE) -> 0.5741956033 | M196: =VLOOKUP($B$111,'Input - General'!$C$17:$G$46,COLUMNS('Input - General'!$C$17:$G$46),FALSE) -> 0.5741956033 | N196: =VLOOKUP($B$111,'Input - General'!$C$17:$G$46,COLUMNS('Input - General'!$C$17:$G$46),FALSE) -> 0.5741956033
F197: external labour escalation (cumulative) | G197: $ | H197: =H195*H$11*H196 -> 0 | I197: =I195*I$11*I196 -> 1794.004627 | J197: 31024.09864 | K197: 67777.43697 | L197: 124848.2053 | M197: 15258.4383 | N197: 18706.88189
F198: % non-labour | G198: % | H198: =1-H196 -> 0.4258043967 | I198: =1-I196 -> 0.4258043967 | J198: 0.4258043967 | K198: 0.4258043967 | L198: 0.4258043967 | M198: 0.4258043967 | N198: 0.4258043967
F199: non-labour escalation (cumulative) | G199: $ | H199: =H195*H$13*H198 -> 0 | I199: 0 | J199: 0 | K199: 0 | L199: 0 | M199: 0 | N199: 0
F200: final value | G200: $ | H200: =H195+H197+H199 -> 531685.43 | I200: =I195+I197+I199 -> 285828.45 | J200: 2473523.995 | K200: 3307873.112 | L200: 4226277.851 | M200: 374002.9498 | N200: 355863.915
C201: Total
E202: labour | G202: $ | H202: =H150+H182+H193 -> 6525041.52 | I202: 5152887.037 | J202: 4976382.422 | K202: 6626909.724 | L202: 6883333.355 | M202: 5625113.111 | N202: 5512545.367
E203: materials | G203: $ | H203: =H155+H187+H200 -> 3965215.68 | I203: 3100121.249 | J203: 4991625.633 | K203: 6469473.723 | L203: 7061071.602 | M203: 3320356.822 | N203: 3223410.662
B204: ='Input - General'!C19 -> Substations
... 1019 more rows

Sheet Calcs - Forecast Cost Summary
A1: Calculations
B2: Summary
C3: ="Revision: "&'File Details & Instructions'!$D$16 -> Revision: v3.00
C4: ="Status: "&'File Details & Instructions'!$D$17 -> Status: Final
G7: Base Year | H7: ='Input - General'!$H$10 -> 13/14 | I7: ='Input - General'!$I$10 -> 14/15 | J7: ='Input - General'!$J$10 -> 15/16 | K7: ='Input - General'!$K$10 -> 16/17 | L7: ='Input - General'!$L$10 -> 17/18 | M7: ='Input - General'!$M$10 -> 18/19
B8: ='Input - General'!C17 -> Not Used
C9: Preventative
D10: effort | F10: hours | G10: ='Calcs - Forecast Costs'!H26 -> 1e-32 | H10: ='Calcs - Forecast Costs'!I26 -> 0 | I10: ='Calcs - Forecast Costs'!J26 -> 0 | J10: ='Calcs - Forecast Costs'!K26 -> 0 | K10: ='Calcs - Forecast Costs'!L26 -> 0 | L10: ='Calcs - Forecast Costs'!M26 -> 0 | M10: ='Calcs - Forecast Costs'!N26 -> 0
D11: Forecast
E12: labour | F12: $/hour | G12: ='Calcs - Forecast Costs'!H37 -> 1 | H12: ='Calcs - Forecast Costs'!I37 -> 0.9975327008 | I12: ='Calcs - Forecast Costs'!J37 -> 0.9987057928 | J12: ='Calcs - Forecast Costs'!K37 -> 1.007880895 | K12: ='Calcs - Forecast Costs'!L37 -> 1.024006989 | L12: ='Calcs - Forecast Costs'!M37 -> 1.044487129 | M12: ='Calcs - Forecast Costs'!N37 -> 1.066421359
E13: material & expense | F13: $/hour | G13: ='Calcs - Forecast Costs'!H51 -> 1 | H13: ='Calcs - Forecast Costs'!I51 -> 1 | I13: ='Calcs - Forecast Costs'!J51 -> 1 | J13: ='Calcs - Forecast Costs'!K51 -> 1 | K13: ='Calcs - Forecast Costs'!L51 -> 1 | L13: ='Calcs - Forecast Costs'!M51 -> 1 | M13: ='Calcs - Forecast Costs'!N51 -> 1
D14: cost
E15: labour | F15: $ | G15: ='Calcs - Forecast Costs'!H57 -> 1e-32 | H15: ='Calcs - Forecast Costs'!I57 -> 0 | I15: ='Calcs - Forecast Costs'!J57 -> 0 | J15: ='Calcs - Forecast Costs'!K57 -> 0 | K15: ='Calcs - Forecast Costs'!L57 -> 0 | L15: ='Calcs - Forecast Costs'!M57 -> 0 | M15: ='Calcs - Forecast Costs'!N57 -> 0
E16: material & expense | F16: $ | G16: ='Calcs - Forecast Costs'!H62 -> 1e-32 | H16: ='Calcs - Forecast Costs'!I62 -> 0 | I16: ='Calcs - Forecast Costs'!J62 -> 0 | J16: ='Calcs - Forecast Costs'!K62 -> 0 | K16: ='Calcs - Forecast Costs'!L62 -> 0 | L16: ='Calcs - Forecast Costs'!M62 -> 0 | M16: ='Calcs - Forecast Costs'!N62 -> 0
C17: Corrective/Condition-based
D18: effort | F18: hours | G18: ='Calcs - Forecast Costs'!H67 -> 1e-32 | H18: ='Calcs - Forecast Costs'!I67 -> 0 | I18: ='Calcs - Forecast Costs'!J67 -> 0 | J18: ='Calcs - Forecast Costs'!K67 -> 0 | K18: ='Calcs - Forecast Costs'!L67 -> 0 | L18: ='Calcs - Forecast Costs'!M67 -> 0 | M18: ='Calcs - Forecast Costs'!N67 -> 0
D19: unit rate
E20: labour | F20: $/hour | G20: ='Calcs - Forecast Costs'!H74 -> 1 | H20: ='Calcs - Forecast Costs'!I74 -> 0.9975327008 | I20: ='Calcs - Forecast Costs'!J74 -> 0.9987057928 | J20: ='Calcs - Forecast Costs'!K74 -> 1.007880895 | K20: ='Calcs - Forecast Costs'!L74 -> 1.024006989 | L20: ='Calcs - Forecast Costs'!M74 -> 1.044487129 | M20: ='Calcs - Forecast Costs'!N74 -> 1.066421359
E21: material & expense | F21: $/hour | G21: ='Calcs - Forecast Costs'!H83 -> 1 | H21: ='Calcs - Forecast Costs'!I83 -> 1 | I21: ='Calcs - Forecast Costs'!J83 -> 1 | J21: ='Calcs - Forecast Costs'!K83 -> 1 | K21: ='Calcs - Forecast Costs'!L83 -> 1 | L21: ='Calcs - Forecast Costs'!M83 -> 1 | M21: ='Calcs - Forecast Costs'!N83 -> 1
D22: cost
E23: labour | F23: $ | G23: ='Calcs - Forecast Costs'!H89 -> 1e-32 | H23: ='Calcs - Forecast Costs'!I89 -> 0 | I23: ='Calcs - Forecast Costs'!J89 -> 0 | J23: ='Calcs - Forecast Costs'!K89 -> 0 | K23: ='Calcs - Forecast Costs'!L89 -> 0 | L23: ='Calcs - Forecast Costs'!M89 -> 0 | M23: ='Calcs - Forecast Costs'!N89 -> 0
E24: material & expense | F24: $ | G24: ='Calcs - Forecast Costs'!H94 -> 1e-32 | H24: ='Calcs - Forecast Costs'!I94 -> 0 | I24: ='Calcs - Forecast Costs'!J94 -> 0 | J24: ='Calcs - Forecast Costs'!K94 -> 0 | K24: ='Calcs - Forecast Costs'!L94 -> 0 | L24: ='Calcs - Forecast Costs'!M94 -> 0 | M24: ='Calcs - Forecast Costs'!N94 -> 0
C25: MOPS
D26: cost
E27: labour | F27: $ | G27: ='Calcs - Forecast Costs'!H100 -> 0 | H27: ='Calcs - Forecast Costs'!I100 -> 0 | I27: ='Calcs - Forecast Costs'!J100 -> 0 | J27: ='Calcs - Forecast Costs'!K100 -> 0 | K27: ='Calcs - Forecast Costs'!L100 -> 0 | L27: ='Calcs - Forecast Costs'!M100 -> 0 | M27: ='Calcs - Forecast Costs'!N100 -> 0
E28: material & expense | F28: $ | G28: ='Calcs - Forecast Costs'!H107 -> 0 | H28: ='Calcs - Forecast Costs'!I107 -> 0 | I28: ='Calcs - Forecast Costs'!J107 -> 0 | J28: ='Calcs - Forecast Costs'!K107 -> 0 | K28: ='Calcs - Forecast Costs'!L107 -> 0 | L28: ='Calcs - Forecast Costs'!M107 -> 0 | M28: ='Calcs - Forecast Costs'!N107 -> 0
C29: Total
E30: labour | F30: $ | G30: ='Calcs - Forecast Costs'!H109 -> 2e-32 | H30: ='Calcs - Forecast Costs'!I109 -> 0 | I30: ='Calcs - Forecast Costs'!J109 -> 0 | J30: ='Calcs - Forecast Costs'!K109 -> 0 | K30: ='Calcs - Forecast Costs'!L109 -> 0 | L30: ='Calcs - Forecast Costs'!M109 -> 0 | M30: ='Calcs - Forecast Costs'!N109 -> 0
E31: materials | F31: $ | G31: ='Calcs - Forecast Costs'!H110 -> 2e-32 | H31: ='Calcs - Forecast Costs'!I110 -> 0 | I31: ='Calcs - Forecast Costs'!J110 -> 0 | J31: ='Calcs - Forecast Costs'!K110 -> 0 | K31: ='Calcs - Forecast Costs'!L110 -> 0 | L31: ='Calcs - Forecast Costs'!M110 -> 0 | M31: ='Calcs - Forecast Costs'!N110 -> 0
B32: ='Input - General'!C18 -> Lines
C33: Preventative
D34: effort | F34: hours | G34: ='Calcs - Forecast Costs'!H119 -> 21129.2536 | H34: ='Calcs - Forecast Costs'!I119 -> 18731.16501 | I34: ='Calcs - Forecast Costs'!J119 -> 16654.60445 | J34: ='Calcs - Forecast Costs'!K119 -> 20743.92108 | K34: ='Calcs - Forecast Costs'!L119 -> 18430.35108 | L34: ='Calcs - Forecast Costs'!M119 -> 18938.17253 | M34: ='Calcs - Forecast Costs'!N119 -> 18212.02426
D35: unit rate
E36: labour | F36: $/hour | G36: ='Calcs - Forecast Costs'!H130 -> 142.8756143 | H36: ='Calcs - Forecast Costs'!I130 -> 142.5230974 | I36: ='Calcs - Forecast Costs'!J130 -> 142.6907036 | J36: ='Calcs - Forecast Costs'!K130 -> 144.001602 | K36: ='Calcs - Forecast Costs'!L130 -> 146.3056276 | L36: ='Calcs - Forecast Costs'!M130 -> 149.2317401 | M36: ='Calcs - Forecast Costs'!N130 -> 152.3656067
E37: material & expense | F37: $/hour | G37: ='Calcs - Forecast Costs'!H144 -> 82.82347092 | H37: ='Calcs - Forecast Costs'!I144 -> 83.34659652 | I37: ='Calcs - Forecast Costs'!J144 -> 83.87302626 | J37: ='Calcs - Forecast Costs'!K144 -> 84.54725958 | K37: ='Calcs - Forecast Costs'!L144 -> 85.32400622 | L37: ='Calcs - Forecast Costs'!M144 -> 86.3038596 | M37: ='Calcs - Forecast Costs'!N144 -> 87.34452083
D38: cost
E39: labour | F39: $ | G39: ='Calcs - Forecast Costs'!H150 -> 3018855.087 | H39: ='Calcs - Forecast Costs'!I150 -> 2669623.654 | I39: ='Calcs - Forecast Costs'!J150 -> 2376457.227 | J39: ='Calcs - Forecast Costs'!K150 -> 2987157.867 | K39: ='Calcs - Forecast Costs'!L150 -> 2696464.082 | L39: ='Calcs - Forecast Costs'!M150 -> 2826176.442 | M39: ='Calcs - Forecast Costs'!N150 -> 2774886.125
E40: material & expense | F40: $ | G40: ='Calcs - Forecast Costs'!H155 -> 1749998.121 | H40: ='Calcs - Forecast Costs'!I155 -> 1561178.852 | I40: ='Calcs - Forecast Costs'!J155 -> 1396872.076 | J40: ='Calcs - Forecast Costs'!K155 -> 1753841.681 | K40: ='Calcs - Forecast Costs'!L155 -> 1572551.39 | L40: ='Calcs - Forecast Costs'!M155 -> 1634437.383 | M40: ='Calcs - Forecast Costs'!N155 -> 1590720.532
C41: Corrective/Condition-based
D42: effort | F42: hours | G42: ='Calcs - Forecast Costs'!H160 -> 20733.0425 | H42: ='Calcs - Forecast Costs'!I160 -> 15335.49325 | I42: ='Calcs - Forecast Costs'!J160 -> 13635.38114 | J42: ='Calcs - Forecast Costs'!K160 -> 16983.36764 | K42: ='Calcs - Forecast Costs'!L160 -> 15089.21226 | L42: ='Calcs - Forecast Costs'!M160 -> 15504.97349 | M42: ='Calcs - Forecast Costs'!N160 -> 14910.46472
D43: unit rate
E44: labour | F44: $/hour | G44: ='Calcs - Forecast Costs'!H167 -> 143.7944374 | H44: ='Calcs - Forecast Costs'!I167 -> 143.4396535 | I44: ='Calcs - Forecast Costs'!J167 -> 143.6083376 | J44: ='Calcs - Forecast Costs'!K167 -> 144.9276663 | K44: ='Calcs - Forecast Costs'!L167 -> 147.2465089 | L44: ='Calcs - Forecast Costs'!M167 -> 150.1914391 | M44: ='Calcs - Forecast Costs'!N167 -> 153.3454593
E45: material & expense | F45: $/hour | G45: ='Calcs - Forecast Costs'!H176 -> 81.20043785 | H45: ='Calcs - Forecast Costs'!I176 -> 81.71331213 | I45: ='Calcs - Forecast Costs'!J176 -> 82.2294258 | J45: ='Calcs - Forecast Costs'!K176 -> 82.89044665 | K45: ='Calcs - Forecast Costs'!L176 -> 83.65197193 | L45: ='Calcs - Forecast Costs'!M176 -> 84.61262382 | M45: ='Calcs - Forecast Costs'!N176 -> 85.63289194
D46: cost
E47: labour | F47: $ | G47: ='Calcs - Forecast Costs'!H182 -> 2981296.183 | H47: ='Calcs - Forecast Costs'!I182 -> 2199717.838 | I47: ='Calcs - Forecast Costs'!J182 -> 1958154.419 | J47: ='Calcs - Forecast Costs'!K182 -> 2461359.838 | K47: ='Calcs - Forecast Costs'!L182 -> 2221833.828 | L47: ='Calcs - Forecast Costs'!M182 -> 2328714.283 | M47: ='Calcs - Forecast Costs'!N182 -> 2286452.062
E48: material & expense | F48: $ | G48: ='Calcs - Forecast Costs'!H187 -> 1683532.129 | H48: ='Calcs - Forecast Costs'!I187 -> 1253113.946 | I48: ='Calcs - Forecast Costs'!J187 -> 1121229.562 | J48: ='Calcs - Forecast Costs'!K187 -> 1407758.93 | K48: ='Calcs - Forecast Costs'!L187 -> 1262242.36 | L48: ='Calcs - Forecast Costs'!M187 -> 1311916.49 | M48: ='Calcs - Forecast Costs'!N187 -> 1276826.214
C49: MOPS
D50: cost
E51: labour | F51: $ | G51: ='Calcs - Forecast Costs'!H193 -> 524890.25 | H51: ='Calcs - Forecast Costs'!I193 -> 283545.5443 | I51: ='Calcs - Forecast Costs'!J193 -> 641770.7761 | J51: ='Calcs - Forecast Costs'!K193 -> 1178392.019 | K51: ='Calcs - Forecast Costs'!L193 -> 1965035.445 | L51: ='Calcs - Forecast Costs'!M193 -> 470222.3867 | M51: ='Calcs - Forecast Costs'!N193 -> 451207.1798
E52: material & expense | F52: $ | G52: ='Calcs - Forecast Costs'!H200 -> 531685.43 | H52: ='Calcs - Forecast Costs'!I200 -> 285828.45 | I52: ='Calcs - Forecast Costs'!J200 -> 2473523.995 | J52: ='Calcs - Forecast Costs'!K200 -> 3307873.112 | K52: ='Calcs - Forecast Costs'!L200 -> 4226277.851 | L52: ='Calcs - Forecast Costs'!M200 -> 374002.9498 | M52: ='Calcs - Forecast Costs'!N200 -> 355863.915
C53: Total
E54: labour | F54: $ | G54: ='Calcs - Forecast Costs'!H202 -> 6525041.52 | H54: ='Calcs - Forecast Costs'!I202 -> 5152887.037 | I54: ='Calcs - Forecast Costs'!J202 -> 4976382.422 | J54: ='Calcs - Forecast Costs'!K202 -> 6626909.724 | K54: ='Calcs - Forecast Costs'!L202 -> 6883333.355 | L54: ='Calcs - Forecast Costs'!M202 -> 5625113.111 | M54: ='Calcs - Forecast Costs'!N202 -> 5512545.367
E55: materials | F55: $ | G55: ='Calcs - Forecast Costs'!H203 -> 3965215.68 | H55: ='Calcs - Forecast Costs'!I203 -> 3100121.249 | I55: ='Calcs - Forecast Costs'!J203 -> 4991625.633 | J55: ='Calcs - Forecast Costs'!K203 -> 6469473.723 | K55: ='Calcs - Forecast Costs'!L203 -> 7061071.602 | L55: ='Calcs - Forecast Costs'!M203 -> 3320356.822 | M55: ='Calcs - Forecast Costs'!N203 -> 3223410.662
B56: ='Input - General'!C19 -> Substations
C57: Preventative
D58: effort | F58: hours | G58: ='Calcs - Forecast Costs'!H212 -> 58324.4184 | H58: ='Calcs - Forecast Costs'!I212 -> 52144.4193 | I58: ='Calcs - Forecast Costs'!J212 -> 54871.33715 | J58: ='Calcs - Forecast Costs'!K212 -> 60902.41003 | K58: ='Calcs - Forecast Costs'!L212 -> 59371.22345 | L58: ='Calcs - Forecast Costs'!M212 -> 58702.88825 | M58: ='Calcs - Forecast Costs'!N212 -> 57554.09273
D59: unit rate
E60: labour | F60: $/hour | G60: ='Calcs - Forecast Costs'!H223 -> 177.3745665 | H60: ='Calcs - Forecast Costs'!I223 -> 176.9369304 | I60: ='Calcs - Forecast Costs'!J223 -> 177.1450071 | J60: ='Calcs - Forecast Costs'!K223 -> 178.7724368 | K60: ='Calcs - Forecast Costs'!L223 -> 181.6327958 | L60: ='Calcs - Forecast Costs'!M223 -> 185.2654517 | M60: ='Calcs - Forecast Costs'!N223 -> 189.1560262
E61: material & expense | F61: $/hour | G61: ='Calcs - Forecast Costs'!H237 -> 24.14177601 | H61: ='Calcs - Forecast Costs'!I237 -> 24.25961057 | I61: ='Calcs - Forecast Costs'!J237 -> 24.37802026 | J61: ='Calcs - Forecast Costs'!K237 -> 24.52945909 | K61: ='Calcs - Forecast Costs'!L237 -> 24.70360718 | L61: ='Calcs - Forecast Costs'!M237 -> 24.92283776 | M61: ='Calcs - Forecast Costs'!N237 -> 25.15507269
D62: cost
E63: labour | F63: $ | G63: ='Calcs - Forecast Costs'!H243 -> 10345268.43 | H63: ='Calcs - Forecast Costs'!I243 -> 9226273.489 | I63: ='Calcs - Forecast Costs'!J243 -> 9720183.41 | J63: ='Calcs - Forecast Costs'!K243 -> 10887672.25 | K63: ='Calcs - Forecast Costs'!L243 -> 10783761.31 | L63: ='Calcs - Forecast Costs'!M243 -> 10875617.11 | M63: ='Calcs - Forecast Costs'!N243 -> 10886703.47
E64: material & expense | F64: $ | G64: ='Calcs - Forecast Costs'!H248 -> 1408055.045 | H64: ='Calcs - Forecast Costs'!I248 -> 1265003.305 | I64: ='Calcs - Forecast Costs'!J248 -> 1337654.569 | J64: ='Calcs - Forecast Costs'!K248 -> 1493903.175 | K64: ='Calcs - Forecast Costs'!L248 -> 1466683.382 | L64: ='Calcs - Forecast Costs'!M248 -> 1463042.56 | M64: ='Calcs - Forecast Costs'!N248 -> 1447777.386
C65: Corrective/Condition-based
D66: effort | F66: hours | G66: ='Calcs - Forecast Costs'!H253 -> 50856.8055 | H66: ='Calcs - Forecast Costs'!I253 -> 51326.18022 | I66: ='Calcs - Forecast Costs'!J253 -> 54010.30786 | J66: ='Calcs - Forecast Costs'!K253 -> 59946.74243 | K66: ='Calcs - Forecast Costs'!L253 -> 58439.5829 | L66: ='Calcs - Forecast Costs'!M253 -> 57781.73507 | M66: ='Calcs - Forecast Costs'!N253 -> 56650.96621
D67: unit rate
E68: labour | F68: $/hour | G68: ='Calcs - Forecast Costs'!H260 -> 184.2666903 | H68: ='Calcs - Forecast Costs'!I260 -> 183.8120492 | I68: ='Calcs - Forecast Costs'!J260 -> 184.028211 | J68: ='Calcs - Forecast Costs'!K260 -> 185.7188767 | K68: ='Calcs - Forecast Costs'!L260 -> 188.6903787 | L68: ='Calcs - Forecast Costs'!M260 -> 192.4641863 | M68: ='Calcs - Forecast Costs'!N260 -> 196.5059342
E69: material & expense | F69: $/hour | G69: ='Calcs - Forecast Costs'!H269 -> 87.00578755 | H69: ='Calcs - Forecast Costs'!I269 -> 87.43045756 | I69: ='Calcs - Forecast Costs'!J269 -> 87.85720036 | J69: ='Calcs - Forecast Costs'!K269 -> 88.40297852 | K69: ='Calcs - Forecast Costs'!L269 -> 89.03059978 | L69: ='Calcs - Forecast Costs'!M269 -> 89.82069613 | M69: ='Calcs - Forecast Costs'!N269 -> 90.65765955
D70: cost
E71: labour | F71: $ | G71: ='Calcs - Forecast Costs'!H275 -> 9371215.228 | H71: ='Calcs - Forecast Costs'!I275 -> 9434370.364 | I71: ='Calcs - Forecast Costs'!J275 -> 9939420.33 | J71: ='Calcs - Forecast Costs'!K275 -> 11133241.66 | K71: ='Calcs - Forecast Costs'!L275 -> 11026987.03 | L71: ='Calcs - Forecast Costs'!M275 -> 11120914.62 | M71: ='Calcs - Forecast Costs'!N275 -> 11132251.04
E72: material & expense | F72: $ | G72: ='Calcs - Forecast Costs'!H280 -> 4424836.415 | H72: ='Calcs - Forecast Costs'!I280 -> 4487471.421 | I72: ='Calcs - Forecast Costs'!J280 -> 4745194.439 | J72: ='Calcs - Forecast Costs'!K280 -> 5299470.584 | K72: ='Calcs - Forecast Costs'!L280 -> 5202911.116 | L72: ='Calcs - Forecast Costs'!M280 -> 5189995.668 | M72: ='Calcs - Forecast Costs'!N280 -> 5135844.007
C73: MOPS
D74: cost
E75: labour | F75: $ | G75: ='Calcs - Forecast Costs'!H286 -> 630376.91 | H75: ='Calcs - Forecast Costs'!I286 -> 1692497.878 | I75: ='Calcs - Forecast Costs'!J286 -> 1220185.554 | J75: ='Calcs - Forecast Costs'!K286 -> 1193742.755 | K75: ='Calcs - Forecast Costs'!L286 -> 1230771.836 | L75: ='Calcs - Forecast Costs'!M286 -> 1188986.075 | M75: ='Calcs - Forecast Costs'!N286 -> 1192671.141
E76: material & expense | F76: $ | G76: ='Calcs - Forecast Costs'!H293 -> 1046856.25 | H76: ='Calcs - Forecast Costs'!I293 -> 2174859.242 | I76: ='Calcs - Forecast Costs'!J293 -> 3391963.031 | J76: ='Calcs - Forecast Costs'!K293 -> 3276603.536 | K76: ='Calcs - Forecast Costs'!L293 -> 3317489.386 | L76: ='Calcs - Forecast Costs'!M293 -> 3170704.455 | M76: ='Calcs - Forecast Costs'!N293 -> 3145299.276
C77: Total
E78: labour | F78: $ | G78: ='Calcs - Forecast Costs'!H295 -> 20346860.57 | H78: ='Calcs - Forecast Costs'!I295 -> 20353141.73 | I78: ='Calcs - Forecast Costs'!J295 -> 20879789.29 | J78: ='Calcs - Forecast Costs'!K295 -> 23214656.67 | K78: ='Calcs - Forecast Costs'!L295 -> 23041520.17 | L78: ='Calcs - Forecast Costs'!M295 -> 23185517.81 | M78: ='Calcs - Forecast Costs'!N295 -> 23211625.65
E79: materials | F79: $ | G79: ='Calcs - Forecast Costs'!H296 -> 6879747.71 | H79: ='Calcs - Forecast Costs'!I296 -> 7927333.968 | I79: ='Calcs - Forecast Costs'!J296 -> 9474812.038 | J79: ='Calcs - Forecast Costs'!K296 -> 10069977.29 | K79: ='Calcs - Forecast Costs'!L296 -> 9987083.884 | L79: ='Calcs - Forecast Costs'!M296 -> 9823742.683 | M79: ='Calcs - Forecast Costs'!N296 -> 9728920.67
B80: ='Input - General'!C20 -> Communications
C81: Preventative
D82: effort | F82: hours | G82: ='Calcs - Forecast Costs'!H305 -> 6851.502938 | H82: ='Calcs - Forecast Costs'!I305 -> 6672.963846 | I82: ='Calcs - Forecast Costs'!J305 -> 6411.158247 | J82: ='Calcs - Forecast Costs'!K305 -> 7004.245662 | K82: ='Calcs - Forecast Costs'!L305 -> 7190.625356 | L82: ='Calcs - Forecast Costs'!M305 -> 7016.124699 | M82: ='Calcs - Forecast Costs'!N305 -> 7313.358457
D83: unit rate
E84: labour | F84: $/hour | G84: ='Calcs - Forecast Costs'!H316 -> 277.6631725 | H84: ='Calcs - Forecast Costs'!I316 -> 276.9780944 | I84: ='Calcs - Forecast Costs'!J316 -> 277.3038188 | J84: ='Calcs - Forecast Costs'!K316 -> 279.8514067 | K84: ='Calcs - Forecast Costs'!L316 -> 284.3290292 | L84: ='Calcs - Forecast Costs'!M316 -> 290.0156098 | M84: ='Calcs - Forecast Costs'!N316 -> 296.1059376
E85: material & expense | F85: $/hour | G85: ='Calcs - Forecast Costs'!H330 -> 4.437379636 | H85: ='Calcs - Forecast Costs'!I330 -> 4.452997003 | I85: ='Calcs - Forecast Costs'!J330 -> 4.468669335 | J85: ='Calcs - Forecast Costs'!K330 -> 4.488686142 | K85: ='Calcs - Forecast Costs'!L330 -> 4.511664964 | L85: ='Calcs - Forecast Costs'!M330 -> 4.540535535 | M85: ='Calcs - Forecast Costs'!N330 -> 4.571043618
D86: cost
E87: labour | F87: $ | G87: ='Calcs - Forecast Costs'!H336 -> 1902410.042 | H87: ='Calcs - Forecast Costs'!I336 -> 1848264.81 | I87: ='Calcs - Forecast Costs'!J336 -> 1777838.665 | J87: ='Calcs - Forecast Costs'!K336 -> 1960148.002 | K87: ='Calcs - Forecast Costs'!L336 -> 2044503.527 | L87: ='Calcs - Forecast Costs'!M336 -> 2034785.683 | M87: ='Calcs - Forecast Costs'!N336 -> 2165528.863
E88: material & expense | F88: $ | G88: ='Calcs - Forecast Costs'!H341 -> 30402.71962 | H88: ='Calcs - Forecast Costs'!I341 -> 29714.68801 | I88: ='Calcs - Forecast Costs'!J341 -> 28649.34626 | J88: ='Calcs - Forecast Costs'!K341 -> 31439.86044 | K88: ='Calcs - Forecast Costs'!L341 -> 32441.69249 | L88: ='Calcs - Forecast Costs'!M341 -> 31856.96352 | M88: ='Calcs - Forecast Costs'!N341 -> 33429.6805
C89: Corrective/Condition-based
D90: effort | F90: hours | G90: ='Calcs - Forecast Costs'!H346 -> 12564.27786 | H90: ='Calcs - Forecast Costs'!I346 -> 14196.76656 | I90: ='Calcs - Forecast Costs'!J346 -> 13639.77374 | J90: ='Calcs - Forecast Costs'!K346 -> 14901.57041 | K90: ='Calcs - Forecast Costs'!L346 -> 15298.09421 | L90: ='Calcs - Forecast Costs'!M346 -> 14926.84312 | M90: ='Calcs - Forecast Costs'!N346 -> 15559.20955
D91: unit rate
E92: labour | F92: $/hour | G92: ='Calcs - Forecast Costs'!H353 -> 197.24509 | H92: ='Calcs - Forecast Costs'!I353 -> 196.7584274 | I92: ='Calcs - Forecast Costs'!J353 -> 196.989814 | J92: ='Calcs - Forecast Costs'!K353 -> 198.7995578 | K92: ='Calcs - Forecast Costs'!L353 -> 201.9803507 | L92: ='Calcs - Forecast Costs'!M353 -> 206.0199578 | M92: ='Calcs - Forecast Costs'!N353 -> 210.3463769
E93: material & expense | F93: $/hour | G93: ='Calcs - Forecast Costs'!H362 -> 136.306227 | H93: ='Calcs - Forecast Costs'!I362 -> 136.7859571 | I93: ='Calcs - Forecast Costs'!J362 -> 137.2673755 | J93: ='Calcs - Forecast Costs'!K362 -> 137.8822464 | K93: ='Calcs - Forecast Costs'!L362 -> 138.5881036 | L93: ='Calcs - Forecast Costs'!M362 -> 139.474942 | M93: ='Calcs - Forecast Costs'!N362 -> 140.412081
D94: cost
E95: labour | F95: $ | G95: ='Calcs - Forecast Costs'!H368 -> 2478242.118 | H95: ='Calcs - Forecast Costs'!I368 -> 2793333.462 | I95: ='Calcs - Forecast Costs'!J368 -> 2686896.491 | J95: ='Calcs - Forecast Costs'!K368 -> 2962425.608 | K95: ='Calcs - Forecast Costs'!L368 -> 3089914.435 | L95: ='Calcs - Forecast Costs'!M368 -> 3075227.59 | M95: ='Calcs - Forecast Costs'!N368 -> 3272823.355
E96: material & expense | F96: $ | G96: ='Calcs - Forecast Costs'!H373 -> 1712589.31 | H96: ='Calcs - Forecast Costs'!I373 -> 1941918.301 | I96: ='Calcs - Forecast Costs'!J373 -> 1872295.943 | J96: ='Calcs - Forecast Costs'!K373 -> 2054662.002 | K96: ='Calcs - Forecast Costs'!L373 -> 2120133.866 | L96: ='Calcs - Forecast Costs'!M373 -> 2081920.579 | M96: ='Calcs - Forecast Costs'!N373 -> 2184700.992
C97: MOPS
D98: cost
E99: labour | F99: $ | G99: ='Calcs - Forecast Costs'!H379 -> 5913.66 | H99: ='Calcs - Forecast Costs'!I379 -> 67660.68466 | I99: ='Calcs - Forecast Costs'!J379 -> 55887.39717 | J99: ='Calcs - Forecast Costs'!K379 -> 56400.83424 | K99: ='Calcs - Forecast Costs'!L379 -> 57303.24758 | L99: ='Calcs - Forecast Costs'!M379 -> 58449.31253 | M99: ='Calcs - Forecast Costs'!N379 -> 59676.7481
E100: material & expense | F100: $ | G100: ='Calcs - Forecast Costs'!H386 -> 79827.62 | H100: ='Calcs - Forecast Costs'!I386 -> 92755.03271 | I100: ='Calcs - Forecast Costs'!J386 -> 31891.66557 | J100: ='Calcs - Forecast Costs'!K386 -> 32036.65391 | K100: ='Calcs - Forecast Costs'!L386 -> 32204.6747 | L100: ='Calcs - Forecast Costs'!M386 -> 32418.06109 | M100: ='Calcs - Forecast Costs'!N386 -> 32646.59792
C101: Total
E102: labour | F102: $ | G102: ='Calcs - Forecast Costs'!H388 -> 4386565.82 | H102: ='Calcs - Forecast Costs'!I388 -> 4709258.957 | I102: ='Calcs - Forecast Costs'!J388 -> 4520622.553 | J102: ='Calcs - Forecast Costs'!K388 -> 4978974.444 | K102: ='Calcs - Forecast Costs'!L388 -> 5191721.21 | L102: ='Calcs - Forecast Costs'!M388 -> 5168462.586 | M102: ='Calcs - Forecast Costs'!N388 -> 5498028.967
E103: materials | F103: $ | G103: ='Calcs - Forecast Costs'!H389 -> 1822819.65 | H103: ='Calcs - Forecast Costs'!I389 -> 2064388.022 | I103: ='Calcs - Forecast Costs'!J389 -> 1932836.955 | J103: ='Calcs - Forecast Costs'!K389 -> 2118138.517 | K103: ='Calcs - Forecast Costs'!L389 -> 2184780.233 | L103: ='Calcs - Forecast Costs'!M389 -> 2146195.604 | M103: ='Calcs - Forecast Costs'!N389 -> 2250777.27
B104: ='Input - General'!C21 -> Secondary Systems
C105: Preventative
D106: effort | F106: hours | G106: ='Calcs - Forecast Costs'!H398 -> 19489.449 | H106: ='Calcs - Forecast Costs'!I398 -> 25662.76565 | I106: ='Calcs - Forecast Costs'!J398 -> 21910.22581 | J106: ='Calcs - Forecast Costs'!K398 -> 22944.68262 | K106: ='Calcs - Forecast Costs'!L398 -> 27897.52464 | L106: ='Calcs - Forecast Costs'!M398 -> 26800.67551 | M106: ='Calcs - Forecast Costs'!N398 -> 26180.76078
D107: unit rate
E108: labour | F108: $/hour | G108: ='Calcs - Forecast Costs'!H409 -> 185.6335917 | H108: ='Calcs - Forecast Costs'!I409 -> 185.1755781 | I108: ='Calcs - Forecast Costs'!J409 -> 185.3933433 | J108: ='Calcs - Forecast Costs'!K409 -> 187.0965505 | K108: ='Calcs - Forecast Costs'!L409 -> 190.0900953 | L108: ='Calcs - Forecast Costs'!M409 -> 193.8918972 | M108: ='Calcs - Forecast Costs'!N409 -> 197.963627
E109: material & expense | F109: $/hour | G109: ='Calcs - Forecast Costs'!H423 -> 13.71456546 | H109: ='Calcs - Forecast Costs'!I423 -> 13.74024054 | I109: ='Calcs - Forecast Costs'!J423 -> 13.76596369 | J109: ='Calcs - Forecast Costs'!K423 -> 13.79876353 | K109: ='Calcs - Forecast Costs'!L423 -> 13.83633839 | L109: ='Calcs - Forecast Costs'!M423 -> 13.88343485 | M109: ='Calcs - Forecast Costs'!N423 -> 13.93305445
D110: cost
E111: labour | F111: $ | G111: ='Calcs - Forecast Costs'!H429 -> 3617896.418 | H111: ='Calcs - Forecast Costs'!I429 -> 4752117.463 | I111: ='Calcs - Forecast Costs'!J429 -> 4062010.016 | J111: ='Calcs - Forecast Costs'!K429 -> 4292870.969 | K111: ='Calcs - Forecast Costs'!L429 -> 5303043.117 | L111: ='Calcs - Forecast Costs'!M429 -> 5196433.821 | M111: ='Calcs - Forecast Costs'!N429 -> 5182838.363
E112: material & expense | F112: $ | G112: ='Calcs - Forecast Costs'!H434 -> 267289.3241 | H112: ='Calcs - Forecast Costs'!I434 -> 352612.573 | I112: ='Calcs - Forecast Costs'!J434 -> 301615.373 | J112: ='Calcs - Forecast Costs'!K434 -> 316608.2498 | K112: ='Calcs - Forecast Costs'!L434 -> 385999.591 | L112: ='Calcs - Forecast Costs'!M434 -> 372085.4323 | M112: ='Calcs - Forecast Costs'!N434 -> 364777.9656
C113: Corrective/Condition-based
D114: effort | F114: hours | G114: ='Calcs - Forecast Costs'!H439 -> 3325.9235 | H114: ='Calcs - Forecast Costs'!I439 -> 7235.96743 | I114: ='Calcs - Forecast Costs'!J439 -> 6177.887549 | J114: ='Calcs - Forecast Costs'!K439 -> 6469.56678 | K114: ='Calcs - Forecast Costs'!L439 -> 7866.088264 | L114: ='Calcs - Forecast Costs'!M439 -> 7556.816666 | M114: ='Calcs - Forecast Costs'!N439 -> 7382.023238
D115: unit rate
E116: labour | F116: $/hour | G116: ='Calcs - Forecast Costs'!H446 -> 210.3247004 | H116: ='Calcs - Forecast Costs'!I446 -> 209.8057664 | I116: ='Calcs - Forecast Costs'!J446 -> 210.0524966 | J116: ='Calcs - Forecast Costs'!K446 -> 211.9822472 | K116: ='Calcs - Forecast Costs'!L446 -> 215.3739632 | L116: ='Calcs - Forecast Costs'!M446 -> 219.6814424 | M116: ='Calcs - Forecast Costs'!N446 -> 224.2947527
E117: material & expense | F117: $/hour | G117: ='Calcs - Forecast Costs'!H455 -> 111.5963479 | H117: ='Calcs - Forecast Costs'!I455 -> 111.8052677 | I117: ='Calcs - Forecast Costs'!J455 -> 112.0145787 | J117: ='Calcs - Forecast Costs'!K455 -> 112.2814733 | K117: ='Calcs - Forecast Costs'!L455 -> 112.5872224 | L117: ='Calcs - Forecast Costs'!M455 -> 112.9704495 | M117: ='Calcs - Forecast Costs'!N455 -> 113.3742076
D118: cost
E119: labour | F119: $ | G119: ='Calcs - Forecast Costs'!H461 -> 699523.8637 | H119: ='Calcs - Forecast Costs'!I461 -> 1518147.693 | I119: ='Calcs - Forecast Costs'!J461 -> 1297680.704 | J119: ='Calcs - Forecast Costs'!K461 -> 1371433.305 | K119: ='Calcs - Forecast Costs'!L461 -> 1694150.604 | L119: ='Calcs - Forecast Costs'!M461 -> 1660092.386 | M119: ='Calcs - Forecast Costs'!N461 -> 1655749.077
E120: material & expense | F120: $ | G120: ='Calcs - Forecast Costs'!H466 -> 371160.9159 | H120: ='Calcs - Forecast Costs'!I466 -> 809019.2759 | I120: ='Calcs - Forecast Costs'!J466 -> 692013.4713 | J120: ='Calcs - Forecast Costs'!K466 -> 726412.4896 | K120: ='Calcs - Forecast Costs'!L466 -> 885621.0286 | L120: ='Calcs - Forecast Costs'!M466 -> 853696.9754 | M120: ='Calcs - Forecast Costs'!N466 -> 836931.0349
C121: MOPS
D122: cost
E123: labour | F123: $ | G123: ='Calcs - Forecast Costs'!H472 -> 0 | H123: ='Calcs - Forecast Costs'!I472 -> 0 | I123: ='Calcs - Forecast Costs'!J472 -> 544333.29 | J123: ='Calcs - Forecast Costs'!K472 -> 835315.3359 | K123: ='Calcs - Forecast Costs'!L472 -> 598158.9563 | L123: ='Calcs - Forecast Costs'!M472 -> 101687.0226 | M123: ='Calcs - Forecast Costs'!N472 -> 0
E124: material & expense | F124: $ | G124: ='Calcs - Forecast Costs'!H479 -> 0 | H124: ='Calcs - Forecast Costs'!I479 -> 0 | I124: ='Calcs - Forecast Costs'!J479 -> 124299.8045 | J124: ='Calcs - Forecast Costs'!K479 -> 1198350.585 | K124: ='Calcs - Forecast Costs'!L479 -> 1080577.576 | L124: ='Calcs - Forecast Costs'!M479 -> 0 | M124: ='Calcs - Forecast Costs'!N479 -> 0
C125: Total
E126: labour | F126: $ | G126: ='Calcs - Forecast Costs'!H481 -> 4317420.281 | H126: ='Calcs - Forecast Costs'!I481 -> 6270265.156 | I126: ='Calcs - Forecast Costs'!J481 -> 5904024.01 | J126: ='Calcs - Forecast Costs'!K481 -> 6499619.61 | K126: ='Calcs - Forecast Costs'!L481 -> 7595352.677 | L126: ='Calcs - Forecast Costs'!M481 -> 6958213.229 | M126: ='Calcs - Forecast Costs'!N481 -> 6838587.44
E127: materials | F127: $ | G127: ='Calcs - Forecast Costs'!H482 -> 638450.24 | H127: ='Calcs - Forecast Costs'!I482 -> 1161631.849 | I127: ='Calcs - Forecast Costs'!J482 -> 1117928.649 | J127: ='Calcs - Forecast Costs'!K482 -> 2241371.324 | K127: ='Calcs - Forecast Costs'!L482 -> 2352198.196 | L127: ='Calcs - Forecast Costs'!M482 -> 1225782.408 | M127: ='Calcs - Forecast Costs'!N482 -> 1201709.001
B128: ='Input - General'!C22 -> Land and Easements
C129: Preventative
D130: effort | F130: hours | G130: ='Calcs - Forecast Costs'!H491 -> 28955.60586 | H130: ='Calcs - Forecast Costs'!I491 -> 20496.99962 | I130: ='Calcs - Forecast Costs'!J491 -> 26135.33884 | J130: ='Calcs - Forecast Costs'!K491 -> 21441.65694 | K130: ='Calcs - Forecast Costs'!L491 -> 30873.0616 | L130: ='Calcs - Forecast Costs'!M491 -> 22959.16551 | M130: ='Calcs - Forecast Costs'!N491 -> 29410.73267
D131: unit rate
E132: labour | F132: $/hour | G132: ='Calcs - Forecast Costs'!H502 -> 65.34170641 | H132: ='Calcs - Forecast Costs'!I502 -> 65.18048887 | I132: ='Calcs - Forecast Costs'!J502 -> 65.25714071 | J132: ='Calcs - Forecast Costs'!K502 -> 65.85665753 | K132: ='Calcs - Forecast Costs'!L502 -> 66.91036405 | L132: ='Calcs - Forecast Costs'!M502 -> 68.24857133 | M132: ='Calcs - Forecast Costs'!N502 -> 69.68179133
E133: material & expense | F133: $/hour | G133: ='Calcs - Forecast Costs'!H516 -> 3.074784443 | H133: ='Calcs - Forecast Costs'!I516 -> 3.093229851 | I133: ='Calcs - Forecast Costs'!J516 -> 3.111785911 | J133: ='Calcs - Forecast Costs'!K516 -> 3.135544391 | K133: ='Calcs - Forecast Costs'!L516 -> 3.162904249 | L133: ='Calcs - Forecast Costs'!M516 -> 3.197402489 | M133: ='Calcs - Forecast Costs'!N516 -> 3.234020732
D134: cost
E135: labour | F135: $ | G135: ='Calcs - Forecast Costs'!H522 -> 1892008.697 | H135: ='Calcs - Forecast Costs'!I522 -> 1336004.455 | I135: ='Calcs - Forecast Costs'!J522 -> 1705517.484 | J135: ='Calcs - Forecast Costs'!K522 -> 1412075.858 | K135: ='Calcs - Forecast Costs'!L522 -> 2065727.791 | L135: ='Calcs - Forecast Costs'!M522 -> 1566930.245 | M135: ='Calcs - Forecast Costs'!N522 -> 2049392.536
E136: material & expense | F136: $ | G136: ='Calcs - Forecast Costs'!H527 -> 89032.24642 | H136: ='Calcs - Forecast Costs'!I527 -> 1948647.185 | I136: ='Calcs - Forecast Costs'!J527 -> 2054127.652 | J136: ='Calcs - Forecast Costs'!K527 -> 1940293.123 | K136: ='Calcs - Forecast Costs'!L527 -> 1771693.542 | L136: ='Calcs - Forecast Costs'!M527 -> 1775529.719 | M136: ='Calcs - Forecast Costs'!N527 -> 1755379.873
C137: Corrective/Condition-based
D138: effort | F138: hours | G138: ='Calcs - Forecast Costs'!H532 -> 6172.015143 | H138: ='Calcs - Forecast Costs'!I532 -> 6350.840688 | I138: ='Calcs - Forecast Costs'!J532 -> 8097.837556 | J138: ='Calcs - Forecast Costs'!K532 -> 6643.535631 | K138: ='Calcs - Forecast Costs'!L532 -> 9565.785208 | L138: ='Calcs - Forecast Costs'!M532 -> 7113.724213 | M138: ='Calcs - Forecast Costs'!N532 -> 9112.693622
D139: unit rate
E140: labour | F140: $/hour | G140: ='Calcs - Forecast Costs'!H539 -> 414.5929204 | H140: ='Calcs - Forecast Costs'!I539 -> 413.5699957 | I140: ='Calcs - Forecast Costs'!J539 -> 414.0563513 | J140: ='Calcs - Forecast Costs'!K539 -> 417.8602836 | K140: ='Calcs - Forecast Costs'!L539 -> 424.5460482 | L140: ='Calcs - Forecast Costs'!M539 -> 433.0369691 | M140: ='Calcs - Forecast Costs'!N539 -> 442.1307455
E141: material & expense | F141: $/hour | G141: ='Calcs - Forecast Costs'!H548 -> 134.1059547 | H141: ='Calcs - Forecast Costs'!I548 -> 134.9104465 | I141: ='Calcs - Forecast Costs'!J548 -> 135.7197645 | J141: ='Calcs - Forecast Costs'!K548 -> 136.7559846 | K141: ='Calcs - Forecast Costs'!L548 -> 137.949278 | L141: ='Calcs - Forecast Costs'!M548 -> 139.4539101 | M141: ='Calcs - Forecast Costs'!N548 -> 141.0510056
D142: cost
E143: labour | F143: $ | G143: ='Calcs - Forecast Costs'!H554 -> 2558873.783 | H143: ='Calcs - Forecast Costs'!I554 -> 2626517.156 | I143: ='Calcs - Forecast Costs'!J554 -> 3352961.072 | J143: ='Calcs - Forecast Costs'!K554 -> 2776069.683 | K143: ='Calcs - Forecast Costs'!L554 -> 4061116.308 | L143: ='Calcs - Forecast Costs'!M554 -> 3080505.572 | M143: ='Calcs - Forecast Costs'!N554 -> 4029002.025
E144: material & expense | F144: $ | G144: ='Calcs - Forecast Costs'!H559 -> 827703.983 | H144: ='Calcs - Forecast Costs'!I559 -> 11801352.36 | I144: ='Calcs - Forecast Costs'!J559 -> 12551882.86 | J144: ='Calcs - Forecast Costs'!K559 -> 11782371.66 | K144: ='Calcs - Forecast Costs'!L559 -> 11038053.9 | L144: ='Calcs - Forecast Costs'!M559 -> 10873483.46 | M144: ='Calcs - Forecast Costs'!N559 -> 10923816.96
C145: MOPS
D146: cost
E147: labour | F147: $ | G147: ='Calcs - Forecast Costs'!H565 -> 0 | H147: ='Calcs - Forecast Costs'!I565 -> 0 | I147: ='Calcs - Forecast Costs'!J565 -> 0 | J147: ='Calcs - Forecast Costs'!K565 -> 0 | K147: ='Calcs - Forecast Costs'!L565 -> 0 | L147: ='Calcs - Forecast Costs'!M565 -> 0 | M147: ='Calcs - Forecast Costs'!N565 -> 0
E148: material & expense | F148: $ | G148: ='Calcs - Forecast Costs'!H572 -> 0 | H148: ='Calcs - Forecast Costs'!I572 -> 0 | I148: ='Calcs - Forecast Costs'!J572 -> 0 | J148: ='Calcs - Forecast Costs'!K572 -> 0 | K148: ='Calcs - Forecast Costs'!L572 -> 0 | L148: ='Calcs - Forecast Costs'!M572 -> 0 | M148: ='Calcs - Forecast Costs'!N572 -> 0
C149: Total
E150: labour | F150: $ | G150: ='Calcs - Forecast Costs'!H574 -> 4450882.48 | H150: ='Calcs - Forecast Costs'!I574 -> 3962521.611 | I150: ='Calcs - Forecast Costs'!J574 -> 5058478.556 | J150: ='Calcs - Forecast Costs'!K574 -> 4188145.541 | K150: ='Calcs - Forecast Costs'!L574 -> 6126844.098 | L150: ='Calcs - Forecast Costs'!M574 -> 4647435.817 | M150: ='Calcs - Forecast Costs'!N574 -> 6078394.561
E151: materials | F151: $ | G151: ='Calcs - Forecast Costs'!H575 -> 916736.2295 | H151: ='Calcs - Forecast Costs'!I575 -> 13749999.55 | I151: ='Calcs - Forecast Costs'!J575 -> 14606010.51 | J151: ='Calcs - Forecast Costs'!K575 -> 13722664.78 | K151: ='Calcs - Forecast Costs'!L575 -> 12809747.44 | L151: ='Calcs - Forecast Costs'!M575 -> 12649013.18 | M151: ='Calcs - Forecast Costs'!N575 -> 12679196.83
B152: ='Input - General'!C23 -> Maintenance Support & Asset Management
D153: cost
E154: labour | F154: $ | G154: ='Calcs - Forecast Costs'!H587 -> 7048644.554 | H154: ='Calcs - Forecast Costs'!I587 -> 7425435.924 | I154: ='Calcs - Forecast Costs'!J587 -> 7501521.398 | J154: ='Calcs - Forecast Costs'!K587 -> 7619633.057 | K154: ='Calcs - Forecast Costs'!L587 -> 7759796.626 | L154: ='Calcs - Forecast Costs'!M587 -> 7922239.935 | M154: ='Calcs - Forecast Costs'!N587 -> 8099441.044
E155: material & expense | F155: $ | G155: ='Calcs - Forecast Costs'!H602 -> 2866220.206 | H155: ='Calcs - Forecast Costs'!I602 -> 3179140.693 | I155: ='Calcs - Forecast Costs'!J602 -> 3127696.984 | J155: ='Calcs - Forecast Costs'!K602 -> 3172162.293 | K155: ='Calcs - Forecast Costs'!L602 -> 3207681.472 | L155: ='Calcs - Forecast Costs'!M602 -> 3246263.679 | M155: ='Calcs - Forecast Costs'!N602 -> 3288838.823
B156: ='Input - General'!C24 -> Operations/Control Room
D157: cost
E158: labour | F158: $ | G158: ='Calcs - Forecast Costs'!H614 -> 7326712.433 | H158: ='Calcs - Forecast Costs'!I614 -> 7755995.549 | I158: ='Calcs - Forecast Costs'!J614 -> 8282737.051 | J158: ='Calcs - Forecast Costs'!K614 -> 8413148.972 | K158: ='Calcs - Forecast Costs'!L614 -> 8567909.31 | L158: ='Calcs - Forecast Costs'!M614 -> 8747269.621 | M158: ='Calcs - Forecast Costs'!N614 -> 8942924.624
E159: material & expense | F159: $ | G159: ='Calcs - Forecast Costs'!H629 -> 445102.2608 | H159: ='Calcs - Forecast Costs'!I629 -> 447542.2812 | I159: ='Calcs - Forecast Costs'!J629 -> 453798.6786 | J159: ='Calcs - Forecast Costs'!K629 -> 459598.993 | K159: ='Calcs - Forecast Costs'!L629 -> 463994.5528 | L159: ='Calcs - Forecast Costs'!M629 -> 468629.6667 | M159: ='Calcs - Forecast Costs'!N629 -> 473772.5847
B160: ='Input - General'!C25 -> Grid Planning
D161: cost
E162: labour | F162: $ | G162: ='Calcs - Forecast Costs'!H641 -> 7025600.035 | H162: ='Calcs - Forecast Costs'!I641 -> 7012703.474 | I162: ='Calcs - Forecast Costs'!J641 -> 7084559.844 | J162: ='Calcs - Forecast Costs'!K641 -> 7196106.432 | K162: ='Calcs - Forecast Costs'!L641 -> 7328479.205 | L162: ='Calcs - Forecast Costs'!M641 -> 7481893.33 | M162: ='Calcs - Forecast Costs'!N641 -> 7649244.964
E163: material & expense | F163: $ | G163: ='Calcs - Forecast Costs'!H656 -> 2294268.695 | H163: ='Calcs - Forecast Costs'!I656 -> 2317190.313 | I163: ='Calcs - Forecast Costs'!J656 -> 2360085.617 | J163: ='Calcs - Forecast Costs'!K656 -> 2403786.853 | K163: ='Calcs - Forecast Costs'!L656 -> 2442401.407 | L163: ='Calcs - Forecast Costs'!M656 -> 2486520.091 | M163: ='Calcs - Forecast Costs'!N656 -> 2534766.614
B164: ='Input - General'!C26 -> Not Used
D165: cost
E166: labour | F166: $ | G166: ='Calcs - Forecast Costs'!H668 -> 1e-32 | H166: ='Calcs - Forecast Costs'!I668 -> 9.999329583e-33 | I166: ='Calcs - Forecast Costs'!J668 -> 1.035513907e-32 | J166: ='Calcs - Forecast Costs'!K668 -> 1.070156836e-32 | K166: ='Calcs - Forecast Costs'!L668 -> 1.096601434e-32 | L166: ='Calcs - Forecast Costs'!M668 -> 1.122235532e-32 | M166: ='Calcs - Forecast Costs'!N668 -> 1.151336684e-32
E167: material & expense | F167: $ | G167: ='Calcs - Forecast Costs'!H683 -> 1e-32 | H167: ='Calcs - Forecast Costs'!I683 -> 1.002406194e-32 | I167: ='Calcs - Forecast Costs'!J683 -> 1.036855813e-32 | J167: ='Calcs - Forecast Costs'!K683 -> 1.061788988e-32 | K167: ='Calcs - Forecast Costs'!L683 -> 1.070892529e-32 | L167: ='Calcs - Forecast Costs'!M683 -> 1.074436918e-32 | M167: ='Calcs - Forecast Costs'!N683 -> 1.07962643e-32
B168: ='Input - General'!C27 -> Rates & Taxes
D169: cost
E170: labour | F170: $ | G170: ='Calcs - Forecast Costs'!H695 -> 471457.2516 | H170: ='Calcs - Forecast Costs'!I695 -> 470413.1433 | I170: ='Calcs - Forecast Costs'!J695 -> 472673.7675 | J170: ='Calcs - Forecast Costs'!K695 -> 478263.3297 | K170: ='Calcs - Forecast Costs'!L695 -> 486378.171 | L170: ='Calcs - Forecast Costs'!M695 -> 496289.4573 | M170: ='Calcs - Forecast Costs'!N695 -> 506986.1824
E171: material & expense | F171: $ | G171: ='Calcs - Forecast Costs'!H710 -> 4502135.858 | H171: ='Calcs - Forecast Costs'!I710 -> 4609353.417 | I171: ='Calcs - Forecast Costs'!J710 -> 4798247.748 | J171: ='Calcs - Forecast Costs'!K710 -> 4923108.325 | K171: ='Calcs - Forecast Costs'!L710 -> 4973066.147 | L171: ='Calcs - Forecast Costs'!M710 -> 5023489.893 | M171: ='Calcs - Forecast Costs'!N710 -> 5066188.89
B172: ='Input - General'!C28 -> Property Management
D173: cost
E174: labour | F174: $ | G174: ='Calcs - Forecast Costs'!H722 -> 773443.7986 | H174: ='Calcs - Forecast Costs'!I722 -> 772024.0246 | I174: ='Calcs - Forecast Costs'!J722 -> 779934.6461 | J174: ='Calcs - Forecast Costs'!K722 -> 792214.7384 | K174: ='Calcs - Forecast Costs'!L722 -> 806787.5721 | L174: ='Calcs - Forecast Costs'!M722 -> 823676.8347 | M174: ='Calcs - Forecast Costs'!N722 -> 842100.4686
E175: material & expense | F175: $ | G175: ='Calcs - Forecast Costs'!H737 -> 0 | H175: ='Calcs - Forecast Costs'!I737 -> 2952614.905 | I175: ='Calcs - Forecast Costs'!J737 -> 2412623.083 | J175: ='Calcs - Forecast Costs'!K737 -> 552971.3029 | K175: ='Calcs - Forecast Costs'!L737 -> 555975.5025 | L175: ='Calcs - Forecast Costs'!M737 -> 558646.3977 | M175: ='Calcs - Forecast Costs'!N737 -> 561713.0673
B176: ='Input - General'!C29 -> Health, Safety and Environmental
D177: cost
E178: labour | F178: $ | G178: ='Calcs - Forecast Costs'!H749 -> 2765836.36 | H178: ='Calcs - Forecast Costs'!I749 -> 2760759.245 | I178: ='Calcs - Forecast Costs'!J749 -> 2789047.642 | J178: ='Calcs - Forecast Costs'!K749 -> 2832961.273 | K178: ='Calcs - Forecast Costs'!L749 -> 2885073.751 | L178: ='Calcs - Forecast Costs'!M749 -> 2945469.784 | M178: ='Calcs - Forecast Costs'!N749 -> 3011352.73
E179: material & expense | F179: $ | G179: ='Calcs - Forecast Costs'!H764 -> 709526.9601 | H179: ='Calcs - Forecast Costs'!I764 -> 711995.8097 | I179: ='Calcs - Forecast Costs'!J764 -> 720506.7423 | J179: ='Calcs - Forecast Costs'!K764 -> 727857.0881 | K179: ='Calcs - Forecast Costs'!L764 -> 732672.3044 | L179: ='Calcs - Forecast Costs'!M764 -> 737283.0338 | M179: ='Calcs - Forecast Costs'!N764 -> 742495.8065
B180: ='Input - General'!C30 -> Corporate Governance
D181: cost
E182: labour | F182: $ | G182: ='Calcs - Forecast Costs'!H776 -> 3243673.564 | H182: ='Calcs - Forecast Costs'!I776 -> 3368828.51 | I182: ='Calcs - Forecast Costs'!J776 -> 3198760.173 | J182: ='Calcs - Forecast Costs'!K776 -> 2778476.942 | K182: ='Calcs - Forecast Costs'!L776 -> 2179614.113 | L182: ='Calcs - Forecast Costs'!M776 -> 3596624.905 | M182: ='Calcs - Forecast Costs'!N776 -> 3024193.006
E183: material & expense | F183: $ | G183: ='Calcs - Forecast Costs'!H791 -> 19912698.94 | H183: ='Calcs - Forecast Costs'!I791 -> 14998743.15 | I183: ='Calcs - Forecast Costs'!J791 -> 10659862.88 | J183: ='Calcs - Forecast Costs'!K791 -> 10378332.13 | K183: ='Calcs - Forecast Costs'!L791 -> 10173087.7 | L183: ='Calcs - Forecast Costs'!M791 -> 9990217.359 | M183: ='Calcs - Forecast Costs'!N791 -> 9817409.108
B184: ='Input - General'!C31 -> Customer Relations
D185: cost
E186: labour | F186: $ | G186: ='Calcs - Forecast Costs'!H803 -> 1785020.861 | H186: ='Calcs - Forecast Costs'!I803 -> 2534510.353 | I186: ='Calcs - Forecast Costs'!J803 -> 3533034.448 | J186: ='Calcs - Forecast Costs'!K803 -> 3574814.038 | K186: ='Calcs - Forecast Costs'!L803 -> 3635469.009 | L186: ='Calcs - Forecast Costs'!M803 -> 3709551.639 | M186: ='Calcs - Forecast Costs'!N803 -> 3789505.089
E187: material & expense | F187: $ | G187: ='Calcs - Forecast Costs'!H818 -> 372865.2694 | H187: ='Calcs - Forecast Costs'!I818 -> 1493059.784 | I187: ='Calcs - Forecast Costs'!J818 -> 3011898.155 | J187: ='Calcs - Forecast Costs'!K818 -> 4198064.948 | K187: ='Calcs - Forecast Costs'!L818 -> 5193546.643 | L187: ='Calcs - Forecast Costs'!M818 -> 5715567.108 | M187: ='Calcs - Forecast Costs'!N818 -> 4773394.099
B188: ='Input - General'!C32 -> Regulatory
D189: cost
E190: labour | F190: $ | G190: ='Calcs - Forecast Costs'!H830 -> 2091935.727 | H190: ='Calcs - Forecast Costs'!I830 -> 1968642.027 | I190: ='Calcs - Forecast Costs'!J830 -> 1978102.561 | J190: ='Calcs - Forecast Costs'!K830 -> 2171854.175 | K190: ='Calcs - Forecast Costs'!L830 -> 2208704.694 | L190: ='Calcs - Forecast Costs'!M830 -> 2253713.097 | M190: ='Calcs - Forecast Costs'!N830 -> 2302288.276
E191: material & expense | F191: $ | G191: ='Calcs - Forecast Costs'!H845 -> 924193.5327 | H191: ='Calcs - Forecast Costs'!I845 -> 1771639.809 | I191: ='Calcs - Forecast Costs'!J845 -> 999946.3878 | J191: ='Calcs - Forecast Costs'!K845 -> 1419655.468 | K191: ='Calcs - Forecast Costs'!L845 -> 1852453.081 | L191: ='Calcs - Forecast Costs'!M845 -> 1050751.093 | M191: ='Calcs - Forecast Costs'!N845 -> 858385.5839
B192: ='Input - General'!C33 -> Finance
D193: cost
E194: labour | F194: $ | G194: ='Calcs - Forecast Costs'!H857 -> 4416318.736 | H194: ='Calcs - Forecast Costs'!I857 -> 4406538.178 | I194: ='Calcs - Forecast Costs'!J857 -> 4427714.301 | J194: ='Calcs - Forecast Costs'!K857 -> 4480073.848 | K194: ='Calcs - Forecast Costs'!L857 -> 4556088.642 | L194: ='Calcs - Forecast Costs'!M857 -> 4648931.417 | M194: ='Calcs - Forecast Costs'!N857 -> 4749131.694
E195: material & expense | F195: $ | G195: ='Calcs - Forecast Costs'!H872 -> 1277719.124 | H195: ='Calcs - Forecast Costs'!I872 -> 1290832.646 | I195: ='Calcs - Forecast Costs'!J872 -> 1308489.839 | J195: ='Calcs - Forecast Costs'!K872 -> 1328652.87 | K195: ='Calcs - Forecast Costs'!L872 -> 1349338.036 | L195: ='Calcs - Forecast Costs'!M872 -> 1374510.51 | M195: ='Calcs - Forecast Costs'!N872 -> 1401694.381
B196: ='Input - General'!C34 -> Information Technology
D197: cost
E198: labour | F198: $ | G198: ='Calcs - Forecast Costs'!H884 -> 4140482.857 | H198: ='Calcs - Forecast Costs'!I884 -> 4131313.176 | I198: ='Calcs - Forecast Costs'!J884 -> 4151166.673 | J198: ='Calcs - Forecast Costs'!K884 -> 4200255.931 | K198: ='Calcs - Forecast Costs'!L884 -> 4271522.968 | L198: ='Calcs - Forecast Costs'!M884 -> 4358566.938 | M198: ='Calcs - Forecast Costs'!N884 -> 4452508.874
E199: material & expense | F199: $ | G199: ='Calcs - Forecast Costs'!H899 -> 8860922.933 | H199: ='Calcs - Forecast Costs'!I899 -> 8914692 | I199: ='Calcs - Forecast Costs'!J899 -> 8999291.308 | J199: ='Calcs - Forecast Costs'!K899 -> 9090265.514 | K199: ='Calcs - Forecast Costs'!L899 -> 9177155.333 | L199: ='Calcs - Forecast Costs'!M899 -> 9279949.415 | M199: ='Calcs - Forecast Costs'!N899 -> 9391489.595
B200: ='Input - General'!C35 -> HR & Payroll
D201: cost
E202: labour | F202: $ | G202: ='Calcs - Forecast Costs'!H911 -> 4659537.097 | H202: ='Calcs - Forecast Costs'!I911 -> 4649217.897 | I202: ='Calcs - Forecast Costs'!J911 -> 4046063.115 | J202: ='Calcs - Forecast Costs'!K911 -> 4093909.48 | K202: ='Calcs - Forecast Costs'!L911 -> 4163372.104 | L202: ='Calcs - Forecast Costs'!M911 -> 4248212.204 | M202: ='Calcs - Forecast Costs'!N911 -> 4339775.62
... 45 more rows

Sheet Calcs - Conversion for Outputs
A1: Calculations
B2: Real and Nominal Conversion Factors for AER Outputs
C3: ="Revision: "&'File Details & Instructions'!$D$16 -> Revision: v3.00
C4: ="Status: "&'File Details & Instructions'!$D$17 -> Status: Final
B6: Real and Nominal Conversion Factors for AER Outputs
C8: Real and Nominal Conversion Table
C9: Sheet Name | D9: ="Convert from ..." -> Convert from ... | E9: Convert to ...
E10: Nominal | F10: ="Real " & 'Input - General'!$D$10 -> Real 09/10 | G10: ="Real " & 'Input - General'!$E$10 -> Real 10/11 | H10: ="Real " & 'Input - General'!$F$10 -> Real 11/12 | I10: ="Real " & 'Input - General'!$G$10 -> Real 12/13 | J10: ="Real " & 'Input - General'!$H$10 -> Real 13/14 | K10: ="Real " & 'Input - General'!$I$10 -> Real 14/15 | L10: ="Real " & 'Input - General'!$J$10 -> Real 15/16 | M10: ="Real " & 'Input - General'!$K$10 -> Real 16/17 | N10: ="Real " & 'Input - General'!$L$10 -> Real 17/18 | O10: ="Real " & 'Input - General'!$M$10 -> Real 18/19
C11: Historic Opex by Category Year 1 | D11: Nominal | E11: 1 | F11: ='Calcs - Escalation'!D$18+1 -> 1 | G11: ='Calcs - Escalation'!E$18+1 -> 1.031104697 | H11: ='Calcs - Escalation'!F$18+1 -> 1.056420782 | I11: ='Calcs - Escalation'!G$18+1 -> 1.077998415 | J11: ='Calcs - Escalation'!H$18+1 -> 1.107275482 | K11: ='Calcs - Escalation'!I$18+1 -> 1.138719941 | L11: ='Calcs - Escalation'!J$18+1 -> 1.168610472 | M11: ='Calcs - Escalation'!K$18+1 -> 1.197825734 | N11: ='Calcs - Escalation'!L$18+1 -> 1.227771378 | O11: ='Calcs - Escalation'!M$18+1 -> 1.258465662
C12: Historic Opex by Category Year 2 | D12: Nominal | E12: ='Calcs - Escalation'!G$21+1 -> 1 | F12: ='Calcs - Escalation'!D$19+1 -> 0.9698336195 | G12: ='Calcs - Escalation'!E$19+1 -> 1 | H12: ='Calcs - Escalation'!F$19+1 -> 1.024552391 | I12: ='Calcs - Escalation'!G$19+1 -> 1.045479104 | J12: ='Calcs - Escalation'!H$19+1 -> 1.073872988 | K12: ='Calcs - Escalation'!I$19+1 -> 1.104368882 | L12: ='Calcs - Escalation'!J$19+1 -> 1.133357724 | M12: ='Calcs - Escalation'!K$19+1 -> 1.161691667 | N12: ='Calcs - Escalation'!L$19+1 -> 1.190733959 | O12: ='Calcs - Escalation'!M$19+1 -> 1.220502308
C13: Historic Opex by Category Year 3 | D13: Nominal | E13: ='Calcs - Escalation'!G$21+1 -> 1 | F13: ='Calcs - Escalation'!D$20+1 -> 0.9465925099 | G13: ='Calcs - Escalation'!E$20+1 -> 0.9760359827 | H13: ='Calcs - Escalation'!F$20+1 -> 1 | I13: ='Calcs - Escalation'!G$20+1 -> 1.020425225 | J13: ='Calcs - Escalation'!H$20+1 -> 1.048138677 | K13: ='Calcs - Escalation'!I$20+1 -> 1.077903767 | L13: ='Calcs - Escalation'!J$20+1 -> 1.10619792 | M13: ='Calcs - Escalation'!K$20+1 -> 1.133852868 | N13: ='Calcs - Escalation'!L$20+1 -> 1.16219919 | O13: ='Calcs - Escalation'!M$20+1 -> 1.19125417
C14: Historic Opex by Category Year 4 | D14: Nominal | E14: ='Calcs - Escalation'!G$21+1 -> 1 | F14: ='Calcs - Escalation'!D$21+1 -> 0.9276451489 | G14: ='Calcs - Escalation'!E$21+1 -> 0.9564992698 | H14: ='Calcs - Escalation'!F$21+1 -> 0.9799836141 | I14: ='Calcs - Escalation'!G$21+1 -> 1 | J14: ='Calcs - Escalation'!H$21+1 -> 1.027158729 | K14: ='Calcs - Escalation'!I$21+1 -> 1.056328029 | L14: ='Calcs - Escalation'!J$21+1 -> 1.084055836 | M14: ='Calcs - Escalation'!K$21+1 -> 1.111157232 | N14: ='Calcs - Escalation'!L$21+1 -> 1.138936162 | O14: ='Calcs - Escalation'!M$21+1 -> 1.167409566
C15: Historic Opex by Category Year 5 | D15: ="Real " & BaseYear -> Real 12/13 | E15: ='Calcs - Escalation'!H$21+1 -> 1.027158729 | F15: ='Calcs - Escalation'!D$21+1 -> 0.9276451489 | G15: ='Calcs - Escalation'!E$21+1 -> 0.9564992698 | H15: ='Calcs - Escalation'!F$21+1 -> 0.9799836141 | I15: ='Calcs - Escalation'!G$21+1 -> 1 | J15: ='Calcs - Escalation'!H$21+1 -> 1.027158729 | K15: ='Calcs - Escalation'!I$21+1 -> 1.056328029 | L15: ='Calcs - Escalation'!J$21+1 -> 1.084055836 | M15: ='Calcs - Escalation'!K$21+1 -> 1.111157232 | N15: ='Calcs - Escalation'!L$21+1 -> 1.138936162 | O15: ='Calcs - Escalation'!M$21+1 -> 1.167409566
C16: Forecast Opex by Category Year 6 | D16: Real 12/13 | E16: ='Calcs - Escalation'!I$21+1 -> 1.056328029 | F16: ='Calcs - Escalation'!D$21+1 -> 0.9276451489 | G16: ='Calcs - Escalation'!E$21+1 -> 0.9564992698 | H16: ='Calcs - Escalation'!F$21+1 -> 0.9799836141 | I16: ='Calcs - Escalation'!G$21+1 -> 1 | J16: ='Calcs - Escalation'!H$21+1 -> 1.027158729 | K16: ='Calcs - Escalation'!I$21+1 -> 1.056328029 | L16: ='Calcs - Escalation'!J$21+1 -> 1.084055836 | M16: ='Calcs - Escalation'!K$21+1 -> 1.111157232 | N16: ='Calcs - Escalation'!L$21+1 -> 1.138936162 | O16: ='Calcs - Escalation'!M$21+1 -> 1.167409566
C17: Forecast Opex by Category Year 7 | D17: Real 12/13 | E17: ='Calcs - Escalation'!J$21+1 -> 1.084055836 | F17: ='Calcs - Escalation'!D$21+1 -> 0.9276451489 | G17: ='Calcs - Escalation'!E$21+1 -> 0.9564992698 | H17: ='Calcs - Escalation'!F$21+1 -> 0.9799836141 | I17: ='Calcs - Escalation'!G$21+1 -> 1 | J17: ='Calcs - Escalation'!H$21+1 -> 1.027158729 | K17: ='Calcs - Escalation'!I$21+1 -> 1.056328029 | L17: ='Calcs - Escalation'!J$21+1 -> 1.084055836 | M17: ='Calcs - Escalation'!K$21+1 -> 1.111157232 | N17: ='Calcs - Escalation'!L$21+1 -> 1.138936162 | O17: ='Calcs - Escalation'!M$21+1 -> 1.167409566
C18: Forecast Opex by Category Year 8 | D18: Real 12/13 | E18: ='Calcs - Escalation'!K$21+1 -> 1.111157232 | F18: ='Calcs - Escalation'!D$21+1 -> 0.9276451489 | G18: ='Calcs - Escalation'!E$21+1 -> 0.9564992698 | H18: ='Calcs - Escalation'!F$21+1 -> 0.9799836141 | I18: ='Calcs - Escalation'!G$21+1 -> 1 | J18: ='Calcs - Escalation'!H$21+1 -> 1.027158729 | K18: ='Calcs - Escalation'!I$21+1 -> 1.056328029 | L18: ='Calcs - Escalation'!J$21+1 -> 1.084055836 | M18: ='Calcs - Escalation'!K$21+1 -> 1.111157232 | N18: ='Calcs - Escalation'!L$21+1 -> 1.138936162 | O18: ='Calcs - Escalation'!M$21+1 -> 1.167409566
C19: Forecast Opex by Category Year 9 | D19: Real 12/13 | E19: ='Calcs - Escalation'!L$21+1 -> 1.138936162 | F19: ='Calcs - Escalation'!D$21+1 -> 0.9276451489 | G19: ='Calcs - Escalation'!E$21+1 -> 0.9564992698 | H19: ='Calcs - Escalation'!F$21+1 -> 0.9799836141 | I19: ='Calcs - Escalation'!G$21+1 -> 1 | J19: ='Calcs - Escalation'!H$21+1 -> 1.027158729 | K19: ='Calcs - Escalation'!I$21+1 -> 1.056328029 | L19: ='Calcs - Escalation'!J$21+1 -> 1.084055836 | M19: ='Calcs - Escalation'!K$21+1 -> 1.111157232 | N19: ='Calcs - Escalation'!L$21+1 -> 1.138936162 | O19: ='Calcs - Escalation'!M$21+1 -> 1.167409566
C20: Forecast Opex by Category Year 10 | D20: Real 12/13 | E20: ='Calcs - Escalation'!M$21+1 -> 1.167409566 | F20: ='Calcs - Escalation'!D$21+1 -> 0.9276451489 | G20: ='Calcs - Escalation'!E$21+1 -> 0.9564992698 | H20: ='Calcs - Escalation'!F$21+1 -> 0.9799836141 | I20: ='Calcs - Escalation'!G$21+1 -> 1 | J20: ='Calcs - Escalation'!H$21+1 -> 1.027158729 | K20: ='Calcs - Escalation'!I$21+1 -> 1.056328029 | L20: ='Calcs - Escalation'!J$21+1 -> 1.084055836 | M20: ='Calcs - Escalation'!K$21+1 -> 1.111157232 | N20: ='Calcs - Escalation'!L$21+1 -> 1.138936162 | O20: ='Calcs - Escalation'!M$21+1 -> 1.167409566

Sheet AER Schedules
A1: AER Submission Schedules

Sheet Index
B2: Revenue Reset Information Pro Formas
B4: INDEX | C4: Click on orange box for link to pages
B7: Historic Opex
B8: Table 1.1 | C8: Historic Opex by Category - Summary
B9: 1.2 | C9: Not Used
B10: 1.3 | C10: Historic Opex by Category Year 1
B11: 1.4 | C11: Historic Opex by Category Year 2
B12: 1.5 | C12: Historic Opex by Category Year 3
B13: 1.6 | C13: Historic Opex by Category Year 4
B14: 1.7 | C14: Historic Opex by Category Year 5
B16: Forecast Opex
B17: Table 2.1 | C17: Forecast Opex by Category - Summary
B18: 2.2 | C18: Forecast Opex by Category Year 6
B19: 2.3 | C19: Forecast Opex by Category Year 7
B20: 2.4 | C20: Forecast Opex by Category Year 8
B21: 2.5 | C21: Forecast Opex by Category Year 9
B22: 2.6 | C22: Forecast Opex by Category Year 10

Sheet Historic Opex Summary
C2: Home
B3: 1.1 HISTORIC OPEX by expenditure category
B6: $ million
A7: (Select) | B7: Real 13/14 | C7: Financial year | D7: Year 1 | E7: Year 2 | F7: Year 3 | G7: Year 4 | H7: Year 5 | J7: Total | L7: Revenue Cap Allowance | N7: Key cost drivers and explanation for material differences over time
B8: Maintenance
B9: ='Input - General'!C17 -> Not Used
B10: Labour | D10: ='Historic Opex by Category Yr1'!K10 -> 0 | E10: ='Historic Opex by Category Yr2'!K10 -> 0 | F10: ='Historic Opex by Category Yr3'!K10 -> 0 | G10: ='Historic Opex by Category Yr4'!K10 -> 2.054317458e-38 | H10: ='Historic Opex by Category Yr5'!K10 -> 0 | J10: =IF($B$7="Nominal","Not Applicable",SUM(D10:H10)) -> 2.054317458e-38
B11: Materials | D11: ='Historic Opex by Category Yr1'!K11 -> 0 | E11: ='Historic Opex by Category Yr2'!K11 -> 0 | F11: ='Historic Opex by Category Yr3'!K11 -> 0 | G11: ='Historic Opex by Category Yr4'!K11 -> 2.054317458e-38 | H11: ='Historic Opex by Category Yr5'!K11 -> 0 | J11: =IF($B$7="Nominal","Not Applicable",SUM(D11:H11)) -> 2.054317458e-38
B12: Sub-Totals | D12: ='Historic Opex by Category Yr1'!K12 -> 0 | E12: ='Historic Opex by Category Yr2'!K12 -> 0 | F12: ='Historic Opex by Category Yr3'!K12 -> 0 | G12: ='Historic Opex by Category Yr4'!K12 -> 4.108634917e-38 | H12: ='Historic Opex by Category Yr5'!K12 -> 0 | J12: =IF($B$7="Nominal","Not Applicable",SUM(D12:H12)) -> 4.108634917e-38
B13: ='Input - General'!C18 -> Lines
B14: Labour | D14: ='Historic Opex by Category Yr1'!K14 -> 4.085579852 | E14: ='Historic Opex by Category Yr2'!K14 -> 5.391845818 | F14: ='Historic Opex by Category Yr3'!K14 -> 7.534456295 | G14: ='Historic Opex by Category Yr4'!K14 -> 6.702253356 | H14: ='Historic Opex by Category Yr5'!K14 -> 5.292832901 | J14: =IF($B$7="Nominal","Not Applicable",SUM(D14:H14)) -> 29.00696822
B15: Materials | D15: ='Historic Opex by Category Yr1'!K15 -> 4.754237007 | E15: ='Historic Opex by Category Yr2'!K15 -> 6.971732988 | F15: ='Historic Opex by Category Yr3'!K15 -> 6.863394824 | G15: ='Historic Opex by Category Yr4'!K15 -> 4.072905899 | H15: ='Historic Opex by Category Yr5'!K15 -> 3.184316602 | J15: =IF($B$7="Nominal","Not Applicable",SUM(D15:H15)) -> 25.84658732
B16: Sub-Totals | D16: ='Historic Opex by Category Yr1'!K16 -> 8.839816859 | E16: ='Historic Opex by Category Yr2'!K16 -> 12.36357881 | F16: ='Historic Opex by Category Yr3'!K16 -> 14.39785112 | G16: ='Historic Opex by Category Yr4'!K16 -> 10.77515925 | H16: ='Historic Opex by Category Yr5'!K16 -> 8.477149503 | J16: =IF($B$7="Nominal","Not Applicable",SUM(D16:H16)) -> 54.85355554
B17: ='Input - General'!C19 -> Substations
B18: Labour | D18: ='Historic Opex by Category Yr1'!K18 -> 11.92386838 | E18: ='Historic Opex by Category Yr2'!K18 -> 12.76700146 | F18: ='Historic Opex by Category Yr3'!K18 -> 20.08846173 | G18: ='Historic Opex by Category Yr4'!K18 -> 20.89945545 | H18: ='Historic Opex by Category Yr5'!K18 -> 20.9059072 | J18: =IF($B$7="Nominal","Not Applicable",SUM(D18:H18)) -> 86.58469422
B19: Materials | D19: ='Historic Opex by Category Yr1'!K19 -> 13.55417484 | E19: ='Historic Opex by Category Yr2'!K19 -> 17.45516875 | F19: ='Historic Opex by Category Yr3'!K19 -> 8.716531237 | G19: ='Historic Opex by Category Yr4'!K19 -> 7.066592915 | H19: ='Historic Opex by Category Yr5'!K19 -> 8.142630285 | J19: =IF($B$7="Nominal","Not Applicable",SUM(D19:H19)) -> 54.93509803
B20: Sub-Totals | D20: ='Historic Opex by Category Yr1'!K20 -> 25.47804323 | E20: ='Historic Opex by Category Yr2'!K20 -> 30.2221702 | F20: ='Historic Opex by Category Yr3'!K20 -> 28.80499297 | G20: ='Historic Opex by Category Yr4'!K20 -> 27.96604836 | H20: ='Historic Opex by Category Yr5'!K20 -> 29.04853748 | J20: =IF($B$7="Nominal","Not Applicable",SUM(D20:H20)) -> 141.5197922
B21: ='Input - General'!C20 -> Communications
B22: Labour | D22: ='Historic Opex by Category Yr1'!K22 -> 2.969968844 | E22: ='Historic Opex by Category Yr2'!K22 -> 3.551449281 | F22: ='Historic Opex by Category Yr3'!K22 -> 3.682634615 | G22: ='Historic Opex by Category Yr4'!K22 -> 4.505699373 | H22: ='Historic Opex by Category Yr5'!K22 -> 4.837156446 | J22: =IF($B$7="Nominal","Not Applicable",SUM(D22:H22)) -> 19.54690856
B23: Materials | D23: ='Historic Opex by Category Yr1'!K23 -> 2.169798055 | E23: ='Historic Opex by Category Yr2'!K23 -> 3.247567871 | F23: ='Historic Opex by Category Yr3'!K23 -> 0.5298092606 | G23: ='Historic Opex by Category Yr4'!K23 -> 1.872325115 | H23: ='Historic Opex by Category Yr5'!K23 -> 2.120454177 | J23: =IF($B$7="Nominal","Not Applicable",SUM(D23:H23)) -> 9.939954479
B24: Sub-Totals | D24: ='Historic Opex by Category Yr1'!K24 -> 5.1397669 | E24: ='Historic Opex by Category Yr2'!K24 -> 6.799017152 | F24: ='Historic Opex by Category Yr3'!K24 -> 4.212443875 | G24: ='Historic Opex by Category Yr4'!K24 -> 6.378024489 | H24: ='Historic Opex by Category Yr5'!K24 -> 6.957610623 | J24: =IF($B$7="Nominal","Not Applicable",SUM(D24:H24)) -> 29.48686304
B25: ='Input - General'!C21 -> Secondary Systems
B26: Labour | D26: ='Historic Opex by Category Yr1'!K26 -> 2.43698436 | E26: ='Historic Opex by Category Yr2'!K26 -> 3.709962094 | F26: ='Historic Opex by Category Yr3'!K26 -> 3.593897056 | G26: ='Historic Opex by Category Yr4'!K26 -> 4.757322293 | H26: ='Historic Opex by Category Yr5'!K26 -> 6.440557589 | J26: =IF($B$7="Nominal","Not Applicable",SUM(D26:H26)) -> 20.93872339
B27: Materials | D27: ='Historic Opex by Category Yr1'!K27 -> 1.993103574 | E27: ='Historic Opex by Category Yr2'!K27 -> 2.744515259 | F27: ='Historic Opex by Category Yr3'!K27 -> 0.4176932622 | G27: ='Historic Opex by Category Yr4'!K27 -> 0.6557897372 | H27: ='Historic Opex by Category Yr5'!K27 -> 1.193180294 | J27: =IF($B$7="Nominal","Not Applicable",SUM(D27:H27)) -> 7.004282126
B28: Sub-Totals | D28: ='Historic Opex by Category Yr1'!K28 -> 4.430087934 | E28: ='Historic Opex by Category Yr2'!K28 -> 6.454477353 | F28: ='Historic Opex by Category Yr3'!K28 -> 4.011590318 | G28: ='Historic Opex by Category Yr4'!K28 -> 5.41311203 | H28: ='Historic Opex by Category Yr5'!K28 -> 7.633737883 | J28: =IF($B$7="Nominal","Not Applicable",SUM(D28:H28)) -> 27.94300552
B29: ='Input - General'!C22 -> Land and Easements
B30: Labour | D30: ='Historic Opex by Category Yr1'!K30 -> 3.149219759 | E30: ='Historic Opex by Category Yr2'!K30 -> 3.144644834 | F30: ='Historic Opex by Category Yr3'!K30 -> 4.346202627 | G30: ='Historic Opex by Category Yr4'!K30 -> 4.571762792 | H30: ='Historic Opex by Category Yr5'!K30 -> 4.070138663 | J30: =IF($B$7="Nominal","Not Applicable",SUM(D30:H30)) -> 19.28196867
B31: Materials | D31: ='Historic Opex by Category Yr1'!K31 -> 13.82639502 | E31: ='Historic Opex by Category Yr2'!K31 -> 13.416241 | F31: ='Historic Opex by Category Yr3'!K31 -> 12.03403048 | G31: ='Historic Opex by Category Yr4'!K31 -> 10.14848322 | H31: ='Historic Opex by Category Yr5'!K31 -> 14.12343206 | J31: =IF($B$7="Nominal","Not Applicable",SUM(D31:H31)) -> 63.54858178
B32: Sub-Totals | D32: ='Historic Opex by Category Yr1'!K32 -> 16.97561478 | E32: ='Historic Opex by Category Yr2'!K32 -> 16.56088583 | F32: ='Historic Opex by Category Yr3'!K32 -> 16.3802331 | G32: ='Historic Opex by Category Yr4'!K32 -> 14.72024601 | H32: ='Historic Opex by Category Yr5'!K32 -> 18.19357072 | J32: =IF($B$7="Nominal","Not Applicable",SUM(D32:H32)) -> 82.83055045
B33: Summary
B34: Sub-Total Labour | D34: ='Historic Opex by Category Yr1'!K34 -> 24.5656212 | E34: ='Historic Opex by Category Yr2'!K34 -> 28.56490348 | F34: ='Historic Opex by Category Yr3'!K34 -> 39.24565233 | G34: ='Historic Opex by Category Yr4'!K34 -> 41.43649326 | H34: ='Historic Opex by Category Yr5'!K34 -> 41.5465928 | J34: =IF($B$7="Nominal","Not Applicable",SUM(D34:H34)) -> 175.3592631
B35: Sub-Total Materials | D35: ='Historic Opex by Category Yr1'!K35 -> 36.2977085 | E35: ='Historic Opex by Category Yr2'!K35 -> 43.83522586 | F35: ='Historic Opex by Category Yr3'!K35 -> 28.56145906 | G35: ='Historic Opex by Category Yr4'!K35 -> 23.81609689 | H35: ='Historic Opex by Category Yr5'!K35 -> 28.76401342 | J35: 161.2745037
B36: Total Maintenance | D36: ='Historic Opex by Category Yr1'!K36 -> 60.8633297 | E36: ='Historic Opex by Category Yr2'!K36 -> 72.40012935 | F36: ='Historic Opex by Category Yr3'!K36 -> 67.80711138 | G36: ='Historic Opex by Category Yr4'!K36 -> 65.25259015 | H36: ='Historic Opex by Category Yr5'!K36 -> 70.31060622 | J36: 336.6337668
B37: ='Input - General'!C23 -> Maintenance Support & Asset Management | D37: ='Historic Opex by Category Yr1'!K37 -> 10.91478351 | E37: ='Historic Opex by Category Yr2'!K37 -> 11.91477244 | F37: ='Historic Opex by Category Yr3'!K37 -> 14.2933093 | G37: ='Historic Opex by Category Yr4'!K37 -> 10.18413989 | H37: ='Historic Opex by Category Yr5'!K37 -> 10.89258344 | J37: 58.19958858
B38: Total Maintenance Support & Asset Management | D38: ='Historic Opex by Category Yr1'!K38 -> 10.91478351 | E38: ='Historic Opex by Category Yr2'!K38 -> 11.91477244 | F38: ='Historic Opex by Category Yr3'!K38 -> 14.2933093 | G38: ='Historic Opex by Category Yr4'!K38 -> 10.18413989 | H38: ='Historic Opex by Category Yr5'!K38 -> 10.89258344 | J38: 58.19958858
B39: ='Input - General'!C24 -> Operations/Control Room | D39: ='Historic Opex by Category Yr1'!K39 -> 8.534461572 | E39: ='Historic Opex by Category Yr2'!K39 -> 7.318742566 | F39: ='Historic Opex by Category Yr3'!K39 -> 7.474828209 | G39: ='Historic Opex by Category Yr4'!K39 -> 8.050623787 | H39: ='Historic Opex by Category Yr5'!K39 -> 8.426335493 | J39: 39.80499163
B40: Total Operations | D40: ='Historic Opex by Category Yr1'!K40 -> 8.534461572 | E40: ='Historic Opex by Category Yr2'!K40 -> 7.318742566 | F40: ='Historic Opex by Category Yr3'!K40 -> 7.474828209 | G40: ='Historic Opex by Category Yr4'!K40 -> 8.050623787 | H40: ='Historic Opex by Category Yr5'!K40 -> 8.426335493 | J40: 39.80499163
B41: ='Input - General'!C25 -> Grid Planning | D41: ='Historic Opex by Category Yr1'!K41 -> 4.66533769 | E41: ='Historic Opex by Category Yr2'!K41 -> 6.880003047 | F41: ='Historic Opex by Category Yr3'!K41 -> 9.08675673 | G41: ='Historic Opex by Category Yr4'!K41 -> 9.572984521 | H41: ='Historic Opex by Category Yr5'!K41 -> 9.583281847 | J41: 39.78836383
B42: Total Grid Planning | D42: ='Historic Opex by Category Yr1'!K42 -> 4.66533769 | E42: ='Historic Opex by Category Yr2'!K42 -> 6.880003047 | F42: ='Historic Opex by Category Yr3'!K42 -> 9.08675673 | G42: ='Historic Opex by Category Yr4'!K42 -> 9.572984521 | H42: ='Historic Opex by Category Yr5'!K42 -> 9.583281847 | J42: 39.78836383
B43: ='Input - General'!C26 -> Not Used | D43: ='Historic Opex by Category Yr1'!K43 -> 0 | E43: ='Historic Opex by Category Yr2'!K43 -> 0 | F43: ='Historic Opex by Category Yr3'!K43 -> 0 | G43: ='Historic Opex by Category Yr4'!K43 -> 0 | H43: ='Historic Opex by Category Yr5'!K43 -> 2.056720139e-38 | J43: 2.056720139e-38
B44: ='Input - General'!C27 -> Rates & Taxes | D44: ='Historic Opex by Category Yr1'!K44 -> 4.985234792 | E44: ='Historic Opex by Category Yr2'!K44 -> 5.012268539 | F44: ='Historic Opex by Category Yr3'!K44 -> 4.802969744 | G44: ='Historic Opex by Category Yr4'!K44 -> 5.108669579 | H44: ='Historic Opex by Category Yr5'!K44 -> 5.217726565 | J44: 25.12686922
B45: Total Taxes and Insurance | D45: ='Historic Opex by Category Yr1'!K45 -> 4.985234792 | E45: ='Historic Opex by Category Yr2'!K45 -> 5.012268539 | F45: ='Historic Opex by Category Yr3'!K45 -> 4.802969744 | G45: ='Historic Opex by Category Yr4'!K45 -> 5.108669579 | H45: ='Historic Opex by Category Yr5'!K45 -> 5.217726565 | J45: 25.12686922
B46: ='Input - General'!C28 -> Property Management | D46: ='Historic Opex by Category Yr1'!K46 -> 4.225968785 | E46: ='Historic Opex by Category Yr2'!K46 -> 3.649777216 | F46: ='Historic Opex by Category Yr3'!K46 -> 2.362165464 | G46: ='Historic Opex by Category Yr4'!K46 -> 3.418615218 | H46: ='Historic Opex by Category Yr5'!K46 -> 3.825795389 | J46: 17.48232207
B47: ='Input - General'!C29 -> Health, Safety and Environmental | D47: ='Historic Opex by Category Yr1'!K47 -> 3.948324209 | E47: ='Historic Opex by Category Yr2'!K47 -> 4.173638576 | F47: ='Historic Opex by Category Yr3'!K47 -> 2.714129818 | G47: ='Historic Opex by Category Yr4'!K47 -> 3.569749771 | H47: ='Historic Opex by Category Yr5'!K47 -> 3.567070669 | J47: 17.97291304
B48: Total Property Management | D48: ='Historic Opex by Category Yr1'!K48 -> 8.174292994 | E48: ='Historic Opex by Category Yr2'!K48 -> 7.823415792 | F48: ='Historic Opex by Category Yr3'!K48 -> 5.076295282 | G48: ='Historic Opex by Category Yr4'!K48 -> 6.988364989 | H48: ='Historic Opex by Category Yr5'!K48 -> 7.392866059 | J48: 35.45523512
B49: ='Input - General'!C30 -> Corporate Governance | D49: ='Historic Opex by Category Yr1'!K49 -> 4.251417065 | E49: ='Historic Opex by Category Yr2'!K49 -> 1.435402177 | F49: ='Historic Opex by Category Yr3'!K49 -> 11.19935616 | G49: ='Historic Opex by Category Yr4'!K49 -> -1.765318318 | H49: ='Historic Opex by Category Yr5'!K49 -> 18.86641157 | J49: 33.98726865
B50: ='Input - General'!C31 -> Customer Relations | D50: ='Historic Opex by Category Yr1'!K50 -> 1.668397475 | E50: ='Historic Opex by Category Yr2'!K50 -> 1.465324059 | F50: ='Historic Opex by Category Yr3'!K50 -> 3.010332587 | G50: ='Historic Opex by Category Yr4'!K50 -> 3.260711144 | H50: ='Historic Opex by Category Yr5'!K50 -> 4.136953824 | J50: 13.54171909
B51: ='Input - General'!C32 -> Regulatory | D51: ='Historic Opex by Category Yr1'!K51 -> 1.812615699 | E51: ='Historic Opex by Category Yr2'!K51 -> 1.218977488 | F51: ='Historic Opex by Category Yr3'!K51 -> 2.578900586 | G51: ='Historic Opex by Category Yr4'!K51 -> 3.098043498 | H51: ='Historic Opex by Category Yr5'!K51 -> 3.841863138 | J51: 12.55040041
B52: Total Corporate and Regulatory Management | D52: ='Historic Opex by Category Yr1'!K52 -> 7.73243024 | E52: ='Historic Opex by Category Yr2'!K52 -> 4.119703724 | F52: ='Historic Opex by Category Yr3'!K52 -> 16.78858933 | G52: ='Historic Opex by Category Yr4'!K52 -> 4.593436324 | H52: ='Historic Opex by Category Yr5'!K52 -> 26.84522853 | J52: 60.07938815
B53: ='Input - General'!C33 -> Finance | D53: ='Historic Opex by Category Yr1'!K53 -> 6.583278164 | E53: ='Historic Opex by Category Yr2'!K53 -> 5.636725607 | F53: ='Historic Opex by Category Yr3'!K53 -> 5.298653695 | G53: ='Historic Opex by Category Yr4'!K53 -> 5.848680693 | H53: ='Historic Opex by Category Yr5'!K53 -> 5.852104175 | J53: 29.21944233
B54: ='Input - General'!C34 -> Information Technology | D54: ='Historic Opex by Category Yr1'!K54 -> 11.03791683 | E54: ='Historic Opex by Category Yr2'!K54 -> 12.74238366 | F54: ='Historic Opex by Category Yr3'!K54 -> 11.99009543 | G54: ='Historic Opex by Category Yr4'!K54 -> 13.35450745 | H54: ='Historic Opex by Category Yr5'!K54 -> 13.4003181 | J54: 62.52522146
B55: ='Input - General'!C35 -> HR & Payroll | D55: ='Historic Opex by Category Yr1'!K55 -> 5.227331751 | E55: ='Historic Opex by Category Yr2'!K55 -> 5.156784814 | F55: ='Historic Opex by Category Yr3'!K55 -> 5.696552911 | G55: ='Historic Opex by Category Yr4'!K55 -> 6.357023222 | H55: ='Historic Opex by Category Yr5'!K55 -> 6.359243218 | J55: 28.79693592
B56: Total Business Management | D56: ='Historic Opex by Category Yr1'!K56 -> 22.84852675 | E56: ='Historic Opex by Category Yr2'!K56 -> 23.53589408 | F56: ='Historic Opex by Category Yr3'!K56 -> 22.98530203 | G56: ='Historic Opex by Category Yr4'!K56 -> 25.56021136 | H56: ='Historic Opex by Category Yr5'!K56 -> 25.61166549 | J56: 120.5415997
B57: TOTAL CONTROLLABLE OPEX | D57: ='Historic Opex by Category Yr1'!K57 -> 128.7183972 | E57: ='Historic Opex by Category Yr2'!K57 -> 139.0049295 | F57: ='Historic Opex by Category Yr3'!K57 -> 148.315162 | G57: ='Historic Opex by Category Yr4'!K57 -> 135.3110206 | H57: ='Historic Opex by Category Yr5'!K57 -> 164.2802936 | J57: 715.629803
B59: ='Input - General'!C106:C109 -> Debt Raising | D59: ='Historic Opex by Category Yr1'!K59 -> 0 | E59: ='Historic Opex by Category Yr2'!K59 -> 0 | F59: ='Historic Opex by Category Yr3'!K59 -> 0 | G59: ='Historic Opex by Category Yr4'!K59 -> 0 | H59: ='Historic Opex by Category Yr5'!K59 -> 0 | J59: =IF($B$7="Nominal","Not Applicable",SUM(D59:H59)) -> 0
B60: Insurance | D60: ='Historic Opex by Category Yr1'!K60 -> 7.775601737 | E60: ='Historic Opex by Category Yr2'!K60 -> 7.495668392 | F60: ='Historic Opex by Category Yr3'!K60 -> 8.012587874 | G60: ='Historic Opex by Category Yr4'!K60 -> 6.561099529 | H60: ='Historic Opex by Category Yr5'!K60 -> 5.375049352 | J60: =IF($B$7="Nominal","Not Applicable",SUM(D60:H60)) -> 35.22000688
B61: Self Insurance | D61: ='Historic Opex by Category Yr1'!K61 -> 1.959525799 | E61: ='Historic Opex by Category Yr2'!K61 -> 1.435239045 | F61: ='Historic Opex by Category Yr3'!K61 -> 3.015716929 | G61: ='Historic Opex by Category Yr4'!K61 -> 1.027262688 | H61: ='Historic Opex by Category Yr5'!K61 -> 0.9 | J61: =IF($B$7="Nominal","Not Applicable",SUM(D61:H61)) -> 8.337744462
B62: Network Support | D62: ='Historic Opex by Category Yr1'!K62 -> 20.15241377 | E62: ='Historic Opex by Category Yr2'!K62 -> 0.01605510993 | F62: ='Historic Opex by Category Yr3'!K62 -> 0.1957965604 | G62: ='Historic Opex by Category Yr4'!K62 -> 4.040543106 | H62: ='Historic Opex by Category Yr5'!K62 -> 0 | J62: =IF($B$7="Nominal","Not Applicable",SUM(D62:H62)) -> 24.40480855
B63: TOTAL OTHER OPEX | D63: ='Historic Opex by Category Yr1'!K63 -> 29.88754131 | E63: ='Historic Opex by Category Yr2'!K63 -> 8.946962547 | F63: ='Historic Opex by Category Yr3'!K63 -> 11.22410136 | G63: ='Historic Opex by Category Yr4'!K63 -> 11.62890532 | H63: ='Historic Opex by Category Yr5'!K63 -> 6.275049352 | J63: =IF($B$7="Nominal","Not Applicable",SUM(D63:H63)) -> 67.96255989
B65: TOTAL REGULATORY OPEX | D65: ='Historic Opex by Category Yr1'!K65 -> 158.6059385 | E65: ='Historic Opex by Category Yr2'!K65 -> 147.9518921 | F65: ='Historic Opex by Category Yr3'!K65 -> 159.5392634 | G65: ='Historic Opex by Category Yr4'!K65 -> 146.9399259 | H65: ='Historic Opex by Category Yr5'!K65 -> 170.555343 | J65: =IF($B$7="Nominal","Not Applicable",SUM(D65:H65)) -> 783.5923629
B67: Revenue Cap Allowance

Sheet Historic Opex by Category Yr1
D2: Home
B3: 1.3 HISTORIC OPEX by expenditure category
D5: Year 1
B6: $ million | D6: Field Maintenance | G6: Operations and Maintenance Support | H6: Corporate Support
B7: ='Historic Opex Summary'!B7 -> Real 13/14 | D7: Preventative | E7: Corrective/ Condition-based | F7: MOPS | H7: Network | I7: Non-Network | K7: TOTAL | M7: Revenue Cap Allowance | O7: Key cost drivers and explanation for material differences over time
B8: Maintenance
B9: ='Input - General'!C17 -> Not Used
B10: Labour | D10: ='Input - Historic Yr1'!E14*HLOOKUP($B$7,'Calcs - Conversion for Outputs'!$E$10:$O$20,ROWS('Calcs - Conversion for Outputs'!$E$10:$E$11),FALSE) -> 0 | E10: ='Input - Historic Yr1'!F14*HLOOKUP($B$7,'Calcs - Conversion for Outputs'!$E$10:$O$20,ROWS('Calcs - Conversion for Outputs'!$E$10:$E$11),FALSE) -> 0 | F10: ='Input - Historic Yr1'!G14*HLOOKUP($B$7,'Calcs - Conversion for Outputs'!$E$10:$O$20,ROWS('Calcs - Conversion for Outputs'!$E$10:$E$11),FALSE) -> 0 | K10: =SUM(D10:I10) -> 0
B11: Materials | D11: ='Input - Historic Yr1'!E15*HLOOKUP($B$7,'Calcs - Conversion for Outputs'!$E$10:$O$20,ROWS('Calcs - Conversion for Outputs'!$E$10:$E$11),FALSE) -> 0 | E11: ='Input - Historic Yr1'!F15*HLOOKUP($B$7,'Calcs - Conversion for Outputs'!$E$10:$O$20,ROWS('Calcs - Conversion for Outputs'!$E$10:$E$11),FALSE) -> 0 | F11: ='Input - Historic Yr1'!G15*HLOOKUP($B$7,'Calcs - Conversion for Outputs'!$E$10:$O$20,ROWS('Calcs - Conversion for Outputs'!$E$10:$E$11),FALSE) -> 0 | K11: =SUM(D11:I11) -> 0
B12: Sub-Totals | D12: =SUM(D10:D11) -> 0 | E12: =SUM(E10:E11) -> 0 | F12: =SUM(F10:F11) -> 0 | K12: =SUM(D12:I12) -> 0
B13: ='Input - General'!C18 -> Lines
B14: Labour | D14: ='Input - Historic Yr1'!E18*HLOOKUP($B$7,'Calcs - Conversion for Outputs'!$E$10:$O$20,ROWS('Calcs - Conversion for Outputs'!$E$10:$E$11),FALSE) -> 2.770306923 | E14: ='Input - Historic Yr1'!F18*HLOOKUP($B$7,'Calcs - Conversion for Outputs'!$E$10:$O$20,ROWS('Calcs - Conversion for Outputs'!$E$10:$E$11),FALSE) -> 1.105809726 | F14: ='Input - Historic Yr1'!G18*HLOOKUP($B$7,'Calcs - Conversion for Outputs'!$E$10:$O$20,ROWS('Calcs - Conversion for Outputs'!$E$10:$E$11),FALSE) -> 0.2094632032 | K14: =SUM(D14:I14) -> 4.085579852
B15: Materials | D15: ='Input - Historic Yr1'!E19*HLOOKUP($B$7,'Calcs - Conversion for Outputs'!$E$10:$O$20,ROWS('Calcs - Conversion for Outputs'!$E$10:$E$11),FALSE) -> 2.976673741 | E15: ='Input - Historic Yr1'!F19*HLOOKUP($B$7,'Calcs - Conversion for Outputs'!$E$10:$O$20,ROWS('Calcs - Conversion for Outputs'!$E$10:$E$11),FALSE) -> 1.361771878 | F15: ='Input - Historic Yr1'!G19*HLOOKUP($B$7,'Calcs - Conversion for Outputs'!$E$10:$O$20,ROWS('Calcs - Conversion for Outputs'!$E$10:$E$11),FALSE) -> 0.4157913885 | K15: =SUM(D15:I15) -> 4.754237007
B16: Sub-Totals | D16: =SUM(D14:D15) -> 5.746980663 | E16: =SUM(E14:E15) -> 2.467581604 | F16: =SUM(F14:F15) -> 0.6252545917 | K16: =SUM(D16:I16) -> 8.839816859
B17: ='Input - General'!C19 -> Substations
B18: Labour | D18: ='Input - Historic Yr1'!E22*HLOOKUP($B$7,'Calcs - Conversion for Outputs'!$E$10:$O$20,ROWS('Calcs - Conversion for Outputs'!$E$10:$E$11),FALSE) -> 7.861211926 | E18: ='Input - Historic Yr1'!F22*HLOOKUP($B$7,'Calcs - Conversion for Outputs'!$E$10:$O$20,ROWS('Calcs - Conversion for Outputs'!$E$10:$E$11),FALSE) -> 3.408281053 | F18: ='Input - Historic Yr1'!G22*HLOOKUP($B$7,'Calcs - Conversion for Outputs'!$E$10:$O$20,ROWS('Calcs - Conversion for Outputs'!$E$10:$E$11),FALSE) -> 0.6543754054 | K18: =SUM(D18:I18) -> 11.92386838
B19: Materials | D19: ='Input - Historic Yr1'!E23*HLOOKUP($B$7,'Calcs - Conversion for Outputs'!$E$10:$O$20,ROWS('Calcs - Conversion for Outputs'!$E$10:$E$11),FALSE) -> 5.283476531 | E19: ='Input - Historic Yr1'!F23*HLOOKUP($B$7,'Calcs - Conversion for Outputs'!$E$10:$O$20,ROWS('Calcs - Conversion for Outputs'!$E$10:$E$11),FALSE) -> 4.853802687 | F19: ='Input - Historic Yr1'!G23*HLOOKUP($B$7,'Calcs - Conversion for Outputs'!$E$10:$O$20,ROWS('Calcs - Conversion for Outputs'!$E$10:$E$11),FALSE) -> 3.416895624 | K19: =SUM(D19:I19) -> 13.55417484
B20: Sub-Totals | D20: =SUM(D18:D19) -> 13.14468846 | E20: =SUM(E18:E19) -> 8.26208374 | F20: =SUM(F18:F19) -> 4.071271029 | K20: =SUM(D20:I20) -> 25.47804323
B21: ='Input - General'!C20 -> Communications
B22: Labour | D22: ='Input - Historic Yr1'!E26*HLOOKUP($B$7,'Calcs - Conversion for Outputs'!$E$10:$O$20,ROWS('Calcs - Conversion for Outputs'!$E$10:$E$11),FALSE) -> 1.60180564 | E22: ='Input - Historic Yr1'!F26*HLOOKUP($B$7,'Calcs - Conversion for Outputs'!$E$10:$O$20,ROWS('Calcs - Conversion for Outputs'!$E$10:$E$11),FALSE) -> 1.282786729 | F22: ='Input - Historic Yr1'!G26*HLOOKUP($B$7,'Calcs - Conversion for Outputs'!$E$10:$O$20,ROWS('Calcs - Conversion for Outputs'!$E$10:$E$11),FALSE) -> 0.08537647603 | K22: =SUM(D22:I22) -> 2.969968844
B23: Materials | D23: ='Input - Historic Yr1'!E27*HLOOKUP($B$7,'Calcs - Conversion for Outputs'!$E$10:$O$20,ROWS('Calcs - Conversion for Outputs'!$E$10:$E$11),FALSE) -> 0.9771160794 | E23: ='Input - Historic Yr1'!F27*HLOOKUP($B$7,'Calcs - Conversion for Outputs'!$E$10:$O$20,ROWS('Calcs - Conversion for Outputs'!$E$10:$E$11),FALSE) -> 1.024321315 | F23: ='Input - Historic Yr1'!G27*HLOOKUP($B$7,'Calcs - Conversion for Outputs'!$E$10:$O$20,ROWS('Calcs - Conversion for Outputs'!$E$10:$E$11),FALSE) -> 0.1683606612 | K23: =SUM(D23:I23) -> 2.169798055
B24: Sub-Totals | D24: =SUM(D22:D23) -> 2.578921719 | E24: =SUM(E22:E23) -> 2.307108044 | F24: =SUM(F22:F23) -> 0.2537371373 | K24: =SUM(D24:I24) -> 5.1397669
B25: ='Input - General'!C21 -> Secondary Systems
B26: Labour | D26: ='Input - Historic Yr1'!E30*HLOOKUP($B$7,'Calcs - Conversion for Outputs'!$E$10:$O$20,ROWS('Calcs - Conversion for Outputs'!$E$10:$E$11),FALSE) -> 1.899205849 | E26: ='Input - Historic Yr1'!F30*HLOOKUP($B$7,'Calcs - Conversion for Outputs'!$E$10:$O$20,ROWS('Calcs - Conversion for Outputs'!$E$10:$E$11),FALSE) -> 0.537778511 | F26: ='Input - Historic Yr1'!G30*HLOOKUP($B$7,'Calcs - Conversion for Outputs'!$E$10:$O$20,ROWS('Calcs - Conversion for Outputs'!$E$10:$E$11),FALSE) -> 0 | K26: =SUM(D26:I26) -> 2.43698436
B27: Materials | D27: ='Input - Historic Yr1'!E31*HLOOKUP($B$7,'Calcs - Conversion for Outputs'!$E$10:$O$20,ROWS('Calcs - Conversion for Outputs'!$E$10:$E$11),FALSE) -> 1.601995925 | E27: ='Input - Historic Yr1'!F31*HLOOKUP($B$7,'Calcs - Conversion for Outputs'!$E$10:$O$20,ROWS('Calcs - Conversion for Outputs'!$E$10:$E$11),FALSE) -> 0.3911076491 | F27: ='Input - Historic Yr1'!G31*HLOOKUP($B$7,'Calcs - Conversion for Outputs'!$E$10:$O$20,ROWS('Calcs - Conversion for Outputs'!$E$10:$E$11),FALSE) -> 0 | K27: =SUM(D27:I27) -> 1.993103574
B28: Sub-Totals | D28: =SUM(D26:D27) -> 3.501201774 | E28: =SUM(E26:E27) -> 0.9288861601 | F28: =SUM(F26:F27) -> 0 | K28: =SUM(D28:I28) -> 4.430087934
B29: ='Input - General'!C22 -> Land and Easements
B30: Labour | D30: ='Input - Historic Yr1'!E34*HLOOKUP($B$7,'Calcs - Conversion for Outputs'!$E$10:$O$20,ROWS('Calcs - Conversion for Outputs'!$E$10:$E$11),FALSE) -> 2.559838601 | E30: ='Input - Historic Yr1'!F34*HLOOKUP($B$7,'Calcs - Conversion for Outputs'!$E$10:$O$20,ROWS('Calcs - Conversion for Outputs'!$E$10:$E$11),FALSE) -> 0.5893811582 | F30: ='Input - Historic Yr1'!G34*HLOOKUP($B$7,'Calcs - Conversion for Outputs'!$E$10:$O$20,ROWS('Calcs - Conversion for Outputs'!$E$10:$E$11),FALSE) -> 0 | K30: =SUM(D30:I30) -> 3.149219759
B31: Materials | D31: ='Input - Historic Yr1'!E35*HLOOKUP($B$7,'Calcs - Conversion for Outputs'!$E$10:$O$20,ROWS('Calcs - Conversion for Outputs'!$E$10:$E$11),FALSE) -> 6.985711624 | E31: ='Input - Historic Yr1'!F35*HLOOKUP($B$7,'Calcs - Conversion for Outputs'!$E$10:$O$20,ROWS('Calcs - Conversion for Outputs'!$E$10:$E$11),FALSE) -> 6.840683395 | F31: ='Input - Historic Yr1'!G35*HLOOKUP($B$7,'Calcs - Conversion for Outputs'!$E$10:$O$20,ROWS('Calcs - Conversion for Outputs'!$E$10:$E$11),FALSE) -> 0 | K31: =SUM(D31:I31) -> 13.82639502
B32: Sub-Totals | D32: =SUM(D30:D31) -> 9.545550226 | E32: =SUM(E30:E31) -> 7.430064553 | F32: =SUM(F30:F31) -> 0 | K32: =SUM(D32:I32) -> 16.97561478
B33: Summary
B34: Sub-Total Labour | D34: =D10+D14+D18+D22+D26+D30 -> 16.69236894 | E34: 6.924037177 | F34: 0.9492150847 | K34: =SUM(D34:I34) -> 24.5656212
B35: Sub-Total Materials | D35: 17.8249739 | E35: 14.47168692 | F35: 4.001047673 | K35: 36.2977085
B36: Total Maintenance | D36: =SUM(D34:D35) -> 34.51734284 | E36: =SUM(E34:E35) -> 21.3957241 | F36: =SUM(F34:F35) -> 4.950262758 | K36: 60.8633297
B37: ='Input - General'!C23 -> Maintenance Support & Asset Management | G37: ='Input - Historic Yr1'!H41*HLOOKUP($B$7,'Calcs - Conversion for Outputs'!$E$10:$O$20,ROWS('Calcs - Conversion for Outputs'!$E$10:$E$11),FALSE) -> 10.91478351 | K37: 10.91478351
B38: Total Maintenance Support & Asset Management | G38: =SUM(G37) -> 10.91478351 | K38: 10.91478351
B39: ='Input - General'!C24 -> Operations/Control Room | G39: ='Input - Historic Yr1'!H43*HLOOKUP($B$7,'Calcs - Conversion for Outputs'!$E$10:$O$20,ROWS('Calcs - Conversion for Outputs'!$E$10:$E$11),FALSE) -> 8.534461572 | K39: 8.534461572
B40: Total Operations | G40: =SUM(G39) -> 8.534461572 | K40: 8.534461572
B41: ='Input - General'!C25 -> Grid Planning | G41: ='Input - Historic Yr1'!H45*HLOOKUP($B$7,'Calcs - Conversion for Outputs'!$E$10:$O$20,ROWS('Calcs - Conversion for Outputs'!$E$10:$E$11),FALSE) -> 4.66533769 | K41: 4.66533769
B42: Total Grid Planning | G42: =SUM(G41) -> 4.66533769 | K42: 4.66533769
B43: ='Input - General'!C26 -> Not Used | H43: ='Input - Historic Yr1'!I47*HLOOKUP($B$7,'Calcs - Conversion for Outputs'!$E$10:$O$20,ROWS('Calcs - Conversion for Outputs'!$E$10:$E$11),FALSE) -> 0 | K43: 0
B44: ='Input - General'!C27 -> Rates & Taxes | H44: ='Input - Historic Yr1'!I48*HLOOKUP($B$7,'Calcs - Conversion for Outputs'!$E$10:$O$20,ROWS('Calcs - Conversion for Outputs'!$E$10:$E$11),FALSE) -> 4.985234792 | K44: 4.985234792
B45: Total Taxes and Insurance | H45: =SUM(H43:H44) -> 4.985234792 | K45: 4.985234792
B46: ='Input - General'!C28 -> Property Management | H46: ='Input - Historic Yr1'!I50*HLOOKUP($B$7,'Calcs - Conversion for Outputs'!$E$10:$O$20,ROWS('Calcs - Conversion for Outputs'!$E$10:$E$11),FALSE) -> 4.225968785 | K46: 4.225968785
B47: ='Input - General'!C29 -> Health, Safety and Environmental | H47: ='Input - Historic Yr1'!I51*HLOOKUP($B$7,'Calcs - Conversion for Outputs'!$E$10:$O$20,ROWS('Calcs - Conversion for Outputs'!$E$10:$E$11),FALSE) -> 3.948324209 | K47: 3.948324209
B48: Total Property Management | H48: =SUM(H46:H47) -> 8.174292994 | K48: 8.174292994
B49: ='Input - General'!C30 -> Corporate Governance | I49: ='Input - Historic Yr1'!J53*HLOOKUP($B$7,'Calcs - Conversion for Outputs'!$E$10:$O$20,ROWS('Calcs - Conversion for Outputs'!$E$10:$E$11),FALSE) -> 4.251417065 | K49: 4.251417065
B50: ='Input - General'!C31 -> Customer Relations | H50: ='Input - Historic Yr1'!I54*HLOOKUP($B$7,'Calcs - Conversion for Outputs'!$E$10:$O$20,ROWS('Calcs - Conversion for Outputs'!$E$10:$E$11),FALSE) -> 1.668397475 | K50: 1.668397475
B51: ='Input - General'!C32 -> Regulatory | H51: ='Input - Historic Yr1'!I55*HLOOKUP($B$7,'Calcs - Conversion for Outputs'!$E$10:$O$20,ROWS('Calcs - Conversion for Outputs'!$E$10:$E$11),FALSE) -> 1.812615699 | K51: 1.812615699
B52: Total Corporate and Regulatory Management | H52: =SUM(H49:H51) -> 3.481013174 | I52: =SUM(I49:I51) -> 4.251417065 | K52: 7.73243024
B53: ='Input - General'!C33 -> Finance | I53: ='Input - Historic Yr1'!J57*HLOOKUP($B$7,'Calcs - Conversion for Outputs'!$E$10:$O$20,ROWS('Calcs - Conversion for Outputs'!$E$10:$E$11),FALSE) -> 6.583278164 | K53: 6.583278164
B54: ='Input - General'!C34 -> Information Technology | I54: ='Input - Historic Yr1'!J58*HLOOKUP($B$7,'Calcs - Conversion for Outputs'!$E$10:$O$20,ROWS('Calcs - Conversion for Outputs'!$E$10:$E$11),FALSE) -> 11.03791683 | K54: 11.03791683
B55: ='Input - General'!C35 -> HR & Payroll | I55: ='Input - Historic Yr1'!J59*HLOOKUP($B$7,'Calcs - Conversion for Outputs'!$E$10:$O$20,ROWS('Calcs - Conversion for Outputs'!$E$10:$E$11),FALSE) -> 5.227331751 | K55: 5.227331751
B56: Total Business Management | I56: =SUM(I53:I55) -> 22.84852675 | K56: 22.84852675
B57: TOTAL CONTROLLABLE OPEX | D57: =D36+D38+D40+D42+D45+D48+D52+D56 -> 34.51734284 | E57: 21.3957241 | F57: 4.950262758 | G57: 24.11458277 | H57: 16.64054096 | I57: 27.09994381 | K57: 128.7183972
B59: Debt Raising | K59: ='Input - Historic Yr1'!L63*HLOOKUP($B$7,'Calcs - Conversion for Outputs'!$E$10:$O$20,ROWS('Calcs - Conversion for Outputs'!$E$10:$E$11),FALSE) -> 0
B60: Insurance | K60: ='Input - Historic Yr1'!L64*HLOOKUP($B$7,'Calcs - Conversion for Outputs'!$E$10:$O$20,ROWS('Calcs - Conversion for Outputs'!$E$10:$E$11),FALSE) -> 7.775601737
B61: Self Insurance | K61: ='Input - Historic Yr1'!L65*HLOOKUP($B$7,'Calcs - Conversion for Outputs'!$E$10:$O$20,ROWS('Calcs - Conversion for Outputs'!$E$10:$E$11),FALSE) -> 1.959525799
B62: Network Support | K62: ='Input - Historic Yr1'!L66*HLOOKUP($B$7,'Calcs - Conversion for Outputs'!$E$10:$O$20,ROWS('Calcs - Conversion for Outputs'!$E$10:$E$11),FALSE) -> 20.15241377
B63: TOTAL OTHER OPEX | K63: =SUM(K59:K62) -> 29.88754131
B65: TOTAL REGULATORY OPEX | D65: =D57+D63 -> 34.51734284 | E65: 21.3957241 | F65: 4.950262758 | G65: 24.11458277 | H65: 16.64054096 | I65: 27.09994381 | K65: =SUM(D65:I65)+K63 -> 158.6059385
B67: Revenue Cap Allowance

Sheet Historic Opex by Category Yr2
D2: Home
B3: 1.4 HISTORIC OPEX by expenditure category
D5: Year 2
B6: $ million | D6: Field Maintenance | G6: Operations and Maintenance Support | H6: Corporate Support
B7: ='Historic Opex Summary'!B7 -> Real 13/14 | D7: Preventative | E7: Corrective/ Condition-based | F7: MOPS | H7: Network | I7: Non-Network | K7: TOTAL | M7: Revenue Cap Allowance | O7: Key cost drivers and explanation for material differences over time
B8: Maintenance
B9: ='Input - General'!C17 -> Not Used
B10: Labour | D10: ='Input - Historic Yr2'!E14*HLOOKUP($B$7,'Calcs - Conversion for Outputs'!$E$10:$O$20,ROWS('Calcs - Conversion for Outputs'!$E$10:$E$12),FALSE) -> 0 | E10: ='Input - Historic Yr2'!F14*HLOOKUP($B$7,'Calcs - Conversion for Outputs'!$E$10:$O$20,ROWS('Calcs - Conversion for Outputs'!$E$10:$E$12),FALSE) -> 0 | F10: ='Input - Historic Yr2'!G14*HLOOKUP($B$7,'Calcs - Conversion for Outputs'!$E$10:$O$20,ROWS('Calcs - Conversion for Outputs'!$E$10:$E$12),FALSE) -> 0 | K10: =SUM(D10:I10) -> 0
B11: Materials | D11: ='Input - Historic Yr2'!E15*HLOOKUP($B$7,'Calcs - Conversion for Outputs'!$E$10:$O$20,ROWS('Calcs - Conversion for Outputs'!$E$10:$E$12),FALSE) -> 0 | E11: ='Input - Historic Yr2'!F15*HLOOKUP($B$7,'Calcs - Conversion for Outputs'!$E$10:$O$20,ROWS('Calcs - Conversion for Outputs'!$E$10:$E$12),FALSE) -> 0 | F11: ='Input - Historic Yr2'!G15*HLOOKUP($B$7,'Calcs - Conversion for Outputs'!$E$10:$O$20,ROWS('Calcs - Conversion for Outputs'!$E$10:$E$12),FALSE) -> 0 | K11: =SUM(D11:I11) -> 0
B12: Sub-Totals | D12: =SUM(D10:D11) -> 0 | E12: =SUM(E10:E11) -> 0 | F12: =SUM(F10:F11) -> 0 | K12: =SUM(D12:I12) -> 0
B13: ='Input - General'!C18 -> Lines
B14: Labour | D14: ='Input - Historic Yr2'!E18*HLOOKUP($B$7,'Calcs - Conversion for Outputs'!$E$10:$O$20,ROWS('Calcs - Conversion for Outputs'!$E$10:$E$12),FALSE) -> 3.06508472 | E14: ='Input - Historic Yr2'!F18*HLOOKUP($B$7,'Calcs - Conversion for Outputs'!$E$10:$O$20,ROWS('Calcs - Conversion for Outputs'!$E$10:$E$12),FALSE) -> 1.263556114 | F14: ='Input - Historic Yr2'!G18*HLOOKUP($B$7,'Calcs - Conversion for Outputs'!$E$10:$O$20,ROWS('Calcs - Conversion for Outputs'!$E$10:$E$12),FALSE) -> 1.063204984 | K14: =SUM(D14:I14) -> 5.391845818
B15: Materials | D15: ='Input - Historic Yr2'!E19*HLOOKUP($B$7,'Calcs - Conversion for Outputs'!$E$10:$O$20,ROWS('Calcs - Conversion for Outputs'!$E$10:$E$12),FALSE) -> 1.931470405 | E15: ='Input - Historic Yr2'!F19*HLOOKUP($B$7,'Calcs - Conversion for Outputs'!$E$10:$O$20,ROWS('Calcs - Conversion for Outputs'!$E$10:$E$12),FALSE) -> 1.884929534 | F15: ='Input - Historic Yr2'!G19*HLOOKUP($B$7,'Calcs - Conversion for Outputs'!$E$10:$O$20,ROWS('Calcs - Conversion for Outputs'!$E$10:$E$12),FALSE) -> 3.155333049 | K15: =SUM(D15:I15) -> 6.971732988
B16: Sub-Totals | D16: =SUM(D14:D15) -> 4.996555125 | E16: =SUM(E14:E15) -> 3.148485648 | F16: =SUM(F14:F15) -> 4.218538033 | K16: =SUM(D16:I16) -> 12.36357881
B17: ='Input - General'!C19 -> Substations
B18: Labour | D18: ='Input - Historic Yr2'!E22*HLOOKUP($B$7,'Calcs - Conversion for Outputs'!$E$10:$O$20,ROWS('Calcs - Conversion for Outputs'!$E$10:$E$12),FALSE) -> 7.220576249 | E18: ='Input - Historic Yr2'!F22*HLOOKUP($B$7,'Calcs - Conversion for Outputs'!$E$10:$O$20,ROWS('Calcs - Conversion for Outputs'!$E$10:$E$12),FALSE) -> 4.318360422 | F18: ='Input - Historic Yr2'!G22*HLOOKUP($B$7,'Calcs - Conversion for Outputs'!$E$10:$O$20,ROWS('Calcs - Conversion for Outputs'!$E$10:$E$12),FALSE) -> 1.228064784 | K18: =SUM(D18:I18) -> 12.76700146
B19: Materials | D19: ='Input - Historic Yr2'!E23*HLOOKUP($B$7,'Calcs - Conversion for Outputs'!$E$10:$O$20,ROWS('Calcs - Conversion for Outputs'!$E$10:$E$12),FALSE) -> 5.241252571 | E19: ='Input - Historic Yr2'!F23*HLOOKUP($B$7,'Calcs - Conversion for Outputs'!$E$10:$O$20,ROWS('Calcs - Conversion for Outputs'!$E$10:$E$12),FALSE) -> 7.748998455 | F19: ='Input - Historic Yr2'!G23*HLOOKUP($B$7,'Calcs - Conversion for Outputs'!$E$10:$O$20,ROWS('Calcs - Conversion for Outputs'!$E$10:$E$12),FALSE) -> 4.464917722 | K19: =SUM(D19:I19) -> 17.45516875
B20: Sub-Totals | D20: =SUM(D18:D19) -> 12.46182882 | E20: =SUM(E18:E19) -> 12.06735888 | F20: =SUM(F18:F19) -> 5.692982505 | K20: =SUM(D20:I20) -> 30.2221702
B21: ='Input - General'!C20 -> Communications
B22: Labour | D22: ='Input - Historic Yr2'!E26*HLOOKUP($B$7,'Calcs - Conversion for Outputs'!$E$10:$O$20,ROWS('Calcs - Conversion for Outputs'!$E$10:$E$12),FALSE) -> 2.248431299 | E22: ='Input - Historic Yr2'!F26*HLOOKUP($B$7,'Calcs - Conversion for Outputs'!$E$10:$O$20,ROWS('Calcs - Conversion for Outputs'!$E$10:$E$12),FALSE) -> 1.124367731 | F22: ='Input - Historic Yr2'!G26*HLOOKUP($B$7,'Calcs - Conversion for Outputs'!$E$10:$O$20,ROWS('Calcs - Conversion for Outputs'!$E$10:$E$12),FALSE) -> 0.1786502513 | K22: =SUM(D22:I22) -> 3.551449281
B23: Materials | D23: ='Input - Historic Yr2'!E27*HLOOKUP($B$7,'Calcs - Conversion for Outputs'!$E$10:$O$20,ROWS('Calcs - Conversion for Outputs'!$E$10:$E$12),FALSE) -> 2.06985231 | E23: ='Input - Historic Yr2'!F27*HLOOKUP($B$7,'Calcs - Conversion for Outputs'!$E$10:$O$20,ROWS('Calcs - Conversion for Outputs'!$E$10:$E$12),FALSE) -> 0.9944595761 | F23: ='Input - Historic Yr2'!G27*HLOOKUP($B$7,'Calcs - Conversion for Outputs'!$E$10:$O$20,ROWS('Calcs - Conversion for Outputs'!$E$10:$E$12),FALSE) -> 0.1832559852 | K23: =SUM(D23:I23) -> 3.247567871
B24: Sub-Totals | D24: =SUM(D22:D23) -> 4.318283608 | E24: =SUM(E22:E23) -> 2.118827307 | F24: =SUM(F22:F23) -> 0.3619062365 | K24: =SUM(D24:I24) -> 6.799017152
B25: ='Input - General'!C21 -> Secondary Systems
B26: Labour | D26: ='Input - Historic Yr2'!E30*HLOOKUP($B$7,'Calcs - Conversion for Outputs'!$E$10:$O$20,ROWS('Calcs - Conversion for Outputs'!$E$10:$E$12),FALSE) -> 3.176657568 | E26: ='Input - Historic Yr2'!F30*HLOOKUP($B$7,'Calcs - Conversion for Outputs'!$E$10:$O$20,ROWS('Calcs - Conversion for Outputs'!$E$10:$E$12),FALSE) -> 0.5333045269 | F26: ='Input - Historic Yr2'!G30*HLOOKUP($B$7,'Calcs - Conversion for Outputs'!$E$10:$O$20,ROWS('Calcs - Conversion for Outputs'!$E$10:$E$12),FALSE) -> 0 | K26: =SUM(D26:I26) -> 3.709962094
B27: Materials | D27: ='Input - Historic Yr2'!E31*HLOOKUP($B$7,'Calcs - Conversion for Outputs'!$E$10:$O$20,ROWS('Calcs - Conversion for Outputs'!$E$10:$E$12),FALSE) -> 2.233999047 | E27: ='Input - Historic Yr2'!F31*HLOOKUP($B$7,'Calcs - Conversion for Outputs'!$E$10:$O$20,ROWS('Calcs - Conversion for Outputs'!$E$10:$E$12),FALSE) -> 0.5105162118 | F27: ='Input - Historic Yr2'!G31*HLOOKUP($B$7,'Calcs - Conversion for Outputs'!$E$10:$O$20,ROWS('Calcs - Conversion for Outputs'!$E$10:$E$12),FALSE) -> 0 | K27: =SUM(D27:I27) -> 2.744515259
B28: Sub-Totals | D28: =SUM(D26:D27) -> 5.410656615 | E28: =SUM(E26:E27) -> 1.043820739 | F28: =SUM(F26:F27) -> 0 | K28: =SUM(D28:I28) -> 6.454477353
B29: ='Input - General'!C22 -> Land and Easements
B30: Labour | D30: ='Input - Historic Yr2'!E34*HLOOKUP($B$7,'Calcs - Conversion for Outputs'!$E$10:$O$20,ROWS('Calcs - Conversion for Outputs'!$E$10:$E$12),FALSE) -> 2.61932161 | E30: ='Input - Historic Yr2'!F34*HLOOKUP($B$7,'Calcs - Conversion for Outputs'!$E$10:$O$20,ROWS('Calcs - Conversion for Outputs'!$E$10:$E$12),FALSE) -> 0.5253232236 | F30: ='Input - Historic Yr2'!G34*HLOOKUP($B$7,'Calcs - Conversion for Outputs'!$E$10:$O$20,ROWS('Calcs - Conversion for Outputs'!$E$10:$E$12),FALSE) -> 0 | K30: =SUM(D30:I30) -> 3.144644834
B31: Materials | D31: ='Input - Historic Yr2'!E35*HLOOKUP($B$7,'Calcs - Conversion for Outputs'!$E$10:$O$20,ROWS('Calcs - Conversion for Outputs'!$E$10:$E$12),FALSE) -> 6.150284284 | E31: ='Input - Historic Yr2'!F35*HLOOKUP($B$7,'Calcs - Conversion for Outputs'!$E$10:$O$20,ROWS('Calcs - Conversion for Outputs'!$E$10:$E$12),FALSE) -> 7.265956715 | F31: ='Input - Historic Yr2'!G35*HLOOKUP($B$7,'Calcs - Conversion for Outputs'!$E$10:$O$20,ROWS('Calcs - Conversion for Outputs'!$E$10:$E$12),FALSE) -> 0 | K31: =SUM(D31:I31) -> 13.416241
B32: Sub-Totals | D32: =SUM(D30:D31) -> 8.769605894 | E32: =SUM(E30:E31) -> 7.791279938 | F32: =SUM(F30:F31) -> 0 | K32: =SUM(D32:I32) -> 16.56088583
B33: Summary
B34: Sub-Total Labour | D34: =D10+D14+D18+D22+D26+D30 -> 18.33007145 | E34: 7.764912018 | F34: 2.469920019 | K34: =SUM(D34:I34) -> 28.56490348
B35: Sub-Total Materials | D35: 17.62685862 | E35: 18.40486049 | F35: 7.803506756 | K35: 43.83522586
B36: Total Maintenance | D36: =SUM(D34:D35) -> 35.95693006 | E36: =SUM(E34:E35) -> 26.16977251 | F36: =SUM(F34:F35) -> 10.27342677 | K36: 72.40012935
B37: ='Input - General'!C23 -> Maintenance Support & Asset Management | G37: ='Input - Historic Yr2'!H41*HLOOKUP($B$7,'Calcs - Conversion for Outputs'!$E$10:$O$20,ROWS('Calcs - Conversion for Outputs'!$E$10:$E$12),FALSE) -> 11.91477244 | K37: 11.91477244
B38: Total Maintenance Support & Asset Management | G38: =SUM(G37) -> 11.91477244 | K38: 11.91477244
B39: ='Input - General'!C24 -> Operations/Control Room | G39: ='Input - Historic Yr2'!H43*HLOOKUP($B$7,'Calcs - Conversion for Outputs'!$E$10:$O$20,ROWS('Calcs - Conversion for Outputs'!$E$10:$E$12),FALSE) -> 7.318742566 | K39: 7.318742566
B40: Total Operations | G40: =SUM(G39) -> 7.318742566 | K40: 7.318742566
B41: ='Input - General'!C25 -> Grid Planning | G41: ='Input - Historic Yr2'!H45*HLOOKUP($B$7,'Calcs - Conversion for Outputs'!$E$10:$O$20,ROWS('Calcs - Conversion for Outputs'!$E$10:$E$12),FALSE) -> 6.880003047 | K41: 6.880003047
B42: Total Grid Planning | G42: =SUM(G41) -> 6.880003047 | K42: 6.880003047
B43: ='Input - General'!C26 -> Not Used | H43: ='Input - Historic Yr2'!I47*HLOOKUP($B$7,'Calcs - Conversion for Outputs'!$E$10:$O$20,ROWS('Calcs - Conversion for Outputs'!$E$10:$E$12),FALSE) -> 0 | K43: 0
B44: ='Input - General'!C27 -> Rates & Taxes | H44: ='Input - Historic Yr2'!I48*HLOOKUP($B$7,'Calcs - Conversion for Outputs'!$E$10:$O$20,ROWS('Calcs - Conversion for Outputs'!$E$10:$E$12),FALSE) -> 5.012268539 | K44: 5.012268539
B45: Total Taxes and Insurance | H45: =SUM(H43:H44) -> 5.012268539 | K45: 5.012268539
B46: ='Input - General'!C28 -> Property Management | H46: ='Input - Historic Yr2'!I50*HLOOKUP($B$7,'Calcs - Conversion for Outputs'!$E$10:$O$20,ROWS('Calcs - Conversion for Outputs'!$E$10:$E$12),FALSE) -> 3.649777216 | K46: 3.649777216
B47: ='Input - General'!C29 -> Health, Safety and Environmental | H47: ='Input - Historic Yr2'!I51*HLOOKUP($B$7,'Calcs - Conversion for Outputs'!$E$10:$O$20,ROWS('Calcs - Conversion for Outputs'!$E$10:$E$12),FALSE) -> 4.173638576 | K47: 4.173638576
B48: Total Property Management | H48: =SUM(H46:H47) -> 7.823415792 | K48: 7.823415792
B49: ='Input - General'!C30 -> Corporate Governance | I49: ='Input - Historic Yr2'!J53*HLOOKUP($B$7,'Calcs - Conversion for Outputs'!$E$10:$O$20,ROWS('Calcs - Conversion for Outputs'!$E$10:$E$12),FALSE) -> 1.435402177 | K49: 1.435402177
B50: ='Input - General'!C31 -> Customer Relations | H50: ='Input - Historic Yr2'!I54*HLOOKUP($B$7,'Calcs - Conversion for Outputs'!$E$10:$O$20,ROWS('Calcs - Conversion for Outputs'!$E$10:$E$12),FALSE) -> 1.465324059 | K50: 1.465324059
B51: ='Input - General'!C32 -> Regulatory | H51: ='Input - Historic Yr2'!I55*HLOOKUP($B$7,'Calcs - Conversion for Outputs'!$E$10:$O$20,ROWS('Calcs - Conversion for Outputs'!$E$10:$E$12),FALSE) -> 1.218977488 | K51: 1.218977488
B52: Total Corporate and Regulatory Management | H52: =SUM(H49:H51) -> 2.684301547 | I52: =SUM(I49:I51) -> 1.435402177 | K52: 4.119703724
B53: ='Input - General'!C33 -> Finance | I53: ='Input - Historic Yr2'!J57*HLOOKUP($B$7,'Calcs - Conversion for Outputs'!$E$10:$O$20,ROWS('Calcs - Conversion for Outputs'!$E$10:$E$12),FALSE) -> 5.636725607 | K53: 5.636725607
B54: ='Input - General'!C34 -> Information Technology | I54: ='Input - Historic Yr2'!J58*HLOOKUP($B$7,'Calcs - Conversion for Outputs'!$E$10:$O$20,ROWS('Calcs - Conversion for Outputs'!$E$10:$E$12),FALSE) -> 12.74238366 | K54: 12.74238366
B55: ='Input - General'!C35 -> HR & Payroll | I55: ='Input - Historic Yr2'!J59*HLOOKUP($B$7,'Calcs - Conversion for Outputs'!$E$10:$O$20,ROWS('Calcs - Conversion for Outputs'!$E$10:$E$12),FALSE) -> 5.156784814 | K55: 5.156784814
B56: Total Business Management | I56: =SUM(I53:I55) -> 23.53589408 | K56: 23.53589408
B57: TOTAL CONTROLLABLE OPEX | D57: =D36+D38+D40+D42+D45+D48+D52+D56 -> 35.95693006 | E57: 26.16977251 | F57: 10.27342677 | G57: 26.11351805 | H57: 15.51998588 | I57: 24.97129626 | K57: 139.0049295
B59: Debt Raising | K59: ='Input - Historic Yr2'!L63*HLOOKUP($B$7,'Calcs - Conversion for Outputs'!$E$10:$O$20,ROWS('Calcs - Conversion for Outputs'!$E$10:$E$12),FALSE) -> 0
B60: Insurance | K60: ='Input - Historic Yr2'!L64*HLOOKUP($B$7,'Calcs - Conversion for Outputs'!$E$10:$O$20,ROWS('Calcs - Conversion for Outputs'!$E$10:$E$12),FALSE) -> 7.495668392
B61: Self Insurance | K61: ='Input - Historic Yr2'!L65*HLOOKUP($B$7,'Calcs - Conversion for Outputs'!$E$10:$O$20,ROWS('Calcs - Conversion for Outputs'!$E$10:$E$12),FALSE) -> 1.435239045
B62: Network Support | K62: ='Input - Historic Yr2'!L66*HLOOKUP($B$7,'Calcs - Conversion for Outputs'!$E$10:$O$20,ROWS('Calcs - Conversion for Outputs'!$E$10:$E$12),FALSE) -> 0.01605510993
B63: TOTAL OTHER OPEX | K63: =SUM(K59:K62) -> 8.946962547
B65: TOTAL REGULATORY OPEX | D65: =D57+D63 -> 35.95693006 | E65: 26.16977251 | F65: 10.27342677 | G65: 26.11351805 | H65: 15.51998588 | I65: 24.97129626 | K65: =SUM(D65:I65)+K63 -> 147.9518921
B67: Revenue Cap Allowance

Sheet Historic Opex by Category Yr3
D2: Home
B3: 1.5 HISTORIC OPEX by expenditure category
D5: Year 3
B6: $ million | D6: Field Maintenance | G6: Operations and Maintenance Support | H6: Corporate Support
B7: ='Historic Opex Summary'!B7 -> Real 13/14 | D7: Preventative | E7: Corrective/ Condition-based | F7: MOPS | H7: Network | I7: Non-Network | K7: TOTAL | M7: Revenue Cap Allowance | O7: Key cost drivers and explanation for material differences over time
B8: Maintenance
B9: ='Input - General'!C17 -> Not Used
B10: Labour | D10: ='Input - Historic Yr3'!E14*HLOOKUP($B$7,'Calcs - Conversion for Outputs'!$E$10:$O$20,ROWS('Calcs - Conversion for Outputs'!$E$10:$E$13),FALSE) -> 0 | E10: ='Input - Historic Yr3'!F14*HLOOKUP($B$7,'Calcs - Conversion for Outputs'!$E$10:$O$20,ROWS('Calcs - Conversion for Outputs'!$E$10:$E$13),FALSE) -> 0 | F10: ='Input - Historic Yr3'!G14*HLOOKUP($B$7,'Calcs - Conversion for Outputs'!$E$10:$O$20,ROWS('Calcs - Conversion for Outputs'!$E$10:$E$13),FALSE) -> 0 | K10: =SUM(D10:I10) -> 0
B11: Materials | D11: ='Input - Historic Yr3'!E15*HLOOKUP($B$7,'Calcs - Conversion for Outputs'!$E$10:$O$20,ROWS('Calcs - Conversion for Outputs'!$E$10:$E$13),FALSE) -> 0 | E11: ='Input - Historic Yr3'!F15*HLOOKUP($B$7,'Calcs - Conversion for Outputs'!$E$10:$O$20,ROWS('Calcs - Conversion for Outputs'!$E$10:$E$13),FALSE) -> 0 | F11: ='Input - Historic Yr3'!G15*HLOOKUP($B$7,'Calcs - Conversion for Outputs'!$E$10:$O$20,ROWS('Calcs - Conversion for Outputs'!$E$10:$E$13),FALSE) -> 0 | K11: =SUM(D11:I11) -> 0
B12: Sub-Totals | D12: =SUM(D10:D11) -> 0 | E12: =SUM(E10:E11) -> 0 | F12: =SUM(F10:F11) -> 0 | K12: =SUM(D12:I12) -> 0
B13: ='Input - General'!C18 -> Lines
B14: Labour | D14: ='Input - Historic Yr3'!E18*HLOOKUP($B$7,'Calcs - Conversion for Outputs'!$E$10:$O$20,ROWS('Calcs - Conversion for Outputs'!$E$10:$E$13),FALSE) -> 3.266108965 | E14: ='Input - Historic Yr3'!F18*HLOOKUP($B$7,'Calcs - Conversion for Outputs'!$E$10:$O$20,ROWS('Calcs - Conversion for Outputs'!$E$10:$E$13),FALSE) -> 2.764105971 | F14: ='Input - Historic Yr3'!G18*HLOOKUP($B$7,'Calcs - Conversion for Outputs'!$E$10:$O$20,ROWS('Calcs - Conversion for Outputs'!$E$10:$E$13),FALSE) -> 1.504241359 | K14: =SUM(D14:I14) -> 7.534456295
B15: Materials | D15: ='Input - Historic Yr3'!E19*HLOOKUP($B$7,'Calcs - Conversion for Outputs'!$E$10:$O$20,ROWS('Calcs - Conversion for Outputs'!$E$10:$E$13),FALSE) -> 1.699597912 | E15: ='Input - Historic Yr3'!F19*HLOOKUP($B$7,'Calcs - Conversion for Outputs'!$E$10:$O$20,ROWS('Calcs - Conversion for Outputs'!$E$10:$E$13),FALSE) -> 1.375847661 | F15: ='Input - Historic Yr3'!G19*HLOOKUP($B$7,'Calcs - Conversion for Outputs'!$E$10:$O$20,ROWS('Calcs - Conversion for Outputs'!$E$10:$E$13),FALSE) -> 3.787949251 | K15: =SUM(D15:I15) -> 6.863394824
B16: Sub-Totals | D16: =SUM(D14:D15) -> 4.965706876 | E16: =SUM(E14:E15) -> 4.139953632 | F16: =SUM(F14:F15) -> 5.29219061 | K16: =SUM(D16:I16) -> 14.39785112
B17: ='Input - General'!C19 -> Substations
B18: Labour | D18: ='Input - Historic Yr3'!E22*HLOOKUP($B$7,'Calcs - Conversion for Outputs'!$E$10:$O$20,ROWS('Calcs - Conversion for Outputs'!$E$10:$E$13),FALSE) -> 9.824472316 | E18: ='Input - Historic Yr3'!F22*HLOOKUP($B$7,'Calcs - Conversion for Outputs'!$E$10:$O$20,ROWS('Calcs - Conversion for Outputs'!$E$10:$E$13),FALSE) -> 9.596467354 | F18: ='Input - Historic Yr3'!G22*HLOOKUP($B$7,'Calcs - Conversion for Outputs'!$E$10:$O$20,ROWS('Calcs - Conversion for Outputs'!$E$10:$E$13),FALSE) -> 0.6675220632 | K18: =SUM(D18:I18) -> 20.08846173
B19: Materials | D19: ='Input - Historic Yr3'!E23*HLOOKUP($B$7,'Calcs - Conversion for Outputs'!$E$10:$O$20,ROWS('Calcs - Conversion for Outputs'!$E$10:$E$13),FALSE) -> 1.288725223 | E19: ='Input - Historic Yr3'!F23*HLOOKUP($B$7,'Calcs - Conversion for Outputs'!$E$10:$O$20,ROWS('Calcs - Conversion for Outputs'!$E$10:$E$13),FALSE) -> 5.923374701 | F19: ='Input - Historic Yr3'!G23*HLOOKUP($B$7,'Calcs - Conversion for Outputs'!$E$10:$O$20,ROWS('Calcs - Conversion for Outputs'!$E$10:$E$13),FALSE) -> 1.504431313 | K19: =SUM(D19:I19) -> 8.716531237
B20: Sub-Totals | D20: =SUM(D18:D19) -> 11.11319754 | E20: =SUM(E18:E19) -> 15.51984206 | F20: =SUM(F18:F19) -> 2.171953376 | K20: =SUM(D20:I20) -> 28.80499297
B21: ='Input - General'!C20 -> Communications
B22: Labour | D22: ='Input - Historic Yr3'!E26*HLOOKUP($B$7,'Calcs - Conversion for Outputs'!$E$10:$O$20,ROWS('Calcs - Conversion for Outputs'!$E$10:$E$13),FALSE) -> 0.9673807736 | E22: ='Input - Historic Yr3'!F26*HLOOKUP($B$7,'Calcs - Conversion for Outputs'!$E$10:$O$20,ROWS('Calcs - Conversion for Outputs'!$E$10:$E$13),FALSE) -> 2.640310165 | F22: ='Input - Historic Yr3'!G26*HLOOKUP($B$7,'Calcs - Conversion for Outputs'!$E$10:$O$20,ROWS('Calcs - Conversion for Outputs'!$E$10:$E$13),FALSE) -> 0.07494367631 | K22: =SUM(D22:I22) -> 3.682634615
B23: Materials | D23: ='Input - Historic Yr3'!E27*HLOOKUP($B$7,'Calcs - Conversion for Outputs'!$E$10:$O$20,ROWS('Calcs - Conversion for Outputs'!$E$10:$E$13),FALSE) -> 0.1342344016 | E23: ='Input - Historic Yr3'!F27*HLOOKUP($B$7,'Calcs - Conversion for Outputs'!$E$10:$O$20,ROWS('Calcs - Conversion for Outputs'!$E$10:$E$13),FALSE) -> 0.3878240097 | F23: ='Input - Historic Yr3'!G27*HLOOKUP($B$7,'Calcs - Conversion for Outputs'!$E$10:$O$20,ROWS('Calcs - Conversion for Outputs'!$E$10:$E$13),FALSE) -> 0.007750849262 | K23: =SUM(D23:I23) -> 0.5298092606
B24: Sub-Totals | D24: =SUM(D22:D23) -> 1.101615175 | E24: =SUM(E22:E23) -> 3.028134174 | F24: =SUM(F22:F23) -> 0.08269452558 | K24: =SUM(D24:I24) -> 4.212443875
B25: ='Input - General'!C21 -> Secondary Systems
B26: Labour | D26: ='Input - Historic Yr3'!E30*HLOOKUP($B$7,'Calcs - Conversion for Outputs'!$E$10:$O$20,ROWS('Calcs - Conversion for Outputs'!$E$10:$E$13),FALSE) -> 2.87797459 | E26: ='Input - Historic Yr3'!F30*HLOOKUP($B$7,'Calcs - Conversion for Outputs'!$E$10:$O$20,ROWS('Calcs - Conversion for Outputs'!$E$10:$E$13),FALSE) -> 0.7159224658 | F26: ='Input - Historic Yr3'!G30*HLOOKUP($B$7,'Calcs - Conversion for Outputs'!$E$10:$O$20,ROWS('Calcs - Conversion for Outputs'!$E$10:$E$13),FALSE) -> 0 | K26: =SUM(D26:I26) -> 3.593897056
B27: Materials | D27: ='Input - Historic Yr3'!E31*HLOOKUP($B$7,'Calcs - Conversion for Outputs'!$E$10:$O$20,ROWS('Calcs - Conversion for Outputs'!$E$10:$E$13),FALSE) -> 0.1136761442 | E27: ='Input - Historic Yr3'!F31*HLOOKUP($B$7,'Calcs - Conversion for Outputs'!$E$10:$O$20,ROWS('Calcs - Conversion for Outputs'!$E$10:$E$13),FALSE) -> 0.304017118 | F27: ='Input - Historic Yr3'!G31*HLOOKUP($B$7,'Calcs - Conversion for Outputs'!$E$10:$O$20,ROWS('Calcs - Conversion for Outputs'!$E$10:$E$13),FALSE) -> 0 | K27: =SUM(D27:I27) -> 0.4176932622
B28: Sub-Totals | D28: =SUM(D26:D27) -> 2.991650734 | E28: =SUM(E26:E27) -> 1.019939584 | F28: =SUM(F26:F27) -> 0 | K28: =SUM(D28:I28) -> 4.011590318
B29: ='Input - General'!C22 -> Land and Easements
B30: Labour | D30: ='Input - Historic Yr3'!E34*HLOOKUP($B$7,'Calcs - Conversion for Outputs'!$E$10:$O$20,ROWS('Calcs - Conversion for Outputs'!$E$10:$E$13),FALSE) -> 3.616623471 | E30: ='Input - Historic Yr3'!F34*HLOOKUP($B$7,'Calcs - Conversion for Outputs'!$E$10:$O$20,ROWS('Calcs - Conversion for Outputs'!$E$10:$E$13),FALSE) -> 0.7295791556 | F30: ='Input - Historic Yr3'!G34*HLOOKUP($B$7,'Calcs - Conversion for Outputs'!$E$10:$O$20,ROWS('Calcs - Conversion for Outputs'!$E$10:$E$13),FALSE) -> 0 | K30: =SUM(D30:I30) -> 4.346202627
B31: Materials | D31: ='Input - Historic Yr3'!E35*HLOOKUP($B$7,'Calcs - Conversion for Outputs'!$E$10:$O$20,ROWS('Calcs - Conversion for Outputs'!$E$10:$E$13),FALSE) -> 9.23496151 | E31: ='Input - Historic Yr3'!F35*HLOOKUP($B$7,'Calcs - Conversion for Outputs'!$E$10:$O$20,ROWS('Calcs - Conversion for Outputs'!$E$10:$E$13),FALSE) -> 2.799068966 | F31: ='Input - Historic Yr3'!G35*HLOOKUP($B$7,'Calcs - Conversion for Outputs'!$E$10:$O$20,ROWS('Calcs - Conversion for Outputs'!$E$10:$E$13),FALSE) -> 0 | K31: =SUM(D31:I31) -> 12.03403048
B32: Sub-Totals | D32: =SUM(D30:D31) -> 12.85158498 | E32: =SUM(E30:E31) -> 3.528648122 | F32: =SUM(F30:F31) -> 0 | K32: =SUM(D32:I32) -> 16.3802331
B33: Summary
B34: Sub-Total Labour | D34: =D10+D14+D18+D22+D26+D30 -> 20.55256012 | E34: 16.44638511 | F34: 2.246707098 | K34: =SUM(D34:I34) -> 39.24565233
B35: Sub-Total Materials | D35: 12.47119519 | E35: 10.79013246 | F35: 5.300131414 | K35: 28.56145906
B36: Total Maintenance | D36: =SUM(D34:D35) -> 33.02375531 | E36: =SUM(E34:E35) -> 27.23651757 | F36: =SUM(F34:F35) -> 7.546838512 | K36: 67.80711138
B37: ='Input - General'!C23 -> Maintenance Support & Asset Management | G37: ='Input - Historic Yr3'!H41*HLOOKUP($B$7,'Calcs - Conversion for Outputs'!$E$10:$O$20,ROWS('Calcs - Conversion for Outputs'!$E$10:$E$13),FALSE) -> 14.2933093 | K37: 14.2933093
B38: Total Maintenance Support & Asset Management | G38: =SUM(G37) -> 14.2933093 | K38: 14.2933093
B39: ='Input - General'!C24 -> Operations/Control Room | G39: ='Input - Historic Yr3'!H43*HLOOKUP($B$7,'Calcs - Conversion for Outputs'!$E$10:$O$20,ROWS('Calcs - Conversion for Outputs'!$E$10:$E$13),FALSE) -> 7.474828209 | K39: 7.474828209
B40: Total Operations | G40: =SUM(G39) -> 7.474828209 | K40: 7.474828209
B41: ='Input - General'!C25 -> Grid Planning | G41: ='Input - Historic Yr3'!H45*HLOOKUP($B$7,'Calcs - Conversion for Outputs'!$E$10:$O$20,ROWS('Calcs - Conversion for Outputs'!$E$10:$E$13),FALSE) -> 9.08675673 | K41: 9.08675673
B42: Total Grid Planning | G42: =SUM(G41) -> 9.08675673 | K42: 9.08675673
B43: ='Input - General'!C26 -> Not Used | H43: ='Input - Historic Yr3'!I47*HLOOKUP($B$7,'Calcs - Conversion for Outputs'!$E$10:$O$20,ROWS('Calcs - Conversion for Outputs'!$E$10:$E$13),FALSE) -> 0 | K43: 0
B44: ='Input - General'!C27 -> Rates & Taxes | H44: ='Input - Historic Yr3'!I48*HLOOKUP($B$7,'Calcs - Conversion for Outputs'!$E$10:$O$20,ROWS('Calcs - Conversion for Outputs'!$E$10:$E$13),FALSE) -> 4.802969744 | K44: 4.802969744
B45: Total Taxes and Insurance | H45: =SUM(H43:H44) -> 4.802969744 | K45: 4.802969744
B46: ='Input - General'!C28 -> Property Management | H46: ='Input - Historic Yr3'!I50*HLOOKUP($B$7,'Calcs - Conversion for Outputs'!$E$10:$O$20,ROWS('Calcs - Conversion for Outputs'!$E$10:$E$13),FALSE) -> 2.362165464 | K46: 2.362165464
B47: ='Input - General'!C29 -> Health, Safety and Environmental | H47: ='Input - Historic Yr3'!I51*HLOOKUP($B$7,'Calcs - Conversion for Outputs'!$E$10:$O$20,ROWS('Calcs - Conversion for Outputs'!$E$10:$E$13),FALSE) -> 2.714129818 | K47: 2.714129818
B48: Total Property Management | H48: =SUM(H46:H47) -> 5.076295282 | K48: 5.076295282
B49: ='Input - General'!C30 -> Corporate Governance | I49: ='Input - Historic Yr3'!J53*HLOOKUP($B$7,'Calcs - Conversion for Outputs'!$E$10:$O$20,ROWS('Calcs - Conversion for Outputs'!$E$10:$E$13),FALSE) -> 11.19935616 | K49: 11.19935616
B50: ='Input - General'!C31 -> Customer Relations | H50: ='Input - Historic Yr3'!I54*HLOOKUP($B$7,'Calcs - Conversion for Outputs'!$E$10:$O$20,ROWS('Calcs - Conversion for Outputs'!$E$10:$E$13),FALSE) -> 3.010332587 | K50: 3.010332587
B51: ='Input - General'!C32 -> Regulatory | H51: ='Input - Historic Yr3'!I55*HLOOKUP($B$7,'Calcs - Conversion for Outputs'!$E$10:$O$20,ROWS('Calcs - Conversion for Outputs'!$E$10:$E$13),FALSE) -> 2.578900586 | K51: 2.578900586
B52: Total Corporate and Regulatory Management | H52: =SUM(H49:H51) -> 5.589233173 | I52: =SUM(I49:I51) -> 11.19935616 | K52: 16.78858933
B53: ='Input - General'!C33 -> Finance | I53: ='Input - Historic Yr3'!J57*HLOOKUP($B$7,'Calcs - Conversion for Outputs'!$E$10:$O$20,ROWS('Calcs - Conversion for Outputs'!$E$10:$E$13),FALSE) -> 5.298653695 | K53: 5.298653695
B54: ='Input - General'!C34 -> Information Technology | I54: ='Input - Historic Yr3'!J58*HLOOKUP($B$7,'Calcs - Conversion for Outputs'!$E$10:$O$20,ROWS('Calcs - Conversion for Outputs'!$E$10:$E$13),FALSE) -> 11.99009543 | K54: 11.99009543
B55: ='Input - General'!C35 -> HR & Payroll | I55: ='Input - Historic Yr3'!J59*HLOOKUP($B$7,'Calcs - Conversion for Outputs'!$E$10:$O$20,ROWS('Calcs - Conversion for Outputs'!$E$10:$E$13),FALSE) -> 5.696552911 | K55: 5.696552911
B56: Total Business Management | I56: =SUM(I53:I55) -> 22.98530203 | K56: 22.98530203
B57: TOTAL CONTROLLABLE OPEX | D57: =D36+D38+D40+D42+D45+D48+D52+D56 -> 33.02375531 | E57: 27.23651757 | F57: 7.546838512 | G57: 30.85489424 | H57: 15.4684982 | I57: 34.18465819 | K57: 148.315162
B59: Debt Raising | K59: ='Input - Historic Yr3'!L63*HLOOKUP($B$7,'Calcs - Conversion for Outputs'!$E$10:$O$20,ROWS('Calcs - Conversion for Outputs'!$E$10:$E$13),FALSE) -> 0
B60: Insurance | K60: ='Input - Historic Yr3'!L64*HLOOKUP($B$7,'Calcs - Conversion for Outputs'!$E$10:$O$20,ROWS('Calcs - Conversion for Outputs'!$E$10:$E$13),FALSE) -> 8.012587874
B61: Self Insurance | K61: ='Input - Historic Yr3'!L65*HLOOKUP($B$7,'Calcs - Conversion for Outputs'!$E$10:$O$20,ROWS('Calcs - Conversion for Outputs'!$E$10:$E$13),FALSE) -> 3.015716929
B62: Network Support | K62: ='Input - Historic Yr3'!L66*HLOOKUP($B$7,'Calcs - Conversion for Outputs'!$E$10:$O$20,ROWS('Calcs - Conversion for Outputs'!$E$10:$E$13),FALSE) -> 0.1957965604
B63: TOTAL OTHER OPEX | K63: =SUM(K59:K62) -> 11.22410136
B65: TOTAL REGULATORY OPEX | D65: =D57+D63 -> 33.02375531 | E65: 27.23651757 | F65: 7.546838512 | G65: 30.85489424 | H65: 15.4684982 | I65: 34.18465819 | K65: =SUM(D65:I65)+K63 -> 159.5392634
B67: Revenue Cap Allowance

Sheet Historic Opex by Category Yr4
D2: Home
B3: 1.6 HISTORIC OPEX by expenditure category
D5: Year 4
B6: $ million | D6: Field Maintenance | G6: Operations and Maintenance Support | H6: Corporate Support
B7: ='Historic Opex Summary'!B7 -> Real 13/14 | D7: Preventative | E7: Corrective/ Condition-based | F7: MOPS | H7: Network | I7: Non-Network | K7: TOTAL | M7: Revenue Cap Allowance | O7: Key cost drivers and explanation for material differences over time
B8: Maintenance
B9: ='Input - General'!C17 -> Not Used
B10: Labour | D10: ='Input - Historic Yr4'!E14*HLOOKUP($B$7,'Calcs - Conversion for Outputs'!$E$10:$O$20,ROWS('Calcs - Conversion for Outputs'!$E$10:$E$14),FALSE) -> 1.027158729e-38 | E10: ='Input - Historic Yr4'!F14*HLOOKUP($B$7,'Calcs - Conversion for Outputs'!$E$10:$O$20,ROWS('Calcs - Conversion for Outputs'!$E$10:$E$14),FALSE) -> 1.027158729e-38 | F10: ='Input - Historic Yr4'!G14*HLOOKUP($B$7,'Calcs - Conversion for Outputs'!$E$10:$O$20,ROWS('Calcs - Conversion for Outputs'!$E$10:$E$14),FALSE) -> 0 | K10: =SUM(D10:I10) -> 2.054317458e-38
B11: Materials | D11: ='Input - Historic Yr4'!E15*HLOOKUP($B$7,'Calcs - Conversion for Outputs'!$E$10:$O$20,ROWS('Calcs - Conversion for Outputs'!$E$10:$E$14),FALSE) -> 1.027158729e-38 | E11: ='Input - Historic Yr4'!F15*HLOOKUP($B$7,'Calcs - Conversion for Outputs'!$E$10:$O$20,ROWS('Calcs - Conversion for Outputs'!$E$10:$E$14),FALSE) -> 1.027158729e-38 | F11: ='Input - Historic Yr4'!G15*HLOOKUP($B$7,'Calcs - Conversion for Outputs'!$E$10:$O$20,ROWS('Calcs - Conversion for Outputs'!$E$10:$E$14),FALSE) -> 0 | K11: =SUM(D11:I11) -> 2.054317458e-38
B12: Sub-Totals | D12: =SUM(D10:D11) -> 2.054317458e-38 | E12: =SUM(E10:E11) -> 2.054317458e-38 | F12: =SUM(F10:F11) -> 0 | K12: =SUM(D12:I12) -> 4.108634917e-38
B13: ='Input - General'!C18 -> Lines
B14: Labour | D14: ='Input - Historic Yr4'!E18*HLOOKUP($B$7,'Calcs - Conversion for Outputs'!$E$10:$O$20,ROWS('Calcs - Conversion for Outputs'!$E$10:$E$14),FALSE) -> 3.100843355 | E14: ='Input - Historic Yr4'!F18*HLOOKUP($B$7,'Calcs - Conversion for Outputs'!$E$10:$O$20,ROWS('Calcs - Conversion for Outputs'!$E$10:$E$14),FALSE) -> 3.062264399 | F14: ='Input - Historic Yr4'!G18*HLOOKUP($B$7,'Calcs - Conversion for Outputs'!$E$10:$O$20,ROWS('Calcs - Conversion for Outputs'!$E$10:$E$14),FALSE) -> 0.5391456022 | K14: =SUM(D14:I14) -> 6.702253356
B15: Materials | D15: ='Input - Historic Yr4'!E19*HLOOKUP($B$7,'Calcs - Conversion for Outputs'!$E$10:$O$20,ROWS('Calcs - Conversion for Outputs'!$E$10:$E$14),FALSE) -> 1.797525846 | E15: ='Input - Historic Yr4'!F19*HLOOKUP($B$7,'Calcs - Conversion for Outputs'!$E$10:$O$20,ROWS('Calcs - Conversion for Outputs'!$E$10:$E$14),FALSE) -> 1.729254722 | F15: ='Input - Historic Yr4'!G19*HLOOKUP($B$7,'Calcs - Conversion for Outputs'!$E$10:$O$20,ROWS('Calcs - Conversion for Outputs'!$E$10:$E$14),FALSE) -> 0.5461253306 | K15: =SUM(D15:I15) -> 4.072905899
B16: Sub-Totals | D16: =SUM(D14:D15) -> 4.898369201 | E16: =SUM(E14:E15) -> 4.791519121 | F16: =SUM(F14:F15) -> 1.085270933 | K16: =SUM(D16:I16) -> 10.77515925
B17: ='Input - General'!C19 -> Substations
